Workbook

Sheet INTRO
C1: Cette version sera utilisée par les pays endémiques à la Loase
B2: Formulaire de Rapport Commun v.3.1 (L)
B4: Le but de ce formulaire de rapport commun - disponible sous forme de fichier Excel - est de mettre à disposition des autorités sanitaires nationales et des gestionnaires de données un outil standardisé qui réponde aux défis, facilite l'intégration et par conséquent contribue à améliorer la gestion de programme. Ce formulaire tend à standardiser le rapport de résultats des programmes nationaux, améliore la disponibilité et la coordination des données de chimioprévention à travers les Bureaux des Régions de l'Organisation mondiale de la Santé. Les autorités nationales sont priées de compléter ce formulaire et de le soumettre à l'Organisation mondiale de la Santé avant le 15 août de l'année en cours pour rapporter les données des activités de chimioprévention mises en oeuvre l'année précédente.
B6: Structure de l'application (feuilles de travail) :
B8: INTRO | C8: Cette feuille contient des instructions pour compléter le formulaire de rapport commun et des informations sur le statut de la chimioprévention pour les maladies d'endémie du pays.
B9: COUNTRY_INFO | C9: Cette feuille contient des informations sur la structure administrative du pays, la population par groupe d'âge, le statut d'endémicité pour chaque maladie, la population devant être traitée par chimioprévention, les interventions prévues et les interventions mises en oeuvre.
B10: MDA1, MDA2, MDA3, T1, T2 et T3 | C10: Ces feuilles contiennent des informations sur l'endémicité des districts ciblés pour le traitement aux médicaments spécifiques pour la chimioprévention, les plans de traitement, et le nombre de personnes traitées par groupe d'âge.
B11: DISTRICT | C11: Cette feuille contient un résumé sur les personnes traitées, par maladie, au niveau de mise en oeuvre. Si les données par genre (sexe) sont disponibles, merci de les saisir.
B12: SUMMARY | C12: Cette feuille contient un résumé sur les personnes traitées, par maladie et par type d'intervention de chimioprévention. Avant de générer le rapport (exécuter macro), veuillez sélectionner la maladie pour laquelle vous souhaitez un rapport. Veuillez suivre le même processus pour générer les divers rapports. Cette feuille doit être imprimée et soumise comme formulaire de rapport commun (voir les instructions pour la soumission du formulaire sous la feuille SUMMARY).
B14: Instructions pour la saisie des données
B16: La plupart des cellules des feuilles de travail mentionnées ci-dessus contiennent des formules calculées automatiquement en fonction du protocole de traitement recommandé par l'OMS pour chaque maladie. Voir : http://www.who.int/neglected_diseases/preventive_chemotherapy/pct_manual/en/index.html
B18: Veuillez entrer vos données dans les cellules en fonction de leur code de couleur :
C20: Blanc - la cellule n'est pas protégée. Veuillez entrer la valeur de l'indicateur demandé.
C22: Jaune - la cellule est protégée et inclut le nom de l'indicateur. Aucune entrée de données requise.
C24: Orange - la cellule n'est pas protégée et contient un menu déroulant. Veuillez sélectionner la valeur dans le menu déroulant.
C27: Vert - la cellule n'est pas protégée et contient des formules. Veuillez changer la valeur indiquée uniquement si vos données sont différentes de celles calculées automatiquement.
C30: Bleu - la cellule est protégée et contient des formules. Aucune entrée de données requise.
B32: Données pays
B34: PAYS | E34: Gabon
B36: Année de rapport des données | E36: 2018
B38: Le pays est-il endémique à la filariose lymphatique (FL) ? | E38: Endémique
B40: Le pays est-il endémique à l'onchocercose (ONCHO) ? | E40: Endémique
B42: Le pays est-il endémique aux géohelminthiases (STH) ? | E42: Endémique
B44: Le pays est-il endémique à la schistosomiase (SCH) ? | E44: Endémique
B46: Combien d'unités administratives compte le pays ? | E46: 51
B47: Si les données démographiques par groupe d'âge ne sont pas disponibles au second niveau administratif, veuillez entrer la proportion (%) de population, par groupe d'âge, du pays. Si les données sont disponibles, veuillez laisser les cellules vierges.
B48: 1-4 ans | C48: Enfants d'âge pré-scolaire (EAPréS) | E48: 0.12
B49: 5-14 ans | C49: Enfants d'âge scolaire (EAS) | E49: 0.2325
B50: 15 ans et plus | C50: Adultes | E50: 0.59

Sheet COUNTRY_INFO
A1: INFORMATIONS PAYS
A2: Structure administrative, population par groupe d'âge, statut d'endémicité, interventions planifiées et interventions mises en oeuvre
A4: TOTAL | D4: =SUM(D$9:D$1000) -> 2066520 | E4: =SUM(E$9:E$1000) -> 247981 | F4: =SUM(F$9:F$1000) -> 516636 | G4: =SUM(G$9:G$1000) -> 1219249 | M4: =SUM(M$9:M$1000) -> 361121 | N4: =SUM(N$9:N$1000) -> 721771 | O4: =SUM(O$9:O$1000) -> 483207 | P4: =SUM(P$9:P$1000) -> 192878.62
A6: Structure administrative du pays | D6: Population | H6: Endémicité | M6: Population nécessitant la CP | Q6: Nombre de tournées de traitement prévues pour l'année | U6: Mise en oeuvre de la chimioprévention
A7: Pays | B7: Région/Département | C7: District | D7: Total | E7: EAPréS | F7: EAS | G7: Adultes | H7: FL | I7: Oncho | J7: STH | K7: SCH | L7: Loa | M7: FL | N7: Oncho | O7: STH | P7: SCH | Q7: FL | R7: Oncho | S7: STH | T7: SCH | U7: TOURNEE 1 | V7: TOURNEE 2 | W7: IU_ID | X7: IU_Name
A9: =IF(INTRO!$E$34<>0,INTRO!$E$34,"") -> Gabon | B9: Libreville-Owendo | C9: Libreville 1 | D9: 278514 | E9: 33422 | F9: 69629 | G9: 164323 | H9: 0 | I9: 4 | J9: 2 | K9: 1 | L9: 1 | M9: =IF(INTRO!$E$38="Endémique", IF($H9>0, IF($H9=4,"Inconnu", IF($H9=99,"Interrompu", $D9)), 0),"Non requis") -> 0 | N9: =IF(INTRO!$E$40="Endémique", IF($I9>0, IF($I9=4,"Inconnu",IF($I9=99,"Interrompu", $D9)), 0),"Non requis") -> Inconnu | O9: =IF(INTRO!$E$42="Endémique", IF(AND($J9>1,$J9<5), IF($J9=4, "Inconnu", E9+F9), 0),"Non requis") -> 103051 | P9: =IF(INTRO!$E$44="Endémique", IF(AND($K9>0,$K9<5), IF($K9=4,"Inconnu", IF($K9=1, $F9*0.33, IF($K9=2, $F9*0.5+$G9*0.2, SUM(F9:G9)))), 0),"Non requis") -> 22977.57 | Q9: 0 | R9: 0 | S9: 1 | T9: 1 | U9: T1 (PZQ+ALB/MBD) | W9: 20330 | X9: Libreville 1
A10: =IF(INTRO!$E$34<>0,INTRO!$E$34,"") -> Gabon | B10: Libreville-Owendo | C10: Libreville 2 | D10: 294595 | E10: 35351 | F10: 73649 | G10: 173811 | H10: 0 | I10: 4 | J10: 1 | K10: 1 | L10: 1 | M10: =IF(INTRO!$E$38="Endémique", IF($H10>0, IF($H10=4,"Inconnu", IF($H10=99,"Interrompu", $D10)), 0),"Non requis") -> 0 | N10: =IF(INTRO!$E$40="Endémique", IF($I10>0, IF($I10=4,"Inconnu",IF($I10=99,"Interrompu", $D10)), 0),"Non requis") -> Inconnu | O10: =IF(INTRO!$E$42="Endémique", IF(AND($J10>1,$J10<5), IF($J10=4, "Inconnu", E10+F10), 0),"Non requis") -> 0 | P10: =IF(INTRO!$E$44="Endémique", IF(AND($K10>0,$K10<5), IF($K10=4,"Inconnu", IF($K10=1, $F10*0.33, IF($K10=2, $F10*0.5+$G10*0.2, SUM(F10:G10)))), 0),"Non requis") -> 24304.17 | Q10: 0 | R10: 0 | S10: 0 | T10: 1 | U10: T2 (PZQ) | W10: 20331 | X10: Libreville 2
A11: =IF(INTRO!$E$34<>0,INTRO!$E$34,"") -> Gabon | B11: Libreville-Owendo | C11: Libreville 3 | D11: 229341 | E11: 27521 | F11: 57335 | G11: 135311 | H11: 0 | I11: 4 | J11: 1 | K11: 1 | L11: 1 | M11: =IF(INTRO!$E$38="Endémique", IF($H11>0, IF($H11=4,"Inconnu", IF($H11=99,"Interrompu", $D11)), 0),"Non requis") -> 0 | N11: =IF(INTRO!$E$40="Endémique", IF($I11>0, IF($I11=4,"Inconnu",IF($I11=99,"Interrompu", $D11)), 0),"Non requis") -> Inconnu | O11: =IF(INTRO!$E$42="Endémique", IF(AND($J11>1,$J11<5), IF($J11=4, "Inconnu", E11+F11), 0),"Non requis") -> 0 | P11: =IF(INTRO!$E$44="Endémique", IF(AND($K11>0,$K11<5), IF($K11=4,"Inconnu", IF($K11=1, $F11*0.33, IF($K11=2, $F11*0.5+$G11*0.2, SUM(F11:G11)))), 0),"Non requis") -> 18920.55 | Q11: 0 | R11: 0 | S11: 0 | T11: 1 | U11: T2 (PZQ) | W11: 20332 | X11: Libreville 3
A12: =IF(INTRO!$E$34<>0,INTRO!$E$34,"") -> Gabon | B12: Libreville-Owendo | C12: Owendo | D12: 87257 | E12: 10471 | F12: 21814 | G12: 51482 | H12: 0 | I12: 4 | J12: 1 | K12: 1 | L12: 1 | M12: =IF(INTRO!$E$38="Endémique", IF($H12>0, IF($H12=4,"Inconnu", IF($H12=99,"Interrompu", $D12)), 0),"Non requis") -> 0 | N12: =IF(INTRO!$E$40="Endémique", IF($I12>0, IF($I12=4,"Inconnu",IF($I12=99,"Interrompu", $D12)), 0),"Non requis") -> Inconnu | O12: =IF(INTRO!$E$42="Endémique", IF(AND($J12>1,$J12<5), IF($J12=4, "Inconnu", E12+F12), 0),"Non requis") -> 0 | P12: =IF(INTRO!$E$44="Endémique", IF(AND($K12>0,$K12<5), IF($K12=4,"Inconnu", IF($K12=1, $F12*0.33, IF($K12=2, $F12*0.5+$G12*0.2, SUM(F12:G12)))), 0),"Non requis") -> 7198.62 | Q12: 0 | R12: 0 | S12: 0 | T12: 1 | U12: T2 (PZQ) | W12: 20334 | X12: Owendo
A13: =IF(INTRO!$E$34<>0,INTRO!$E$34,"") -> Gabon | B13: Ouest | C13: Komo-Mondah | D13: 96045 | E13: 11525 | F13: 24011 | G13: 56667 | H13: 1 | I13: 0 | J13: 2 | K13: 1 | L13: 1 | M13: =IF(INTRO!$E$38="Endémique", IF($H13>0, IF($H13=4,"Inconnu", IF($H13=99,"Interrompu", $D13)), 0),"Non requis") -> 96045 | N13: =IF(INTRO!$E$40="Endémique", IF($I13>0, IF($I13=4,"Inconnu",IF($I13=99,"Interrompu", $D13)), 0),"Non requis") -> 0 | O13: =IF(INTRO!$E$42="Endémique", IF(AND($J13>1,$J13<5), IF($J13=4, "Inconnu", E13+F13), 0),"Non requis") -> 35536 | P13: =IF(INTRO!$E$44="Endémique", IF(AND($K13>0,$K13<5), IF($K13=4,"Inconnu", IF($K13=1, $F13*0.33, IF($K13=2, $F13*0.5+$G13*0.2, SUM(F13:G13)))), 0),"Non requis") -> 7923.63 | Q13: 0 | R13: 0 | S13: 1 | T13: 1 | U13: T1 (PZQ+ALB/MBD) | W13: 20333 | X13: Komo-Mondah
A14: =IF(INTRO!$E$34<>0,INTRO!$E$34,"") -> Gabon | B14: Ouest | C14: Komo-Kango | D14: 18684 | E14: 2242 | F14: 4671 | G14: 11024 | H14: 0 | I14: 4 | J14: 2 | K14: 2 | L14: 1 | M14: =IF(INTRO!$E$38="Endémique", IF($H14>0, IF($H14=4,"Inconnu", IF($H14=99,"Interrompu", $D14)), 0),"Non requis") -> 0 | N14: =IF(INTRO!$E$40="Endémique", IF($I14>0, IF($I14=4,"Inconnu",IF($I14=99,"Interrompu", $D14)), 0),"Non requis") -> Inconnu | O14: =IF(INTRO!$E$42="Endémique", IF(AND($J14>1,$J14<5), IF($J14=4, "Inconnu", E14+F14), 0),"Non requis") -> 6913 | P14: =IF(INTRO!$E$44="Endémique", IF(AND($K14>0,$K14<5), IF($K14=4,"Inconnu", IF($K14=1, $F14*0.33, IF($K14=2, $F14*0.5+$G14*0.2, SUM(F14:G14)))), 0),"Non requis") -> 4540.3 | Q14: 0 | R14: 0 | S14: 1 | T14: 1 | U14: T1 (PZQ+ALB/MBD) | W14: 20329 | X14: Komo-Kango
A15: =IF(INTRO!$E$34<>0,INTRO!$E$34,"") -> Gabon | B15: Ouest | C15: Noya | D15: 4900 | E15: 588 | F15: 1225 | G15: 2891 | H15: 0 | I15: 0 | J15: 3 | K15: 1 | L15: 1 | M15: =IF(INTRO!$E$38="Endémique", IF($H15>0, IF($H15=4,"Inconnu", IF($H15=99,"Interrompu", $D15)), 0),"Non requis") -> 0 | N15: =IF(INTRO!$E$40="Endémique", IF($I15>0, IF($I15=4,"Inconnu",IF($I15=99,"Interrompu", $D15)), 0),"Non requis") -> 0 | O15: =IF(INTRO!$E$42="Endémique", IF(AND($J15>1,$J15<5), IF($J15=4, "Inconnu", E15+F15), 0),"Non requis") -> 1813 | P15: =IF(INTRO!$E$44="Endémique", IF(AND($K15>0,$K15<5), IF($K15=4,"Inconnu", IF($K15=1, $F15*0.33, IF($K15=2, $F15*0.5+$G15*0.2, SUM(F15:G15)))), 0),"Non requis") -> 404.25 | Q15: 0 | R15: 0 | S15: 2 | T15: 1 | U15: T1 (PZQ+ALB/MBD) | V15: T3 (ALB/MBD) | W15: 20328 | X15: Noya
A16: =IF(INTRO!$E$34<>0,INTRO!$E$34,"") -> Gabon | B16: Sud-Est | C16: Bayi-brikolo | D16: 6310 | E16: 757 | F16: 1578 | G16: 3723 | H16: 0 | I16: 4 | J16: 3 | K16: 0 | L16: 1 | M16: =IF(INTRO!$E$38="Endémique", IF($H16>0, IF($H16=4,"Inconnu", IF($H16=99,"Interrompu", $D16)), 0),"Non requis") -> 0 | N16: =IF(INTRO!$E$40="Endémique", IF($I16>0, IF($I16=4,"Inconnu",IF($I16=99,"Interrompu", $D16)), 0),"Non requis") -> Inconnu | O16: =IF(INTRO!$E$42="Endémique", IF(AND($J16>1,$J16<5), IF($J16=4, "Inconnu", E16+F16), 0),"Non requis") -> 2335 | P16: =IF(INTRO!$E$44="Endémique", IF(AND($K16>0,$K16<5), IF($K16=4,"Inconnu", IF($K16=1, $F16*0.33, IF($K16=2, $F16*0.5+$G16*0.2, SUM(F16:G16)))), 0),"Non requis") -> 0 | Q16: 0 | R16: 0 | S16: 2 | T16: 0 | U16: T3 (ALB/MBD) | V16: T3 (ALB/MBD) | W16: 20335 | X16: Bayi-brikolo
A17: =IF(INTRO!$E$34<>0,INTRO!$E$34,"") -> Gabon | B17: Sud-Est | C17: Lékoni-Lékori | D17: 12685 | E17: 1522 | F17: 3171 | G17: 7484 | H17: 0 | I17: 0 | J17: 3 | K17: 1 | L17: 1 | M17: =IF(INTRO!$E$38="Endémique", IF($H17>0, IF($H17=4,"Inconnu", IF($H17=99,"Interrompu", $D17)), 0),"Non requis") -> 0 | N17: =IF(INTRO!$E$40="Endémique", IF($I17>0, IF($I17=4,"Inconnu",IF($I17=99,"Interrompu", $D17)), 0),"Non requis") -> 0 | O17: =IF(INTRO!$E$42="Endémique", IF(AND($J17>1,$J17<5), IF($J17=4, "Inconnu", E17+F17), 0),"Non requis") -> 4693 | P17: =IF(INTRO!$E$44="Endémique", IF(AND($K17>0,$K17<5), IF($K17=4,"Inconnu", IF($K17=1, $F17*0.33, IF($K17=2, $F17*0.5+$G17*0.2, SUM(F17:G17)))), 0),"Non requis") -> 1046.43 | Q17: 0 | R17: 0 | S17: 2 | T17: 1 | U17: T1 (PZQ+ALB/MBD) | V17: T3 (ALB/MBD) | W17: 20336 | X17: Lékoni-lékori
A18: =IF(INTRO!$E$34<>0,INTRO!$E$34,"") -> Gabon | B18: Sud-Est | C18: Lékoko | D18: 5673 | E18: 681 | F18: 1418 | G18: 3347 | H18: 0 | I18: 0 | J18: 2 | K18: 1 | L18: 1 | M18: =IF(INTRO!$E$38="Endémique", IF($H18>0, IF($H18=4,"Inconnu", IF($H18=99,"Interrompu", $D18)), 0),"Non requis") -> 0 | N18: =IF(INTRO!$E$40="Endémique", IF($I18>0, IF($I18=4,"Inconnu",IF($I18=99,"Interrompu", $D18)), 0),"Non requis") -> 0 | O18: =IF(INTRO!$E$42="Endémique", IF(AND($J18>1,$J18<5), IF($J18=4, "Inconnu", E18+F18), 0),"Non requis") -> 2099 | P18: =IF(INTRO!$E$44="Endémique", IF(AND($K18>0,$K18<5), IF($K18=4,"Inconnu", IF($K18=1, $F18*0.33, IF($K18=2, $F18*0.5+$G18*0.2, SUM(F18:G18)))), 0),"Non requis") -> 467.94 | Q18: 0 | R18: 0 | S18: 1 | T18: 1 | U18: T1 (PZQ+ALB/MBD) | W18: 20337 | X18: Lékoko
A19: =IF(INTRO!$E$34<>0,INTRO!$E$34,"") -> Gabon | B19: Sud-Est | C19: Djouori-Agnili | D19: 6215 | E19: 746 | F19: 1554 | G19: 3667 | H19: 1 | I19: 4 | J19: 2 | K19: 0 | L19: 1 | M19: =IF(INTRO!$E$38="Endémique", IF($H19>0, IF($H19=4,"Inconnu", IF($H19=99,"Interrompu", $D19)), 0),"Non requis") -> 6215 | N19: =IF(INTRO!$E$40="Endémique", IF($I19>0, IF($I19=4,"Inconnu",IF($I19=99,"Interrompu", $D19)), 0),"Non requis") -> Inconnu | O19: =IF(INTRO!$E$42="Endémique", IF(AND($J19>1,$J19<5), IF($J19=4, "Inconnu", E19+F19), 0),"Non requis") -> 2300 | P19: =IF(INTRO!$E$44="Endémique", IF(AND($K19>0,$K19<5), IF($K19=4,"Inconnu", IF($K19=1, $F19*0.33, IF($K19=2, $F19*0.5+$G19*0.2, SUM(F19:G19)))), 0),"Non requis") -> 0 | Q19: 0 | R19: 0 | S19: 1 | T19: 0 | U19: T3 (ALB/MBD) | W19: 20338 | X19: Djouori-Agnili
A20: =IF(INTRO!$E$34<>0,INTRO!$E$34,"") -> Gabon | B20: Sud-Est | C20: Ogooué-Létili | D20: 5223 | E20: 627 | F20: 1306 | G20: 3082 | H20: 0 | I20: 4 | J20: 3 | K20: 0 | L20: 1 | M20: =IF(INTRO!$E$38="Endémique", IF($H20>0, IF($H20=4,"Inconnu", IF($H20=99,"Interrompu", $D20)), 0),"Non requis") -> 0 | N20: =IF(INTRO!$E$40="Endémique", IF($I20>0, IF($I20=4,"Inconnu",IF($I20=99,"Interrompu", $D20)), 0),"Non requis") -> Inconnu | O20: =IF(INTRO!$E$42="Endémique", IF(AND($J20>1,$J20<5), IF($J20=4, "Inconnu", E20+F20), 0),"Non requis") -> 1933 | P20: =IF(INTRO!$E$44="Endémique", IF(AND($K20>0,$K20<5), IF($K20=4,"Inconnu", IF($K20=1, $F20*0.33, IF($K20=2, $F20*0.5+$G20*0.2, SUM(F20:G20)))), 0),"Non requis") -> 0 | Q20: 0 | R20: 0 | S20: 2 | T20: 0 | U20: T3 (ALB/MBD) | V20: T3 (ALB/MBD) | W20: 20339 | X20: Ogooué -létili
A21: =IF(INTRO!$E$34<>0,INTRO!$E$34,"") -> Gabon | B21: Sud-Est | C21: Mpassa | D21: 157036 | E21: 18844 | F21: 39259 | G21: 92651 | H21: 0 | I21: 1 | J21: 2 | K21: 1 | L21: 1 | M21: =IF(INTRO!$E$38="Endémique", IF($H21>0, IF($H21=4,"Inconnu", IF($H21=99,"Interrompu", $D21)), 0),"Non requis") -> 0 | N21: =IF(INTRO!$E$40="Endémique", IF($I21>0, IF($I21=4,"Inconnu",IF($I21=99,"Interrompu", $D21)), 0),"Non requis") -> 157036 | O21: =IF(INTRO!$E$42="Endémique", IF(AND($J21>1,$J21<5), IF($J21=4, "Inconnu", E21+F21), 0),"Non requis") -> 58103 | P21: =IF(INTRO!$E$44="Endémique", IF(AND($K21>0,$K21<5), IF($K21=4,"Inconnu", IF($K21=1, $F21*0.33, IF($K21=2, $F21*0.5+$G21*0.2, SUM(F21:G21)))), 0),"Non requis") -> 12955.47 | Q21: 0 | R21: 0 | S21: 1 | T21: 1 | U21: T1 (PZQ+ALB/MBD) | W21: 20340 | X21: Mpassa
A22: =IF(INTRO!$E$34<>0,INTRO!$E$34,"") -> Gabon | B22: Sud-Est | C22: Plateaux | D22: 12587 | E22: 1510 | F22: 3147 | G22: 7426 | H22: 0 | I22: 4 | J22: 3 | K22: 1 | L22: 0 | M22: =IF(INTRO!$E$38="Endémique", IF($H22>0, IF($H22=4,"Inconnu", IF($H22=99,"Interrompu", $D22)), 0),"Non requis") -> 0 | N22: =IF(INTRO!$E$40="Endémique", IF($I22>0, IF($I22=4,"Inconnu",IF($I22=99,"Interrompu", $D22)), 0),"Non requis") -> Inconnu | O22: =IF(INTRO!$E$42="Endémique", IF(AND($J22>1,$J22<5), IF($J22=4, "Inconnu", E22+F22), 0),"Non requis") -> 4657 | P22: =IF(INTRO!$E$44="Endémique", IF(AND($K22>0,$K22<5), IF($K22=4,"Inconnu", IF($K22=1, $F22*0.33, IF($K22=2, $F22*0.5+$G22*0.2, SUM(F22:G22)))), 0),"Non requis") -> 1038.51 | Q22: 0 | R22: 0 | S22: 2 | T22: 1 | U22: T1 (PZQ+ALB/MBD) | V22: T3 (ALB/MBD) | W22: 20341 | X22: Plateaux
A23: =IF(INTRO!$E$34<>0,INTRO!$E$34,"") -> Gabon | B23: Sud-Est | C23: Lébombi-Léyou | D23: 69577 | E23: 8349 | F23: 17394 | G23: 41050 | H23: 0 | I23: 1 | J23: 2 | K23: 1 | L23: 1 | M23: =IF(INTRO!$E$38="Endémique", IF($H23>0, IF($H23=4,"Inconnu", IF($H23=99,"Interrompu", $D23)), 0),"Non requis") -> 0 | N23: =IF(INTRO!$E$40="Endémique", IF($I23>0, IF($I23=4,"Inconnu",IF($I23=99,"Interrompu", $D23)), 0),"Non requis") -> 69577 | O23: =IF(INTRO!$E$42="Endémique", IF(AND($J23>1,$J23<5), IF($J23=4, "Inconnu", E23+F23), 0),"Non requis") -> 25743 | P23: =IF(INTRO!$E$44="Endémique", IF(AND($K23>0,$K23<5), IF($K23=4,"Inconnu", IF($K23=1, $F23*0.33, IF($K23=2, $F23*0.5+$G23*0.2, SUM(F23:G23)))), 0),"Non requis") -> 5740.02 | Q23: 0 | R23: 0 | S23: 1 | T23: 1 | U23: T1 (PZQ+ALB/MBD) | W23: 20342 | X23: Lébombi-Léyou
A24: =IF(INTRO!$E$34<>0,INTRO!$E$34,"") -> Gabon | B24: Sud-Est | C24: Lékabi-Léwolo | D24: 10131 | E24: 1216 | F24: 2533 | G24: 5977 | H24: 0 | I24: 4 | J24: 2 | K24: 1 | L24: 1 | M24: =IF(INTRO!$E$38="Endémique", IF($H24>0, IF($H24=4,"Inconnu", IF($H24=99,"Interrompu", $D24)), 0),"Non requis") -> 0 | N24: =IF(INTRO!$E$40="Endémique", IF($I24>0, IF($I24=4,"Inconnu",IF($I24=99,"Interrompu", $D24)), 0),"Non requis") -> Inconnu | O24: =IF(INTRO!$E$42="Endémique", IF(AND($J24>1,$J24<5), IF($J24=4, "Inconnu", E24+F24), 0),"Non requis") -> 3749 | P24: =IF(INTRO!$E$44="Endémique", IF(AND($K24>0,$K24<5), IF($K24=4,"Inconnu", IF($K24=1, $F24*0.33, IF($K24=2, $F24*0.5+$G24*0.2, SUM(F24:G24)))), 0),"Non requis") -> 835.89 | Q24: 0 | R24: 0 | S24: 1 | T24: 1 | U24: T1 (PZQ+ALB/MBD) | W24: 20343 | X24: Lékabi-léwolo
A25: =IF(INTRO!$E$34<>0,INTRO!$E$34,"") -> Gabon | B25: Sud-Est | C25: Sébé-Brikolo | D25: 19036 | E25: 2284 | F25: 4759 | G25: 11231 | H25: 0 | I25: 1 | J25: 2 | K25: 1 | L25: 1 | M25: =IF(INTRO!$E$38="Endémique", IF($H25>0, IF($H25=4,"Inconnu", IF($H25=99,"Interrompu", $D25)), 0),"Non requis") -> 0 | N25: =IF(INTRO!$E$40="Endémique", IF($I25>0, IF($I25=4,"Inconnu",IF($I25=99,"Interrompu", $D25)), 0),"Non requis") -> 19036 | O25: =IF(INTRO!$E$42="Endémique", IF(AND($J25>1,$J25<5), IF($J25=4, "Inconnu", E25+F25), 0),"Non requis") -> 7043 | P25: =IF(INTRO!$E$44="Endémique", IF(AND($K25>0,$K25<5), IF($K25=4,"Inconnu", IF($K25=1, $F25*0.33, IF($K25=2, $F25*0.5+$G25*0.2, SUM(F25:G25)))), 0),"Non requis") -> 1570.47 | Q25: 0 | R25: 0 | S25: 1 | T25: 1 | U25: T1 (PZQ+ALB/MBD) | W25: 20344 | X25: Sébé-brikoli
A26: =IF(INTRO!$E$34<>0,INTRO!$E$34,"") -> Gabon | B26: Sud-Est | C26: Djoué | D26: 6271 | E26: 753 | F26: 1568 | G26: 3700 | H26: 0 | I26: 4 | J26: 3 | K26: 1 | L26: 1 | M26: =IF(INTRO!$E$38="Endémique", IF($H26>0, IF($H26=4,"Inconnu", IF($H26=99,"Interrompu", $D26)), 0),"Non requis") -> 0 | N26: =IF(INTRO!$E$40="Endémique", IF($I26>0, IF($I26=4,"Inconnu",IF($I26=99,"Interrompu", $D26)), 0),"Non requis") -> Inconnu | O26: =IF(INTRO!$E$42="Endémique", IF(AND($J26>1,$J26<5), IF($J26=4, "Inconnu", E26+F26), 0),"Non requis") -> 2321 | P26: =IF(INTRO!$E$44="Endémique", IF(AND($K26>0,$K26<5), IF($K26=4,"Inconnu", IF($K26=1, $F26*0.33, IF($K26=2, $F26*0.5+$G26*0.2, SUM(F26:G26)))), 0),"Non requis") -> 517.44 | Q26: 0 | R26: 0 | S26: 2 | T26: 1 | U26: T1 (PZQ+ALB/MBD) | V26: T3 (ALB/MBD) | W26: 20345 | X26: Djoué
A27: =IF(INTRO!$E$34<>0,INTRO!$E$34,"") -> Gabon | B27: Centre | C27: Ogooué-et-Lacs | D27: 60282 | E27: 7234 | F27: 15071 | G27: 35566 | H27: 0 | I27: 0 | J27: 2 | K27: 2 | L27: 1 | M27: =IF(INTRO!$E$38="Endémique", IF($H27>0, IF($H27=4,"Inconnu", IF($H27=99,"Interrompu", $D27)), 0),"Non requis") -> 0 | N27: =IF(INTRO!$E$40="Endémique", IF($I27>0, IF($I27=4,"Inconnu",IF($I27=99,"Interrompu", $D27)), 0),"Non requis") -> 0 | O27: =IF(INTRO!$E$42="Endémique", IF(AND($J27>1,$J27<5), IF($J27=4, "Inconnu", E27+F27), 0),"Non requis") -> 22305 | P27: =IF(INTRO!$E$44="Endémique", IF(AND($K27>0,$K27<5), IF($K27=4,"Inconnu", IF($K27=1, $F27*0.33, IF($K27=2, $F27*0.5+$G27*0.2, SUM(F27:G27)))), 0),"Non requis") -> 14648.7 | Q27: 0 | R27: 0 | S27: 1 | T27: 1 | U27: T1 (PZQ+ALB/MBD) | W27: 20346 | X27: Ogooué et Lacs
A28: =IF(INTRO!$E$34<>0,INTRO!$E$34,"") -> Gabon | B28: Centre | C28: Abanga-Bigné | D28: 16969 | E28: 2036 | F28: 4242 | G28: 10012 | H28: 1 | I28: 1 | J28: 2 | K28: 1 | L28: 1 | M28: =IF(INTRO!$E$38="Endémique", IF($H28>0, IF($H28=4,"Inconnu", IF($H28=99,"Interrompu", $D28)), 0),"Non requis") -> 16969 | N28: =IF(INTRO!$E$40="Endémique", IF($I28>0, IF($I28=4,"Inconnu",IF($I28=99,"Interrompu", $D28)), 0),"Non requis") -> 16969 | O28: =IF(INTRO!$E$42="Endémique", IF(AND($J28>1,$J28<5), IF($J28=4, "Inconnu", E28+F28), 0),"Non requis") -> 6278 | P28: =IF(INTRO!$E$44="Endémique", IF(AND($K28>0,$K28<5), IF($K28=4,"Inconnu", IF($K28=1, $F28*0.33, IF($K28=2, $F28*0.5+$G28*0.2, SUM(F28:G28)))), 0),"Non requis") -> 1399.86 | Q28: 0 | R28: 0 | S28: 1 | T28: 1 | U28: T1 (PZQ+ALB/MBD) | W28: 20347 | X28: Abanga -Bigné
A29: =IF(INTRO!$E$34<>0,INTRO!$E$34,"") -> Gabon | B29: Centre-Sud | C29: Tsamba-Magotsi | D29: 15465 | E29: 1856 | F29: 3866 | G29: 9124 | H29: 0 | I29: 1 | J29: 2 | K29: 2 | L29: 1 | M29: =IF(INTRO!$E$38="Endémique", IF($H29>0, IF($H29=4,"Inconnu", IF($H29=99,"Interrompu", $D29)), 0),"Non requis") -> 0 | N29: =IF(INTRO!$E$40="Endémique", IF($I29>0, IF($I29=4,"Inconnu",IF($I29=99,"Interrompu", $D29)), 0),"Non requis") -> 15465 | O29: =IF(INTRO!$E$42="Endémique", IF(AND($J29>1,$J29<5), IF($J29=4, "Inconnu", E29+F29), 0),"Non requis") -> 5722 | P29: =IF(INTRO!$E$44="Endémique", IF(AND($K29>0,$K29<5), IF($K29=4,"Inconnu", IF($K29=1, $F29*0.33, IF($K29=2, $F29*0.5+$G29*0.2, SUM(F29:G29)))), 0),"Non requis") -> 3757.8 | Q29: 0 | R29: 0 | S29: 1 | T29: 1 | U29: T1 (PZQ+ALB/MBD) | W29: 20348 | X29: Tsamba -Magotsi
A30: =IF(INTRO!$E$34<>0,INTRO!$E$34,"") -> Gabon | B30: Centre-Sud | C30: Louetsi-Wano | D30: 12637 | E30: 1516 | F30: 3159 | G30: 7456 | H30: 1 | I30: 1 | J30: 3 | K30: 1 | L30: 1 | M30: =IF(INTRO!$E$38="Endémique", IF($H30>0, IF($H30=4,"Inconnu", IF($H30=99,"Interrompu", $D30)), 0),"Non requis") -> 12637 | N30: =IF(INTRO!$E$40="Endémique", IF($I30>0, IF($I30=4,"Inconnu",IF($I30=99,"Interrompu", $D30)), 0),"Non requis") -> 12637 | O30: =IF(INTRO!$E$42="Endémique", IF(AND($J30>1,$J30<5), IF($J30=4, "Inconnu", E30+F30), 0),"Non requis") -> 4675 | P30: =IF(INTRO!$E$44="Endémique", IF(AND($K30>0,$K30<5), IF($K30=4,"Inconnu", IF($K30=1, $F30*0.33, IF($K30=2, $F30*0.5+$G30*0.2, SUM(F30:G30)))), 0),"Non requis") -> 1042.47 | Q30: 0 | R30: 0 | S30: 2 | T30: 1 | U30: T1 (PZQ+ALB/MBD) | V30: T3 (ALB/MBD) | W30: 20349 | X30: Louetsi-Wano
A31: =IF(INTRO!$E$34<>0,INTRO!$E$34,"") -> Gabon | B31: Centre-Sud | C31: Louetsi-Bibaka | D31: 3169 | E31: 380 | F31: 792 | G31: 1870 | H31: 1 | I31: 0 | J31: 3 | K31: 0 | L31: 1 | M31: =IF(INTRO!$E$38="Endémique", IF($H31>0, IF($H31=4,"Inconnu", IF($H31=99,"Interrompu", $D31)), 0),"Non requis") -> 3169 | N31: =IF(INTRO!$E$40="Endémique", IF($I31>0, IF($I31=4,"Inconnu",IF($I31=99,"Interrompu", $D31)), 0),"Non requis") -> 0 | O31: =IF(INTRO!$E$42="Endémique", IF(AND($J31>1,$J31<5), IF($J31=4, "Inconnu", E31+F31), 0),"Non requis") -> 1172 | P31: =IF(INTRO!$E$44="Endémique", IF(AND($K31>0,$K31<5), IF($K31=4,"Inconnu", IF($K31=1, $F31*0.33, IF($K31=2, $F31*0.5+$G31*0.2, SUM(F31:G31)))), 0),"Non requis") -> 0 | Q31: 0 | R31: 0 | S31: 2 | T31: 0 | U31: T3 (ALB/MBD) | V31: T3 (ALB/MBD) | W31: 20350 | X31: Louetsi-Bibaka
A32: =IF(INTRO!$E$34<>0,INTRO!$E$34,"") -> Gabon | B32: Centre-Sud | C32: Ndolou | D32: 6115 | E32: 734 | F32: 1529 | G32: 3608 | H32: 1 | I32: 0 | J32: 2 | K32: 1 | L32: 1 | M32: =IF(INTRO!$E$38="Endémique", IF($H32>0, IF($H32=4,"Inconnu", IF($H32=99,"Interrompu", $D32)), 0),"Non requis") -> 6115 | N32: =IF(INTRO!$E$40="Endémique", IF($I32>0, IF($I32=4,"Inconnu",IF($I32=99,"Interrompu", $D32)), 0),"Non requis") -> 0 | O32: =IF(INTRO!$E$42="Endémique", IF(AND($J32>1,$J32<5), IF($J32=4, "Inconnu", E32+F32), 0),"Non requis") -> 2263 | P32: =IF(INTRO!$E$44="Endémique", IF(AND($K32>0,$K32<5), IF($K32=4,"Inconnu", IF($K32=1, $F32*0.33, IF($K32=2, $F32*0.5+$G32*0.2, SUM(F32:G32)))), 0),"Non requis") -> 504.57 | Q32: 0 | R32: 0 | S32: 1 | T32: 1 | U32: T1 (PZQ+ALB/MBD) | W32: 20351 | X32: Ndolou
A33: =IF(INTRO!$E$34<>0,INTRO!$E$34,"") -> Gabon | B33: Centre-Sud | C33: Boumi-Louetsi | D33: 21994 | E33: 2639 | F33: 5499 | G33: 12976 | H33: 1 | I33: 1 | J33: 3 | K33: 1 | L33: 1 | M33: =IF(INTRO!$E$38="Endémique", IF($H33>0, IF($H33=4,"Inconnu", IF($H33=99,"Interrompu", $D33)), 0),"Non requis") -> 21994 | N33: =IF(INTRO!$E$40="Endémique", IF($I33>0, IF($I33=4,"Inconnu",IF($I33=99,"Interrompu", $D33)), 0),"Non requis") -> 21994 | O33: =IF(INTRO!$E$42="Endémique", IF(AND($J33>1,$J33<5), IF($J33=4, "Inconnu", E33+F33), 0),"Non requis") -> 8138 | P33: =IF(INTRO!$E$44="Endémique", IF(AND($K33>0,$K33<5), IF($K33=4,"Inconnu", IF($K33=1, $F33*0.33, IF($K33=2, $F33*0.5+$G33*0.2, SUM(F33:G33)))), 0),"Non requis") -> 1814.67 | Q33: 0 | R33: 0 | S33: 2 | T33: 1 | U33: T1 (PZQ+ALB/MBD) | V33: T3 (ALB/MBD) | W33: 20352 | X33: Boumi-Louetsi
A34: =IF(INTRO!$E$34<>0,INTRO!$E$34,"") -> Gabon | B34: Centre-Sud | C34: Ogoulou | D34: 10025 | E34: 1203 | F34: 2506 | G34: 5915 | H34: 1 | I34: 1 | J34: 3 | K34: 1 | L34: 1 | M34: =IF(INTRO!$E$38="Endémique", IF($H34>0, IF($H34=4,"Inconnu", IF($H34=99,"Interrompu", $D34)), 0),"Non requis") -> 10025 | N34: =IF(INTRO!$E$40="Endémique", IF($I34>0, IF($I34=4,"Inconnu",IF($I34=99,"Interrompu", $D34)), 0),"Non requis") -> 10025 | O34: =IF(INTRO!$E$42="Endémique", IF(AND($J34>1,$J34<5), IF($J34=4, "Inconnu", E34+F34), 0),"Non requis") -> 3709 | P34: =IF(INTRO!$E$44="Endémique", IF(AND($K34>0,$K34<5), IF($K34=4,"Inconnu", IF($K34=1, $F34*0.33, IF($K34=2, $F34*0.5+$G34*0.2, SUM(F34:G34)))), 0),"Non requis") -> 826.98 | Q34: 0 | R34: 0 | S34: 2 | T34: 1 | U34: T1 (PZQ+ALB/MBD) | V34: T3 (ALB/MBD) | W34: 20353 | X34: Ogoulou
A35: =IF(INTRO!$E$34<>0,INTRO!$E$34,"") -> Gabon | B35: Centre-Sud | C35: Douya-Onoye | D35: 36126 | E35: 4335 | F35: 9032 | G35: 21314 | H35: 1 | I35: 1 | J35: 2 | K35: 2 | L35: 1 | M35: =IF(INTRO!$E$38="Endémique", IF($H35>0, IF($H35=4,"Inconnu", IF($H35=99,"Interrompu", $D35)), 0),"Non requis") -> 36126 | N35: =IF(INTRO!$E$40="Endémique", IF($I35>0, IF($I35=4,"Inconnu",IF($I35=99,"Interrompu", $D35)), 0),"Non requis") -> 36126 | O35: =IF(INTRO!$E$42="Endémique", IF(AND($J35>1,$J35<5), IF($J35=4, "Inconnu", E35+F35), 0),"Non requis") -> 13367 | P35: =IF(INTRO!$E$44="Endémique", IF(AND($K35>0,$K35<5), IF($K35=4,"Inconnu", IF($K35=1, $F35*0.33, IF($K35=2, $F35*0.5+$G35*0.2, SUM(F35:G35)))), 0),"Non requis") -> 8778.8 | Q35: 0 | R35: 0 | S35: 1 | T35: 1 | U35: T1 (PZQ+ALB/MBD) | W35: 20354 | X35: Douya-Onoye
A36: =IF(INTRO!$E$34<>0,INTRO!$E$34,"") -> Gabon | B36: Centre-Sud | C36: Dola | D36: 9094 | E36: 1091 | F36: 2274 | G36: 5365 | H36: 0 | I36: 1 | J36: 2 | K36: 1 | L36: 1 | M36: =IF(INTRO!$E$38="Endémique", IF($H36>0, IF($H36=4,"Inconnu", IF($H36=99,"Interrompu", $D36)), 0),"Non requis") -> 0 | N36: =IF(INTRO!$E$40="Endémique", IF($I36>0, IF($I36=4,"Inconnu",IF($I36=99,"Interrompu", $D36)), 0),"Non requis") -> 9094 | O36: =IF(INTRO!$E$42="Endémique", IF(AND($J36>1,$J36<5), IF($J36=4, "Inconnu", E36+F36), 0),"Non requis") -> 3365 | P36: =IF(INTRO!$E$44="Endémique", IF(AND($K36>0,$K36<5), IF($K36=4,"Inconnu", IF($K36=1, $F36*0.33, IF($K36=2, $F36*0.5+$G36*0.2, SUM(F36:G36)))), 0),"Non requis") -> 750.42 | Q36: 0 | R36: 0 | S36: 1 | T36: 1 | U36: T1 (PZQ+ALB/MBD) | W36: 20355 | X36: Dola
A37: =IF(INTRO!$E$34<>0,INTRO!$E$34,"") -> Gabon | B37: Centre-Sud | C37: Mougalaba | D37: 1442 | E37: 173 | F37: 361 | G37: 851 | H37: 1 | I37: 0 | J37: 3 | K37: 1 | L37: 1 | M37: =IF(INTRO!$E$38="Endémique", IF($H37>0, IF($H37=4,"Inconnu", IF($H37=99,"Interrompu", $D37)), 0),"Non requis") -> 1442 | N37: =IF(INTRO!$E$40="Endémique", IF($I37>0, IF($I37=4,"Inconnu",IF($I37=99,"Interrompu", $D37)), 0),"Non requis") -> 0 | O37: =IF(INTRO!$E$42="Endémique", IF(AND($J37>1,$J37<5), IF($J37=4, "Inconnu", E37+F37), 0),"Non requis") -> 534 | P37: =IF(INTRO!$E$44="Endémique", IF(AND($K37>0,$K37<5), IF($K37=4,"Inconnu", IF($K37=1, $F37*0.33, IF($K37=2, $F37*0.5+$G37*0.2, SUM(F37:G37)))), 0),"Non requis") -> 119.13 | Q37: 0 | R37: 0 | S37: 2 | T37: 1 | U37: T1 (PZQ+ALB/MBD) | V37: T3 (ALB/MBD) | W37: 20356 | X37: Mougalaba
A38: =IF(INTRO!$E$34<>0,INTRO!$E$34,"") -> Gabon | B38: Sud | C38: Doutsila | D38: 4391 | E38: 527 | F38: 1098 | G38: 2591 | H38: 0 | I38: 4 | J38: 3 | K38: 1 | L38: 1 | M38: =IF(INTRO!$E$38="Endémique", IF($H38>0, IF($H38=4,"Inconnu", IF($H38=99,"Interrompu", $D38)), 0),"Non requis") -> 0 | N38: =IF(INTRO!$E$40="Endémique", IF($I38>0, IF($I38=4,"Inconnu",IF($I38=99,"Interrompu", $D38)), 0),"Non requis") -> Inconnu | O38: =IF(INTRO!$E$42="Endémique", IF(AND($J38>1,$J38<5), IF($J38=4, "Inconnu", E38+F38), 0),"Non requis") -> 1625 | P38: =IF(INTRO!$E$44="Endémique", IF(AND($K38>0,$K38<5), IF($K38=4,"Inconnu", IF($K38=1, $F38*0.33, IF($K38=2, $F38*0.5+$G38*0.2, SUM(F38:G38)))), 0),"Non requis") -> 362.34 | Q38: 0 | R38: 0 | S38: 2 | T38: 1 | U38: T1 (PZQ+ALB/MBD) | V38: T3 (ALB/MBD) | W38: 20357 | X38: Doutsila
A39: =IF(INTRO!$E$34<>0,INTRO!$E$34,"") -> Gabon | B39: Sud | C39: Basse-Banio | D39: 7344 | E39: 881 | F39: 1836 | G39: 4333 | H39: 1 | I39: 1 | J39: 2 | K39: 1 | L39: 1 | M39: =IF(INTRO!$E$38="Endémique", IF($H39>0, IF($H39=4,"Inconnu", IF($H39=99,"Interrompu", $D39)), 0),"Non requis") -> 7344 | N39: =IF(INTRO!$E$40="Endémique", IF($I39>0, IF($I39=4,"Inconnu",IF($I39=99,"Interrompu", $D39)), 0),"Non requis") -> 7344 | O39: =IF(INTRO!$E$42="Endémique", IF(AND($J39>1,$J39<5), IF($J39=4, "Inconnu", E39+F39), 0),"Non requis") -> 2717 | P39: =IF(INTRO!$E$44="Endémique", IF(AND($K39>0,$K39<5), IF($K39=4,"Inconnu", IF($K39=1, $F39*0.33, IF($K39=2, $F39*0.5+$G39*0.2, SUM(F39:G39)))), 0),"Non requis") -> 605.88 | Q39: 0 | R39: 0 | S39: 1 | T39: 1 | U39: T1 (PZQ+ALB/MBD) | W39: 20358 | X39: Basse-Banio
A40: =IF(INTRO!$E$34<>0,INTRO!$E$34,"") -> Gabon | B40: Sud | C40: Douigny | D40: 7491 | E40: 899 | F40: 1873 | G40: 4420 | H40: 0 | I40: 0 | J40: 3 | K40: 0 | L40: 1 | M40: =IF(INTRO!$E$38="Endémique", IF($H40>0, IF($H40=4,"Inconnu", IF($H40=99,"Interrompu", $D40)), 0),"Non requis") -> 0 | N40: =IF(INTRO!$E$40="Endémique", IF($I40>0, IF($I40=4,"Inconnu",IF($I40=99,"Interrompu", $D40)), 0),"Non requis") -> 0 | O40: =IF(INTRO!$E$42="Endémique", IF(AND($J40>1,$J40<5), IF($J40=4, "Inconnu", E40+F40), 0),"Non requis") -> 2772 | P40: =IF(INTRO!$E$44="Endémique", IF(AND($K40>0,$K40<5), IF($K40=4,"Inconnu", IF($K40=1, $F40*0.33, IF($K40=2, $F40*0.5+$G40*0.2, SUM(F40:G40)))), 0),"Non requis") -> 0 | Q40: 0 | R40: 0 | S40: 2 | T40: 0 | U40: T3 (ALB/MBD) | V40: T3 (ALB/MBD) | W40: 20359 | X40: Douigny
A41: =IF(INTRO!$E$34<>0,INTRO!$E$34,"") -> Gabon | B41: Sud | C41: Mongo | D41: 3743 | E41: 449 | F41: 936 | G41: 2208 | H41: 0 | I41: 1 | J41: 2 | K41: 1 | L41: 1 | M41: =IF(INTRO!$E$38="Endémique", IF($H41>0, IF($H41=4,"Inconnu", IF($H41=99,"Interrompu", $D41)), 0),"Non requis") -> 0 | N41: =IF(INTRO!$E$40="Endémique", IF($I41>0, IF($I41=4,"Inconnu",IF($I41=99,"Interrompu", $D41)), 0),"Non requis") -> 3743 | O41: =IF(INTRO!$E$42="Endémique", IF(AND($J41>1,$J41<5), IF($J41=4, "Inconnu", E41+F41), 0),"Non requis") -> 1385 | P41: =IF(INTRO!$E$44="Endémique", IF(AND($K41>0,$K41<5), IF($K41=4,"Inconnu", IF($K41=1, $F41*0.33, IF($K41=2, $F41*0.5+$G41*0.2, SUM(F41:G41)))), 0),"Non requis") -> 308.88 | Q41: 0 | R41: 0 | S41: 1 | T41: 1 | U41: T1 (PZQ+ALB/MBD) | W41: 20360 | X41: Mongo
A42: =IF(INTRO!$E$34<>0,INTRO!$E$34,"") -> Gabon | B42: Sud | C42: Haute-Banio | D42: 1884 | E42: 226 | F42: 471 | G42: 1112 | H42: 0 | I42: 4 | J42: 3 | K42: 0 | L42: 1 | M42: =IF(INTRO!$E$38="Endémique", IF($H42>0, IF($H42=4,"Inconnu", IF($H42=99,"Interrompu", $D42)), 0),"Non requis") -> 0 | N42: =IF(INTRO!$E$40="Endémique", IF($I42>0, IF($I42=4,"Inconnu",IF($I42=99,"Interrompu", $D42)), 0),"Non requis") -> Inconnu | O42: =IF(INTRO!$E$42="Endémique", IF(AND($J42>1,$J42<5), IF($J42=4, "Inconnu", E42+F42), 0),"Non requis") -> 697 | P42: =IF(INTRO!$E$44="Endémique", IF(AND($K42>0,$K42<5), IF($K42=4,"Inconnu", IF($K42=1, $F42*0.33, IF($K42=2, $F42*0.5+$G42*0.2, SUM(F42:G42)))), 0),"Non requis") -> 0 | Q42: 0 | R42: 0 | S42: 2 | T42: 0 | U42: T3 (ALB/MBD) | V42: T3 (ALB/MBD) | W42: 20361 | X42: Haute-Banio
A43: =IF(INTRO!$E$34<>0,INTRO!$E$34,"") -> Gabon | B43: Sud | C43: Mougoutsi | D43: 31732 | E43: 3808 | F43: 7933 | G43: 18722 | H43: 0 | I43: 1 | J43: 2 | K43: 1 | L43: 1 | M43: =IF(INTRO!$E$38="Endémique", IF($H43>0, IF($H43=4,"Inconnu", IF($H43=99,"Interrompu", $D43)), 0),"Non requis") -> 0 | N43: =IF(INTRO!$E$40="Endémique", IF($I43>0, IF($I43=4,"Inconnu",IF($I43=99,"Interrompu", $D43)), 0),"Non requis") -> 31732 | O43: =IF(INTRO!$E$42="Endémique", IF(AND($J43>1,$J43<5), IF($J43=4, "Inconnu", E43+F43), 0),"Non requis") -> 11741 | P43: =IF(INTRO!$E$44="Endémique", IF(AND($K43>0,$K43<5), IF($K43=4,"Inconnu", IF($K43=1, $F43*0.33, IF($K43=2, $F43*0.5+$G43*0.2, SUM(F43:G43)))), 0),"Non requis") -> 2617.89 | Q43: 0 | R43: 0 | S43: 1 | T43: 1 | U43: T1 (PZQ+ALB/MBD) | W43: 20362 | X43: Mougoutsi
A44: =IF(INTRO!$E$34<>0,INTRO!$E$34,"") -> Gabon | B44: Est | C44: Lopé | D44: 15841 | E44: 1901 | F44: 3960 | G44: 9346 | H44: 1 | I44: 1 | J44: 2 | K44: 1 | L44: 1 | M44: =IF(INTRO!$E$38="Endémique", IF($H44>0, IF($H44=4,"Inconnu", IF($H44=99,"Interrompu", $D44)), 0),"Non requis") -> 15841 | N44: =IF(INTRO!$E$40="Endémique", IF($I44>0, IF($I44=4,"Inconnu",IF($I44=99,"Interrompu", $D44)), 0),"Non requis") -> 15841 | O44: =IF(INTRO!$E$42="Endémique", IF(AND($J44>1,$J44<5), IF($J44=4, "Inconnu", E44+F44), 0),"Non requis") -> 5861 | P44: =IF(INTRO!$E$44="Endémique", IF(AND($K44>0,$K44<5), IF($K44=4,"Inconnu", IF($K44=1, $F44*0.33, IF($K44=2, $F44*0.5+$G44*0.2, SUM(F44:G44)))), 0),"Non requis") -> 1306.8 | Q44: 0 | R44: 0 | S44: 1 | T44: 1 | U44: T1 (PZQ+ALB/MBD) | W44: 20363 | X44: Lopé
A45: =IF(INTRO!$E$34<>0,INTRO!$E$34,"") -> Gabon | B45: Est | C45: Ivindo | D45: 34879 | E45: 4185 | F45: 8720 | G45: 20579 | H45: 1 | I45: 1 | J45: 2 | K45: 1 | L45: 1 | M45: =IF(INTRO!$E$38="Endémique", IF($H45>0, IF($H45=4,"Inconnu", IF($H45=99,"Interrompu", $D45)), 0),"Non requis") -> 34879 | N45: =IF(INTRO!$E$40="Endémique", IF($I45>0, IF($I45=4,"Inconnu",IF($I45=99,"Interrompu", $D45)), 0),"Non requis") -> 34879 | O45: =IF(INTRO!$E$42="Endémique", IF(AND($J45>1,$J45<5), IF($J45=4, "Inconnu", E45+F45), 0),"Non requis") -> 12905 | P45: =IF(INTRO!$E$44="Endémique", IF(AND($K45>0,$K45<5), IF($K45=4,"Inconnu", IF($K45=1, $F45*0.33, IF($K45=2, $F45*0.5+$G45*0.2, SUM(F45:G45)))), 0),"Non requis") -> 2877.6 | Q45: 0 | R45: 0 | S45: 1 | T45: 1 | U45: T1 (PZQ+ALB/MBD) | W45: 20364 | X45: Ivindo
A46: =IF(INTRO!$E$34<>0,INTRO!$E$34,"") -> Gabon | B46: Est | C46: Zadié | D46: 16488 | E46: 1979 | F46: 4122 | G46: 9728 | H46: 1 | I46: 1 | J46: 3 | K46: 0 | L46: 1 | M46: =IF(INTRO!$E$38="Endémique", IF($H46>0, IF($H46=4,"Inconnu", IF($H46=99,"Interrompu", $D46)), 0),"Non requis") -> 16488 | N46: =IF(INTRO!$E$40="Endémique", IF($I46>0, IF($I46=4,"Inconnu",IF($I46=99,"Interrompu", $D46)), 0),"Non requis") -> 16488 | O46: =IF(INTRO!$E$42="Endémique", IF(AND($J46>1,$J46<5), IF($J46=4, "Inconnu", E46+F46), 0),"Non requis") -> 6101 | P46: =IF(INTRO!$E$44="Endémique", IF(AND($K46>0,$K46<5), IF($K46=4,"Inconnu", IF($K46=1, $F46*0.33, IF($K46=2, $F46*0.5+$G46*0.2, SUM(F46:G46)))), 0),"Non requis") -> 0 | Q46: 0 | R46: 0 | S46: 2 | T46: 0 | U46: T3 (ALB/MBD) | V46: T3 (ALB/MBD) | W46: 20365 | X46: Zadié
A47: =IF(INTRO!$E$34<>0,INTRO!$E$34,"") -> Gabon | B47: Est | C47: Mvoung | D47: 5606 | E47: 673 | F47: 1402 | G47: 3308 | H47: 1 | I47: 1 | J47: 3 | K47: 1 | L47: 1 | M47: =IF(INTRO!$E$38="Endémique", IF($H47>0, IF($H47=4,"Inconnu", IF($H47=99,"Interrompu", $D47)), 0),"Non requis") -> 5606 | N47: =IF(INTRO!$E$40="Endémique", IF($I47>0, IF($I47=4,"Inconnu",IF($I47=99,"Interrompu", $D47)), 0),"Non requis") -> 5606 | O47: =IF(INTRO!$E$42="Endémique", IF(AND($J47>1,$J47<5), IF($J47=4, "Inconnu", E47+F47), 0),"Non requis") -> 2075 | P47: =IF(INTRO!$E$44="Endémique", IF(AND($K47>0,$K47<5), IF($K47=4,"Inconnu", IF($K47=1, $F47*0.33, IF($K47=2, $F47*0.5+$G47*0.2, SUM(F47:G47)))), 0),"Non requis") -> 462.66 | Q47: 0 | R47: 0 | S47: 2 | T47: 1 | U47: T1 (PZQ+ALB/MBD) | V47: T3 (ALB/MBD) | W47: 20366 | X47: Mvoung
A48: =IF(INTRO!$E$34<>0,INTRO!$E$34,"") -> Gabon | B48: Centre-Est | C48: Offoué-Onoye | D48: 3946 | E48: 474 | F48: 987 | G48: 2328 | H48: 1 | I48: 1 | J48: 3 | K48: 1 | L48: 1 | M48: =IF(INTRO!$E$38="Endémique", IF($H48>0, IF($H48=4,"Inconnu", IF($H48=99,"Interrompu", $D48)), 0),"Non requis") -> 3946 | N48: =IF(INTRO!$E$40="Endémique", IF($I48>0, IF($I48=4,"Inconnu",IF($I48=99,"Interrompu", $D48)), 0),"Non requis") -> 3946 | O48: =IF(INTRO!$E$42="Endémique", IF(AND($J48>1,$J48<5), IF($J48=4, "Inconnu", E48+F48), 0),"Non requis") -> 1461 | P48: =IF(INTRO!$E$44="Endémique", IF(AND($K48>0,$K48<5), IF($K48=4,"Inconnu", IF($K48=1, $F48*0.33, IF($K48=2, $F48*0.5+$G48*0.2, SUM(F48:G48)))), 0),"Non requis") -> 325.71 | Q48: 0 | R48: 0 | S48: 2 | T48: 1 | U48: T1 (PZQ+ALB/MBD) | V48: T3 (ALB/MBD) | W48: 20367 | X48: Offoué-Onoye
A49: =IF(INTRO!$E$34<>0,INTRO!$E$34,"") -> Gabon | B49: Centre-Est | C49: Lolo-Bouenguidi | D49: 32984 | E49: 3958 | F49: 8246 | G49: 19461 | H49: 1 | I49: 1 | J49: 2 | K49: 2 | L49: 1 | M49: =IF(INTRO!$E$38="Endémique", IF($H49>0, IF($H49=4,"Inconnu", IF($H49=99,"Interrompu", $D49)), 0),"Non requis") -> 32984 | N49: =IF(INTRO!$E$40="Endémique", IF($I49>0, IF($I49=4,"Inconnu",IF($I49=99,"Interrompu", $D49)), 0),"Non requis") -> 32984 | O49: =IF(INTRO!$E$42="Endémique", IF(AND($J49>1,$J49<5), IF($J49=4, "Inconnu", E49+F49), 0),"Non requis") -> 12204 | P49: =IF(INTRO!$E$44="Endémique", IF(AND($K49>0,$K49<5), IF($K49=4,"Inconnu", IF($K49=1, $F49*0.33, IF($K49=2, $F49*0.5+$G49*0.2, SUM(F49:G49)))), 0),"Non requis") -> 8015.2 | Q49: 0 | R49: 0 | S49: 1 | T49: 1 | U49: T1 (PZQ+ALB/MBD) | W49: 20368 | X49: Lolo-Bouenguidi
A50: =IF(INTRO!$E$34<>0,INTRO!$E$34,"") -> Gabon | B50: Centre-Est | C50: Mulundu | D50: 33296 | E50: 3996 | F50: 8324 | G50: 19645 | H50: 1 | I50: 1 | J50: 2 | K50: 1 | L50: 1 | M50: =IF(INTRO!$E$38="Endémique", IF($H50>0, IF($H50=4,"Inconnu", IF($H50=99,"Interrompu", $D50)), 0),"Non requis") -> 33296 | N50: =IF(INTRO!$E$40="Endémique", IF($I50>0, IF($I50=4,"Inconnu",IF($I50=99,"Interrompu", $D50)), 0),"Non requis") -> 33296 | O50: =IF(INTRO!$E$42="Endémique", IF(AND($J50>1,$J50<5), IF($J50=4, "Inconnu", E50+F50), 0),"Non requis") -> 12320 | P50: =IF(INTRO!$E$44="Endémique", IF(AND($K50>0,$K50<5), IF($K50=4,"Inconnu", IF($K50=1, $F50*0.33, IF($K50=2, $F50*0.5+$G50*0.2, SUM(F50:G50)))), 0),"Non requis") -> 2746.92 | Q50: 0 | R50: 0 | S50: 1 | T50: 1 | U50: T1 (PZQ+ALB/MBD) | W50: 20369 | X50: Mulundu
A51: =IF(INTRO!$E$34<>0,INTRO!$E$34,"") -> Gabon | B51: Centre-Est | C51: Lombo-Bouenguidi | D51: 5498 | E51: 660 | F51: 1375 | G51: 3244 | H51: 0 | I51: 1 | J51: 3 | K51: 1 | L51: 1 | M51: =IF(INTRO!$E$38="Endémique", IF($H51>0, IF($H51=4,"Inconnu", IF($H51=99,"Interrompu", $D51)), 0),"Non requis") -> 0 | N51: =IF(INTRO!$E$40="Endémique", IF($I51>0, IF($I51=4,"Inconnu",IF($I51=99,"Interrompu", $D51)), 0),"Non requis") -> 5498 | O51: =IF(INTRO!$E$42="Endémique", IF(AND($J51>1,$J51<5), IF($J51=4, "Inconnu", E51+F51), 0),"Non requis") -> 2035 | P51: =IF(INTRO!$E$44="Endémique", IF(AND($K51>0,$K51<5), IF($K51=4,"Inconnu", IF($K51=1, $F51*0.33, IF($K51=2, $F51*0.5+$G51*0.2, SUM(F51:G51)))), 0),"Non requis") -> 453.75 | Q51: 0 | R51: 0 | S51: 2 | T51: 1 | U51: T1 (PZQ+ALB/MBD) | V51: T3 (ALB/MBD) | W51: 20370 | X51: Lombo-Bouenguidi
A52: =IF(INTRO!$E$34<>0,INTRO!$E$34,"") -> Gabon | B52: Maritime | C52: Ndougou | D52: 11762 | E52: 1411 | F52: 2941 | G52: 6940 | H52: 0 | I52: 4 | J52: 2 | K52: 1 | L52: 1 | M52: =IF(INTRO!$E$38="Endémique", IF($H52>0, IF($H52=4,"Inconnu", IF($H52=99,"Interrompu", $D52)), 0),"Non requis") -> 0 | N52: =IF(INTRO!$E$40="Endémique", IF($I52>0, IF($I52=4,"Inconnu",IF($I52=99,"Interrompu", $D52)), 0),"Non requis") -> Inconnu | O52: =IF(INTRO!$E$42="Endémique", IF(AND($J52>1,$J52<5), IF($J52=4, "Inconnu", E52+F52), 0),"Non requis") -> 4352 | P52: =IF(INTRO!$E$44="Endémique", IF(AND($K52>0,$K52<5), IF($K52=4,"Inconnu", IF($K52=1, $F52*0.33, IF($K52=2, $F52*0.5+$G52*0.2, SUM(F52:G52)))), 0),"Non requis") -> 970.53 | Q52: 0 | R52: 0 | S52: 1 | T52: 1 | U52: T1 (PZQ+ALB/MBD) | W52: 20371 | X52: Ndougou
A53: =IF(INTRO!$E$34<>0,INTRO!$E$34,"") -> Gabon | B53: Maritime | C53: Etimboué | D53: 5252 | E53: 630 | F53: 1313 | G53: 3099 | H53: 0 | I53: 0 | J53: 2 | K53: 1 | L53: 1 | M53: =IF(INTRO!$E$38="Endémique", IF($H53>0, IF($H53=4,"Inconnu", IF($H53=99,"Interrompu", $D53)), 0),"Non requis") -> 0 | N53: =IF(INTRO!$E$40="Endémique", IF($I53>0, IF($I53=4,"Inconnu",IF($I53=99,"Interrompu", $D53)), 0),"Non requis") -> 0 | O53: =IF(INTRO!$E$42="Endémique", IF(AND($J53>1,$J53<5), IF($J53=4, "Inconnu", E53+F53), 0),"Non requis") -> 1943 | P53: =IF(INTRO!$E$44="Endémique", IF(AND($K53>0,$K53<5), IF($K53=4,"Inconnu", IF($K53=1, $F53*0.33, IF($K53=2, $F53*0.5+$G53*0.2, SUM(F53:G53)))), 0),"Non requis") -> 433.29 | Q53: 0 | R53: 0 | S53: 1 | T53: 1 | U53: T1 (PZQ+ALB/MBD) | W53: 20372 | X53: Etimboué
A54: =IF(INTRO!$E$34<>0,INTRO!$E$34,"") -> Gabon | B54: Maritime | C54: Bendjé | D54: 149376 | E54: 17925 | F54: 37344 | G54: 88132 | H54: 0 | I54: 4 | J54: 1 | K54: 1 | L54: 1 | M54: =IF(INTRO!$E$38="Endémique", IF($H54>0, IF($H54=4,"Inconnu", IF($H54=99,"Interrompu", $D54)), 0),"Non requis") -> 0 | N54: =IF(INTRO!$E$40="Endémique", IF($I54>0, IF($I54=4,"Inconnu",IF($I54=99,"Interrompu", $D54)), 0),"Non requis") -> Inconnu | O54: =IF(INTRO!$E$42="Endémique", IF(AND($J54>1,$J54<5), IF($J54=4, "Inconnu", E54+F54), 0),"Non requis") -> 0 | P54: =IF(INTRO!$E$44="Endémique", IF(AND($K54>0,$K54<5), IF($K54=4,"Inconnu", IF($K54=1, $F54*0.33, IF($K54=2, $F54*0.5+$G54*0.2, SUM(F54:G54)))), 0),"Non requis") -> 12323.52 | Q54: 0 | R54: 0 | S54: 0 | T54: 1 | U54: T2 (PZQ) | W54: 20373 | X54: Bendjé
A55: =IF(INTRO!$E$34<>0,INTRO!$E$34,"") -> Gabon | B55: Nord | C55: Ntem | D55: 53420 | E55: 6410 | F55: 13355 | G55: 31518 | H55: 0 | I55: 1 | J55: 3 | K55: 1 | L55: 1 | M55: =IF(INTRO!$E$38="Endémique", IF($H55>0, IF($H55=4,"Inconnu", IF($H55=99,"Interrompu", $D55)), 0),"Non requis") -> 0 | N55: =IF(INTRO!$E$40="Endémique", IF($I55>0, IF($I55=4,"Inconnu",IF($I55=99,"Interrompu", $D55)), 0),"Non requis") -> 53420 | O55: =IF(INTRO!$E$42="Endémique", IF(AND($J55>1,$J55<5), IF($J55=4, "Inconnu", E55+F55), 0),"Non requis") -> 19765 | P55: =IF(INTRO!$E$44="Endémique", IF(AND($K55>0,$K55<5), IF($K55=4,"Inconnu", IF($K55=1, $F55*0.33, IF($K55=2, $F55*0.5+$G55*0.2, SUM(F55:G55)))), 0),"Non requis") -> 4407.15 | Q55: 0 | R55: 0 | S55: 2 | T55: 1 | U55: T1 (PZQ+ALB/MBD) | V55: T3 (ALB/MBD) | W55: 20374 | X55: Ntem
A56: =IF(INTRO!$E$34<>0,INTRO!$E$34,"") -> Gabon | B56: Nord | C56: Haut - Komo | D56: 5263 | E56: 632 | F56: 1316 | G56: 3105 | H56: 0 | I56: 1 | J56: 3 | K56: 1 | L56: 1 | M56: =IF(INTRO!$E$38="Endémique", IF($H56>0, IF($H56=4,"Inconnu", IF($H56=99,"Interrompu", $D56)), 0),"Non requis") -> 0 | N56: =IF(INTRO!$E$40="Endémique", IF($I56>0, IF($I56=4,"Inconnu",IF($I56=99,"Interrompu", $D56)), 0),"Non requis") -> 5263 | O56: =IF(INTRO!$E$42="Endémique", IF(AND($J56>1,$J56<5), IF($J56=4, "Inconnu", E56+F56), 0),"Non requis") -> 1948 | P56: =IF(INTRO!$E$44="Endémique", IF(AND($K56>0,$K56<5), IF($K56=4,"Inconnu", IF($K56=1, $F56*0.33, IF($K56=2, $F56*0.5+$G56*0.2, SUM(F56:G56)))), 0),"Non requis") -> 434.28 | Q56: 0 | R56: 0 | S56: 2 | T56: 1 | U56: T1 (PZQ+ALB/MBD) | V56: T3 (ALB/MBD) | W56: 20375 | X56: Haut-Komo
A57: =IF(INTRO!$E$34<>0,INTRO!$E$34,"") -> Gabon | B57: Nord | C57: Haut-Ntem | D57: 17439 | E57: 2093 | F57: 4360 | G57: 10289 | H57: 0 | I57: 1 | J57: 3 | K57: 1 | L57: 1 | M57: =IF(INTRO!$E$38="Endémique", IF($H57>0, IF($H57=4,"Inconnu", IF($H57=99,"Interrompu", $D57)), 0),"Non requis") -> 0 | N57: =IF(INTRO!$E$40="Endémique", IF($I57>0, IF($I57=4,"Inconnu",IF($I57=99,"Interrompu", $D57)), 0),"Non requis") -> 17439 | O57: =IF(INTRO!$E$42="Endémique", IF(AND($J57>1,$J57<5), IF($J57=4, "Inconnu", E57+F57), 0),"Non requis") -> 6453 | P57: =IF(INTRO!$E$44="Endémique", IF(AND($K57>0,$K57<5), IF($K57=4,"Inconnu", IF($K57=1, $F57*0.33, IF($K57=2, $F57*0.5+$G57*0.2, SUM(F57:G57)))), 0),"Non requis") -> 1438.8 | Q57: 0 | R57: 0 | S57: 2 | T57: 1 | U57: T1 (PZQ+ALB/MBD) | V57: T3 (ALB/MBD) | W57: 20376 | X57: Haut-Ntem
A58: =IF(INTRO!$E$34<>0,INTRO!$E$34,"") -> Gabon | B58: Nord | C58: Okano | D58: 19154 | E58: 2298 | F58: 4789 | G58: 11301 | H58: 0 | I58: 0 | J58: 3 | K58: 1 | L58: 1 | M58: =IF(INTRO!$E$38="Endémique", IF($H58>0, IF($H58=4,"Inconnu", IF($H58=99,"Interrompu", $D58)), 0),"Non requis") -> 0 | N58: =IF(INTRO!$E$40="Endémique", IF($I58>0, IF($I58=4,"Inconnu",IF($I58=99,"Interrompu", $D58)), 0),"Non requis") -> 0 | O58: =IF(INTRO!$E$42="Endémique", IF(AND($J58>1,$J58<5), IF($J58=4, "Inconnu", E58+F58), 0),"Non requis") -> 7087 | P58: =IF(INTRO!$E$44="Endémique", IF(AND($K58>0,$K58<5), IF($K58=4,"Inconnu", IF($K58=1, $F58*0.33, IF($K58=2, $F58*0.5+$G58*0.2, SUM(F58:G58)))), 0),"Non requis") -> 1580.37 | Q58: 0 | R58: 0 | S58: 2 | T58: 1 | U58: T1 (PZQ+ALB/MBD) | V58: T3 (ALB/MBD) | W58: 20377 | X58: Okano
A59: =IF(INTRO!$E$34<>0,INTRO!$E$34,"") -> Gabon | B59: Nord | C59: Woleu | D59: 86333 | E59: 10360 | F59: 21583 | G59: 50936 | H59: 0 | I59: 1 | J59: 2 | K59: 1 | L59: 1 | M59: =IF(INTRO!$E$38="Endémique", IF($H59>0, IF($H59=4,"Inconnu", IF($H59=99,"Interrompu", $D59)), 0),"Non requis") -> 0 | N59: =IF(INTRO!$E$40="Endémique", IF($I59>0, IF($I59=4,"Inconnu",IF($I59=99,"Interrompu", $D59)), 0),"Non requis") -> 86333 | O59: =IF(INTRO!$E$42="Endémique", IF(AND($J59>1,$J59<5), IF($J59=4, "Inconnu", E59+F59), 0),"Non requis") -> 31943 | P59: =IF(INTRO!$E$44="Endémique", IF(AND($K59>0,$K59<5), IF($K59=4,"Inconnu", IF($K59=1, $F59*0.33, IF($K59=2, $F59*0.5+$G59*0.2, SUM(F59:G59)))), 0),"Non requis") -> 7122.39 | Q59: 0 | R59: 0 | S59: 1 | T59: 1 | U59: T1 (PZQ+ALB/MBD) | W59: 20378 | X59: Woleu

Sheet MDA1
A1: MDA 1 - Ivermectine (IVM) et Albendazole (ALB)
A2: Structure administrative, population nécessitant une chimioprévention par groupe d'âge, population traitée par groupe d'âge et couverture
A4: TOTAL | G4: =SUM(G$9:G$1000) -> 0 | H4: =SUM(H$9:H$1000) -> 0 | I4: =SUM(I$9:I$1000) -> 0 | K4: =SUM(K$9:K$1000) -> 0 | L4: =SUM(L$9:L$1000) -> 0 | M4: =SUM(M$9:M$1000) -> 0 | O4: =IF(G4<>0, IF(K4/G4*100=0, "-", K4/G4*100), " ") ->  | P4: =IF(H4<>0, IF(L4/H4*100=0, "-", L4/H4*100), " ") ->  | Q4: =IF(I4<>0, IF(M4/I4*100=0, "-", M4/I4*100), " ") -> 
A6: Structure administrative du pays | D6: Mise en oeuvre de la CP | E6: Date | F6: Population ciblée pour MDA 1 | J6: Population traitée | N6: Couverture du Programme (%)
A7: Pays | B7: Région/Département | C7: District | F7: EAPréS | G7: EAS | H7: Adultes | I7: Total | J7: EAPréS | K7: EAS | L7: Adultes | M7: Total | N7: EAPréS | O7: EAS | P7: Adultes | Q7: Total
A9: =IF(COUNTRY_INFO!A9=0," ",COUNTRY_INFO!A9) -> Gabon | B9: =IF(COUNTRY_INFO!B9=0," ",COUNTRY_INFO!B9) -> Libreville-Owendo | C9: =IF(COUNTRY_INFO!C9=0," ",COUNTRY_INFO!C9) -> Libreville 1 | D9: =IF(COUNTRY_INFO!$U$9:$U$1000="MDA1 (IVM+ALB)", COUNTRY_INFO!$U$9:$U$1000, " ") ->  | I9: =SUM(F9:H9) -> 0 | M9: =SUM(J9:L9) -> 0 | O9: =IF(G9<>0, IF(K9/G9*100=0, "-", K9/G9*100), " ") ->  | P9: =IF(H9<>0, IF(L9/H9*100=0, "-", L9/H9*100), " ") -> 
A10: =IF(COUNTRY_INFO!A10=0," ",COUNTRY_INFO!A10) -> Gabon | B10: =IF(COUNTRY_INFO!B10=0," ",COUNTRY_INFO!B10) -> Libreville-Owendo | C10: =IF(COUNTRY_INFO!C10=0," ",COUNTRY_INFO!C10) -> Libreville 2 | D10: =IF(COUNTRY_INFO!$U$9:$U$1000="MDA1 (IVM+ALB)", COUNTRY_INFO!$U$9:$U$1000, " ") ->  | I10: =SUM(F10:H10) -> 0 | M10: =SUM(J10:L10) -> 0 | O10: =IF(G10<>0, IF(K10/G10*100=0, "-", K10/G10*100), " ") ->  | P10: =IF(H10<>0, IF(L10/H10*100=0, "-", L10/H10*100), " ") ->  | Q10: =IF(I10<>0, IF(M10/I10*100=0, "-", M10/I10*100), " ") -> 
A11: =IF(COUNTRY_INFO!A11=0," ",COUNTRY_INFO!A11) -> Gabon | B11: =IF(COUNTRY_INFO!B11=0," ",COUNTRY_INFO!B11) -> Libreville-Owendo | C11: =IF(COUNTRY_INFO!C11=0," ",COUNTRY_INFO!C11) -> Libreville 3 | D11: =IF(COUNTRY_INFO!$U$9:$U$1000="MDA1 (IVM+ALB)", COUNTRY_INFO!$U$9:$U$1000, " ") ->  | I11: 0 | M11: 0
A12: =IF(COUNTRY_INFO!A12=0," ",COUNTRY_INFO!A12) -> Gabon | B12: =IF(COUNTRY_INFO!B12=0," ",COUNTRY_INFO!B12) -> Libreville-Owendo | C12: =IF(COUNTRY_INFO!C12=0," ",COUNTRY_INFO!C12) -> Owendo | D12: =IF(COUNTRY_INFO!$U$9:$U$1000="MDA1 (IVM+ALB)", COUNTRY_INFO!$U$9:$U$1000, " ") ->  | I12: 0 | M12: 0
A13: =IF(COUNTRY_INFO!A13=0," ",COUNTRY_INFO!A13) -> Gabon | B13: =IF(COUNTRY_INFO!B13=0," ",COUNTRY_INFO!B13) -> Ouest | C13: =IF(COUNTRY_INFO!C13=0," ",COUNTRY_INFO!C13) -> Komo-Mondah | D13: =IF(COUNTRY_INFO!$U$9:$U$1000="MDA1 (IVM+ALB)", COUNTRY_INFO!$U$9:$U$1000, " ") ->  | I13: 0 | M13: 0
A14: =IF(COUNTRY_INFO!A14=0," ",COUNTRY_INFO!A14) -> Gabon | B14: =IF(COUNTRY_INFO!B14=0," ",COUNTRY_INFO!B14) -> Ouest | C14: =IF(COUNTRY_INFO!C14=0," ",COUNTRY_INFO!C14) -> Komo-Kango | D14: =IF(COUNTRY_INFO!$U$9:$U$1000="MDA1 (IVM+ALB)", COUNTRY_INFO!$U$9:$U$1000, " ") ->  | I14: 0 | M14: 0
A15: =IF(COUNTRY_INFO!A15=0," ",COUNTRY_INFO!A15) -> Gabon | B15: =IF(COUNTRY_INFO!B15=0," ",COUNTRY_INFO!B15) -> Ouest | C15: =IF(COUNTRY_INFO!C15=0," ",COUNTRY_INFO!C15) -> Noya | D15: =IF(COUNTRY_INFO!$U$9:$U$1000="MDA1 (IVM+ALB)", COUNTRY_INFO!$U$9:$U$1000, " ") ->  | I15: 0 | M15: 0
A16: =IF(COUNTRY_INFO!A16=0," ",COUNTRY_INFO!A16) -> Gabon | B16: =IF(COUNTRY_INFO!B16=0," ",COUNTRY_INFO!B16) -> Sud-Est | C16: =IF(COUNTRY_INFO!C16=0," ",COUNTRY_INFO!C16) -> Bayi-brikolo | D16: =IF(COUNTRY_INFO!$U$9:$U$1000="MDA1 (IVM+ALB)", COUNTRY_INFO!$U$9:$U$1000, " ") ->  | I16: 0 | M16: 0
A17: =IF(COUNTRY_INFO!A17=0," ",COUNTRY_INFO!A17) -> Gabon | B17: =IF(COUNTRY_INFO!B17=0," ",COUNTRY_INFO!B17) -> Sud-Est | C17: =IF(COUNTRY_INFO!C17=0," ",COUNTRY_INFO!C17) -> Lékoni-Lékori | D17: =IF(COUNTRY_INFO!$U$9:$U$1000="MDA1 (IVM+ALB)", COUNTRY_INFO!$U$9:$U$1000, " ") ->  | I17: 0 | M17: 0
A18: =IF(COUNTRY_INFO!A18=0," ",COUNTRY_INFO!A18) -> Gabon | B18: =IF(COUNTRY_INFO!B18=0," ",COUNTRY_INFO!B18) -> Sud-Est | C18: =IF(COUNTRY_INFO!C18=0," ",COUNTRY_INFO!C18) -> Lékoko | D18: =IF(COUNTRY_INFO!$U$9:$U$1000="MDA1 (IVM+ALB)", COUNTRY_INFO!$U$9:$U$1000, " ") ->  | I18: 0 | M18: 0
A19: =IF(COUNTRY_INFO!A19=0," ",COUNTRY_INFO!A19) -> Gabon | B19: =IF(COUNTRY_INFO!B19=0," ",COUNTRY_INFO!B19) -> Sud-Est | C19: =IF(COUNTRY_INFO!C19=0," ",COUNTRY_INFO!C19) -> Djouori-Agnili | D19: =IF(COUNTRY_INFO!$U$9:$U$1000="MDA1 (IVM+ALB)", COUNTRY_INFO!$U$9:$U$1000, " ") ->  | I19: 0 | M19: 0
A20: =IF(COUNTRY_INFO!A20=0," ",COUNTRY_INFO!A20) -> Gabon | B20: =IF(COUNTRY_INFO!B20=0," ",COUNTRY_INFO!B20) -> Sud-Est | C20: =IF(COUNTRY_INFO!C20=0," ",COUNTRY_INFO!C20) -> Ogooué-Létili | D20: =IF(COUNTRY_INFO!$U$9:$U$1000="MDA1 (IVM+ALB)", COUNTRY_INFO!$U$9:$U$1000, " ") ->  | I20: 0 | M20: 0
A21: =IF(COUNTRY_INFO!A21=0," ",COUNTRY_INFO!A21) -> Gabon | B21: =IF(COUNTRY_INFO!B21=0," ",COUNTRY_INFO!B21) -> Sud-Est | C21: =IF(COUNTRY_INFO!C21=0," ",COUNTRY_INFO!C21) -> Mpassa | D21: =IF(COUNTRY_INFO!$U$9:$U$1000="MDA1 (IVM+ALB)", COUNTRY_INFO!$U$9:$U$1000, " ") ->  | I21: 0 | M21: 0
A22: =IF(COUNTRY_INFO!A22=0," ",COUNTRY_INFO!A22) -> Gabon | B22: =IF(COUNTRY_INFO!B22=0," ",COUNTRY_INFO!B22) -> Sud-Est | C22: =IF(COUNTRY_INFO!C22=0," ",COUNTRY_INFO!C22) -> Plateaux | D22: =IF(COUNTRY_INFO!$U$9:$U$1000="MDA1 (IVM+ALB)", COUNTRY_INFO!$U$9:$U$1000, " ") ->  | I22: 0 | M22: 0
A23: =IF(COUNTRY_INFO!A23=0," ",COUNTRY_INFO!A23) -> Gabon | B23: =IF(COUNTRY_INFO!B23=0," ",COUNTRY_INFO!B23) -> Sud-Est | C23: =IF(COUNTRY_INFO!C23=0," ",COUNTRY_INFO!C23) -> Lébombi-Léyou | D23: =IF(COUNTRY_INFO!$U$9:$U$1000="MDA1 (IVM+ALB)", COUNTRY_INFO!$U$9:$U$1000, " ") ->  | I23: 0 | M23: 0
A24: =IF(COUNTRY_INFO!A24=0," ",COUNTRY_INFO!A24) -> Gabon | B24: =IF(COUNTRY_INFO!B24=0," ",COUNTRY_INFO!B24) -> Sud-Est | C24: =IF(COUNTRY_INFO!C24=0," ",COUNTRY_INFO!C24) -> Lékabi-Léwolo | D24: =IF(COUNTRY_INFO!$U$9:$U$1000="MDA1 (IVM+ALB)", COUNTRY_INFO!$U$9:$U$1000, " ") ->  | I24: 0 | M24: 0
A25: =IF(COUNTRY_INFO!A25=0," ",COUNTRY_INFO!A25) -> Gabon | B25: =IF(COUNTRY_INFO!B25=0," ",COUNTRY_INFO!B25) -> Sud-Est | C25: =IF(COUNTRY_INFO!C25=0," ",COUNTRY_INFO!C25) -> Sébé-Brikolo | D25: =IF(COUNTRY_INFO!$U$9:$U$1000="MDA1 (IVM+ALB)", COUNTRY_INFO!$U$9:$U$1000, " ") ->  | I25: 0 | M25: 0
A26: =IF(COUNTRY_INFO!A26=0," ",COUNTRY_INFO!A26) -> Gabon | B26: =IF(COUNTRY_INFO!B26=0," ",COUNTRY_INFO!B26) -> Sud-Est | C26: =IF(COUNTRY_INFO!C26=0," ",COUNTRY_INFO!C26) -> Djoué | D26: =IF(COUNTRY_INFO!$U$9:$U$1000="MDA1 (IVM+ALB)", COUNTRY_INFO!$U$9:$U$1000, " ") ->  | I26: 0 | M26: 0
A27: =IF(COUNTRY_INFO!A27=0," ",COUNTRY_INFO!A27) -> Gabon | B27: =IF(COUNTRY_INFO!B27=0," ",COUNTRY_INFO!B27) -> Centre | C27: =IF(COUNTRY_INFO!C27=0," ",COUNTRY_INFO!C27) -> Ogooué-et-Lacs | D27: =IF(COUNTRY_INFO!$U$9:$U$1000="MDA1 (IVM+ALB)", COUNTRY_INFO!$U$9:$U$1000, " ") ->  | I27: 0 | M27: 0
A28: =IF(COUNTRY_INFO!A28=0," ",COUNTRY_INFO!A28) -> Gabon | B28: =IF(COUNTRY_INFO!B28=0," ",COUNTRY_INFO!B28) -> Centre | C28: =IF(COUNTRY_INFO!C28=0," ",COUNTRY_INFO!C28) -> Abanga-Bigné | D28: =IF(COUNTRY_INFO!$U$9:$U$1000="MDA1 (IVM+ALB)", COUNTRY_INFO!$U$9:$U$1000, " ") ->  | I28: 0 | M28: 0
A29: =IF(COUNTRY_INFO!A29=0," ",COUNTRY_INFO!A29) -> Gabon | B29: =IF(COUNTRY_INFO!B29=0," ",COUNTRY_INFO!B29) -> Centre-Sud | C29: =IF(COUNTRY_INFO!C29=0," ",COUNTRY_INFO!C29) -> Tsamba-Magotsi | D29: =IF(COUNTRY_INFO!$U$9:$U$1000="MDA1 (IVM+ALB)", COUNTRY_INFO!$U$9:$U$1000, " ") ->  | I29: 0 | M29: 0
A30: =IF(COUNTRY_INFO!A30=0," ",COUNTRY_INFO!A30) -> Gabon | B30: =IF(COUNTRY_INFO!B30=0," ",COUNTRY_INFO!B30) -> Centre-Sud | C30: =IF(COUNTRY_INFO!C30=0," ",COUNTRY_INFO!C30) -> Louetsi-Wano | D30: =IF(COUNTRY_INFO!$U$9:$U$1000="MDA1 (IVM+ALB)", COUNTRY_INFO!$U$9:$U$1000, " ") ->  | I30: 0 | M30: 0
A31: =IF(COUNTRY_INFO!A31=0," ",COUNTRY_INFO!A31) -> Gabon | B31: =IF(COUNTRY_INFO!B31=0," ",COUNTRY_INFO!B31) -> Centre-Sud | C31: =IF(COUNTRY_INFO!C31=0," ",COUNTRY_INFO!C31) -> Louetsi-Bibaka | D31: =IF(COUNTRY_INFO!$U$9:$U$1000="MDA1 (IVM+ALB)", COUNTRY_INFO!$U$9:$U$1000, " ") ->  | I31: 0 | M31: 0
A32: =IF(COUNTRY_INFO!A32=0," ",COUNTRY_INFO!A32) -> Gabon | B32: =IF(COUNTRY_INFO!B32=0," ",COUNTRY_INFO!B32) -> Centre-Sud | C32: =IF(COUNTRY_INFO!C32=0," ",COUNTRY_INFO!C32) -> Ndolou | D32: =IF(COUNTRY_INFO!$U$9:$U$1000="MDA1 (IVM+ALB)", COUNTRY_INFO!$U$9:$U$1000, " ") ->  | I32: 0 | M32: 0
A33: =IF(COUNTRY_INFO!A33=0," ",COUNTRY_INFO!A33) -> Gabon | B33: =IF(COUNTRY_INFO!B33=0," ",COUNTRY_INFO!B33) -> Centre-Sud | C33: =IF(COUNTRY_INFO!C33=0," ",COUNTRY_INFO!C33) -> Boumi-Louetsi | D33: =IF(COUNTRY_INFO!$U$9:$U$1000="MDA1 (IVM+ALB)", COUNTRY_INFO!$U$9:$U$1000, " ") ->  | I33: 0 | M33: 0
A34: =IF(COUNTRY_INFO!A34=0," ",COUNTRY_INFO!A34) -> Gabon | B34: =IF(COUNTRY_INFO!B34=0," ",COUNTRY_INFO!B34) -> Centre-Sud | C34: =IF(COUNTRY_INFO!C34=0," ",COUNTRY_INFO!C34) -> Ogoulou | D34: =IF(COUNTRY_INFO!$U$9:$U$1000="MDA1 (IVM+ALB)", COUNTRY_INFO!$U$9:$U$1000, " ") ->  | I34: 0 | M34: 0
A35: =IF(COUNTRY_INFO!A35=0," ",COUNTRY_INFO!A35) -> Gabon | B35: =IF(COUNTRY_INFO!B35=0," ",COUNTRY_INFO!B35) -> Centre-Sud | C35: =IF(COUNTRY_INFO!C35=0," ",COUNTRY_INFO!C35) -> Douya-Onoye | D35: =IF(COUNTRY_INFO!$U$9:$U$1000="MDA1 (IVM+ALB)", COUNTRY_INFO!$U$9:$U$1000, " ") ->  | I35: 0 | M35: 0
A36: =IF(COUNTRY_INFO!A36=0," ",COUNTRY_INFO!A36) -> Gabon | B36: =IF(COUNTRY_INFO!B36=0," ",COUNTRY_INFO!B36) -> Centre-Sud | C36: =IF(COUNTRY_INFO!C36=0," ",COUNTRY_INFO!C36) -> Dola | D36: =IF(COUNTRY_INFO!$U$9:$U$1000="MDA1 (IVM+ALB)", COUNTRY_INFO!$U$9:$U$1000, " ") ->  | I36: 0 | M36: 0
A37: =IF(COUNTRY_INFO!A37=0," ",COUNTRY_INFO!A37) -> Gabon | B37: =IF(COUNTRY_INFO!B37=0," ",COUNTRY_INFO!B37) -> Centre-Sud | C37: =IF(COUNTRY_INFO!C37=0," ",COUNTRY_INFO!C37) -> Mougalaba | D37: =IF(COUNTRY_INFO!$U$9:$U$1000="MDA1 (IVM+ALB)", COUNTRY_INFO!$U$9:$U$1000, " ") ->  | I37: 0 | M37: 0
A38: =IF(COUNTRY_INFO!A38=0," ",COUNTRY_INFO!A38) -> Gabon | B38: =IF(COUNTRY_INFO!B38=0," ",COUNTRY_INFO!B38) -> Sud | C38: =IF(COUNTRY_INFO!C38=0," ",COUNTRY_INFO!C38) -> Doutsila | D38: =IF(COUNTRY_INFO!$U$9:$U$1000="MDA1 (IVM+ALB)", COUNTRY_INFO!$U$9:$U$1000, " ") ->  | I38: 0 | M38: 0
A39: =IF(COUNTRY_INFO!A39=0," ",COUNTRY_INFO!A39) -> Gabon | B39: =IF(COUNTRY_INFO!B39=0," ",COUNTRY_INFO!B39) -> Sud | C39: =IF(COUNTRY_INFO!C39=0," ",COUNTRY_INFO!C39) -> Basse-Banio | D39: =IF(COUNTRY_INFO!$U$9:$U$1000="MDA1 (IVM+ALB)", COUNTRY_INFO!$U$9:$U$1000, " ") ->  | I39: 0 | M39: 0
A40: =IF(COUNTRY_INFO!A40=0," ",COUNTRY_INFO!A40) -> Gabon | B40: =IF(COUNTRY_INFO!B40=0," ",COUNTRY_INFO!B40) -> Sud | C40: =IF(COUNTRY_INFO!C40=0," ",COUNTRY_INFO!C40) -> Douigny | D40: =IF(COUNTRY_INFO!$U$9:$U$1000="MDA1 (IVM+ALB)", COUNTRY_INFO!$U$9:$U$1000, " ") ->  | I40: 0 | M40: 0
A41: =IF(COUNTRY_INFO!A41=0," ",COUNTRY_INFO!A41) -> Gabon | B41: =IF(COUNTRY_INFO!B41=0," ",COUNTRY_INFO!B41) -> Sud | C41: =IF(COUNTRY_INFO!C41=0," ",COUNTRY_INFO!C41) -> Mongo | D41: =IF(COUNTRY_INFO!$U$9:$U$1000="MDA1 (IVM+ALB)", COUNTRY_INFO!$U$9:$U$1000, " ") ->  | I41: 0 | M41: 0
A42: =IF(COUNTRY_INFO!A42=0," ",COUNTRY_INFO!A42) -> Gabon | B42: =IF(COUNTRY_INFO!B42=0," ",COUNTRY_INFO!B42) -> Sud | C42: =IF(COUNTRY_INFO!C42=0," ",COUNTRY_INFO!C42) -> Haute-Banio | D42: =IF(COUNTRY_INFO!$U$9:$U$1000="MDA1 (IVM+ALB)", COUNTRY_INFO!$U$9:$U$1000, " ") ->  | I42: 0 | M42: 0
A43: =IF(COUNTRY_INFO!A43=0," ",COUNTRY_INFO!A43) -> Gabon | B43: =IF(COUNTRY_INFO!B43=0," ",COUNTRY_INFO!B43) -> Sud | C43: =IF(COUNTRY_INFO!C43=0," ",COUNTRY_INFO!C43) -> Mougoutsi | D43: =IF(COUNTRY_INFO!$U$9:$U$1000="MDA1 (IVM+ALB)", COUNTRY_INFO!$U$9:$U$1000, " ") ->  | I43: 0 | M43: 0
A44: =IF(COUNTRY_INFO!A44=0," ",COUNTRY_INFO!A44) -> Gabon | B44: =IF(COUNTRY_INFO!B44=0," ",COUNTRY_INFO!B44) -> Est | C44: =IF(COUNTRY_INFO!C44=0," ",COUNTRY_INFO!C44) -> Lopé | D44: =IF(COUNTRY_INFO!$U$9:$U$1000="MDA1 (IVM+ALB)", COUNTRY_INFO!$U$9:$U$1000, " ") ->  | I44: 0 | M44: 0
A45: =IF(COUNTRY_INFO!A45=0," ",COUNTRY_INFO!A45) -> Gabon | B45: =IF(COUNTRY_INFO!B45=0," ",COUNTRY_INFO!B45) -> Est | C45: =IF(COUNTRY_INFO!C45=0," ",COUNTRY_INFO!C45) -> Ivindo | D45: =IF(COUNTRY_INFO!$U$9:$U$1000="MDA1 (IVM+ALB)", COUNTRY_INFO!$U$9:$U$1000, " ") ->  | I45: 0 | M45: 0
A46: =IF(COUNTRY_INFO!A46=0," ",COUNTRY_INFO!A46) -> Gabon | B46: =IF(COUNTRY_INFO!B46=0," ",COUNTRY_INFO!B46) -> Est | C46: =IF(COUNTRY_INFO!C46=0," ",COUNTRY_INFO!C46) -> Zadié | D46: =IF(COUNTRY_INFO!$U$9:$U$1000="MDA1 (IVM+ALB)", COUNTRY_INFO!$U$9:$U$1000, " ") ->  | I46: 0 | M46: 0
A47: =IF(COUNTRY_INFO!A47=0," ",COUNTRY_INFO!A47) -> Gabon | B47: =IF(COUNTRY_INFO!B47=0," ",COUNTRY_INFO!B47) -> Est | C47: =IF(COUNTRY_INFO!C47=0," ",COUNTRY_INFO!C47) -> Mvoung | D47: =IF(COUNTRY_INFO!$U$9:$U$1000="MDA1 (IVM+ALB)", COUNTRY_INFO!$U$9:$U$1000, " ") ->  | I47: 0 | M47: 0
A48: =IF(COUNTRY_INFO!A48=0," ",COUNTRY_INFO!A48) -> Gabon | B48: =IF(COUNTRY_INFO!B48=0," ",COUNTRY_INFO!B48) -> Centre-Est | C48: =IF(COUNTRY_INFO!C48=0," ",COUNTRY_INFO!C48) -> Offoué-Onoye | D48: =IF(COUNTRY_INFO!$U$9:$U$1000="MDA1 (IVM+ALB)", COUNTRY_INFO!$U$9:$U$1000, " ") ->  | I48: 0 | M48: 0
A49: =IF(COUNTRY_INFO!A49=0," ",COUNTRY_INFO!A49) -> Gabon | B49: =IF(COUNTRY_INFO!B49=0," ",COUNTRY_INFO!B49) -> Centre-Est | C49: =IF(COUNTRY_INFO!C49=0," ",COUNTRY_INFO!C49) -> Lolo-Bouenguidi | D49: =IF(COUNTRY_INFO!$U$9:$U$1000="MDA1 (IVM+ALB)", COUNTRY_INFO!$U$9:$U$1000, " ") ->  | I49: 0 | M49: 0
A50: =IF(COUNTRY_INFO!A50=0," ",COUNTRY_INFO!A50) -> Gabon | B50: =IF(COUNTRY_INFO!B50=0," ",COUNTRY_INFO!B50) -> Centre-Est | C50: =IF(COUNTRY_INFO!C50=0," ",COUNTRY_INFO!C50) -> Mulundu | D50: =IF(COUNTRY_INFO!$U$9:$U$1000="MDA1 (IVM+ALB)", COUNTRY_INFO!$U$9:$U$1000, " ") ->  | I50: 0 | M50: 0
A51: =IF(COUNTRY_INFO!A51=0," ",COUNTRY_INFO!A51) -> Gabon | B51: =IF(COUNTRY_INFO!B51=0," ",COUNTRY_INFO!B51) -> Centre-Est | C51: =IF(COUNTRY_INFO!C51=0," ",COUNTRY_INFO!C51) -> Lombo-Bouenguidi | D51: =IF(COUNTRY_INFO!$U$9:$U$1000="MDA1 (IVM+ALB)", COUNTRY_INFO!$U$9:$U$1000, " ") ->  | I51: 0 | M51: 0
A52: =IF(COUNTRY_INFO!A52=0," ",COUNTRY_INFO!A52) -> Gabon | B52: =IF(COUNTRY_INFO!B52=0," ",COUNTRY_INFO!B52) -> Maritime | C52: =IF(COUNTRY_INFO!C52=0," ",COUNTRY_INFO!C52) -> Ndougou | D52: =IF(COUNTRY_INFO!$U$9:$U$1000="MDA1 (IVM+ALB)", COUNTRY_INFO!$U$9:$U$1000, " ") ->  | I52: 0 | M52: 0
A53: =IF(COUNTRY_INFO!A53=0," ",COUNTRY_INFO!A53) -> Gabon | B53: =IF(COUNTRY_INFO!B53=0," ",COUNTRY_INFO!B53) -> Maritime | C53: =IF(COUNTRY_INFO!C53=0," ",COUNTRY_INFO!C53) -> Etimboué | D53: =IF(COUNTRY_INFO!$U$9:$U$1000="MDA1 (IVM+ALB)", COUNTRY_INFO!$U$9:$U$1000, " ") ->  | I53: 0 | M53: 0
A54: =IF(COUNTRY_INFO!A54=0," ",COUNTRY_INFO!A54) -> Gabon | B54: =IF(COUNTRY_INFO!B54=0," ",COUNTRY_INFO!B54) -> Maritime | C54: =IF(COUNTRY_INFO!C54=0," ",COUNTRY_INFO!C54) -> Bendjé | D54: =IF(COUNTRY_INFO!$U$9:$U$1000="MDA1 (IVM+ALB)", COUNTRY_INFO!$U$9:$U$1000, " ") ->  | I54: 0 | M54: 0
A55: =IF(COUNTRY_INFO!A55=0," ",COUNTRY_INFO!A55) -> Gabon | B55: =IF(COUNTRY_INFO!B55=0," ",COUNTRY_INFO!B55) -> Nord | C55: =IF(COUNTRY_INFO!C55=0," ",COUNTRY_INFO!C55) -> Ntem | D55: =IF(COUNTRY_INFO!$U$9:$U$1000="MDA1 (IVM+ALB)", COUNTRY_INFO!$U$9:$U$1000, " ") ->  | I55: 0 | M55: 0
A56: =IF(COUNTRY_INFO!A56=0," ",COUNTRY_INFO!A56) -> Gabon | B56: =IF(COUNTRY_INFO!B56=0," ",COUNTRY_INFO!B56) -> Nord | C56: =IF(COUNTRY_INFO!C56=0," ",COUNTRY_INFO!C56) -> Haut - Komo | D56: =IF(COUNTRY_INFO!$U$9:$U$1000="MDA1 (IVM+ALB)", COUNTRY_INFO!$U$9:$U$1000, " ") ->  | I56: 0 | M56: 0
A57: =IF(COUNTRY_INFO!A57=0," ",COUNTRY_INFO!A57) -> Gabon | B57: =IF(COUNTRY_INFO!B57=0," ",COUNTRY_INFO!B57) -> Nord | C57: =IF(COUNTRY_INFO!C57=0," ",COUNTRY_INFO!C57) -> Haut-Ntem | D57: =IF(COUNTRY_INFO!$U$9:$U$1000="MDA1 (IVM+ALB)", COUNTRY_INFO!$U$9:$U$1000, " ") ->  | I57: 0 | M57: 0
A58: =IF(COUNTRY_INFO!A58=0," ",COUNTRY_INFO!A58) -> Gabon | B58: =IF(COUNTRY_INFO!B58=0," ",COUNTRY_INFO!B58) -> Nord | C58: =IF(COUNTRY_INFO!C58=0," ",COUNTRY_INFO!C58) -> Okano | D58: =IF(COUNTRY_INFO!$U$9:$U$1000="MDA1 (IVM+ALB)", COUNTRY_INFO!$U$9:$U$1000, " ") ->  | I58: 0 | M58: 0
A59: =IF(COUNTRY_INFO!A59=0," ",COUNTRY_INFO!A59) -> Gabon | B59: =IF(COUNTRY_INFO!B59=0," ",COUNTRY_INFO!B59) -> Nord | C59: =IF(COUNTRY_INFO!C59=0," ",COUNTRY_INFO!C59) -> Woleu | D59: =IF(COUNTRY_INFO!$U$9:$U$1000="MDA1 (IVM+ALB)", COUNTRY_INFO!$U$9:$U$1000, " ") ->  | I59: 0 | M59: 0

Sheet MDA4
A1: MDA 4 - Albendazole (ALB) ou 2 x Albendazole (ALB)
A2: Structure administrative, population nécessitant une chimioprévention par groupe d'âge, population traitée par groupe d'âge et couverture
A4: TOTAL | F4: =SUM(F$9:F$1000) -> 0 | G4: =SUM(G$9:G$1000) -> 0 | H4: 0 | I4: 0 | J4: 0 | K4: 0 | L4: 0 | M4: 0 | N4: 0 | O4: 0 | P4: 0 | Q4: 0 | R4: 0 | S4: 0 | T4: 0 | U4: 0 | V4: =IF(F4<>0, IF(N4/F4*100=0, "-", N4/F4*100), " ") ->  | W4: =IF(G4<>0, IF(O4/G4*100=0, "-", O4/G4*100), " ") ->  | X4: =IF(H4<>0, IF(P4/H4*100=0, "-", P4/H4*100), " ") ->  | Y4: =IF(I4<>0, IF(Q4/I4*100=0, "-", Q4/I4*100), " ") -> 
A6: Structure administrative du pays | D6: Mise en oeuvre de la CP | E6: Date | F6: Population ciblée pour MDA 4 | J6: Population traitée - tournée 1 | N6: Population traitée - tournée 2 | R6: Population traitée | V6: Couverture du Programme (%)
A7: Pays | B7: Région/Département | C7: District | F7: EAPréS | G7: EAS | H7: Adultes | I7: Total | J7: EAPréS | K7: EAS | L7: Adultes | M7: Total | N7: EAPréS | O7: EAS | P7: Adultes | Q7: Total | R7: EAPréS | S7: EAS | T7: Adultes | U7: Total | V7: EAPréS | W7: EAS | X7: Adultes | Y7: Total
A9: =IF(COUNTRY_INFO!A9=0," ",COUNTRY_INFO!A9) -> Gabon | B9: =IF(COUNTRY_INFO!B9=0," ",COUNTRY_INFO!B9) -> Libreville-Owendo | C9: =IF(COUNTRY_INFO!C9=0," ",COUNTRY_INFO!C9) -> Libreville 1 | D9: =IF(COUNTRY_INFO!$U$9:$U$1000="MDA4 (ALB/2*ALB)", COUNTRY_INFO!$U$9:$U$1000, " ") ->  | I9: =SUM(F9:H9) -> 0 | M9: =SUM(J9:L9) -> 0 | Q9: =SUM(N9:P9) -> 0 | R9: =MAX(J9,N9) -> 0 | S9: =MAX(K9,O9) -> 0 | T9: =MAX(L9,P9) -> 0 | U9: =SUM(R9:T9) -> 0 | V9: =IF(F9<>0, IF(R9/F9*100=0, "-",R9/F9*100), " ") ->  | W9: =IF(G9<>0, IF(S9/G9*100=0, "-", S9/G9*100), " ") ->  | X9: =IF(H9<>0, IF(T9/H9*100=0, "-", T9/H9*100), " ") ->  | Y9: =IF(I9<>0, IF(U9/I9*100=0, "-", U9/I9*100), " ") -> 
A10: =IF(COUNTRY_INFO!A10=0," ",COUNTRY_INFO!A10) -> Gabon | B10: =IF(COUNTRY_INFO!B10=0," ",COUNTRY_INFO!B10) -> Libreville-Owendo | C10: =IF(COUNTRY_INFO!C10=0," ",COUNTRY_INFO!C10) -> Libreville 2 | D10: =IF(COUNTRY_INFO!$U$9:$U$1000="MDA4 (ALB/2*ALB)", COUNTRY_INFO!$U$9:$U$1000, " ") ->  | I10: =SUM(F10:H10) -> 0 | M10: =SUM(J10:L10) -> 0 | Q10: =SUM(N10:P10) -> 0 | R10: 0 | S10: 0 | T10: 0 | U10: 0
A11: =IF(COUNTRY_INFO!A11=0," ",COUNTRY_INFO!A11) -> Gabon | B11: =IF(COUNTRY_INFO!B11=0," ",COUNTRY_INFO!B11) -> Libreville-Owendo | C11: =IF(COUNTRY_INFO!C11=0," ",COUNTRY_INFO!C11) -> Libreville 3 | D11: =IF(COUNTRY_INFO!$U$9:$U$1000="MDA4 (ALB/2*ALB)", COUNTRY_INFO!$U$9:$U$1000, " ") ->  | I11: 0 | M11: 0 | Q11: 0 | R11: 0 | S11: 0 | T11: 0 | U11: 0
A12: =IF(COUNTRY_INFO!A12=0," ",COUNTRY_INFO!A12) -> Gabon | B12: =IF(COUNTRY_INFO!B12=0," ",COUNTRY_INFO!B12) -> Libreville-Owendo | C12: =IF(COUNTRY_INFO!C12=0," ",COUNTRY_INFO!C12) -> Owendo | D12: =IF(COUNTRY_INFO!$U$9:$U$1000="MDA4 (ALB/2*ALB)", COUNTRY_INFO!$U$9:$U$1000, " ") ->  | I12: 0 | M12: 0 | Q12: 0 | R12: 0 | S12: 0 | T12: 0 | U12: 0
A13: =IF(COUNTRY_INFO!A13=0," ",COUNTRY_INFO!A13) -> Gabon | B13: =IF(COUNTRY_INFO!B13=0," ",COUNTRY_INFO!B13) -> Ouest | C13: =IF(COUNTRY_INFO!C13=0," ",COUNTRY_INFO!C13) -> Komo-Mondah | D13: =IF(COUNTRY_INFO!$U$9:$U$1000="MDA4 (ALB/2*ALB)", COUNTRY_INFO!$U$9:$U$1000, " ") ->  | I13: 0 | M13: 0 | Q13: 0 | R13: 0 | S13: 0 | T13: 0 | U13: 0
A14: =IF(COUNTRY_INFO!A14=0," ",COUNTRY_INFO!A14) -> Gabon | B14: =IF(COUNTRY_INFO!B14=0," ",COUNTRY_INFO!B14) -> Ouest | C14: =IF(COUNTRY_INFO!C14=0," ",COUNTRY_INFO!C14) -> Komo-Kango | D14: =IF(COUNTRY_INFO!$U$9:$U$1000="MDA4 (ALB/2*ALB)", COUNTRY_INFO!$U$9:$U$1000, " ") ->  | I14: 0 | M14: 0 | Q14: 0 | R14: 0 | S14: 0 | T14: 0 | U14: 0
A15: =IF(COUNTRY_INFO!A15=0," ",COUNTRY_INFO!A15) -> Gabon | B15: =IF(COUNTRY_INFO!B15=0," ",COUNTRY_INFO!B15) -> Ouest | C15: =IF(COUNTRY_INFO!C15=0," ",COUNTRY_INFO!C15) -> Noya | D15: =IF(COUNTRY_INFO!$U$9:$U$1000="MDA4 (ALB/2*ALB)", COUNTRY_INFO!$U$9:$U$1000, " ") ->  | I15: 0 | M15: 0 | Q15: 0 | R15: 0 | S15: 0 | T15: 0 | U15: 0
A16: =IF(COUNTRY_INFO!A16=0," ",COUNTRY_INFO!A16) -> Gabon | B16: =IF(COUNTRY_INFO!B16=0," ",COUNTRY_INFO!B16) -> Sud-Est | C16: =IF(COUNTRY_INFO!C16=0," ",COUNTRY_INFO!C16) -> Bayi-brikolo | D16: =IF(COUNTRY_INFO!$U$9:$U$1000="MDA4 (ALB/2*ALB)", COUNTRY_INFO!$U$9:$U$1000, " ") ->  | I16: 0 | M16: 0 | Q16: 0 | R16: 0 | S16: 0 | T16: 0 | U16: 0
A17: =IF(COUNTRY_INFO!A17=0," ",COUNTRY_INFO!A17) -> Gabon | B17: =IF(COUNTRY_INFO!B17=0," ",COUNTRY_INFO!B17) -> Sud-Est | C17: =IF(COUNTRY_INFO!C17=0," ",COUNTRY_INFO!C17) -> Lékoni-Lékori | D17: =IF(COUNTRY_INFO!$U$9:$U$1000="MDA4 (ALB/2*ALB)", COUNTRY_INFO!$U$9:$U$1000, " ") ->  | I17: 0 | M17: 0 | Q17: 0 | R17: 0 | S17: 0 | T17: 0 | U17: 0
A18: =IF(COUNTRY_INFO!A18=0," ",COUNTRY_INFO!A18) -> Gabon | B18: =IF(COUNTRY_INFO!B18=0," ",COUNTRY_INFO!B18) -> Sud-Est | C18: =IF(COUNTRY_INFO!C18=0," ",COUNTRY_INFO!C18) -> Lékoko | D18: =IF(COUNTRY_INFO!$U$9:$U$1000="MDA4 (ALB/2*ALB)", COUNTRY_INFO!$U$9:$U$1000, " ") ->  | I18: 0 | M18: 0 | Q18: 0 | R18: 0 | S18: 0 | T18: 0 | U18: 0
A19: =IF(COUNTRY_INFO!A19=0," ",COUNTRY_INFO!A19) -> Gabon | B19: =IF(COUNTRY_INFO!B19=0," ",COUNTRY_INFO!B19) -> Sud-Est | C19: =IF(COUNTRY_INFO!C19=0," ",COUNTRY_INFO!C19) -> Djouori-Agnili | D19: =IF(COUNTRY_INFO!$U$9:$U$1000="MDA4 (ALB/2*ALB)", COUNTRY_INFO!$U$9:$U$1000, " ") ->  | I19: 0 | M19: 0 | Q19: 0 | R19: 0 | S19: 0 | T19: 0 | U19: 0
A20: =IF(COUNTRY_INFO!A20=0," ",COUNTRY_INFO!A20) -> Gabon | B20: =IF(COUNTRY_INFO!B20=0," ",COUNTRY_INFO!B20) -> Sud-Est | C20: =IF(COUNTRY_INFO!C20=0," ",COUNTRY_INFO!C20) -> Ogooué-Létili | D20: =IF(COUNTRY_INFO!$U$9:$U$1000="MDA4 (ALB/2*ALB)", COUNTRY_INFO!$U$9:$U$1000, " ") ->  | I20: 0 | M20: 0 | Q20: 0 | R20: 0 | S20: 0 | T20: 0 | U20: 0
A21: =IF(COUNTRY_INFO!A21=0," ",COUNTRY_INFO!A21) -> Gabon | B21: =IF(COUNTRY_INFO!B21=0," ",COUNTRY_INFO!B21) -> Sud-Est | C21: =IF(COUNTRY_INFO!C21=0," ",COUNTRY_INFO!C21) -> Mpassa | D21: =IF(COUNTRY_INFO!$U$9:$U$1000="MDA4 (ALB/2*ALB)", COUNTRY_INFO!$U$9:$U$1000, " ") ->  | I21: 0 | M21: 0 | Q21: 0 | R21: 0 | S21: 0 | T21: 0 | U21: 0
A22: =IF(COUNTRY_INFO!A22=0," ",COUNTRY_INFO!A22) -> Gabon | B22: =IF(COUNTRY_INFO!B22=0," ",COUNTRY_INFO!B22) -> Sud-Est | C22: =IF(COUNTRY_INFO!C22=0," ",COUNTRY_INFO!C22) -> Plateaux | D22: =IF(COUNTRY_INFO!$U$9:$U$1000="MDA4 (ALB/2*ALB)", COUNTRY_INFO!$U$9:$U$1000, " ") ->  | I22: 0 | M22: 0 | Q22: 0 | R22: 0 | S22: 0 | T22: 0 | U22: 0
A23: =IF(COUNTRY_INFO!A23=0," ",COUNTRY_INFO!A23) -> Gabon | B23: =IF(COUNTRY_INFO!B23=0," ",COUNTRY_INFO!B23) -> Sud-Est | C23: =IF(COUNTRY_INFO!C23=0," ",COUNTRY_INFO!C23) -> Lébombi-Léyou | D23: =IF(COUNTRY_INFO!$U$9:$U$1000="MDA4 (ALB/2*ALB)", COUNTRY_INFO!$U$9:$U$1000, " ") ->  | I23: 0 | M23: 0 | Q23: 0 | R23: 0 | S23: 0 | T23: 0 | U23: 0
A24: =IF(COUNTRY_INFO!A24=0," ",COUNTRY_INFO!A24) -> Gabon | B24: =IF(COUNTRY_INFO!B24=0," ",COUNTRY_INFO!B24) -> Sud-Est | C24: =IF(COUNTRY_INFO!C24=0," ",COUNTRY_INFO!C24) -> Lékabi-Léwolo | D24: =IF(COUNTRY_INFO!$U$9:$U$1000="MDA4 (ALB/2*ALB)", COUNTRY_INFO!$U$9:$U$1000, " ") ->  | I24: 0 | M24: 0 | Q24: 0 | R24: 0 | S24: 0 | T24: 0 | U24: 0
A25: =IF(COUNTRY_INFO!A25=0," ",COUNTRY_INFO!A25) -> Gabon | B25: =IF(COUNTRY_INFO!B25=0," ",COUNTRY_INFO!B25) -> Sud-Est | C25: =IF(COUNTRY_INFO!C25=0," ",COUNTRY_INFO!C25) -> Sébé-Brikolo | D25: =IF(COUNTRY_INFO!$U$9:$U$1000="MDA4 (ALB/2*ALB)", COUNTRY_INFO!$U$9:$U$1000, " ") ->  | I25: 0 | M25: 0 | Q25: 0 | R25: 0 | S25: 0 | T25: 0 | U25: 0
A26: =IF(COUNTRY_INFO!A26=0," ",COUNTRY_INFO!A26) -> Gabon | B26: =IF(COUNTRY_INFO!B26=0," ",COUNTRY_INFO!B26) -> Sud-Est | C26: =IF(COUNTRY_INFO!C26=0," ",COUNTRY_INFO!C26) -> Djoué | D26: =IF(COUNTRY_INFO!$U$9:$U$1000="MDA4 (ALB/2*ALB)", COUNTRY_INFO!$U$9:$U$1000, " ") ->  | I26: 0 | M26: 0 | Q26: 0 | R26: 0 | S26: 0 | T26: 0 | U26: 0
A27: =IF(COUNTRY_INFO!A27=0," ",COUNTRY_INFO!A27) -> Gabon | B27: =IF(COUNTRY_INFO!B27=0," ",COUNTRY_INFO!B27) -> Centre | C27: =IF(COUNTRY_INFO!C27=0," ",COUNTRY_INFO!C27) -> Ogooué-et-Lacs | D27: =IF(COUNTRY_INFO!$U$9:$U$1000="MDA4 (ALB/2*ALB)", COUNTRY_INFO!$U$9:$U$1000, " ") ->  | I27: 0 | M27: 0 | Q27: 0 | R27: 0 | S27: 0 | T27: 0 | U27: 0
A28: =IF(COUNTRY_INFO!A28=0," ",COUNTRY_INFO!A28) -> Gabon | B28: =IF(COUNTRY_INFO!B28=0," ",COUNTRY_INFO!B28) -> Centre | C28: =IF(COUNTRY_INFO!C28=0," ",COUNTRY_INFO!C28) -> Abanga-Bigné | D28: =IF(COUNTRY_INFO!$U$9:$U$1000="MDA4 (ALB/2*ALB)", COUNTRY_INFO!$U$9:$U$1000, " ") ->  | I28: 0 | M28: 0 | Q28: 0 | R28: 0 | S28: 0 | T28: 0 | U28: 0
A29: =IF(COUNTRY_INFO!A29=0," ",COUNTRY_INFO!A29) -> Gabon | B29: =IF(COUNTRY_INFO!B29=0," ",COUNTRY_INFO!B29) -> Centre-Sud | C29: =IF(COUNTRY_INFO!C29=0," ",COUNTRY_INFO!C29) -> Tsamba-Magotsi | D29: =IF(COUNTRY_INFO!$U$9:$U$1000="MDA4 (ALB/2*ALB)", COUNTRY_INFO!$U$9:$U$1000, " ") ->  | I29: 0 | M29: 0 | Q29: 0 | R29: 0 | S29: 0 | T29: 0 | U29: 0
A30: =IF(COUNTRY_INFO!A30=0," ",COUNTRY_INFO!A30) -> Gabon | B30: =IF(COUNTRY_INFO!B30=0," ",COUNTRY_INFO!B30) -> Centre-Sud | C30: =IF(COUNTRY_INFO!C30=0," ",COUNTRY_INFO!C30) -> Louetsi-Wano | D30: =IF(COUNTRY_INFO!$U$9:$U$1000="MDA4 (ALB/2*ALB)", COUNTRY_INFO!$U$9:$U$1000, " ") ->  | I30: 0 | M30: 0 | Q30: 0 | R30: 0 | S30: 0 | T30: 0 | U30: 0
A31: =IF(COUNTRY_INFO!A31=0," ",COUNTRY_INFO!A31) -> Gabon | B31: =IF(COUNTRY_INFO!B31=0," ",COUNTRY_INFO!B31) -> Centre-Sud | C31: =IF(COUNTRY_INFO!C31=0," ",COUNTRY_INFO!C31) -> Louetsi-Bibaka | D31: =IF(COUNTRY_INFO!$U$9:$U$1000="MDA4 (ALB/2*ALB)", COUNTRY_INFO!$U$9:$U$1000, " ") ->  | I31: 0 | M31: 0 | Q31: 0 | R31: 0 | S31: 0 | T31: 0 | U31: 0
A32: =IF(COUNTRY_INFO!A32=0," ",COUNTRY_INFO!A32) -> Gabon | B32: =IF(COUNTRY_INFO!B32=0," ",COUNTRY_INFO!B32) -> Centre-Sud | C32: =IF(COUNTRY_INFO!C32=0," ",COUNTRY_INFO!C32) -> Ndolou | D32: =IF(COUNTRY_INFO!$U$9:$U$1000="MDA4 (ALB/2*ALB)", COUNTRY_INFO!$U$9:$U$1000, " ") ->  | I32: 0 | M32: 0 | Q32: 0 | R32: 0 | S32: 0 | T32: 0 | U32: 0
A33: =IF(COUNTRY_INFO!A33=0," ",COUNTRY_INFO!A33) -> Gabon | B33: =IF(COUNTRY_INFO!B33=0," ",COUNTRY_INFO!B33) -> Centre-Sud | C33: =IF(COUNTRY_INFO!C33=0," ",COUNTRY_INFO!C33) -> Boumi-Louetsi | D33: =IF(COUNTRY_INFO!$U$9:$U$1000="MDA4 (ALB/2*ALB)", COUNTRY_INFO!$U$9:$U$1000, " ") ->  | I33: 0 | M33: 0 | Q33: 0 | R33: 0 | S33: 0 | T33: 0 | U33: 0
A34: =IF(COUNTRY_INFO!A34=0," ",COUNTRY_INFO!A34) -> Gabon | B34: =IF(COUNTRY_INFO!B34=0," ",COUNTRY_INFO!B34) -> Centre-Sud | C34: =IF(COUNTRY_INFO!C34=0," ",COUNTRY_INFO!C34) -> Ogoulou | D34: =IF(COUNTRY_INFO!$U$9:$U$1000="MDA4 (ALB/2*ALB)", COUNTRY_INFO!$U$9:$U$1000, " ") ->  | I34: 0 | M34: 0 | Q34: 0 | R34: 0 | S34: 0 | T34: 0 | U34: 0
A35: =IF(COUNTRY_INFO!A35=0," ",COUNTRY_INFO!A35) -> Gabon | B35: =IF(COUNTRY_INFO!B35=0," ",COUNTRY_INFO!B35) -> Centre-Sud | C35: =IF(COUNTRY_INFO!C35=0," ",COUNTRY_INFO!C35) -> Douya-Onoye | D35: =IF(COUNTRY_INFO!$U$9:$U$1000="MDA4 (ALB/2*ALB)", COUNTRY_INFO!$U$9:$U$1000, " ") ->  | I35: 0 | M35: 0 | Q35: 0 | R35: 0 | S35: 0 | T35: 0 | U35: 0
A36: =IF(COUNTRY_INFO!A36=0," ",COUNTRY_INFO!A36) -> Gabon | B36: =IF(COUNTRY_INFO!B36=0," ",COUNTRY_INFO!B36) -> Centre-Sud | C36: =IF(COUNTRY_INFO!C36=0," ",COUNTRY_INFO!C36) -> Dola | D36: =IF(COUNTRY_INFO!$U$9:$U$1000="MDA4 (ALB/2*ALB)", COUNTRY_INFO!$U$9:$U$1000, " ") ->  | I36: 0 | M36: 0 | Q36: 0 | R36: 0 | S36: 0 | T36: 0 | U36: 0
A37: =IF(COUNTRY_INFO!A37=0," ",COUNTRY_INFO!A37) -> Gabon | B37: =IF(COUNTRY_INFO!B37=0," ",COUNTRY_INFO!B37) -> Centre-Sud | C37: =IF(COUNTRY_INFO!C37=0," ",COUNTRY_INFO!C37) -> Mougalaba | D37: =IF(COUNTRY_INFO!$U$9:$U$1000="MDA4 (ALB/2*ALB)", COUNTRY_INFO!$U$9:$U$1000, " ") ->  | I37: 0 | M37: 0 | Q37: 0 | R37: 0 | S37: 0 | T37: 0 | U37: 0
A38: =IF(COUNTRY_INFO!A38=0," ",COUNTRY_INFO!A38) -> Gabon | B38: =IF(COUNTRY_INFO!B38=0," ",COUNTRY_INFO!B38) -> Sud | C38: =IF(COUNTRY_INFO!C38=0," ",COUNTRY_INFO!C38) -> Doutsila | D38: =IF(COUNTRY_INFO!$U$9:$U$1000="MDA4 (ALB/2*ALB)", COUNTRY_INFO!$U$9:$U$1000, " ") ->  | I38: 0 | M38: 0 | Q38: 0 | R38: 0 | S38: 0 | T38: 0 | U38: 0
A39: =IF(COUNTRY_INFO!A39=0," ",COUNTRY_INFO!A39) -> Gabon | B39: =IF(COUNTRY_INFO!B39=0," ",COUNTRY_INFO!B39) -> Sud | C39: =IF(COUNTRY_INFO!C39=0," ",COUNTRY_INFO!C39) -> Basse-Banio | D39: =IF(COUNTRY_INFO!$U$9:$U$1000="MDA4 (ALB/2*ALB)", COUNTRY_INFO!$U$9:$U$1000, " ") ->  | I39: 0 | M39: 0 | Q39: 0 | R39: 0 | S39: 0 | T39: 0 | U39: 0
A40: =IF(COUNTRY_INFO!A40=0," ",COUNTRY_INFO!A40) -> Gabon | B40: =IF(COUNTRY_INFO!B40=0," ",COUNTRY_INFO!B40) -> Sud | C40: =IF(COUNTRY_INFO!C40=0," ",COUNTRY_INFO!C40) -> Douigny | D40: =IF(COUNTRY_INFO!$U$9:$U$1000="MDA4 (ALB/2*ALB)", COUNTRY_INFO!$U$9:$U$1000, " ") ->  | I40: 0 | M40: 0 | Q40: 0 | R40: 0 | S40: 0 | T40: 0 | U40: 0
A41: =IF(COUNTRY_INFO!A41=0," ",COUNTRY_INFO!A41) -> Gabon | B41: =IF(COUNTRY_INFO!B41=0," ",COUNTRY_INFO!B41) -> Sud | C41: =IF(COUNTRY_INFO!C41=0," ",COUNTRY_INFO!C41) -> Mongo | D41: =IF(COUNTRY_INFO!$U$9:$U$1000="MDA4 (ALB/2*ALB)", COUNTRY_INFO!$U$9:$U$1000, " ") ->  | I41: 0 | M41: 0 | Q41: 0 | R41: =MAX(J41,N41) -> 0 | S41: =MAX(K41,O41) -> 0 | T41: =MAX(L41,P41) -> 0 | U41: =SUM(R41:T41) -> 0 | V41: =IF(F41<>0, IF(R41/F41*100=0, "-",R41/F41*100), " ") ->  | W41: =IF(G41<>0, IF(S41/G41*100=0, "-", S41/G41*100), " ") ->  | X41: =IF(H41<>0, IF(T41/H41*100=0, "-", T41/H41*100), " ") ->  | Y41: =IF(I41<>0, IF(U41/I41*100=0, "-", U41/I41*100), " ") -> 
A42: =IF(COUNTRY_INFO!A42=0," ",COUNTRY_INFO!A42) -> Gabon | B42: =IF(COUNTRY_INFO!B42=0," ",COUNTRY_INFO!B42) -> Sud | C42: =IF(COUNTRY_INFO!C42=0," ",COUNTRY_INFO!C42) -> Haute-Banio | D42: =IF(COUNTRY_INFO!$U$9:$U$1000="MDA4 (ALB/2*ALB)", COUNTRY_INFO!$U$9:$U$1000, " ") ->  | I42: 0 | M42: 0 | Q42: 0 | R42: 0 | S42: 0 | T42: 0 | U42: 0
A43: =IF(COUNTRY_INFO!A43=0," ",COUNTRY_INFO!A43) -> Gabon | B43: =IF(COUNTRY_INFO!B43=0," ",COUNTRY_INFO!B43) -> Sud | C43: =IF(COUNTRY_INFO!C43=0," ",COUNTRY_INFO!C43) -> Mougoutsi | D43: =IF(COUNTRY_INFO!$U$9:$U$1000="MDA4 (ALB/2*ALB)", COUNTRY_INFO!$U$9:$U$1000, " ") ->  | I43: 0 | M43: 0 | Q43: 0 | R43: 0 | S43: 0 | T43: 0 | U43: 0
A44: =IF(COUNTRY_INFO!A44=0," ",COUNTRY_INFO!A44) -> Gabon | B44: =IF(COUNTRY_INFO!B44=0," ",COUNTRY_INFO!B44) -> Est | C44: =IF(COUNTRY_INFO!C44=0," ",COUNTRY_INFO!C44) -> Lopé | D44: =IF(COUNTRY_INFO!$U$9:$U$1000="MDA4 (ALB/2*ALB)", COUNTRY_INFO!$U$9:$U$1000, " ") ->  | I44: 0 | M44: 0 | Q44: 0 | R44: 0 | S44: 0 | T44: 0 | U44: 0
A45: =IF(COUNTRY_INFO!A45=0," ",COUNTRY_INFO!A45) -> Gabon | B45: =IF(COUNTRY_INFO!B45=0," ",COUNTRY_INFO!B45) -> Est | C45: =IF(COUNTRY_INFO!C45=0," ",COUNTRY_INFO!C45) -> Ivindo | D45: =IF(COUNTRY_INFO!$U$9:$U$1000="MDA4 (ALB/2*ALB)", COUNTRY_INFO!$U$9:$U$1000, " ") ->  | I45: 0 | M45: 0 | Q45: 0 | R45: 0 | S45: 0 | T45: 0 | U45: 0
A46: =IF(COUNTRY_INFO!A46=0," ",COUNTRY_INFO!A46) -> Gabon | B46: =IF(COUNTRY_INFO!B46=0," ",COUNTRY_INFO!B46) -> Est | C46: =IF(COUNTRY_INFO!C46=0," ",COUNTRY_INFO!C46) -> Zadié | D46: =IF(COUNTRY_INFO!$U$9:$U$1000="MDA4 (ALB/2*ALB)", COUNTRY_INFO!$U$9:$U$1000, " ") ->  | I46: 0 | M46: 0 | Q46: 0 | R46: 0 | S46: 0 | T46: 0 | U46: 0
A47: =IF(COUNTRY_INFO!A47=0," ",COUNTRY_INFO!A47) -> Gabon | B47: =IF(COUNTRY_INFO!B47=0," ",COUNTRY_INFO!B47) -> Est | C47: =IF(COUNTRY_INFO!C47=0," ",COUNTRY_INFO!C47) -> Mvoung | D47: =IF(COUNTRY_INFO!$U$9:$U$1000="MDA4 (ALB/2*ALB)", COUNTRY_INFO!$U$9:$U$1000, " ") ->  | I47: 0 | M47: 0 | Q47: 0 | R47: 0 | S47: 0 | T47: 0 | U47: 0
A48: =IF(COUNTRY_INFO!A48=0," ",COUNTRY_INFO!A48) -> Gabon | B48: =IF(COUNTRY_INFO!B48=0," ",COUNTRY_INFO!B48) -> Centre-Est | C48: =IF(COUNTRY_INFO!C48=0," ",COUNTRY_INFO!C48) -> Offoué-Onoye | D48: =IF(COUNTRY_INFO!$U$9:$U$1000="MDA4 (ALB/2*ALB)", COUNTRY_INFO!$U$9:$U$1000, " ") ->  | I48: 0 | M48: 0 | Q48: 0 | R48: 0 | S48: 0 | T48: 0 | U48: 0
A49: =IF(COUNTRY_INFO!A49=0," ",COUNTRY_INFO!A49) -> Gabon | B49: =IF(COUNTRY_INFO!B49=0," ",COUNTRY_INFO!B49) -> Centre-Est | C49: =IF(COUNTRY_INFO!C49=0," ",COUNTRY_INFO!C49) -> Lolo-Bouenguidi | D49: =IF(COUNTRY_INFO!$U$9:$U$1000="MDA4 (ALB/2*ALB)", COUNTRY_INFO!$U$9:$U$1000, " ") ->  | I49: 0 | M49: 0 | Q49: 0 | R49: 0 | S49: 0 | T49: 0 | U49: 0
A50: =IF(COUNTRY_INFO!A50=0," ",COUNTRY_INFO!A50) -> Gabon | B50: =IF(COUNTRY_INFO!B50=0," ",COUNTRY_INFO!B50) -> Centre-Est | C50: =IF(COUNTRY_INFO!C50=0," ",COUNTRY_INFO!C50) -> Mulundu | D50: =IF(COUNTRY_INFO!$U$9:$U$1000="MDA4 (ALB/2*ALB)", COUNTRY_INFO!$U$9:$U$1000, " ") ->  | I50: 0 | M50: 0 | Q50: 0 | R50: 0 | S50: 0 | T50: 0 | U50: 0
A51: =IF(COUNTRY_INFO!A51=0," ",COUNTRY_INFO!A51) -> Gabon | B51: =IF(COUNTRY_INFO!B51=0," ",COUNTRY_INFO!B51) -> Centre-Est | C51: =IF(COUNTRY_INFO!C51=0," ",COUNTRY_INFO!C51) -> Lombo-Bouenguidi | D51: =IF(COUNTRY_INFO!$U$9:$U$1000="MDA4 (ALB/2*ALB)", COUNTRY_INFO!$U$9:$U$1000, " ") ->  | I51: 0 | M51: 0 | Q51: 0 | R51: 0 | S51: 0 | T51: 0 | U51: 0
A52: =IF(COUNTRY_INFO!A52=0," ",COUNTRY_INFO!A52) -> Gabon | B52: =IF(COUNTRY_INFO!B52=0," ",COUNTRY_INFO!B52) -> Maritime | C52: =IF(COUNTRY_INFO!C52=0," ",COUNTRY_INFO!C52) -> Ndougou | D52: =IF(COUNTRY_INFO!$U$9:$U$1000="MDA4 (ALB/2*ALB)", COUNTRY_INFO!$U$9:$U$1000, " ") ->  | I52: 0 | M52: 0 | Q52: 0 | R52: 0 | S52: 0 | T52: 0 | U52: 0
A53: =IF(COUNTRY_INFO!A53=0," ",COUNTRY_INFO!A53) -> Gabon | B53: =IF(COUNTRY_INFO!B53=0," ",COUNTRY_INFO!B53) -> Maritime | C53: =IF(COUNTRY_INFO!C53=0," ",COUNTRY_INFO!C53) -> Etimboué | D53: =IF(COUNTRY_INFO!$U$9:$U$1000="MDA4 (ALB/2*ALB)", COUNTRY_INFO!$U$9:$U$1000, " ") ->  | I53: 0 | M53: 0 | Q53: 0 | R53: 0 | S53: 0 | T53: 0 | U53: 0
A54: =IF(COUNTRY_INFO!A54=0," ",COUNTRY_INFO!A54) -> Gabon | B54: =IF(COUNTRY_INFO!B54=0," ",COUNTRY_INFO!B54) -> Maritime | C54: =IF(COUNTRY_INFO!C54=0," ",COUNTRY_INFO!C54) -> Bendjé | D54: =IF(COUNTRY_INFO!$U$9:$U$1000="MDA4 (ALB/2*ALB)", COUNTRY_INFO!$U$9:$U$1000, " ") ->  | I54: 0 | M54: 0 | Q54: 0 | R54: 0 | S54: 0 | T54: 0 | U54: 0
A55: =IF(COUNTRY_INFO!A55=0," ",COUNTRY_INFO!A55) -> Gabon | B55: =IF(COUNTRY_INFO!B55=0," ",COUNTRY_INFO!B55) -> Nord | C55: =IF(COUNTRY_INFO!C55=0," ",COUNTRY_INFO!C55) -> Ntem | D55: =IF(COUNTRY_INFO!$U$9:$U$1000="MDA4 (ALB/2*ALB)", COUNTRY_INFO!$U$9:$U$1000, " ") ->  | I55: 0 | M55: 0 | Q55: 0 | R55: 0 | S55: 0 | T55: 0 | U55: 0
A56: =IF(COUNTRY_INFO!A56=0," ",COUNTRY_INFO!A56) -> Gabon | B56: =IF(COUNTRY_INFO!B56=0," ",COUNTRY_INFO!B56) -> Nord | C56: =IF(COUNTRY_INFO!C56=0," ",COUNTRY_INFO!C56) -> Haut - Komo | D56: =IF(COUNTRY_INFO!$U$9:$U$1000="MDA4 (ALB/2*ALB)", COUNTRY_INFO!$U$9:$U$1000, " ") ->  | I56: 0 | M56: 0 | Q56: 0 | R56: 0 | S56: 0 | T56: 0 | U56: 0
A57: =IF(COUNTRY_INFO!A57=0," ",COUNTRY_INFO!A57) -> Gabon | B57: =IF(COUNTRY_INFO!B57=0," ",COUNTRY_INFO!B57) -> Nord | C57: =IF(COUNTRY_INFO!C57=0," ",COUNTRY_INFO!C57) -> Haut-Ntem | D57: =IF(COUNTRY_INFO!$U$9:$U$1000="MDA4 (ALB/2*ALB)", COUNTRY_INFO!$U$9:$U$1000, " ") ->  | I57: 0 | M57: 0 | Q57: 0 | R57: 0 | S57: 0 | T57: 0 | U57: 0
A58: =IF(COUNTRY_INFO!A58=0," ",COUNTRY_INFO!A58) -> Gabon | B58: =IF(COUNTRY_INFO!B58=0," ",COUNTRY_INFO!B58) -> Nord | C58: =IF(COUNTRY_INFO!C58=0," ",COUNTRY_INFO!C58) -> Okano | D58: =IF(COUNTRY_INFO!$U$9:$U$1000="MDA4 (ALB/2*ALB)", COUNTRY_INFO!$U$9:$U$1000, " ") ->  | I58: 0 | M58: 0 | Q58: 0 | R58: 0 | S58: 0 | T58: 0 | U58: 0
A59: =IF(COUNTRY_INFO!A59=0," ",COUNTRY_INFO!A59) -> Gabon | B59: =IF(COUNTRY_INFO!B59=0," ",COUNTRY_INFO!B59) -> Nord | C59: =IF(COUNTRY_INFO!C59=0," ",COUNTRY_INFO!C59) -> Woleu | D59: =IF(COUNTRY_INFO!$U$9:$U$1000="MDA4 (ALB/2*ALB)", COUNTRY_INFO!$U$9:$U$1000, " ") ->  | I59: 0 | M59: 0 | Q59: 0 | R59: 0 | S59: 0 | T59: 0 | U59: 0

Sheet MDA3
A1: MDA 3 - Ivermectine (IVM)
A2: Structure administrative, population nécessitant une chimioprévention par groupe d'âge, population traitée par groupe d'âge et couverture
A4: TOTAL | F4: =SUM(F$9:F$1000) -> 0 | G4: 0 | H4: 0 | I4: 0 | J4: 0 | K4: 0 | L4: 0 | M4: 0 | N4: 0 | O4: 0 | P4: 0 | Q4: 0 | R4: =IF(F4<>0, IF(O4/F4*100=0, "-", O4/F4*100), " ") ->  | S4: =IF(G4<>0, IF(P4/G4*100=0, "-", P4/G4*100), " ") ->  | T4: =IF(H4<>0, IF(Q4/H4*100=0, "-", Q4/H4*100), " ") -> 
A6: Structure administrative du pays | D6: Mise en oeuvre de la CP | E6: Date | F6: Population ciblée pour MDA 3 | I6: Population traitée - tournée 1 | L6: Population traitée - tournée 2 | O6: Population traitée | R6: Couverture du Programme (%)
A7: Pays | B7: Région/Département | C7: District | F7: EAS | G7: Adultes | H7: Total | I7: EAS | J7: Adultes | K7: Total | L7: EAS | M7: Adultes | N7: Total | O7: EAS | P7: Adultes | Q7: Total | R7: EAS | S7: Adultes | T7: Total
A9: =IF(COUNTRY_INFO!A9=0," ",COUNTRY_INFO!A9) -> Gabon | B9: =IF(COUNTRY_INFO!B9=0," ",COUNTRY_INFO!B9) -> Libreville-Owendo | C9: =IF(COUNTRY_INFO!C9=0," ",COUNTRY_INFO!C9) -> Libreville 1 | D9: =IF(COUNTRY_INFO!$U$9:$U$1000="MDA3 (IVM)", COUNTRY_INFO!$U$9:$U$1000, " ") ->  | H9: =SUM(F9:G9) -> 0 | K9: =SUM(I9:J9) -> 0 | N9: =SUM(L9:M9) -> 0 | O9: =MAX(I9,L9) -> 0 | P9: 0 | Q9: =SUM(O9:P9) -> 0 | R9: =IF(F9<>0, IF(MAX(I9,L9)/F9*100=0, "-", MAX(I9,L9)/F9*100), " ") ->  | T9: =IF(H9<>0, IF((MAX(I9,L9)+MAX(J9,M9))/H9*100=0, "-",(MAX(I9,L9)+MAX(J9,M9))/H9*100), " ") -> 
A10: =IF(COUNTRY_INFO!A10=0," ",COUNTRY_INFO!A10) -> Gabon | B10: =IF(COUNTRY_INFO!B10=0," ",COUNTRY_INFO!B10) -> Libreville-Owendo | C10: =IF(COUNTRY_INFO!C10=0," ",COUNTRY_INFO!C10) -> Libreville 2 | D10: =IF(COUNTRY_INFO!$U$9:$U$1000="MDA3 (IVM)", COUNTRY_INFO!$U$9:$U$1000, " ") ->  | H10: =SUM(F10:G10) -> 0 | K10: =SUM(I10:J10) -> 0 | N10: =SUM(L10:M10) -> 0 | O10: =MAX(I10,L10) -> 0 | P10: =MAX(J10,M10) -> 0 | Q10: =SUM(O10:P10) -> 0 | R10: =IF(F10<>0, IF(MAX(I10,L10)/F10*100=0, "-", MAX(I10,L10)/F10*100), " ") ->  | S10: =IF(G10<>0, IF(MAX(J10,M10)/G10*100=0, "-", MAX(J10,M10)/G10*100), " ") ->  | T10: =IF(H10<>0, IF((MAX(I10,L10)+MAX(J10,M10))/H10*100=0, "-",(MAX(I10,L10)+MAX(J10,M10))/H10*100), " ") -> 
A11: =IF(COUNTRY_INFO!A11=0," ",COUNTRY_INFO!A11) -> Gabon | B11: =IF(COUNTRY_INFO!B11=0," ",COUNTRY_INFO!B11) -> Libreville-Owendo | C11: =IF(COUNTRY_INFO!C11=0," ",COUNTRY_INFO!C11) -> Libreville 3 | D11: =IF(COUNTRY_INFO!$U$9:$U$1000="MDA3 (IVM)", COUNTRY_INFO!$U$9:$U$1000, " ") ->  | H11: 0 | K11: 0 | N11: 0 | O11: 0 | P11: 0 | Q11: 0
A12: =IF(COUNTRY_INFO!A12=0," ",COUNTRY_INFO!A12) -> Gabon | B12: =IF(COUNTRY_INFO!B12=0," ",COUNTRY_INFO!B12) -> Libreville-Owendo | C12: =IF(COUNTRY_INFO!C12=0," ",COUNTRY_INFO!C12) -> Owendo | D12: =IF(COUNTRY_INFO!$U$9:$U$1000="MDA3 (IVM)", COUNTRY_INFO!$U$9:$U$1000, " ") ->  | H12: 0 | K12: 0 | N12: 0 | O12: 0 | P12: 0 | Q12: 0
A13: =IF(COUNTRY_INFO!A13=0," ",COUNTRY_INFO!A13) -> Gabon | B13: =IF(COUNTRY_INFO!B13=0," ",COUNTRY_INFO!B13) -> Ouest | C13: =IF(COUNTRY_INFO!C13=0," ",COUNTRY_INFO!C13) -> Komo-Mondah | D13: =IF(COUNTRY_INFO!$U$9:$U$1000="MDA3 (IVM)", COUNTRY_INFO!$U$9:$U$1000, " ") ->  | H13: 0 | K13: 0 | N13: 0 | O13: 0 | P13: 0 | Q13: 0
A14: =IF(COUNTRY_INFO!A14=0," ",COUNTRY_INFO!A14) -> Gabon | B14: =IF(COUNTRY_INFO!B14=0," ",COUNTRY_INFO!B14) -> Ouest | C14: =IF(COUNTRY_INFO!C14=0," ",COUNTRY_INFO!C14) -> Komo-Kango | D14: =IF(COUNTRY_INFO!$U$9:$U$1000="MDA3 (IVM)", COUNTRY_INFO!$U$9:$U$1000, " ") ->  | H14: 0 | K14: 0 | N14: 0 | O14: 0 | P14: 0 | Q14: 0
A15: =IF(COUNTRY_INFO!A15=0," ",COUNTRY_INFO!A15) -> Gabon | B15: =IF(COUNTRY_INFO!B15=0," ",COUNTRY_INFO!B15) -> Ouest | C15: =IF(COUNTRY_INFO!C15=0," ",COUNTRY_INFO!C15) -> Noya | D15: =IF(COUNTRY_INFO!$U$9:$U$1000="MDA3 (IVM)", COUNTRY_INFO!$U$9:$U$1000, " ") ->  | H15: 0 | K15: 0 | N15: 0 | O15: 0 | P15: 0 | Q15: 0
A16: =IF(COUNTRY_INFO!A16=0," ",COUNTRY_INFO!A16) -> Gabon | B16: =IF(COUNTRY_INFO!B16=0," ",COUNTRY_INFO!B16) -> Sud-Est | C16: =IF(COUNTRY_INFO!C16=0," ",COUNTRY_INFO!C16) -> Bayi-brikolo | D16: =IF(COUNTRY_INFO!$U$9:$U$1000="MDA3 (IVM)", COUNTRY_INFO!$U$9:$U$1000, " ") ->  | H16: 0 | K16: 0 | N16: 0 | O16: 0 | P16: 0 | Q16: 0
A17: =IF(COUNTRY_INFO!A17=0," ",COUNTRY_INFO!A17) -> Gabon | B17: =IF(COUNTRY_INFO!B17=0," ",COUNTRY_INFO!B17) -> Sud-Est | C17: =IF(COUNTRY_INFO!C17=0," ",COUNTRY_INFO!C17) -> Lékoni-Lékori | D17: =IF(COUNTRY_INFO!$U$9:$U$1000="MDA3 (IVM)", COUNTRY_INFO!$U$9:$U$1000, " ") ->  | H17: 0 | K17: 0 | N17: 0 | O17: 0 | P17: 0 | Q17: 0
A18: =IF(COUNTRY_INFO!A18=0," ",COUNTRY_INFO!A18) -> Gabon | B18: =IF(COUNTRY_INFO!B18=0," ",COUNTRY_INFO!B18) -> Sud-Est | C18: =IF(COUNTRY_INFO!C18=0," ",COUNTRY_INFO!C18) -> Lékoko | D18: =IF(COUNTRY_INFO!$U$9:$U$1000="MDA3 (IVM)", COUNTRY_INFO!$U$9:$U$1000, " ") ->  | H18: 0 | K18: 0 | N18: 0 | O18: 0 | P18: 0 | Q18: 0
A19: =IF(COUNTRY_INFO!A19=0," ",COUNTRY_INFO!A19) -> Gabon | B19: =IF(COUNTRY_INFO!B19=0," ",COUNTRY_INFO!B19) -> Sud-Est | C19: =IF(COUNTRY_INFO!C19=0," ",COUNTRY_INFO!C19) -> Djouori-Agnili | D19: =IF(COUNTRY_INFO!$U$9:$U$1000="MDA3 (IVM)", COUNTRY_INFO!$U$9:$U$1000, " ") ->  | H19: 0 | K19: 0 | N19: 0 | O19: 0 | P19: 0 | Q19: 0
A20: =IF(COUNTRY_INFO!A20=0," ",COUNTRY_INFO!A20) -> Gabon | B20: =IF(COUNTRY_INFO!B20=0," ",COUNTRY_INFO!B20) -> Sud-Est | C20: =IF(COUNTRY_INFO!C20=0," ",COUNTRY_INFO!C20) -> Ogooué-Létili | D20: =IF(COUNTRY_INFO!$U$9:$U$1000="MDA3 (IVM)", COUNTRY_INFO!$U$9:$U$1000, " ") ->  | H20: 0 | K20: 0 | N20: 0 | O20: 0 | P20: 0 | Q20: 0
A21: =IF(COUNTRY_INFO!A21=0," ",COUNTRY_INFO!A21) -> Gabon | B21: =IF(COUNTRY_INFO!B21=0," ",COUNTRY_INFO!B21) -> Sud-Est | C21: =IF(COUNTRY_INFO!C21=0," ",COUNTRY_INFO!C21) -> Mpassa | D21: =IF(COUNTRY_INFO!$U$9:$U$1000="MDA3 (IVM)", COUNTRY_INFO!$U$9:$U$1000, " ") ->  | H21: 0 | K21: 0 | N21: 0 | O21: 0 | P21: 0 | Q21: 0
A22: =IF(COUNTRY_INFO!A22=0," ",COUNTRY_INFO!A22) -> Gabon | B22: =IF(COUNTRY_INFO!B22=0," ",COUNTRY_INFO!B22) -> Sud-Est | C22: =IF(COUNTRY_INFO!C22=0," ",COUNTRY_INFO!C22) -> Plateaux | D22: =IF(COUNTRY_INFO!$U$9:$U$1000="MDA3 (IVM)", COUNTRY_INFO!$U$9:$U$1000, " ") ->  | H22: 0 | K22: 0 | N22: 0 | O22: 0 | P22: 0 | Q22: 0
A23: =IF(COUNTRY_INFO!A23=0," ",COUNTRY_INFO!A23) -> Gabon | B23: =IF(COUNTRY_INFO!B23=0," ",COUNTRY_INFO!B23) -> Sud-Est | C23: =IF(COUNTRY_INFO!C23=0," ",COUNTRY_INFO!C23) -> Lébombi-Léyou | D23: =IF(COUNTRY_INFO!$U$9:$U$1000="MDA3 (IVM)", COUNTRY_INFO!$U$9:$U$1000, " ") ->  | H23: 0 | K23: 0 | N23: 0 | O23: 0 | P23: 0 | Q23: 0
A24: =IF(COUNTRY_INFO!A24=0," ",COUNTRY_INFO!A24) -> Gabon | B24: =IF(COUNTRY_INFO!B24=0," ",COUNTRY_INFO!B24) -> Sud-Est | C24: =IF(COUNTRY_INFO!C24=0," ",COUNTRY_INFO!C24) -> Lékabi-Léwolo | D24: =IF(COUNTRY_INFO!$U$9:$U$1000="MDA3 (IVM)", COUNTRY_INFO!$U$9:$U$1000, " ") ->  | H24: 0 | K24: 0 | N24: 0 | O24: 0 | P24: 0 | Q24: 0
A25: =IF(COUNTRY_INFO!A25=0," ",COUNTRY_INFO!A25) -> Gabon | B25: =IF(COUNTRY_INFO!B25=0," ",COUNTRY_INFO!B25) -> Sud-Est | C25: =IF(COUNTRY_INFO!C25=0," ",COUNTRY_INFO!C25) -> Sébé-Brikolo | D25: =IF(COUNTRY_INFO!$U$9:$U$1000="MDA3 (IVM)", COUNTRY_INFO!$U$9:$U$1000, " ") ->  | H25: 0 | K25: 0 | N25: 0 | O25: 0 | P25: 0 | Q25: 0
A26: =IF(COUNTRY_INFO!A26=0," ",COUNTRY_INFO!A26) -> Gabon | B26: =IF(COUNTRY_INFO!B26=0," ",COUNTRY_INFO!B26) -> Sud-Est | C26: =IF(COUNTRY_INFO!C26=0," ",COUNTRY_INFO!C26) -> Djoué | D26: =IF(COUNTRY_INFO!$U$9:$U$1000="MDA3 (IVM)", COUNTRY_INFO!$U$9:$U$1000, " ") ->  | H26: 0 | K26: 0 | N26: 0 | O26: 0 | P26: 0 | Q26: 0
A27: =IF(COUNTRY_INFO!A27=0," ",COUNTRY_INFO!A27) -> Gabon | B27: =IF(COUNTRY_INFO!B27=0," ",COUNTRY_INFO!B27) -> Centre | C27: =IF(COUNTRY_INFO!C27=0," ",COUNTRY_INFO!C27) -> Ogooué-et-Lacs | D27: =IF(COUNTRY_INFO!$U$9:$U$1000="MDA3 (IVM)", COUNTRY_INFO!$U$9:$U$1000, " ") ->  | H27: 0 | K27: 0 | N27: 0 | O27: 0 | P27: 0 | Q27: 0
A28: =IF(COUNTRY_INFO!A28=0," ",COUNTRY_INFO!A28) -> Gabon | B28: =IF(COUNTRY_INFO!B28=0," ",COUNTRY_INFO!B28) -> Centre | C28: =IF(COUNTRY_INFO!C28=0," ",COUNTRY_INFO!C28) -> Abanga-Bigné | D28: =IF(COUNTRY_INFO!$U$9:$U$1000="MDA3 (IVM)", COUNTRY_INFO!$U$9:$U$1000, " ") ->  | H28: 0 | K28: 0 | N28: 0 | O28: 0 | P28: 0 | Q28: 0
A29: =IF(COUNTRY_INFO!A29=0," ",COUNTRY_INFO!A29) -> Gabon | B29: =IF(COUNTRY_INFO!B29=0," ",COUNTRY_INFO!B29) -> Centre-Sud | C29: =IF(COUNTRY_INFO!C29=0," ",COUNTRY_INFO!C29) -> Tsamba-Magotsi | D29: =IF(COUNTRY_INFO!$U$9:$U$1000="MDA3 (IVM)", COUNTRY_INFO!$U$9:$U$1000, " ") ->  | H29: 0 | K29: 0 | N29: 0 | O29: 0 | P29: 0 | Q29: 0
A30: =IF(COUNTRY_INFO!A30=0," ",COUNTRY_INFO!A30) -> Gabon | B30: =IF(COUNTRY_INFO!B30=0," ",COUNTRY_INFO!B30) -> Centre-Sud | C30: =IF(COUNTRY_INFO!C30=0," ",COUNTRY_INFO!C30) -> Louetsi-Wano | D30: =IF(COUNTRY_INFO!$U$9:$U$1000="MDA3 (IVM)", COUNTRY_INFO!$U$9:$U$1000, " ") ->  | H30: 0 | K30: 0 | N30: 0 | O30: 0 | P30: 0 | Q30: 0
A31: =IF(COUNTRY_INFO!A31=0," ",COUNTRY_INFO!A31) -> Gabon | B31: =IF(COUNTRY_INFO!B31=0," ",COUNTRY_INFO!B31) -> Centre-Sud | C31: =IF(COUNTRY_INFO!C31=0," ",COUNTRY_INFO!C31) -> Louetsi-Bibaka | D31: =IF(COUNTRY_INFO!$U$9:$U$1000="MDA3 (IVM)", COUNTRY_INFO!$U$9:$U$1000, " ") ->  | H31: 0 | K31: 0 | N31: 0 | O31: 0 | P31: 0 | Q31: 0
A32: =IF(COUNTRY_INFO!A32=0," ",COUNTRY_INFO!A32) -> Gabon | B32: =IF(COUNTRY_INFO!B32=0," ",COUNTRY_INFO!B32) -> Centre-Sud | C32: =IF(COUNTRY_INFO!C32=0," ",COUNTRY_INFO!C32) -> Ndolou | D32: =IF(COUNTRY_INFO!$U$9:$U$1000="MDA3 (IVM)", COUNTRY_INFO!$U$9:$U$1000, " ") ->  | H32: 0 | K32: 0 | N32: 0 | O32: 0 | P32: 0 | Q32: 0
A33: =IF(COUNTRY_INFO!A33=0," ",COUNTRY_INFO!A33) -> Gabon | B33: =IF(COUNTRY_INFO!B33=0," ",COUNTRY_INFO!B33) -> Centre-Sud | C33: =IF(COUNTRY_INFO!C33=0," ",COUNTRY_INFO!C33) -> Boumi-Louetsi | D33: =IF(COUNTRY_INFO!$U$9:$U$1000="MDA3 (IVM)", COUNTRY_INFO!$U$9:$U$1000, " ") ->  | H33: 0 | K33: 0 | N33: 0 | O33: 0 | P33: 0 | Q33: 0
A34: =IF(COUNTRY_INFO!A34=0," ",COUNTRY_INFO!A34) -> Gabon | B34: =IF(COUNTRY_INFO!B34=0," ",COUNTRY_INFO!B34) -> Centre-Sud | C34: =IF(COUNTRY_INFO!C34=0," ",COUNTRY_INFO!C34) -> Ogoulou | D34: =IF(COUNTRY_INFO!$U$9:$U$1000="MDA3 (IVM)", COUNTRY_INFO!$U$9:$U$1000, " ") ->  | H34: 0 | K34: 0 | N34: 0 | O34: 0 | P34: 0 | Q34: 0
A35: =IF(COUNTRY_INFO!A35=0," ",COUNTRY_INFO!A35) -> Gabon | B35: =IF(COUNTRY_INFO!B35=0," ",COUNTRY_INFO!B35) -> Centre-Sud | C35: =IF(COUNTRY_INFO!C35=0," ",COUNTRY_INFO!C35) -> Douya-Onoye | D35: =IF(COUNTRY_INFO!$U$9:$U$1000="MDA3 (IVM)", COUNTRY_INFO!$U$9:$U$1000, " ") ->  | H35: 0 | K35: 0 | N35: 0 | O35: 0 | P35: 0 | Q35: 0
A36: =IF(COUNTRY_INFO!A36=0," ",COUNTRY_INFO!A36) -> Gabon | B36: =IF(COUNTRY_INFO!B36=0," ",COUNTRY_INFO!B36) -> Centre-Sud | C36: =IF(COUNTRY_INFO!C36=0," ",COUNTRY_INFO!C36) -> Dola | D36: =IF(COUNTRY_INFO!$U$9:$U$1000="MDA3 (IVM)", COUNTRY_INFO!$U$9:$U$1000, " ") ->  | H36: 0 | K36: 0 | N36: 0 | O36: 0 | P36: 0 | Q36: 0
A37: =IF(COUNTRY_INFO!A37=0," ",COUNTRY_INFO!A37) -> Gabon | B37: =IF(COUNTRY_INFO!B37=0," ",COUNTRY_INFO!B37) -> Centre-Sud | C37: =IF(COUNTRY_INFO!C37=0," ",COUNTRY_INFO!C37) -> Mougalaba | D37: =IF(COUNTRY_INFO!$U$9:$U$1000="MDA3 (IVM)", COUNTRY_INFO!$U$9:$U$1000, " ") ->  | H37: 0 | K37: 0 | N37: 0 | O37: 0 | P37: 0 | Q37: 0
A38: =IF(COUNTRY_INFO!A38=0," ",COUNTRY_INFO!A38) -> Gabon | B38: =IF(COUNTRY_INFO!B38=0," ",COUNTRY_INFO!B38) -> Sud | C38: =IF(COUNTRY_INFO!C38=0," ",COUNTRY_INFO!C38) -> Doutsila | D38: =IF(COUNTRY_INFO!$U$9:$U$1000="MDA3 (IVM)", COUNTRY_INFO!$U$9:$U$1000, " ") ->  | H38: 0 | K38: 0 | N38: 0 | O38: 0 | P38: 0 | Q38: 0
A39: =IF(COUNTRY_INFO!A39=0," ",COUNTRY_INFO!A39) -> Gabon | B39: =IF(COUNTRY_INFO!B39=0," ",COUNTRY_INFO!B39) -> Sud | C39: =IF(COUNTRY_INFO!C39=0," ",COUNTRY_INFO!C39) -> Basse-Banio | D39: =IF(COUNTRY_INFO!$U$9:$U$1000="MDA3 (IVM)", COUNTRY_INFO!$U$9:$U$1000, " ") ->  | H39: 0 | K39: 0 | N39: 0 | O39: 0 | P39: 0 | Q39: 0
A40: =IF(COUNTRY_INFO!A40=0," ",COUNTRY_INFO!A40) -> Gabon | B40: =IF(COUNTRY_INFO!B40=0," ",COUNTRY_INFO!B40) -> Sud | C40: =IF(COUNTRY_INFO!C40=0," ",COUNTRY_INFO!C40) -> Douigny | D40: =IF(COUNTRY_INFO!$U$9:$U$1000="MDA3 (IVM)", COUNTRY_INFO!$U$9:$U$1000, " ") ->  | H40: 0 | K40: 0 | N40: 0 | O40: 0 | P40: 0 | Q40: 0
A41: =IF(COUNTRY_INFO!A41=0," ",COUNTRY_INFO!A41) -> Gabon | B41: =IF(COUNTRY_INFO!B41=0," ",COUNTRY_INFO!B41) -> Sud | C41: =IF(COUNTRY_INFO!C41=0," ",COUNTRY_INFO!C41) -> Mongo | D41: =IF(COUNTRY_INFO!$U$9:$U$1000="MDA3 (IVM)", COUNTRY_INFO!$U$9:$U$1000, " ") ->  | H41: 0 | K41: 0 | N41: 0 | O41: 0 | P41: 0 | Q41: 0
A42: =IF(COUNTRY_INFO!A42=0," ",COUNTRY_INFO!A42) -> Gabon | B42: =IF(COUNTRY_INFO!B42=0," ",COUNTRY_INFO!B42) -> Sud | C42: =IF(COUNTRY_INFO!C42=0," ",COUNTRY_INFO!C42) -> Haute-Banio | D42: =IF(COUNTRY_INFO!$U$9:$U$1000="MDA3 (IVM)", COUNTRY_INFO!$U$9:$U$1000, " ") ->  | H42: 0 | K42: 0 | N42: 0 | O42: 0 | P42: 0 | Q42: 0
A43: =IF(COUNTRY_INFO!A43=0," ",COUNTRY_INFO!A43) -> Gabon | B43: =IF(COUNTRY_INFO!B43=0," ",COUNTRY_INFO!B43) -> Sud | C43: =IF(COUNTRY_INFO!C43=0," ",COUNTRY_INFO!C43) -> Mougoutsi | D43: =IF(COUNTRY_INFO!$U$9:$U$1000="MDA3 (IVM)", COUNTRY_INFO!$U$9:$U$1000, " ") ->  | H43: 0 | K43: 0 | N43: 0 | O43: 0 | P43: 0 | Q43: 0
A44: =IF(COUNTRY_INFO!A44=0," ",COUNTRY_INFO!A44) -> Gabon | B44: =IF(COUNTRY_INFO!B44=0," ",COUNTRY_INFO!B44) -> Est | C44: =IF(COUNTRY_INFO!C44=0," ",COUNTRY_INFO!C44) -> Lopé | D44: =IF(COUNTRY_INFO!$U$9:$U$1000="MDA3 (IVM)", COUNTRY_INFO!$U$9:$U$1000, " ") ->  | H44: 0 | K44: 0 | N44: 0 | O44: 0 | P44: 0 | Q44: 0
A45: =IF(COUNTRY_INFO!A45=0," ",COUNTRY_INFO!A45) -> Gabon | B45: =IF(COUNTRY_INFO!B45=0," ",COUNTRY_INFO!B45) -> Est | C45: =IF(COUNTRY_INFO!C45=0," ",COUNTRY_INFO!C45) -> Ivindo | D45: =IF(COUNTRY_INFO!$U$9:$U$1000="MDA3 (IVM)", COUNTRY_INFO!$U$9:$U$1000, " ") ->  | H45: 0 | K45: 0 | N45: 0 | O45: 0 | P45: 0 | Q45: 0
A46: =IF(COUNTRY_INFO!A46=0," ",COUNTRY_INFO!A46) -> Gabon | B46: =IF(COUNTRY_INFO!B46=0," ",COUNTRY_INFO!B46) -> Est | C46: =IF(COUNTRY_INFO!C46=0," ",COUNTRY_INFO!C46) -> Zadié | D46: =IF(COUNTRY_INFO!$U$9:$U$1000="MDA3 (IVM)", COUNTRY_INFO!$U$9:$U$1000, " ") ->  | H46: 0 | K46: 0 | N46: 0 | O46: 0 | P46: 0 | Q46: 0
A47: =IF(COUNTRY_INFO!A47=0," ",COUNTRY_INFO!A47) -> Gabon | B47: =IF(COUNTRY_INFO!B47=0," ",COUNTRY_INFO!B47) -> Est | C47: =IF(COUNTRY_INFO!C47=0," ",COUNTRY_INFO!C47) -> Mvoung | D47: =IF(COUNTRY_INFO!$U$9:$U$1000="MDA3 (IVM)", COUNTRY_INFO!$U$9:$U$1000, " ") ->  | H47: 0 | K47: 0 | N47: 0 | O47: 0 | P47: 0 | Q47: 0
A48: =IF(COUNTRY_INFO!A48=0," ",COUNTRY_INFO!A48) -> Gabon | B48: =IF(COUNTRY_INFO!B48=0," ",COUNTRY_INFO!B48) -> Centre-Est | C48: =IF(COUNTRY_INFO!C48=0," ",COUNTRY_INFO!C48) -> Offoué-Onoye | D48: =IF(COUNTRY_INFO!$U$9:$U$1000="MDA3 (IVM)", COUNTRY_INFO!$U$9:$U$1000, " ") ->  | H48: 0 | K48: 0 | N48: 0 | O48: 0 | P48: 0 | Q48: 0
A49: =IF(COUNTRY_INFO!A49=0," ",COUNTRY_INFO!A49) -> Gabon | B49: =IF(COUNTRY_INFO!B49=0," ",COUNTRY_INFO!B49) -> Centre-Est | C49: =IF(COUNTRY_INFO!C49=0," ",COUNTRY_INFO!C49) -> Lolo-Bouenguidi | D49: =IF(COUNTRY_INFO!$U$9:$U$1000="MDA3 (IVM)", COUNTRY_INFO!$U$9:$U$1000, " ") ->  | H49: 0 | K49: 0 | N49: 0 | O49: 0 | P49: 0 | Q49: 0
A50: =IF(COUNTRY_INFO!A50=0," ",COUNTRY_INFO!A50) -> Gabon | B50: =IF(COUNTRY_INFO!B50=0," ",COUNTRY_INFO!B50) -> Centre-Est | C50: =IF(COUNTRY_INFO!C50=0," ",COUNTRY_INFO!C50) -> Mulundu | D50: =IF(COUNTRY_INFO!$U$9:$U$1000="MDA3 (IVM)", COUNTRY_INFO!$U$9:$U$1000, " ") ->  | H50: 0 | K50: 0 | N50: 0 | O50: 0 | P50: 0 | Q50: 0
A51: =IF(COUNTRY_INFO!A51=0," ",COUNTRY_INFO!A51) -> Gabon | B51: =IF(COUNTRY_INFO!B51=0," ",COUNTRY_INFO!B51) -> Centre-Est | C51: =IF(COUNTRY_INFO!C51=0," ",COUNTRY_INFO!C51) -> Lombo-Bouenguidi | D51: =IF(COUNTRY_INFO!$U$9:$U$1000="MDA3 (IVM)", COUNTRY_INFO!$U$9:$U$1000, " ") ->  | H51: 0 | K51: 0 | N51: 0 | O51: 0 | P51: 0 | Q51: 0
A52: =IF(COUNTRY_INFO!A52=0," ",COUNTRY_INFO!A52) -> Gabon | B52: =IF(COUNTRY_INFO!B52=0," ",COUNTRY_INFO!B52) -> Maritime | C52: =IF(COUNTRY_INFO!C52=0," ",COUNTRY_INFO!C52) -> Ndougou | D52: =IF(COUNTRY_INFO!$U$9:$U$1000="MDA3 (IVM)", COUNTRY_INFO!$U$9:$U$1000, " ") ->  | H52: 0 | K52: 0 | N52: 0 | O52: 0 | P52: 0 | Q52: 0
A53: =IF(COUNTRY_INFO!A53=0," ",COUNTRY_INFO!A53) -> Gabon | B53: =IF(COUNTRY_INFO!B53=0," ",COUNTRY_INFO!B53) -> Maritime | C53: =IF(COUNTRY_INFO!C53=0," ",COUNTRY_INFO!C53) -> Etimboué | D53: =IF(COUNTRY_INFO!$U$9:$U$1000="MDA3 (IVM)", COUNTRY_INFO!$U$9:$U$1000, " ") ->  | H53: 0 | K53: 0 | N53: 0 | O53: 0 | P53: 0 | Q53: 0
A54: =IF(COUNTRY_INFO!A54=0," ",COUNTRY_INFO!A54) -> Gabon | B54: =IF(COUNTRY_INFO!B54=0," ",COUNTRY_INFO!B54) -> Maritime | C54: =IF(COUNTRY_INFO!C54=0," ",COUNTRY_INFO!C54) -> Bendjé | D54: =IF(COUNTRY_INFO!$U$9:$U$1000="MDA3 (IVM)", COUNTRY_INFO!$U$9:$U$1000, " ") ->  | H54: 0 | K54: 0 | N54: 0 | O54: 0 | P54: 0 | Q54: 0
A55: =IF(COUNTRY_INFO!A55=0," ",COUNTRY_INFO!A55) -> Gabon | B55: =IF(COUNTRY_INFO!B55=0," ",COUNTRY_INFO!B55) -> Nord | C55: =IF(COUNTRY_INFO!C55=0," ",COUNTRY_INFO!C55) -> Ntem | D55: =IF(COUNTRY_INFO!$U$9:$U$1000="MDA3 (IVM)", COUNTRY_INFO!$U$9:$U$1000, " ") ->  | H55: 0 | K55: 0 | N55: 0 | O55: 0 | P55: 0 | Q55: 0
A56: =IF(COUNTRY_INFO!A56=0," ",COUNTRY_INFO!A56) -> Gabon | B56: =IF(COUNTRY_INFO!B56=0," ",COUNTRY_INFO!B56) -> Nord | C56: =IF(COUNTRY_INFO!C56=0," ",COUNTRY_INFO!C56) -> Haut - Komo | D56: =IF(COUNTRY_INFO!$U$9:$U$1000="MDA3 (IVM)", COUNTRY_INFO!$U$9:$U$1000, " ") ->  | H56: 0 | K56: 0 | N56: 0 | O56: 0 | P56: 0 | Q56: 0
A57: =IF(COUNTRY_INFO!A57=0," ",COUNTRY_INFO!A57) -> Gabon | B57: =IF(COUNTRY_INFO!B57=0," ",COUNTRY_INFO!B57) -> Nord | C57: =IF(COUNTRY_INFO!C57=0," ",COUNTRY_INFO!C57) -> Haut-Ntem | D57: =IF(COUNTRY_INFO!$U$9:$U$1000="MDA3 (IVM)", COUNTRY_INFO!$U$9:$U$1000, " ") ->  | H57: 0 | K57: 0 | N57: 0 | O57: 0 | P57: 0 | Q57: 0
A58: =IF(COUNTRY_INFO!A58=0," ",COUNTRY_INFO!A58) -> Gabon | B58: =IF(COUNTRY_INFO!B58=0," ",COUNTRY_INFO!B58) -> Nord | C58: =IF(COUNTRY_INFO!C58=0," ",COUNTRY_INFO!C58) -> Okano | D58: =IF(COUNTRY_INFO!$U$9:$U$1000="MDA3 (IVM)", COUNTRY_INFO!$U$9:$U$1000, " ") ->  | H58: 0 | K58: 0 | N58: 0 | O58: 0 | P58: 0 | Q58: 0
A59: =IF(COUNTRY_INFO!A59=0," ",COUNTRY_INFO!A59) -> Gabon | B59: =IF(COUNTRY_INFO!B59=0," ",COUNTRY_INFO!B59) -> Nord | C59: =IF(COUNTRY_INFO!C59=0," ",COUNTRY_INFO!C59) -> Woleu | D59: =IF(COUNTRY_INFO!$U$9:$U$1000="MDA3 (IVM)", COUNTRY_INFO!$U$9:$U$1000, " ") ->  | H59: 0 | K59: 0 | N59: 0 | O59: 0 | P59: 0 | Q59: 0

Sheet T1
A1: T 1 - Praziquantel (PZQ) et Albendazole (ALB) ou Mebendazole (MBD)
A2: Structure administrative, population nécessitant une chimioprévention par groupe d'âge, population traitée par groupe d'âge et couverture
A4: TOTAL | G4: =SUM(G$9:G$1000) -> 0 | H4: 274630 | I4: 274630 | J4: 0 | K4: =SUM(K$9:K$1000) -> 274630 | L4: 0 | M4: 117555 | N4: 0 | O4: 117555 | P4: =IF(G4<>0, IF(L4/G4*100=0, "-", L4/G4*100), " ") ->  | Q4: =IF(OR(I4<>0,H4<>0), IF(M4/MAX(H4,I4)*100=0, "-", M4/MAX(H4,I4)*100), " ") -> 42.80486473 | R4: =IF(J4<>0, IF(N4/J4*100=0, "-", N4/J4*100), " ") ->  | S4: =IF(K4<>0, IF(O4/K4*100=0, "-", O4/K4*100), " ") -> 42.80486473
A6: Structure administrative du pays | D6: Mise en oeuvre de la CP | E6: Médica-ment | F6: Date | G6: Population ciblée pour T1 | L6: Population traitée | P6: Couverture du Programme (%)
A7: Pays | B7: Région/Département | C7: District | G7: EAPréS (ALB) | H7: EAS (ALB) | I7: EAS (PZQ) | J7: Adultes (PZQ) | K7: Total | L7: EAPréS | M7: EAS | N7: Adultes | O7: Total | P7: EAPréS | Q7: EAS | R7: Adultes | S7: Total
A9: =IF(COUNTRY_INFO!A9=0," ",COUNTRY_INFO!A9) -> Gabon | B9: =IF(COUNTRY_INFO!B9=0," ",COUNTRY_INFO!B9) -> Libreville-Owendo | C9: =IF(COUNTRY_INFO!C9=0," ",COUNTRY_INFO!C9) -> Libreville 1 | D9: =IF(OR(COUNTRY_INFO!$U$9:$U$1000="T1 (PZQ+ALB/MBD)",COUNTRY_INFO!$V$9:$V$1000="T1 (PZQ+ALB/MBD)"), "T1 (PZQ+ALB/MBD)", " ") -> T1 (PZQ+ALB/MBD) | E9: PZQ+MBD | F9: 072018 | H9: 29461 | I9: 29461 | K9: =MAX(H9:I9)+G9+J9 -> 29461 | M9: 14518 | O9: =SUM(L9:N9) -> 14518 | P9: =IF(G9<>0, IF(L9/G9*100=0, "-", L9/G9*100), " ") ->  | Q9: =IF(OR(I9<>0,H9<>0), IF(M9/MAX(H9,I9)*100=0, "-", M9/MAX(H9,I9)*100), " ") -> 49.27870744 | R9: =IF(J9<>0, IF(N9/J9*100=0, "-", N9/J9*100), " ") ->  | S9: 49.27870744
A10: =IF(COUNTRY_INFO!A10=0," ",COUNTRY_INFO!A10) -> Gabon | B10: =IF(COUNTRY_INFO!B10=0," ",COUNTRY_INFO!B10) -> Libreville-Owendo | C10: =IF(COUNTRY_INFO!C10=0," ",COUNTRY_INFO!C10) -> Libreville 2 | D10: =IF(OR(COUNTRY_INFO!$U$9:$U$1000="T1 (PZQ+ALB/MBD)",COUNTRY_INFO!$V$9:$V$1000="T1 (PZQ+ALB/MBD)"), "T1 (PZQ+ALB/MBD)", " ") ->  | K10: =MAX(H10:I10)+G10+J10 -> 0 | O10: =SUM(L10:N10) -> 0 | P10: =IF(G10<>0, IF(L10/G10*100=0, "-", L10/G10*100), " ") ->  | Q10: =IF(OR(I10<>0,H10<>0), IF(M10/MAX(H10,I10)*100=0, "-", M10/MAX(H10,I10)*100), " ") ->  | R10: =IF(J10<>0, IF(N10/J10*100=0, "-", N10/J10*100), " ") ->  | S10: =IF(K10<>0, IF(O10/K10*100=0, "-", O10/K10*100), " ") -> 
A11: =IF(COUNTRY_INFO!A11=0," ",COUNTRY_INFO!A11) -> Gabon | B11: =IF(COUNTRY_INFO!B11=0," ",COUNTRY_INFO!B11) -> Libreville-Owendo | C11: =IF(COUNTRY_INFO!C11=0," ",COUNTRY_INFO!C11) -> Libreville 3 | D11: =IF(OR(COUNTRY_INFO!$U$9:$U$1000="T1 (PZQ+ALB/MBD)",COUNTRY_INFO!$V$9:$V$1000="T1 (PZQ+ALB/MBD)"), "T1 (PZQ+ALB/MBD)", " ") ->  | K11: 0 | O11: 0
A12: =IF(COUNTRY_INFO!A12=0," ",COUNTRY_INFO!A12) -> Gabon | B12: =IF(COUNTRY_INFO!B12=0," ",COUNTRY_INFO!B12) -> Libreville-Owendo | C12: =IF(COUNTRY_INFO!C12=0," ",COUNTRY_INFO!C12) -> Owendo | D12: =IF(OR(COUNTRY_INFO!$U$9:$U$1000="T1 (PZQ+ALB/MBD)",COUNTRY_INFO!$V$9:$V$1000="T1 (PZQ+ALB/MBD)"), "T1 (PZQ+ALB/MBD)", " ") ->  | K12: 0 | O12: 0
A13: =IF(COUNTRY_INFO!A13=0," ",COUNTRY_INFO!A13) -> Gabon | B13: =IF(COUNTRY_INFO!B13=0," ",COUNTRY_INFO!B13) -> Ouest | C13: =IF(COUNTRY_INFO!C13=0," ",COUNTRY_INFO!C13) -> Komo-Mondah | D13: =IF(OR(COUNTRY_INFO!$U$9:$U$1000="T1 (PZQ+ALB/MBD)",COUNTRY_INFO!$V$9:$V$1000="T1 (PZQ+ALB/MBD)"), "T1 (PZQ+ALB/MBD)", " ") -> T1 (PZQ+ALB/MBD) | E13: PZQ+MBD | F13: 072018 | H13: 24011 | I13: 24011 | K13: 24011 | M13: 18181 | O13: 18181 | Q13: 75.71946191 | S13: 75.71946191
A14: =IF(COUNTRY_INFO!A14=0," ",COUNTRY_INFO!A14) -> Gabon | B14: =IF(COUNTRY_INFO!B14=0," ",COUNTRY_INFO!B14) -> Ouest | C14: =IF(COUNTRY_INFO!C14=0," ",COUNTRY_INFO!C14) -> Komo-Kango | D14: =IF(OR(COUNTRY_INFO!$U$9:$U$1000="T1 (PZQ+ALB/MBD)",COUNTRY_INFO!$V$9:$V$1000="T1 (PZQ+ALB/MBD)"), "T1 (PZQ+ALB/MBD)", " ") -> T1 (PZQ+ALB/MBD) | E14: PZQ+MBD | F14: 072018 | H14: 4671 | I14: 4671 | K14: 4671 | M14: 1677 | O14: 1677 | Q14: 35.90237636 | S14: 35.90237636
A15: =IF(COUNTRY_INFO!A15=0," ",COUNTRY_INFO!A15) -> Gabon | B15: =IF(COUNTRY_INFO!B15=0," ",COUNTRY_INFO!B15) -> Ouest | C15: =IF(COUNTRY_INFO!C15=0," ",COUNTRY_INFO!C15) -> Noya | D15: =IF(OR(COUNTRY_INFO!$U$9:$U$1000="T1 (PZQ+ALB/MBD)",COUNTRY_INFO!$V$9:$V$1000="T1 (PZQ+ALB/MBD)"), "T1 (PZQ+ALB/MBD)", " ") -> T1 (PZQ+ALB/MBD) | E15: PZQ+MBD | F15: 072018 | H15: 1225 | I15: 1225 | K15: 1225 | M15: 777 | O15: 777 | Q15: 63.42857143 | S15: 63.42857143
A16: =IF(COUNTRY_INFO!A16=0," ",COUNTRY_INFO!A16) -> Gabon | B16: =IF(COUNTRY_INFO!B16=0," ",COUNTRY_INFO!B16) -> Sud-Est | C16: =IF(COUNTRY_INFO!C16=0," ",COUNTRY_INFO!C16) -> Bayi-brikolo | D16: =IF(OR(COUNTRY_INFO!$U$9:$U$1000="T1 (PZQ+ALB/MBD)",COUNTRY_INFO!$V$9:$V$1000="T1 (PZQ+ALB/MBD)"), "T1 (PZQ+ALB/MBD)", " ") ->  | K16: 0 | O16: 0
A17: =IF(COUNTRY_INFO!A17=0," ",COUNTRY_INFO!A17) -> Gabon | B17: =IF(COUNTRY_INFO!B17=0," ",COUNTRY_INFO!B17) -> Sud-Est | C17: =IF(COUNTRY_INFO!C17=0," ",COUNTRY_INFO!C17) -> Lékoni-Lékori | D17: =IF(OR(COUNTRY_INFO!$U$9:$U$1000="T1 (PZQ+ALB/MBD)",COUNTRY_INFO!$V$9:$V$1000="T1 (PZQ+ALB/MBD)"), "T1 (PZQ+ALB/MBD)", " ") -> T1 (PZQ+ALB/MBD) | E17: PZQ+MBD | F17: 072018 | H17: 3171 | I17: 3171 | K17: 3171 | M17: 1121 | O17: 1121 | Q17: 35.35162409 | S17: 35.35162409
A18: =IF(COUNTRY_INFO!A18=0," ",COUNTRY_INFO!A18) -> Gabon | B18: =IF(COUNTRY_INFO!B18=0," ",COUNTRY_INFO!B18) -> Sud-Est | C18: =IF(COUNTRY_INFO!C18=0," ",COUNTRY_INFO!C18) -> Lékoko | D18: =IF(OR(COUNTRY_INFO!$U$9:$U$1000="T1 (PZQ+ALB/MBD)",COUNTRY_INFO!$V$9:$V$1000="T1 (PZQ+ALB/MBD)"), "T1 (PZQ+ALB/MBD)", " ") -> T1 (PZQ+ALB/MBD) | E18: PZQ+MBD | F18: 072018 | H18: 1418 | I18: 1418 | K18: 1418 | M18: 602 | O18: 602 | Q18: 42.45416079 | S18: 42.45416079
A19: =IF(COUNTRY_INFO!A19=0," ",COUNTRY_INFO!A19) -> Gabon | B19: =IF(COUNTRY_INFO!B19=0," ",COUNTRY_INFO!B19) -> Sud-Est | C19: =IF(COUNTRY_INFO!C19=0," ",COUNTRY_INFO!C19) -> Djouori-Agnili | D19: =IF(OR(COUNTRY_INFO!$U$9:$U$1000="T1 (PZQ+ALB/MBD)",COUNTRY_INFO!$V$9:$V$1000="T1 (PZQ+ALB/MBD)"), "T1 (PZQ+ALB/MBD)", " ") ->  | K19: 0 | O19: 0
A20: =IF(COUNTRY_INFO!A20=0," ",COUNTRY_INFO!A20) -> Gabon | B20: =IF(COUNTRY_INFO!B20=0," ",COUNTRY_INFO!B20) -> Sud-Est | C20: =IF(COUNTRY_INFO!C20=0," ",COUNTRY_INFO!C20) -> Ogooué-Létili | D20: =IF(OR(COUNTRY_INFO!$U$9:$U$1000="T1 (PZQ+ALB/MBD)",COUNTRY_INFO!$V$9:$V$1000="T1 (PZQ+ALB/MBD)"), "T1 (PZQ+ALB/MBD)", " ") ->  | K20: 0 | O20: 0
A21: =IF(COUNTRY_INFO!A21=0," ",COUNTRY_INFO!A21) -> Gabon | B21: =IF(COUNTRY_INFO!B21=0," ",COUNTRY_INFO!B21) -> Sud-Est | C21: =IF(COUNTRY_INFO!C21=0," ",COUNTRY_INFO!C21) -> Mpassa | D21: =IF(OR(COUNTRY_INFO!$U$9:$U$1000="T1 (PZQ+ALB/MBD)",COUNTRY_INFO!$V$9:$V$1000="T1 (PZQ+ALB/MBD)"), "T1 (PZQ+ALB/MBD)", " ") -> T1 (PZQ+ALB/MBD) | E21: PZQ+MBD | F21: 072018 | H21: 39259 | I21: 39259 | K21: 39259 | M21: 8624 | O21: 8624 | Q21: 21.96693752 | S21: 21.96693752
A22: =IF(COUNTRY_INFO!A22=0," ",COUNTRY_INFO!A22) -> Gabon | B22: =IF(COUNTRY_INFO!B22=0," ",COUNTRY_INFO!B22) -> Sud-Est | C22: =IF(COUNTRY_INFO!C22=0," ",COUNTRY_INFO!C22) -> Plateaux | D22: =IF(OR(COUNTRY_INFO!$U$9:$U$1000="T1 (PZQ+ALB/MBD)",COUNTRY_INFO!$V$9:$V$1000="T1 (PZQ+ALB/MBD)"), "T1 (PZQ+ALB/MBD)", " ") -> T1 (PZQ+ALB/MBD) | E22: PZQ+MBD | F22: 072018 | H22: 3147 | I22: 3147 | K22: 3147 | M22: 1916 | O22: 1916 | Q22: 60.883381 | S22: 60.883381
A23: =IF(COUNTRY_INFO!A23=0," ",COUNTRY_INFO!A23) -> Gabon | B23: =IF(COUNTRY_INFO!B23=0," ",COUNTRY_INFO!B23) -> Sud-Est | C23: =IF(COUNTRY_INFO!C23=0," ",COUNTRY_INFO!C23) -> Lébombi-Léyou | D23: =IF(OR(COUNTRY_INFO!$U$9:$U$1000="T1 (PZQ+ALB/MBD)",COUNTRY_INFO!$V$9:$V$1000="T1 (PZQ+ALB/MBD)"), "T1 (PZQ+ALB/MBD)", " ") -> T1 (PZQ+ALB/MBD) | E23: PZQ+MBD | F23: 072018 | H23: 17394 | I23: 17394 | K23: 17394 | M23: 6545 | O23: 6545 | Q23: 37.62791767 | S23: 37.62791767
A24: =IF(COUNTRY_INFO!A24=0," ",COUNTRY_INFO!A24) -> Gabon | B24: =IF(COUNTRY_INFO!B24=0," ",COUNTRY_INFO!B24) -> Sud-Est | C24: =IF(COUNTRY_INFO!C24=0," ",COUNTRY_INFO!C24) -> Lékabi-Léwolo | D24: =IF(OR(COUNTRY_INFO!$U$9:$U$1000="T1 (PZQ+ALB/MBD)",COUNTRY_INFO!$V$9:$V$1000="T1 (PZQ+ALB/MBD)"), "T1 (PZQ+ALB/MBD)", " ") -> T1 (PZQ+ALB/MBD) | E24: PZQ+MBD | F24: 072018 | H24: 2533 | I24: 2533 | K24: 2533 | M24: 635 | O24: 635 | Q24: 25.06908804 | S24: 25.06908804
A25: =IF(COUNTRY_INFO!A25=0," ",COUNTRY_INFO!A25) -> Gabon | B25: =IF(COUNTRY_INFO!B25=0," ",COUNTRY_INFO!B25) -> Sud-Est | C25: =IF(COUNTRY_INFO!C25=0," ",COUNTRY_INFO!C25) -> Sébé-Brikolo | D25: =IF(OR(COUNTRY_INFO!$U$9:$U$1000="T1 (PZQ+ALB/MBD)",COUNTRY_INFO!$V$9:$V$1000="T1 (PZQ+ALB/MBD)"), "T1 (PZQ+ALB/MBD)", " ") -> T1 (PZQ+ALB/MBD) | E25: PZQ+MBD | F25: 072018 | H25: 4759 | I25: 4759 | K25: 4759 | M25: 1816 | O25: 1816 | Q25: 38.15927716 | S25: 38.15927716
A26: =IF(COUNTRY_INFO!A26=0," ",COUNTRY_INFO!A26) -> Gabon | B26: =IF(COUNTRY_INFO!B26=0," ",COUNTRY_INFO!B26) -> Sud-Est | C26: =IF(COUNTRY_INFO!C26=0," ",COUNTRY_INFO!C26) -> Djoué | D26: =IF(OR(COUNTRY_INFO!$U$9:$U$1000="T1 (PZQ+ALB/MBD)",COUNTRY_INFO!$V$9:$V$1000="T1 (PZQ+ALB/MBD)"), "T1 (PZQ+ALB/MBD)", " ") -> T1 (PZQ+ALB/MBD) | E26: PZQ+MBD | F26: 072018 | H26: 1568 | I26: 1568 | K26: 1568 | M26: 1446 | O26: 1446 | Q26: 92.21938776 | S26: 92.21938776
A27: =IF(COUNTRY_INFO!A27=0," ",COUNTRY_INFO!A27) -> Gabon | B27: =IF(COUNTRY_INFO!B27=0," ",COUNTRY_INFO!B27) -> Centre | C27: =IF(COUNTRY_INFO!C27=0," ",COUNTRY_INFO!C27) -> Ogooué-et-Lacs | D27: =IF(OR(COUNTRY_INFO!$U$9:$U$1000="T1 (PZQ+ALB/MBD)",COUNTRY_INFO!$V$9:$V$1000="T1 (PZQ+ALB/MBD)"), "T1 (PZQ+ALB/MBD)", " ") -> T1 (PZQ+ALB/MBD) | E27: PZQ+MBD | F27: 072018 | H27: 15071 | I27: 15071 | K27: 15071 | M27: 7477 | O27: 7477 | Q27: 49.6118373 | S27: 49.6118373
A28: =IF(COUNTRY_INFO!A28=0," ",COUNTRY_INFO!A28) -> Gabon | B28: =IF(COUNTRY_INFO!B28=0," ",COUNTRY_INFO!B28) -> Centre | C28: =IF(COUNTRY_INFO!C28=0," ",COUNTRY_INFO!C28) -> Abanga-Bigné | D28: =IF(OR(COUNTRY_INFO!$U$9:$U$1000="T1 (PZQ+ALB/MBD)",COUNTRY_INFO!$V$9:$V$1000="T1 (PZQ+ALB/MBD)"), "T1 (PZQ+ALB/MBD)", " ") -> T1 (PZQ+ALB/MBD) | E28: PZQ+MBD | F28: 072018 | H28: 4242 | I28: 4242 | K28: 4242 | M28: 1863 | O28: 1863 | Q28: 43.91796322 | S28: 43.91796322
A29: =IF(COUNTRY_INFO!A29=0," ",COUNTRY_INFO!A29) -> Gabon | B29: =IF(COUNTRY_INFO!B29=0," ",COUNTRY_INFO!B29) -> Centre-Sud | C29: =IF(COUNTRY_INFO!C29=0," ",COUNTRY_INFO!C29) -> Tsamba-Magotsi | D29: =IF(OR(COUNTRY_INFO!$U$9:$U$1000="T1 (PZQ+ALB/MBD)",COUNTRY_INFO!$V$9:$V$1000="T1 (PZQ+ALB/MBD)"), "T1 (PZQ+ALB/MBD)", " ") -> T1 (PZQ+ALB/MBD) | E29: PZQ+MBD | F29: 072018 | H29: 3866 | I29: 3866 | K29: 3866 | M29: 2264 | O29: 2264 | Q29: 58.561821 | S29: 58.561821
A30: =IF(COUNTRY_INFO!A30=0," ",COUNTRY_INFO!A30) -> Gabon | B30: =IF(COUNTRY_INFO!B30=0," ",COUNTRY_INFO!B30) -> Centre-Sud | C30: =IF(COUNTRY_INFO!C30=0," ",COUNTRY_INFO!C30) -> Louetsi-Wano | D30: =IF(OR(COUNTRY_INFO!$U$9:$U$1000="T1 (PZQ+ALB/MBD)",COUNTRY_INFO!$V$9:$V$1000="T1 (PZQ+ALB/MBD)"), "T1 (PZQ+ALB/MBD)", " ") -> T1 (PZQ+ALB/MBD) | E30: PZQ+MBD | F30: 072018 | H30: 3159 | I30: 3159 | K30: 3159 | M30: 2272 | O30: 2272 | Q30: 71.92149414 | S30: 71.92149414
A31: =IF(COUNTRY_INFO!A31=0," ",COUNTRY_INFO!A31) -> Gabon | B31: =IF(COUNTRY_INFO!B31=0," ",COUNTRY_INFO!B31) -> Centre-Sud | C31: =IF(COUNTRY_INFO!C31=0," ",COUNTRY_INFO!C31) -> Louetsi-Bibaka | D31: =IF(OR(COUNTRY_INFO!$U$9:$U$1000="T1 (PZQ+ALB/MBD)",COUNTRY_INFO!$V$9:$V$1000="T1 (PZQ+ALB/MBD)"), "T1 (PZQ+ALB/MBD)", " ") ->  | K31: 0 | O31: 0
A32: =IF(COUNTRY_INFO!A32=0," ",COUNTRY_INFO!A32) -> Gabon | B32: =IF(COUNTRY_INFO!B32=0," ",COUNTRY_INFO!B32) -> Centre-Sud | C32: =IF(COUNTRY_INFO!C32=0," ",COUNTRY_INFO!C32) -> Ndolou | D32: =IF(OR(COUNTRY_INFO!$U$9:$U$1000="T1 (PZQ+ALB/MBD)",COUNTRY_INFO!$V$9:$V$1000="T1 (PZQ+ALB/MBD)"), "T1 (PZQ+ALB/MBD)", " ") -> T1 (PZQ+ALB/MBD) | E32: PZQ+MBD | F32: 072018 | H32: 1529 | I32: 1529 | K32: 1529 | M32: 1028 | O32: 1028 | Q32: 67.23348594 | S32: 67.23348594
A33: =IF(COUNTRY_INFO!A33=0," ",COUNTRY_INFO!A33) -> Gabon | B33: =IF(COUNTRY_INFO!B33=0," ",COUNTRY_INFO!B33) -> Centre-Sud | C33: =IF(COUNTRY_INFO!C33=0," ",COUNTRY_INFO!C33) -> Boumi-Louetsi | D33: =IF(OR(COUNTRY_INFO!$U$9:$U$1000="T1 (PZQ+ALB/MBD)",COUNTRY_INFO!$V$9:$V$1000="T1 (PZQ+ALB/MBD)"), "T1 (PZQ+ALB/MBD)", " ") -> T1 (PZQ+ALB/MBD) | E33: PZQ+MBD | F33: 072018 | H33: 5499 | I33: 5499 | K33: 5499 | M33: 1838 | O33: 1838 | Q33: 33.42425896 | S33: 33.42425896
A34: =IF(COUNTRY_INFO!A34=0," ",COUNTRY_INFO!A34) -> Gabon | B34: =IF(COUNTRY_INFO!B34=0," ",COUNTRY_INFO!B34) -> Centre-Sud | C34: =IF(COUNTRY_INFO!C34=0," ",COUNTRY_INFO!C34) -> Ogoulou | D34: =IF(OR(COUNTRY_INFO!$U$9:$U$1000="T1 (PZQ+ALB/MBD)",COUNTRY_INFO!$V$9:$V$1000="T1 (PZQ+ALB/MBD)"), "T1 (PZQ+ALB/MBD)", " ") -> T1 (PZQ+ALB/MBD) | E34: PZQ+MBD | F34: 072018 | H34: 2506 | I34: 2506 | K34: 2506 | M34: 1759 | O34: 1759 | Q34: 70.1915403 | S34: 70.1915403
A35: =IF(COUNTRY_INFO!A35=0," ",COUNTRY_INFO!A35) -> Gabon | B35: =IF(COUNTRY_INFO!B35=0," ",COUNTRY_INFO!B35) -> Centre-Sud | C35: =IF(COUNTRY_INFO!C35=0," ",COUNTRY_INFO!C35) -> Douya-Onoye | D35: =IF(OR(COUNTRY_INFO!$U$9:$U$1000="T1 (PZQ+ALB/MBD)",COUNTRY_INFO!$V$9:$V$1000="T1 (PZQ+ALB/MBD)"), "T1 (PZQ+ALB/MBD)", " ") -> T1 (PZQ+ALB/MBD) | E35: PZQ+MBD | F35: 072018 | H35: 9032 | I35: 9032 | K35: 9032 | M35: 4826 | O35: 4826 | Q35: 53.43224092 | S35: 53.43224092
A36: =IF(COUNTRY_INFO!A36=0," ",COUNTRY_INFO!A36) -> Gabon | B36: =IF(COUNTRY_INFO!B36=0," ",COUNTRY_INFO!B36) -> Centre-Sud | C36: =IF(COUNTRY_INFO!C36=0," ",COUNTRY_INFO!C36) -> Dola | D36: =IF(OR(COUNTRY_INFO!$U$9:$U$1000="T1 (PZQ+ALB/MBD)",COUNTRY_INFO!$V$9:$V$1000="T1 (PZQ+ALB/MBD)"), "T1 (PZQ+ALB/MBD)", " ") -> T1 (PZQ+ALB/MBD) | E36: PZQ+MBD | F36: 072018 | H36: 2274 | I36: 2274 | K36: 2274 | M36: 1476 | O36: 1476 | Q36: 64.90765172 | S36: 64.90765172
A37: =IF(COUNTRY_INFO!A37=0," ",COUNTRY_INFO!A37) -> Gabon | B37: =IF(COUNTRY_INFO!B37=0," ",COUNTRY_INFO!B37) -> Centre-Sud | C37: =IF(COUNTRY_INFO!C37=0," ",COUNTRY_INFO!C37) -> Mougalaba | D37: =IF(OR(COUNTRY_INFO!$U$9:$U$1000="T1 (PZQ+ALB/MBD)",COUNTRY_INFO!$V$9:$V$1000="T1 (PZQ+ALB/MBD)"), "T1 (PZQ+ALB/MBD)", " ") -> T1 (PZQ+ALB/MBD) | E37: PZQ+MBD | F37: 072018 | H37: 361 | I37: 361 | K37: 361 | M37: 296 | O37: 296 | Q37: 81.99445983 | S37: 81.99445983
A38: =IF(COUNTRY_INFO!A38=0," ",COUNTRY_INFO!A38) -> Gabon | B38: =IF(COUNTRY_INFO!B38=0," ",COUNTRY_INFO!B38) -> Sud | C38: =IF(COUNTRY_INFO!C38=0," ",COUNTRY_INFO!C38) -> Doutsila | D38: =IF(OR(COUNTRY_INFO!$U$9:$U$1000="T1 (PZQ+ALB/MBD)",COUNTRY_INFO!$V$9:$V$1000="T1 (PZQ+ALB/MBD)"), "T1 (PZQ+ALB/MBD)", " ") -> T1 (PZQ+ALB/MBD) | E38: PZQ+MBD | F38: 072018 | H38: 1098 | I38: 1098 | K38: 1098 | M38: 283 | O38: 283 | Q38: 25.77413479 | S38: 25.77413479
A39: =IF(COUNTRY_INFO!A39=0," ",COUNTRY_INFO!A39) -> Gabon | B39: =IF(COUNTRY_INFO!B39=0," ",COUNTRY_INFO!B39) -> Sud | C39: =IF(COUNTRY_INFO!C39=0," ",COUNTRY_INFO!C39) -> Basse-Banio | D39: =IF(OR(COUNTRY_INFO!$U$9:$U$1000="T1 (PZQ+ALB/MBD)",COUNTRY_INFO!$V$9:$V$1000="T1 (PZQ+ALB/MBD)"), "T1 (PZQ+ALB/MBD)", " ") -> T1 (PZQ+ALB/MBD) | E39: PZQ+MBD | F39: 072018 | H39: 1836 | I39: 1836 | K39: 1836 | M39: 772 | O39: 772 | Q39: 42.04793028 | S39: 42.04793028
A40: =IF(COUNTRY_INFO!A40=0," ",COUNTRY_INFO!A40) -> Gabon | B40: =IF(COUNTRY_INFO!B40=0," ",COUNTRY_INFO!B40) -> Sud | C40: =IF(COUNTRY_INFO!C40=0," ",COUNTRY_INFO!C40) -> Douigny | D40: =IF(OR(COUNTRY_INFO!$U$9:$U$1000="T1 (PZQ+ALB/MBD)",COUNTRY_INFO!$V$9:$V$1000="T1 (PZQ+ALB/MBD)"), "T1 (PZQ+ALB/MBD)", " ") ->  | K40: 0 | O40: 0
A41: =IF(COUNTRY_INFO!A41=0," ",COUNTRY_INFO!A41) -> Gabon | B41: =IF(COUNTRY_INFO!B41=0," ",COUNTRY_INFO!B41) -> Sud | C41: =IF(COUNTRY_INFO!C41=0," ",COUNTRY_INFO!C41) -> Mongo | D41: =IF(OR(COUNTRY_INFO!$U$9:$U$1000="T1 (PZQ+ALB/MBD)",COUNTRY_INFO!$V$9:$V$1000="T1 (PZQ+ALB/MBD)"), "T1 (PZQ+ALB/MBD)", " ") -> T1 (PZQ+ALB/MBD) | E41: PZQ+MBD | F41: 072018 | H41: 936 | I41: 936 | K41: 936 | M41: 440 | O41: 440 | Q41: 47.00854701 | S41: 47.00854701
A42: =IF(COUNTRY_INFO!A42=0," ",COUNTRY_INFO!A42) -> Gabon | B42: =IF(COUNTRY_INFO!B42=0," ",COUNTRY_INFO!B42) -> Sud | C42: =IF(COUNTRY_INFO!C42=0," ",COUNTRY_INFO!C42) -> Haute-Banio | D42: =IF(OR(COUNTRY_INFO!$U$9:$U$1000="T1 (PZQ+ALB/MBD)",COUNTRY_INFO!$V$9:$V$1000="T1 (PZQ+ALB/MBD)"), "T1 (PZQ+ALB/MBD)", " ") ->  | K42: 0 | O42: 0
A43: =IF(COUNTRY_INFO!A43=0," ",COUNTRY_INFO!A43) -> Gabon | B43: =IF(COUNTRY_INFO!B43=0," ",COUNTRY_INFO!B43) -> Sud | C43: =IF(COUNTRY_INFO!C43=0," ",COUNTRY_INFO!C43) -> Mougoutsi | D43: =IF(OR(COUNTRY_INFO!$U$9:$U$1000="T1 (PZQ+ALB/MBD)",COUNTRY_INFO!$V$9:$V$1000="T1 (PZQ+ALB/MBD)"), "T1 (PZQ+ALB/MBD)", " ") -> T1 (PZQ+ALB/MBD) | E43: PZQ+MBD | F43: 072018 | H43: 7933 | I43: 7933 | K43: 7933 | M43: 3365 | O43: 3365 | Q43: 42.41774864 | S43: 42.41774864
A44: =IF(COUNTRY_INFO!A44=0," ",COUNTRY_INFO!A44) -> Gabon | B44: =IF(COUNTRY_INFO!B44=0," ",COUNTRY_INFO!B44) -> Est | C44: =IF(COUNTRY_INFO!C44=0," ",COUNTRY_INFO!C44) -> Lopé | D44: =IF(OR(COUNTRY_INFO!$U$9:$U$1000="T1 (PZQ+ALB/MBD)",COUNTRY_INFO!$V$9:$V$1000="T1 (PZQ+ALB/MBD)"), "T1 (PZQ+ALB/MBD)", " ") -> T1 (PZQ+ALB/MBD) | E44: PZQ+MBD | F44: 072018 | H44: 3960 | I44: 3960 | K44: 3960 | M44: 1231 | O44: 1231 | Q44: 31.08585859 | S44: 31.08585859
A45: =IF(COUNTRY_INFO!A45=0," ",COUNTRY_INFO!A45) -> Gabon | B45: =IF(COUNTRY_INFO!B45=0," ",COUNTRY_INFO!B45) -> Est | C45: =IF(COUNTRY_INFO!C45=0," ",COUNTRY_INFO!C45) -> Ivindo | D45: =IF(OR(COUNTRY_INFO!$U$9:$U$1000="T1 (PZQ+ALB/MBD)",COUNTRY_INFO!$V$9:$V$1000="T1 (PZQ+ALB/MBD)"), "T1 (PZQ+ALB/MBD)", " ") -> T1 (PZQ+ALB/MBD) | E45: PZQ+MBD | F45: 072018 | H45: 8720 | I45: 8720 | K45: 8720 | M45: 3986 | O45: 3986 | Q45: 45.71100917 | S45: 45.71100917
A46: =IF(COUNTRY_INFO!A46=0," ",COUNTRY_INFO!A46) -> Gabon | B46: =IF(COUNTRY_INFO!B46=0," ",COUNTRY_INFO!B46) -> Est | C46: =IF(COUNTRY_INFO!C46=0," ",COUNTRY_INFO!C46) -> Zadié | D46: =IF(OR(COUNTRY_INFO!$U$9:$U$1000="T1 (PZQ+ALB/MBD)",COUNTRY_INFO!$V$9:$V$1000="T1 (PZQ+ALB/MBD)"), "T1 (PZQ+ALB/MBD)", " ") ->  | K46: 0 | O46: 0
A47: =IF(COUNTRY_INFO!A47=0," ",COUNTRY_INFO!A47) -> Gabon | B47: =IF(COUNTRY_INFO!B47=0," ",COUNTRY_INFO!B47) -> Est | C47: =IF(COUNTRY_INFO!C47=0," ",COUNTRY_INFO!C47) -> Mvoung | D47: =IF(OR(COUNTRY_INFO!$U$9:$U$1000="T1 (PZQ+ALB/MBD)",COUNTRY_INFO!$V$9:$V$1000="T1 (PZQ+ALB/MBD)"), "T1 (PZQ+ALB/MBD)", " ") -> T1 (PZQ+ALB/MBD) | E47: PZQ+MBD | F47: 072018 | H47: 1402 | I47: 1402 | K47: 1402 | M47: 678 | O47: 678 | Q47: 48.35948645 | S47: 48.35948645
A48: =IF(COUNTRY_INFO!A48=0," ",COUNTRY_INFO!A48) -> Gabon | B48: =IF(COUNTRY_INFO!B48=0," ",COUNTRY_INFO!B48) -> Centre-Est | C48: =IF(COUNTRY_INFO!C48=0," ",COUNTRY_INFO!C48) -> Offoué-Onoye | D48: =IF(OR(COUNTRY_INFO!$U$9:$U$1000="T1 (PZQ+ALB/MBD)",COUNTRY_INFO!$V$9:$V$1000="T1 (PZQ+ALB/MBD)"), "T1 (PZQ+ALB/MBD)", " ") -> T1 (PZQ+ALB/MBD) | E48: PZQ+MBD | F48: 072018 | H48: 987 | I48: 987 | K48: 987 | M48: 490 | O48: 490 | Q48: 49.64539007 | S48: 49.64539007
A49: =IF(COUNTRY_INFO!A49=0," ",COUNTRY_INFO!A49) -> Gabon | B49: =IF(COUNTRY_INFO!B49=0," ",COUNTRY_INFO!B49) -> Centre-Est | C49: =IF(COUNTRY_INFO!C49=0," ",COUNTRY_INFO!C49) -> Lolo-Bouenguidi | D49: =IF(OR(COUNTRY_INFO!$U$9:$U$1000="T1 (PZQ+ALB/MBD)",COUNTRY_INFO!$V$9:$V$1000="T1 (PZQ+ALB/MBD)"), "T1 (PZQ+ALB/MBD)", " ") -> T1 (PZQ+ALB/MBD) | E49: PZQ+MBD | F49: 072018 | H49: 8246 | I49: 8246 | K49: 8246 | M49: 3203 | O49: 3203 | Q49: 38.84307543 | S49: 38.84307543
A50: =IF(COUNTRY_INFO!A50=0," ",COUNTRY_INFO!A50) -> Gabon | B50: =IF(COUNTRY_INFO!B50=0," ",COUNTRY_INFO!B50) -> Centre-Est | C50: =IF(COUNTRY_INFO!C50=0," ",COUNTRY_INFO!C50) -> Mulundu | D50: =IF(OR(COUNTRY_INFO!$U$9:$U$1000="T1 (PZQ+ALB/MBD)",COUNTRY_INFO!$V$9:$V$1000="T1 (PZQ+ALB/MBD)"), "T1 (PZQ+ALB/MBD)", " ") -> T1 (PZQ+ALB/MBD) | E50: PZQ+MBD | F50: 072018 | H50: 8324 | I50: 8324 | K50: 8324 | M50: 3541 | O50: 3541 | Q50: 42.5396444 | S50: 42.5396444
A51: =IF(COUNTRY_INFO!A51=0," ",COUNTRY_INFO!A51) -> Gabon | B51: =IF(COUNTRY_INFO!B51=0," ",COUNTRY_INFO!B51) -> Centre-Est | C51: =IF(COUNTRY_INFO!C51=0," ",COUNTRY_INFO!C51) -> Lombo-Bouenguidi | D51: =IF(OR(COUNTRY_INFO!$U$9:$U$1000="T1 (PZQ+ALB/MBD)",COUNTRY_INFO!$V$9:$V$1000="T1 (PZQ+ALB/MBD)"), "T1 (PZQ+ALB/MBD)", " ") -> T1 (PZQ+ALB/MBD) | E51: PZQ+MBD | F51: 072018 | H51: 1375 | I51: 1375 | K51: 1375 | M51: 772 | O51: 772 | Q51: 56.14545455 | S51: 56.14545455
A52: =IF(COUNTRY_INFO!A52=0," ",COUNTRY_INFO!A52) -> Gabon | B52: =IF(COUNTRY_INFO!B52=0," ",COUNTRY_INFO!B52) -> Maritime | C52: =IF(COUNTRY_INFO!C52=0," ",COUNTRY_INFO!C52) -> Ndougou | D52: =IF(OR(COUNTRY_INFO!$U$9:$U$1000="T1 (PZQ+ALB/MBD)",COUNTRY_INFO!$V$9:$V$1000="T1 (PZQ+ALB/MBD)"), "T1 (PZQ+ALB/MBD)", " ") -> T1 (PZQ+ALB/MBD) | E52: PZQ+MBD | F52: 072018 | H52: 2941 | I52: 2941 | K52: 2941 | M52: 993 | O52: 993 | Q52: 33.76402584 | S52: 33.76402584
A53: =IF(COUNTRY_INFO!A53=0," ",COUNTRY_INFO!A53) -> Gabon | B53: =IF(COUNTRY_INFO!B53=0," ",COUNTRY_INFO!B53) -> Maritime | C53: =IF(COUNTRY_INFO!C53=0," ",COUNTRY_INFO!C53) -> Etimboué | D53: =IF(OR(COUNTRY_INFO!$U$9:$U$1000="T1 (PZQ+ALB/MBD)",COUNTRY_INFO!$V$9:$V$1000="T1 (PZQ+ALB/MBD)"), "T1 (PZQ+ALB/MBD)", " ") -> T1 (PZQ+ALB/MBD) | E53: PZQ+MBD | F53: 072018 | H53: 1313 | I53: 1313 | K53: 1313 | M53: 794 | O53: 794 | Q53: 60.47220107 | S53: 60.47220107
A54: =IF(COUNTRY_INFO!A54=0," ",COUNTRY_INFO!A54) -> Gabon | B54: =IF(COUNTRY_INFO!B54=0," ",COUNTRY_INFO!B54) -> Maritime | C54: =IF(COUNTRY_INFO!C54=0," ",COUNTRY_INFO!C54) -> Bendjé | D54: =IF(OR(COUNTRY_INFO!$U$9:$U$1000="T1 (PZQ+ALB/MBD)",COUNTRY_INFO!$V$9:$V$1000="T1 (PZQ+ALB/MBD)"), "T1 (PZQ+ALB/MBD)", " ") ->  | K54: 0 | O54: 0
A55: =IF(COUNTRY_INFO!A55=0," ",COUNTRY_INFO!A55) -> Gabon | B55: =IF(COUNTRY_INFO!B55=0," ",COUNTRY_INFO!B55) -> Nord | C55: =IF(COUNTRY_INFO!C55=0," ",COUNTRY_INFO!C55) -> Ntem | D55: =IF(OR(COUNTRY_INFO!$U$9:$U$1000="T1 (PZQ+ALB/MBD)",COUNTRY_INFO!$V$9:$V$1000="T1 (PZQ+ALB/MBD)"), "T1 (PZQ+ALB/MBD)", " ") -> T1 (PZQ+ALB/MBD) | E55: PZQ+MBD | F55: 072018 | H55: 13355 | I55: 13355 | K55: 13355 | M55: 3575 | O55: 3575 | Q55: 26.76900037 | S55: 26.76900037
A56: =IF(COUNTRY_INFO!A56=0," ",COUNTRY_INFO!A56) -> Gabon | B56: =IF(COUNTRY_INFO!B56=0," ",COUNTRY_INFO!B56) -> Nord | C56: =IF(COUNTRY_INFO!C56=0," ",COUNTRY_INFO!C56) -> Haut - Komo | D56: =IF(OR(COUNTRY_INFO!$U$9:$U$1000="T1 (PZQ+ALB/MBD)",COUNTRY_INFO!$V$9:$V$1000="T1 (PZQ+ALB/MBD)"), "T1 (PZQ+ALB/MBD)", " ") -> T1 (PZQ+ALB/MBD) | E56: PZQ+MBD | F56: 072018 | H56: 1316 | I56: 1316 | K56: 1316 | M56: 517 | O56: 517 | Q56: 39.28571429 | S56: 39.28571429
A57: =IF(COUNTRY_INFO!A57=0," ",COUNTRY_INFO!A57) -> Gabon | B57: =IF(COUNTRY_INFO!B57=0," ",COUNTRY_INFO!B57) -> Nord | C57: =IF(COUNTRY_INFO!C57=0," ",COUNTRY_INFO!C57) -> Haut-Ntem | D57: =IF(OR(COUNTRY_INFO!$U$9:$U$1000="T1 (PZQ+ALB/MBD)",COUNTRY_INFO!$V$9:$V$1000="T1 (PZQ+ALB/MBD)"), "T1 (PZQ+ALB/MBD)", " ") -> T1 (PZQ+ALB/MBD) | E57: PZQ+MBD | F57: 072018 | H57: 4360 | I57: 4360 | K57: 4360 | M57: 1527 | O57: 1527 | Q57: 35.02293578 | S57: 35.02293578
A58: =IF(COUNTRY_INFO!A58=0," ",COUNTRY_INFO!A58) -> Gabon | B58: =IF(COUNTRY_INFO!B58=0," ",COUNTRY_INFO!B58) -> Nord | C58: =IF(COUNTRY_INFO!C58=0," ",COUNTRY_INFO!C58) -> Okano | D58: =IF(OR(COUNTRY_INFO!$U$9:$U$1000="T1 (PZQ+ALB/MBD)",COUNTRY_INFO!$V$9:$V$1000="T1 (PZQ+ALB/MBD)"), "T1 (PZQ+ALB/MBD)", " ") -> T1 (PZQ+ALB/MBD) | E58: PZQ+MBD | F58: 072018 | H58: 4789 | I58: 4789 | K58: 4789 | M58: 2052 | O58: 2052 | Q58: 42.84819378 | S58: 42.84819378
A59: =IF(COUNTRY_INFO!A59=0," ",COUNTRY_INFO!A59) -> Gabon | B59: =IF(COUNTRY_INFO!B59=0," ",COUNTRY_INFO!B59) -> Nord | C59: =IF(COUNTRY_INFO!C59=0," ",COUNTRY_INFO!C59) -> Woleu | D59: =IF(OR(COUNTRY_INFO!$U$9:$U$1000="T1 (PZQ+ALB/MBD)",COUNTRY_INFO!$V$9:$V$1000="T1 (PZQ+ALB/MBD)"), "T1 (PZQ+ALB/MBD)", " ") -> T1 (PZQ+ALB/MBD) | E59: PZQ+MBD | F59: 072018 | H59: 21583 | I59: 21583 | K59: 21583 | M59: 6379 | O59: 6379 | Q59: 29.55566881 | S59: 29.55566881

Sheet T2
A1: T 2 - Praziquantel (PZQ)
A2: Structure administrative, population nécessitant une chimioprévention par groupe d'âge, population traitée par groupe d'âge et couverture
A4: TOTAL | F4: =SUM(F$9:F$1000) -> 0 | G4: 143445 | H4: 0 | I4: 143445 | J4: 0 | K4: 71553 | L4: 0 | M4: 71553 | N4: =IF(F4<>0, IF(J4/F4*100=0, "-", J4/F4*100), " ") ->  | O4: =IF(G4<>0, IF(K4/G4*100=0, "-", K4/G4*100), " ") -> 49.88183624 | P4: =IF(H4<>0, IF(L4/H4*100=0, "-", L4/H4*100), " ") ->  | Q4: =IF(I4<>0, IF(M4/I4*100=0, "-", M4/I4*100), " ") -> 49.88183624
A6: Structure administrative du pays | D6: Mise en oeuvre de la CP | E6: Date | F6: Population ciblée pour T2 | J6: Population traitée | N6: Couverture du Programme (%)
A7: Pays | B7: Région/Département | C7: District | F7: EAPréS | G7: EAS | H7: Adultes | I7: Total | J7: EAPréS | K7: EAS | L7: Adultes | M7: Total | N7: EAPréS | O7: EAS | P7: Adultes | Q7: Total
A9: =IF(COUNTRY_INFO!A9=0," ",COUNTRY_INFO!A9) -> Gabon | B9: =IF(COUNTRY_INFO!B9=0," ",COUNTRY_INFO!B9) -> Libreville-Owendo | C9: =IF(COUNTRY_INFO!C9=0," ",COUNTRY_INFO!C9) -> Libreville 1 | D9: =IF(OR(COUNTRY_INFO!$U$9:$U$1000="T2 (PZQ)",COUNTRY_INFO!$V$9:$V$1000="T2 (PZQ)"), "T2 (PZQ)", " ") ->  | I9: =SUM(F9:H9) -> 0 | M9: =SUM(J9:L9) -> 0 | N9: =IF(F9<>0, IF(J9/F9*100=0, "-", J9/F9*100), " ") -> 
A10: =IF(COUNTRY_INFO!A10=0," ",COUNTRY_INFO!A10) -> Gabon | B10: =IF(COUNTRY_INFO!B10=0," ",COUNTRY_INFO!B10) -> Libreville-Owendo | C10: =IF(COUNTRY_INFO!C10=0," ",COUNTRY_INFO!C10) -> Libreville 2 | D10: =IF(OR(COUNTRY_INFO!$U$9:$U$1000="T2 (PZQ)",COUNTRY_INFO!$V$9:$V$1000="T2 (PZQ)"), "T2 (PZQ)", " ") -> T2 (PZQ) | E10: 072018 | G10: 73649 | I10: =SUM(F10:H10) -> 73649 | K10: 16778 | M10: =SUM(J10:L10) -> 16778 | N10: =IF(F10<>0, IF(J10/F10*100=0, "-", J10/F10*100), " ") ->  | O10: =IF(G10<>0, IF(K10/G10*100=0, "-", K10/G10*100), " ") -> 22.78102893 | P10: =IF(H10<>0, IF(L10/H10*100=0, "-", L10/H10*100), " ") ->  | Q10: =IF(I10<>0, IF(M10/I10*100=0, "-", M10/I10*100), " ") -> 22.78102893
A11: =IF(COUNTRY_INFO!A11=0," ",COUNTRY_INFO!A11) -> Gabon | B11: =IF(COUNTRY_INFO!B11=0," ",COUNTRY_INFO!B11) -> Libreville-Owendo | C11: =IF(COUNTRY_INFO!C11=0," ",COUNTRY_INFO!C11) -> Libreville 3 | D11: =IF(OR(COUNTRY_INFO!$U$9:$U$1000="T2 (PZQ)",COUNTRY_INFO!$V$9:$V$1000="T2 (PZQ)"), "T2 (PZQ)", " ") -> T2 (PZQ) | E11: 072018 | G11: 23508 | I11: 23508 | K11: 10309 | M11: 10309 | O11: 43.85315637 | Q11: 43.85315637
A12: =IF(COUNTRY_INFO!A12=0," ",COUNTRY_INFO!A12) -> Gabon | B12: =IF(COUNTRY_INFO!B12=0," ",COUNTRY_INFO!B12) -> Libreville-Owendo | C12: =IF(COUNTRY_INFO!C12=0," ",COUNTRY_INFO!C12) -> Owendo | D12: =IF(OR(COUNTRY_INFO!$U$9:$U$1000="T2 (PZQ)",COUNTRY_INFO!$V$9:$V$1000="T2 (PZQ)"), "T2 (PZQ)", " ") -> T2 (PZQ) | E12: 072018 | G12: 8944 | I12: 8944 | K12: 7122 | M12: 7122 | O12: 79.62880143 | Q12: 79.62880143
A13: =IF(COUNTRY_INFO!A13=0," ",COUNTRY_INFO!A13) -> Gabon | B13: =IF(COUNTRY_INFO!B13=0," ",COUNTRY_INFO!B13) -> Ouest | C13: =IF(COUNTRY_INFO!C13=0," ",COUNTRY_INFO!C13) -> Komo-Mondah | D13: =IF(OR(COUNTRY_INFO!$U$9:$U$1000="T2 (PZQ)",COUNTRY_INFO!$V$9:$V$1000="T2 (PZQ)"), "T2 (PZQ)", " ") ->  | I13: 0 | M13: 0
A14: =IF(COUNTRY_INFO!A14=0," ",COUNTRY_INFO!A14) -> Gabon | B14: =IF(COUNTRY_INFO!B14=0," ",COUNTRY_INFO!B14) -> Ouest | C14: =IF(COUNTRY_INFO!C14=0," ",COUNTRY_INFO!C14) -> Komo-Kango | D14: =IF(OR(COUNTRY_INFO!$U$9:$U$1000="T2 (PZQ)",COUNTRY_INFO!$V$9:$V$1000="T2 (PZQ)"), "T2 (PZQ)", " ") ->  | I14: 0 | M14: 0
A15: =IF(COUNTRY_INFO!A15=0," ",COUNTRY_INFO!A15) -> Gabon | B15: =IF(COUNTRY_INFO!B15=0," ",COUNTRY_INFO!B15) -> Ouest | C15: =IF(COUNTRY_INFO!C15=0," ",COUNTRY_INFO!C15) -> Noya | D15: =IF(OR(COUNTRY_INFO!$U$9:$U$1000="T2 (PZQ)",COUNTRY_INFO!$V$9:$V$1000="T2 (PZQ)"), "T2 (PZQ)", " ") ->  | I15: 0 | M15: 0
A16: =IF(COUNTRY_INFO!A16=0," ",COUNTRY_INFO!A16) -> Gabon | B16: =IF(COUNTRY_INFO!B16=0," ",COUNTRY_INFO!B16) -> Sud-Est | C16: =IF(COUNTRY_INFO!C16=0," ",COUNTRY_INFO!C16) -> Bayi-brikolo | D16: =IF(OR(COUNTRY_INFO!$U$9:$U$1000="T2 (PZQ)",COUNTRY_INFO!$V$9:$V$1000="T2 (PZQ)"), "T2 (PZQ)", " ") ->  | I16: 0 | M16: 0
A17: =IF(COUNTRY_INFO!A17=0," ",COUNTRY_INFO!A17) -> Gabon | B17: =IF(COUNTRY_INFO!B17=0," ",COUNTRY_INFO!B17) -> Sud-Est | C17: =IF(COUNTRY_INFO!C17=0," ",COUNTRY_INFO!C17) -> Lékoni-Lékori | D17: =IF(OR(COUNTRY_INFO!$U$9:$U$1000="T2 (PZQ)",COUNTRY_INFO!$V$9:$V$1000="T2 (PZQ)"), "T2 (PZQ)", " ") ->  | I17: 0 | M17: 0
A18: =IF(COUNTRY_INFO!A18=0," ",COUNTRY_INFO!A18) -> Gabon | B18: =IF(COUNTRY_INFO!B18=0," ",COUNTRY_INFO!B18) -> Sud-Est | C18: =IF(COUNTRY_INFO!C18=0," ",COUNTRY_INFO!C18) -> Lékoko | D18: =IF(OR(COUNTRY_INFO!$U$9:$U$1000="T2 (PZQ)",COUNTRY_INFO!$V$9:$V$1000="T2 (PZQ)"), "T2 (PZQ)", " ") ->  | I18: 0 | M18: 0
A19: =IF(COUNTRY_INFO!A19=0," ",COUNTRY_INFO!A19) -> Gabon | B19: =IF(COUNTRY_INFO!B19=0," ",COUNTRY_INFO!B19) -> Sud-Est | C19: =IF(COUNTRY_INFO!C19=0," ",COUNTRY_INFO!C19) -> Djouori-Agnili | D19: =IF(OR(COUNTRY_INFO!$U$9:$U$1000="T2 (PZQ)",COUNTRY_INFO!$V$9:$V$1000="T2 (PZQ)"), "T2 (PZQ)", " ") ->  | I19: 0 | M19: 0
A20: =IF(COUNTRY_INFO!A20=0," ",COUNTRY_INFO!A20) -> Gabon | B20: =IF(COUNTRY_INFO!B20=0," ",COUNTRY_INFO!B20) -> Sud-Est | C20: =IF(COUNTRY_INFO!C20=0," ",COUNTRY_INFO!C20) -> Ogooué-Létili | D20: =IF(OR(COUNTRY_INFO!$U$9:$U$1000="T2 (PZQ)",COUNTRY_INFO!$V$9:$V$1000="T2 (PZQ)"), "T2 (PZQ)", " ") ->  | I20: 0 | M20: 0
A21: =IF(COUNTRY_INFO!A21=0," ",COUNTRY_INFO!A21) -> Gabon | B21: =IF(COUNTRY_INFO!B21=0," ",COUNTRY_INFO!B21) -> Sud-Est | C21: =IF(COUNTRY_INFO!C21=0," ",COUNTRY_INFO!C21) -> Mpassa | D21: =IF(OR(COUNTRY_INFO!$U$9:$U$1000="T2 (PZQ)",COUNTRY_INFO!$V$9:$V$1000="T2 (PZQ)"), "T2 (PZQ)", " ") ->  | I21: 0 | M21: 0
A22: =IF(COUNTRY_INFO!A22=0," ",COUNTRY_INFO!A22) -> Gabon | B22: =IF(COUNTRY_INFO!B22=0," ",COUNTRY_INFO!B22) -> Sud-Est | C22: =IF(COUNTRY_INFO!C22=0," ",COUNTRY_INFO!C22) -> Plateaux | D22: =IF(OR(COUNTRY_INFO!$U$9:$U$1000="T2 (PZQ)",COUNTRY_INFO!$V$9:$V$1000="T2 (PZQ)"), "T2 (PZQ)", " ") ->  | I22: 0 | M22: 0
A23: =IF(COUNTRY_INFO!A23=0," ",COUNTRY_INFO!A23) -> Gabon | B23: =IF(COUNTRY_INFO!B23=0," ",COUNTRY_INFO!B23) -> Sud-Est | C23: =IF(COUNTRY_INFO!C23=0," ",COUNTRY_INFO!C23) -> Lébombi-Léyou | D23: =IF(OR(COUNTRY_INFO!$U$9:$U$1000="T2 (PZQ)",COUNTRY_INFO!$V$9:$V$1000="T2 (PZQ)"), "T2 (PZQ)", " ") ->  | I23: 0 | M23: 0
A24: =IF(COUNTRY_INFO!A24=0," ",COUNTRY_INFO!A24) -> Gabon | B24: =IF(COUNTRY_INFO!B24=0," ",COUNTRY_INFO!B24) -> Sud-Est | C24: =IF(COUNTRY_INFO!C24=0," ",COUNTRY_INFO!C24) -> Lékabi-Léwolo | D24: =IF(OR(COUNTRY_INFO!$U$9:$U$1000="T2 (PZQ)",COUNTRY_INFO!$V$9:$V$1000="T2 (PZQ)"), "T2 (PZQ)", " ") ->  | I24: 0 | M24: 0
A25: =IF(COUNTRY_INFO!A25=0," ",COUNTRY_INFO!A25) -> Gabon | B25: =IF(COUNTRY_INFO!B25=0," ",COUNTRY_INFO!B25) -> Sud-Est | C25: =IF(COUNTRY_INFO!C25=0," ",COUNTRY_INFO!C25) -> Sébé-Brikolo | D25: =IF(OR(COUNTRY_INFO!$U$9:$U$1000="T2 (PZQ)",COUNTRY_INFO!$V$9:$V$1000="T2 (PZQ)"), "T2 (PZQ)", " ") ->  | I25: 0 | M25: 0
A26: =IF(COUNTRY_INFO!A26=0," ",COUNTRY_INFO!A26) -> Gabon | B26: =IF(COUNTRY_INFO!B26=0," ",COUNTRY_INFO!B26) -> Sud-Est | C26: =IF(COUNTRY_INFO!C26=0," ",COUNTRY_INFO!C26) -> Djoué | D26: =IF(OR(COUNTRY_INFO!$U$9:$U$1000="T2 (PZQ)",COUNTRY_INFO!$V$9:$V$1000="T2 (PZQ)"), "T2 (PZQ)", " ") ->  | I26: 0 | M26: 0
A27: =IF(COUNTRY_INFO!A27=0," ",COUNTRY_INFO!A27) -> Gabon | B27: =IF(COUNTRY_INFO!B27=0," ",COUNTRY_INFO!B27) -> Centre | C27: =IF(COUNTRY_INFO!C27=0," ",COUNTRY_INFO!C27) -> Ogooué-et-Lacs | D27: =IF(OR(COUNTRY_INFO!$U$9:$U$1000="T2 (PZQ)",COUNTRY_INFO!$V$9:$V$1000="T2 (PZQ)"), "T2 (PZQ)", " ") ->  | I27: 0 | M27: 0
A28: =IF(COUNTRY_INFO!A28=0," ",COUNTRY_INFO!A28) -> Gabon | B28: =IF(COUNTRY_INFO!B28=0," ",COUNTRY_INFO!B28) -> Centre | C28: =IF(COUNTRY_INFO!C28=0," ",COUNTRY_INFO!C28) -> Abanga-Bigné | D28: =IF(OR(COUNTRY_INFO!$U$9:$U$1000="T2 (PZQ)",COUNTRY_INFO!$V$9:$V$1000="T2 (PZQ)"), "T2 (PZQ)", " ") ->  | I28: 0 | M28: 0
A29: =IF(COUNTRY_INFO!A29=0," ",COUNTRY_INFO!A29) -> Gabon | B29: =IF(COUNTRY_INFO!B29=0," ",COUNTRY_INFO!B29) -> Centre-Sud | C29: =IF(COUNTRY_INFO!C29=0," ",COUNTRY_INFO!C29) -> Tsamba-Magotsi | D29: =IF(OR(COUNTRY_INFO!$U$9:$U$1000="T2 (PZQ)",COUNTRY_INFO!$V$9:$V$1000="T2 (PZQ)"), "T2 (PZQ)", " ") ->  | I29: 0 | M29: 0
A30: =IF(COUNTRY_INFO!A30=0," ",COUNTRY_INFO!A30) -> Gabon | B30: =IF(COUNTRY_INFO!B30=0," ",COUNTRY_INFO!B30) -> Centre-Sud | C30: =IF(COUNTRY_INFO!C30=0," ",COUNTRY_INFO!C30) -> Louetsi-Wano | D30: =IF(OR(COUNTRY_INFO!$U$9:$U$1000="T2 (PZQ)",COUNTRY_INFO!$V$9:$V$1000="T2 (PZQ)"), "T2 (PZQ)", " ") ->  | I30: 0 | M30: 0
A31: =IF(COUNTRY_INFO!A31=0," ",COUNTRY_INFO!A31) -> Gabon | B31: =IF(COUNTRY_INFO!B31=0," ",COUNTRY_INFO!B31) -> Centre-Sud | C31: =IF(COUNTRY_INFO!C31=0," ",COUNTRY_INFO!C31) -> Louetsi-Bibaka | D31: =IF(OR(COUNTRY_INFO!$U$9:$U$1000="T2 (PZQ)",COUNTRY_INFO!$V$9:$V$1000="T2 (PZQ)"), "T2 (PZQ)", " ") ->  | I31: 0 | M31: 0
A32: =IF(COUNTRY_INFO!A32=0," ",COUNTRY_INFO!A32) -> Gabon | B32: =IF(COUNTRY_INFO!B32=0," ",COUNTRY_INFO!B32) -> Centre-Sud | C32: =IF(COUNTRY_INFO!C32=0," ",COUNTRY_INFO!C32) -> Ndolou | D32: =IF(OR(COUNTRY_INFO!$U$9:$U$1000="T2 (PZQ)",COUNTRY_INFO!$V$9:$V$1000="T2 (PZQ)"), "T2 (PZQ)", " ") ->  | I32: 0 | M32: 0
A33: =IF(COUNTRY_INFO!A33=0," ",COUNTRY_INFO!A33) -> Gabon | B33: =IF(COUNTRY_INFO!B33=0," ",COUNTRY_INFO!B33) -> Centre-Sud | C33: =IF(COUNTRY_INFO!C33=0," ",COUNTRY_INFO!C33) -> Boumi-Louetsi | D33: =IF(OR(COUNTRY_INFO!$U$9:$U$1000="T2 (PZQ)",COUNTRY_INFO!$V$9:$V$1000="T2 (PZQ)"), "T2 (PZQ)", " ") ->  | I33: 0 | M33: 0
A34: =IF(COUNTRY_INFO!A34=0," ",COUNTRY_INFO!A34) -> Gabon | B34: =IF(COUNTRY_INFO!B34=0," ",COUNTRY_INFO!B34) -> Centre-Sud | C34: =IF(COUNTRY_INFO!C34=0," ",COUNTRY_INFO!C34) -> Ogoulou | D34: =IF(OR(COUNTRY_INFO!$U$9:$U$1000="T2 (PZQ)",COUNTRY_INFO!$V$9:$V$1000="T2 (PZQ)"), "T2 (PZQ)", " ") ->  | I34: 0 | M34: 0
A35: =IF(COUNTRY_INFO!A35=0," ",COUNTRY_INFO!A35) -> Gabon | B35: =IF(COUNTRY_INFO!B35=0," ",COUNTRY_INFO!B35) -> Centre-Sud | C35: =IF(COUNTRY_INFO!C35=0," ",COUNTRY_INFO!C35) -> Douya-Onoye | D35: =IF(OR(COUNTRY_INFO!$U$9:$U$1000="T2 (PZQ)",COUNTRY_INFO!$V$9:$V$1000="T2 (PZQ)"), "T2 (PZQ)", " ") ->  | I35: 0 | M35: 0
A36: =IF(COUNTRY_INFO!A36=0," ",COUNTRY_INFO!A36) -> Gabon | B36: =IF(COUNTRY_INFO!B36=0," ",COUNTRY_INFO!B36) -> Centre-Sud | C36: =IF(COUNTRY_INFO!C36=0," ",COUNTRY_INFO!C36) -> Dola | D36: =IF(OR(COUNTRY_INFO!$U$9:$U$1000="T2 (PZQ)",COUNTRY_INFO!$V$9:$V$1000="T2 (PZQ)"), "T2 (PZQ)", " ") ->  | I36: 0 | M36: 0
A37: =IF(COUNTRY_INFO!A37=0," ",COUNTRY_INFO!A37) -> Gabon | B37: =IF(COUNTRY_INFO!B37=0," ",COUNTRY_INFO!B37) -> Centre-Sud | C37: =IF(COUNTRY_INFO!C37=0," ",COUNTRY_INFO!C37) -> Mougalaba | D37: =IF(OR(COUNTRY_INFO!$U$9:$U$1000="T2 (PZQ)",COUNTRY_INFO!$V$9:$V$1000="T2 (PZQ)"), "T2 (PZQ)", " ") ->  | I37: 0 | M37: 0
A38: =IF(COUNTRY_INFO!A38=0," ",COUNTRY_INFO!A38) -> Gabon | B38: =IF(COUNTRY_INFO!B38=0," ",COUNTRY_INFO!B38) -> Sud | C38: =IF(COUNTRY_INFO!C38=0," ",COUNTRY_INFO!C38) -> Doutsila | D38: =IF(OR(COUNTRY_INFO!$U$9:$U$1000="T2 (PZQ)",COUNTRY_INFO!$V$9:$V$1000="T2 (PZQ)"), "T2 (PZQ)", " ") ->  | I38: 0 | M38: 0
A39: =IF(COUNTRY_INFO!A39=0," ",COUNTRY_INFO!A39) -> Gabon | B39: =IF(COUNTRY_INFO!B39=0," ",COUNTRY_INFO!B39) -> Sud | C39: =IF(COUNTRY_INFO!C39=0," ",COUNTRY_INFO!C39) -> Basse-Banio | D39: =IF(OR(COUNTRY_INFO!$U$9:$U$1000="T2 (PZQ)",COUNTRY_INFO!$V$9:$V$1000="T2 (PZQ)"), "T2 (PZQ)", " ") ->  | I39: 0 | M39: 0
A40: =IF(COUNTRY_INFO!A40=0," ",COUNTRY_INFO!A40) -> Gabon | B40: =IF(COUNTRY_INFO!B40=0," ",COUNTRY_INFO!B40) -> Sud | C40: =IF(COUNTRY_INFO!C40=0," ",COUNTRY_INFO!C40) -> Douigny | D40: =IF(OR(COUNTRY_INFO!$U$9:$U$1000="T2 (PZQ)",COUNTRY_INFO!$V$9:$V$1000="T2 (PZQ)"), "T2 (PZQ)", " ") ->  | I40: 0 | M40: 0
A41: =IF(COUNTRY_INFO!A41=0," ",COUNTRY_INFO!A41) -> Gabon | B41: =IF(COUNTRY_INFO!B41=0," ",COUNTRY_INFO!B41) -> Sud | C41: =IF(COUNTRY_INFO!C41=0," ",COUNTRY_INFO!C41) -> Mongo | D41: =IF(OR(COUNTRY_INFO!$U$9:$U$1000="T2 (PZQ)",COUNTRY_INFO!$V$9:$V$1000="T2 (PZQ)"), "T2 (PZQ)", " ") ->  | I41: 0 | M41: 0
A42: =IF(COUNTRY_INFO!A42=0," ",COUNTRY_INFO!A42) -> Gabon | B42: =IF(COUNTRY_INFO!B42=0," ",COUNTRY_INFO!B42) -> Sud | C42: =IF(COUNTRY_INFO!C42=0," ",COUNTRY_INFO!C42) -> Haute-Banio | D42: =IF(OR(COUNTRY_INFO!$U$9:$U$1000="T2 (PZQ)",COUNTRY_INFO!$V$9:$V$1000="T2 (PZQ)"), "T2 (PZQ)", " ") ->  | I42: 0 | M42: 0
A43: =IF(COUNTRY_INFO!A43=0," ",COUNTRY_INFO!A43) -> Gabon | B43: =IF(COUNTRY_INFO!B43=0," ",COUNTRY_INFO!B43) -> Sud | C43: =IF(COUNTRY_INFO!C43=0," ",COUNTRY_INFO!C43) -> Mougoutsi | D43: =IF(OR(COUNTRY_INFO!$U$9:$U$1000="T2 (PZQ)",COUNTRY_INFO!$V$9:$V$1000="T2 (PZQ)"), "T2 (PZQ)", " ") ->  | I43: 0 | M43: 0
A44: =IF(COUNTRY_INFO!A44=0," ",COUNTRY_INFO!A44) -> Gabon | B44: =IF(COUNTRY_INFO!B44=0," ",COUNTRY_INFO!B44) -> Est | C44: =IF(COUNTRY_INFO!C44=0," ",COUNTRY_INFO!C44) -> Lopé | D44: =IF(OR(COUNTRY_INFO!$U$9:$U$1000="T2 (PZQ)",COUNTRY_INFO!$V$9:$V$1000="T2 (PZQ)"), "T2 (PZQ)", " ") ->  | I44: 0 | M44: 0
A45: =IF(COUNTRY_INFO!A45=0," ",COUNTRY_INFO!A45) -> Gabon | B45: =IF(COUNTRY_INFO!B45=0," ",COUNTRY_INFO!B45) -> Est | C45: =IF(COUNTRY_INFO!C45=0," ",COUNTRY_INFO!C45) -> Ivindo | D45: =IF(OR(COUNTRY_INFO!$U$9:$U$1000="T2 (PZQ)",COUNTRY_INFO!$V$9:$V$1000="T2 (PZQ)"), "T2 (PZQ)", " ") ->  | I45: 0 | M45: 0
A46: =IF(COUNTRY_INFO!A46=0," ",COUNTRY_INFO!A46) -> Gabon | B46: =IF(COUNTRY_INFO!B46=0," ",COUNTRY_INFO!B46) -> Est | C46: =IF(COUNTRY_INFO!C46=0," ",COUNTRY_INFO!C46) -> Zadié | D46: =IF(OR(COUNTRY_INFO!$U$9:$U$1000="T2 (PZQ)",COUNTRY_INFO!$V$9:$V$1000="T2 (PZQ)"), "T2 (PZQ)", " ") ->  | I46: 0 | M46: 0
A47: =IF(COUNTRY_INFO!A47=0," ",COUNTRY_INFO!A47) -> Gabon | B47: =IF(COUNTRY_INFO!B47=0," ",COUNTRY_INFO!B47) -> Est | C47: =IF(COUNTRY_INFO!C47=0," ",COUNTRY_INFO!C47) -> Mvoung | D47: =IF(OR(COUNTRY_INFO!$U$9:$U$1000="T2 (PZQ)",COUNTRY_INFO!$V$9:$V$1000="T2 (PZQ)"), "T2 (PZQ)", " ") ->  | I47: 0 | M47: 0
A48: =IF(COUNTRY_INFO!A48=0," ",COUNTRY_INFO!A48) -> Gabon | B48: =IF(COUNTRY_INFO!B48=0," ",COUNTRY_INFO!B48) -> Centre-Est | C48: =IF(COUNTRY_INFO!C48=0," ",COUNTRY_INFO!C48) -> Offoué-Onoye | D48: =IF(OR(COUNTRY_INFO!$U$9:$U$1000="T2 (PZQ)",COUNTRY_INFO!$V$9:$V$1000="T2 (PZQ)"), "T2 (PZQ)", " ") ->  | I48: 0 | M48: 0
A49: =IF(COUNTRY_INFO!A49=0," ",COUNTRY_INFO!A49) -> Gabon | B49: =IF(COUNTRY_INFO!B49=0," ",COUNTRY_INFO!B49) -> Centre-Est | C49: =IF(COUNTRY_INFO!C49=0," ",COUNTRY_INFO!C49) -> Lolo-Bouenguidi | D49: =IF(OR(COUNTRY_INFO!$U$9:$U$1000="T2 (PZQ)",COUNTRY_INFO!$V$9:$V$1000="T2 (PZQ)"), "T2 (PZQ)", " ") ->  | I49: 0 | M49: 0
A50: =IF(COUNTRY_INFO!A50=0," ",COUNTRY_INFO!A50) -> Gabon | B50: =IF(COUNTRY_INFO!B50=0," ",COUNTRY_INFO!B50) -> Centre-Est | C50: =IF(COUNTRY_INFO!C50=0," ",COUNTRY_INFO!C50) -> Mulundu | D50: =IF(OR(COUNTRY_INFO!$U$9:$U$1000="T2 (PZQ)",COUNTRY_INFO!$V$9:$V$1000="T2 (PZQ)"), "T2 (PZQ)", " ") ->  | I50: 0 | M50: 0
A51: =IF(COUNTRY_INFO!A51=0," ",COUNTRY_INFO!A51) -> Gabon | B51: =IF(COUNTRY_INFO!B51=0," ",COUNTRY_INFO!B51) -> Centre-Est | C51: =IF(COUNTRY_INFO!C51=0," ",COUNTRY_INFO!C51) -> Lombo-Bouenguidi | D51: =IF(OR(COUNTRY_INFO!$U$9:$U$1000="T2 (PZQ)",COUNTRY_INFO!$V$9:$V$1000="T2 (PZQ)"), "T2 (PZQ)", " ") ->  | I51: 0 | M51: 0
A52: =IF(COUNTRY_INFO!A52=0," ",COUNTRY_INFO!A52) -> Gabon | B52: =IF(COUNTRY_INFO!B52=0," ",COUNTRY_INFO!B52) -> Maritime | C52: =IF(COUNTRY_INFO!C52=0," ",COUNTRY_INFO!C52) -> Ndougou | D52: =IF(OR(COUNTRY_INFO!$U$9:$U$1000="T2 (PZQ)",COUNTRY_INFO!$V$9:$V$1000="T2 (PZQ)"), "T2 (PZQ)", " ") ->  | I52: 0 | M52: 0
A53: =IF(COUNTRY_INFO!A53=0," ",COUNTRY_INFO!A53) -> Gabon | B53: =IF(COUNTRY_INFO!B53=0," ",COUNTRY_INFO!B53) -> Maritime | C53: =IF(COUNTRY_INFO!C53=0," ",COUNTRY_INFO!C53) -> Etimboué | D53: =IF(OR(COUNTRY_INFO!$U$9:$U$1000="T2 (PZQ)",COUNTRY_INFO!$V$9:$V$1000="T2 (PZQ)"), "T2 (PZQ)", " ") ->  | I53: 0 | M53: 0
A54: =IF(COUNTRY_INFO!A54=0," ",COUNTRY_INFO!A54) -> Gabon | B54: =IF(COUNTRY_INFO!B54=0," ",COUNTRY_INFO!B54) -> Maritime | C54: =IF(COUNTRY_INFO!C54=0," ",COUNTRY_INFO!C54) -> Bendjé | D54: =IF(OR(COUNTRY_INFO!$U$9:$U$1000="T2 (PZQ)",COUNTRY_INFO!$V$9:$V$1000="T2 (PZQ)"), "T2 (PZQ)", " ") -> T2 (PZQ) | E54: 072018 | G54: 37344 | I54: 37344 | K54: 37344 | M54: 37344 | O54: 100 | Q54: 100
A55: =IF(COUNTRY_INFO!A55=0," ",COUNTRY_INFO!A55) -> Gabon | B55: =IF(COUNTRY_INFO!B55=0," ",COUNTRY_INFO!B55) -> Nord | C55: =IF(COUNTRY_INFO!C55=0," ",COUNTRY_INFO!C55) -> Ntem | D55: =IF(OR(COUNTRY_INFO!$U$9:$U$1000="T2 (PZQ)",COUNTRY_INFO!$V$9:$V$1000="T2 (PZQ)"), "T2 (PZQ)", " ") ->  | I55: 0 | M55: 0
A56: =IF(COUNTRY_INFO!A56=0," ",COUNTRY_INFO!A56) -> Gabon | B56: =IF(COUNTRY_INFO!B56=0," ",COUNTRY_INFO!B56) -> Nord | C56: =IF(COUNTRY_INFO!C56=0," ",COUNTRY_INFO!C56) -> Haut - Komo | D56: =IF(OR(COUNTRY_INFO!$U$9:$U$1000="T2 (PZQ)",COUNTRY_INFO!$V$9:$V$1000="T2 (PZQ)"), "T2 (PZQ)", " ") ->  | I56: 0 | M56: 0
A57: =IF(COUNTRY_INFO!A57=0," ",COUNTRY_INFO!A57) -> Gabon | B57: =IF(COUNTRY_INFO!B57=0," ",COUNTRY_INFO!B57) -> Nord | C57: =IF(COUNTRY_INFO!C57=0," ",COUNTRY_INFO!C57) -> Haut-Ntem | D57: =IF(OR(COUNTRY_INFO!$U$9:$U$1000="T2 (PZQ)",COUNTRY_INFO!$V$9:$V$1000="T2 (PZQ)"), "T2 (PZQ)", " ") ->  | I57: 0 | M57: 0
A58: =IF(COUNTRY_INFO!A58=0," ",COUNTRY_INFO!A58) -> Gabon | B58: =IF(COUNTRY_INFO!B58=0," ",COUNTRY_INFO!B58) -> Nord | C58: =IF(COUNTRY_INFO!C58=0," ",COUNTRY_INFO!C58) -> Okano | D58: =IF(OR(COUNTRY_INFO!$U$9:$U$1000="T2 (PZQ)",COUNTRY_INFO!$V$9:$V$1000="T2 (PZQ)"), "T2 (PZQ)", " ") ->  | I58: 0 | M58: 0
A59: =IF(COUNTRY_INFO!A59=0," ",COUNTRY_INFO!A59) -> Gabon | B59: =IF(COUNTRY_INFO!B59=0," ",COUNTRY_INFO!B59) -> Nord | C59: =IF(COUNTRY_INFO!C59=0," ",COUNTRY_INFO!C59) -> Woleu | D59: =IF(OR(COUNTRY_INFO!$U$9:$U$1000="T2 (PZQ)",COUNTRY_INFO!$V$9:$V$1000="T2 (PZQ)"), "T2 (PZQ)", " ") ->  | I59: 0 | M59: 0

Sheet T3_R1
A1: T 3 - Albendazole (ALB) ou Mebendazole (MBD) - Tournée 1
A2: Structure administrative, population nécessitant une chimioprévention par groupe d'âge, population traitée par groupe d'âge et couverture
A4: TOTAL | G4: =SUM(G$9:G$1000) -> 0 | H4: 40217 | I4: 0 | J4: 40217 | K4: 0 | L4: 29226 | M4: 0 | N4: 29226 | O4: =IF(G4<>0, IF(K4/G4*100=0, "-", K4/G4*100), " ") ->  | P4: =IF(H4<>0, IF(L4/H4*100=0, "-", L4/H4*100), " ") -> 72.67076112 | Q4: =IF(I4<>0, IF(M4/I4*100=0, "-", M4/I4*100), " ") ->  | R4: =IF(J4<>0, IF(N4/J4*100=0, "-", N4/J4*100), " ") -> 72.67076112
A6: Structure administrative du pays | D6: Mise en oeuvre de la CP | E6: Médica-ment | F6: Date | G6: Population ciblée pour T3 | K6: Population traitée | O6: Couverture du Programme (%)
A7: Pays | B7: Région/Département | C7: District | G7: EAPréS | H7: EAS | I7: Adultes | J7: Total | K7: EAPréS | L7: EAS | M7: Adultes | N7: Total | O7: EAPréS | P7: EAS | Q7: Adultes | R7: Total
A9: =IF(COUNTRY_INFO!A9=0," ",COUNTRY_INFO!A9) -> Gabon | B9: =IF(COUNTRY_INFO!B9=0," ",COUNTRY_INFO!B9) -> Libreville-Owendo | C9: =IF(COUNTRY_INFO!C9=0," ",COUNTRY_INFO!C9) -> Libreville 1 | D9: =IF(OR(COUNTRY_INFO!$U$9:$U$1000="T3 (ALB/MBD)",COUNTRY_INFO!$V$9:$V$1000="T3 (ALB/MBD)"), "T3 (ALB/MBD)", " ") ->  | J9: =SUM(G9:I9) -> 0 | N9: =SUM(K9:M9) -> 0 | O9: =IF(G9<>0, IF(K9/G9*100=0, "-", K9/G9*100), " ") -> 
A10: =IF(COUNTRY_INFO!A10=0," ",COUNTRY_INFO!A10) -> Gabon | B10: =IF(COUNTRY_INFO!B10=0," ",COUNTRY_INFO!B10) -> Libreville-Owendo | C10: =IF(COUNTRY_INFO!C10=0," ",COUNTRY_INFO!C10) -> Libreville 2 | D10: =IF(OR(COUNTRY_INFO!$U$9:$U$1000="T3 (ALB/MBD)",COUNTRY_INFO!$V$9:$V$1000="T3 (ALB/MBD)"), "T3 (ALB/MBD)", " ") ->  | J10: =SUM(G10:I10) -> 0 | N10: =SUM(K10:M10) -> 0 | O10: =IF(G10<>0, IF(K10/G10*100=0, "-", K10/G10*100), " ") ->  | P10: =IF(H10<>0, IF(L10/H10*100=0, "-", L10/H10*100), " ") ->  | Q10: =IF(I10<>0, IF(M10/I10*100=0, "-", M10/I10*100), " ") ->  | R10: =IF(J10<>0, IF(N10/J10*100=0, "-", N10/J10*100), " ") -> 
A11: =IF(COUNTRY_INFO!A11=0," ",COUNTRY_INFO!A11) -> Gabon | B11: =IF(COUNTRY_INFO!B11=0," ",COUNTRY_INFO!B11) -> Libreville-Owendo | C11: =IF(COUNTRY_INFO!C11=0," ",COUNTRY_INFO!C11) -> Libreville 3 | D11: =IF(OR(COUNTRY_INFO!$U$9:$U$1000="T3 (ALB/MBD)",COUNTRY_INFO!$V$9:$V$1000="T3 (ALB/MBD)"), "T3 (ALB/MBD)", " ") ->  | J11: 0 | N11: 0
A12: =IF(COUNTRY_INFO!A12=0," ",COUNTRY_INFO!A12) -> Gabon | B12: =IF(COUNTRY_INFO!B12=0," ",COUNTRY_INFO!B12) -> Libreville-Owendo | C12: =IF(COUNTRY_INFO!C12=0," ",COUNTRY_INFO!C12) -> Owendo | D12: =IF(OR(COUNTRY_INFO!$U$9:$U$1000="T3 (ALB/MBD)",COUNTRY_INFO!$V$9:$V$1000="T3 (ALB/MBD)"), "T3 (ALB/MBD)", " ") ->  | J12: 0 | N12: 0
A13: =IF(COUNTRY_INFO!A13=0," ",COUNTRY_INFO!A13) -> Gabon | B13: =IF(COUNTRY_INFO!B13=0," ",COUNTRY_INFO!B13) -> Ouest | C13: =IF(COUNTRY_INFO!C13=0," ",COUNTRY_INFO!C13) -> Komo-Mondah | D13: =IF(OR(COUNTRY_INFO!$U$9:$U$1000="T3 (ALB/MBD)",COUNTRY_INFO!$V$9:$V$1000="T3 (ALB/MBD)"), "T3 (ALB/MBD)", " ") ->  | J13: 0 | N13: 0
A14: =IF(COUNTRY_INFO!A14=0," ",COUNTRY_INFO!A14) -> Gabon | B14: =IF(COUNTRY_INFO!B14=0," ",COUNTRY_INFO!B14) -> Ouest | C14: =IF(COUNTRY_INFO!C14=0," ",COUNTRY_INFO!C14) -> Komo-Kango | D14: =IF(OR(COUNTRY_INFO!$U$9:$U$1000="T3 (ALB/MBD)",COUNTRY_INFO!$V$9:$V$1000="T3 (ALB/MBD)"), "T3 (ALB/MBD)", " ") ->  | J14: 0 | N14: 0
A15: =IF(COUNTRY_INFO!A15=0," ",COUNTRY_INFO!A15) -> Gabon | B15: =IF(COUNTRY_INFO!B15=0," ",COUNTRY_INFO!B15) -> Ouest | C15: =IF(COUNTRY_INFO!C15=0," ",COUNTRY_INFO!C15) -> Noya | D15: =IF(OR(COUNTRY_INFO!$U$9:$U$1000="T3 (ALB/MBD)",COUNTRY_INFO!$V$9:$V$1000="T3 (ALB/MBD)"), "T3 (ALB/MBD)", " ") -> T3 (ALB/MBD) | E15: MBD | F15: 012019 | H15: 989 | J15: 989 | L15: 947 | N15: 947 | P15: 95.75328615 | R15: 95.75328615
A16: =IF(COUNTRY_INFO!A16=0," ",COUNTRY_INFO!A16) -> Gabon | B16: =IF(COUNTRY_INFO!B16=0," ",COUNTRY_INFO!B16) -> Sud-Est | C16: =IF(COUNTRY_INFO!C16=0," ",COUNTRY_INFO!C16) -> Bayi-brikolo | D16: =IF(OR(COUNTRY_INFO!$U$9:$U$1000="T3 (ALB/MBD)",COUNTRY_INFO!$V$9:$V$1000="T3 (ALB/MBD)"), "T3 (ALB/MBD)", " ") -> T3 (ALB/MBD) | E16: MBD | F16: 072018 | H16: 1578 | J16: 1578 | L16: 1139 | N16: 1139 | P16: 72.17997465 | R16: 72.17997465
A17: =IF(COUNTRY_INFO!A17=0," ",COUNTRY_INFO!A17) -> Gabon | B17: =IF(COUNTRY_INFO!B17=0," ",COUNTRY_INFO!B17) -> Sud-Est | C17: =IF(COUNTRY_INFO!C17=0," ",COUNTRY_INFO!C17) -> Lékoni-Lékori | D17: =IF(OR(COUNTRY_INFO!$U$9:$U$1000="T3 (ALB/MBD)",COUNTRY_INFO!$V$9:$V$1000="T3 (ALB/MBD)"), "T3 (ALB/MBD)", " ") -> T3 (ALB/MBD) | E17: MBD | F17: 012019 | H17: 1349 | J17: 1349 | L17: 1253 | N17: 1253 | P17: 92.88361749 | R17: 92.88361749
A18: =IF(COUNTRY_INFO!A18=0," ",COUNTRY_INFO!A18) -> Gabon | B18: =IF(COUNTRY_INFO!B18=0," ",COUNTRY_INFO!B18) -> Sud-Est | C18: =IF(COUNTRY_INFO!C18=0," ",COUNTRY_INFO!C18) -> Lékoko | D18: =IF(OR(COUNTRY_INFO!$U$9:$U$1000="T3 (ALB/MBD)",COUNTRY_INFO!$V$9:$V$1000="T3 (ALB/MBD)"), "T3 (ALB/MBD)", " ") ->  | J18: 0 | N18: 0
A19: =IF(COUNTRY_INFO!A19=0," ",COUNTRY_INFO!A19) -> Gabon | B19: =IF(COUNTRY_INFO!B19=0," ",COUNTRY_INFO!B19) -> Sud-Est | C19: =IF(COUNTRY_INFO!C19=0," ",COUNTRY_INFO!C19) -> Djouori-Agnili | D19: =IF(OR(COUNTRY_INFO!$U$9:$U$1000="T3 (ALB/MBD)",COUNTRY_INFO!$V$9:$V$1000="T3 (ALB/MBD)"), "T3 (ALB/MBD)", " ") -> T3 (ALB/MBD) | E19: MBD | F19: 072018 | H19: 1554 | J19: 1554 | L19: 706 | N19: 706 | P19: 45.43114543 | R19: 45.43114543
A20: =IF(COUNTRY_INFO!A20=0," ",COUNTRY_INFO!A20) -> Gabon | B20: =IF(COUNTRY_INFO!B20=0," ",COUNTRY_INFO!B20) -> Sud-Est | C20: =IF(COUNTRY_INFO!C20=0," ",COUNTRY_INFO!C20) -> Ogooué-Létili | D20: =IF(OR(COUNTRY_INFO!$U$9:$U$1000="T3 (ALB/MBD)",COUNTRY_INFO!$V$9:$V$1000="T3 (ALB/MBD)"), "T3 (ALB/MBD)", " ") -> T3 (ALB/MBD) | E20: MBD | F20: 072018 | H20: 1306 | J20: 1306 | L20: 667 | N20: 667 | P20: 51.0719755 | R20: 51.0719755
A21: =IF(COUNTRY_INFO!A21=0," ",COUNTRY_INFO!A21) -> Gabon | B21: =IF(COUNTRY_INFO!B21=0," ",COUNTRY_INFO!B21) -> Sud-Est | C21: =IF(COUNTRY_INFO!C21=0," ",COUNTRY_INFO!C21) -> Mpassa | D21: =IF(OR(COUNTRY_INFO!$U$9:$U$1000="T3 (ALB/MBD)",COUNTRY_INFO!$V$9:$V$1000="T3 (ALB/MBD)"), "T3 (ALB/MBD)", " ") ->  | J21: 0 | N21: 0
A22: =IF(COUNTRY_INFO!A22=0," ",COUNTRY_INFO!A22) -> Gabon | B22: =IF(COUNTRY_INFO!B22=0," ",COUNTRY_INFO!B22) -> Sud-Est | C22: =IF(COUNTRY_INFO!C22=0," ",COUNTRY_INFO!C22) -> Plateaux | D22: =IF(OR(COUNTRY_INFO!$U$9:$U$1000="T3 (ALB/MBD)",COUNTRY_INFO!$V$9:$V$1000="T3 (ALB/MBD)"), "T3 (ALB/MBD)", " ") -> T3 (ALB/MBD) | E22: MBD | F22: 012019 | H22: 1400 | J22: 1400 | L22: 1353 | N22: 1353 | P22: 96.64285714 | R22: 96.64285714
A23: =IF(COUNTRY_INFO!A23=0," ",COUNTRY_INFO!A23) -> Gabon | B23: =IF(COUNTRY_INFO!B23=0," ",COUNTRY_INFO!B23) -> Sud-Est | C23: =IF(COUNTRY_INFO!C23=0," ",COUNTRY_INFO!C23) -> Lébombi-Léyou | D23: =IF(OR(COUNTRY_INFO!$U$9:$U$1000="T3 (ALB/MBD)",COUNTRY_INFO!$V$9:$V$1000="T3 (ALB/MBD)"), "T3 (ALB/MBD)", " ") ->  | J23: 0 | N23: 0
A24: =IF(COUNTRY_INFO!A24=0," ",COUNTRY_INFO!A24) -> Gabon | B24: =IF(COUNTRY_INFO!B24=0," ",COUNTRY_INFO!B24) -> Sud-Est | C24: =IF(COUNTRY_INFO!C24=0," ",COUNTRY_INFO!C24) -> Lékabi-Léwolo | D24: =IF(OR(COUNTRY_INFO!$U$9:$U$1000="T3 (ALB/MBD)",COUNTRY_INFO!$V$9:$V$1000="T3 (ALB/MBD)"), "T3 (ALB/MBD)", " ") ->  | J24: 0 | N24: 0
A25: =IF(COUNTRY_INFO!A25=0," ",COUNTRY_INFO!A25) -> Gabon | B25: =IF(COUNTRY_INFO!B25=0," ",COUNTRY_INFO!B25) -> Sud-Est | C25: =IF(COUNTRY_INFO!C25=0," ",COUNTRY_INFO!C25) -> Sébé-Brikolo | D25: =IF(OR(COUNTRY_INFO!$U$9:$U$1000="T3 (ALB/MBD)",COUNTRY_INFO!$V$9:$V$1000="T3 (ALB/MBD)"), "T3 (ALB/MBD)", " ") ->  | J25: 0 | N25: 0
A26: =IF(COUNTRY_INFO!A26=0," ",COUNTRY_INFO!A26) -> Gabon | B26: =IF(COUNTRY_INFO!B26=0," ",COUNTRY_INFO!B26) -> Sud-Est | C26: =IF(COUNTRY_INFO!C26=0," ",COUNTRY_INFO!C26) -> Djoué | D26: =IF(OR(COUNTRY_INFO!$U$9:$U$1000="T3 (ALB/MBD)",COUNTRY_INFO!$V$9:$V$1000="T3 (ALB/MBD)"), "T3 (ALB/MBD)", " ") -> T3 (ALB/MBD) | E26: MBD | F26: 012019 | H26: 403 | J26: 403 | L26: 403 | N26: 403 | P26: 100 | R26: 100
A27: =IF(COUNTRY_INFO!A27=0," ",COUNTRY_INFO!A27) -> Gabon | B27: =IF(COUNTRY_INFO!B27=0," ",COUNTRY_INFO!B27) -> Centre | C27: =IF(COUNTRY_INFO!C27=0," ",COUNTRY_INFO!C27) -> Ogooué-et-Lacs | D27: =IF(OR(COUNTRY_INFO!$U$9:$U$1000="T3 (ALB/MBD)",COUNTRY_INFO!$V$9:$V$1000="T3 (ALB/MBD)"), "T3 (ALB/MBD)", " ") ->  | J27: 0 | N27: 0
A28: =IF(COUNTRY_INFO!A28=0," ",COUNTRY_INFO!A28) -> Gabon | B28: =IF(COUNTRY_INFO!B28=0," ",COUNTRY_INFO!B28) -> Centre | C28: =IF(COUNTRY_INFO!C28=0," ",COUNTRY_INFO!C28) -> Abanga-Bigné | D28: =IF(OR(COUNTRY_INFO!$U$9:$U$1000="T3 (ALB/MBD)",COUNTRY_INFO!$V$9:$V$1000="T3 (ALB/MBD)"), "T3 (ALB/MBD)", " ") ->  | J28: 0 | N28: 0
A29: =IF(COUNTRY_INFO!A29=0," ",COUNTRY_INFO!A29) -> Gabon | B29: =IF(COUNTRY_INFO!B29=0," ",COUNTRY_INFO!B29) -> Centre-Sud | C29: =IF(COUNTRY_INFO!C29=0," ",COUNTRY_INFO!C29) -> Tsamba-Magotsi | D29: =IF(OR(COUNTRY_INFO!$U$9:$U$1000="T3 (ALB/MBD)",COUNTRY_INFO!$V$9:$V$1000="T3 (ALB/MBD)"), "T3 (ALB/MBD)", " ") ->  | J29: 0 | N29: 0
A30: =IF(COUNTRY_INFO!A30=0," ",COUNTRY_INFO!A30) -> Gabon | B30: =IF(COUNTRY_INFO!B30=0," ",COUNTRY_INFO!B30) -> Centre-Sud | C30: =IF(COUNTRY_INFO!C30=0," ",COUNTRY_INFO!C30) -> Louetsi-Wano | D30: =IF(OR(COUNTRY_INFO!$U$9:$U$1000="T3 (ALB/MBD)",COUNTRY_INFO!$V$9:$V$1000="T3 (ALB/MBD)"), "T3 (ALB/MBD)", " ") -> T3 (ALB/MBD) | E30: MBD | F30: 012019 | H30: 2595 | J30: 2595 | L30: 2364 | N30: 2364 | P30: 91.0982659 | R30: 91.0982659
A31: =IF(COUNTRY_INFO!A31=0," ",COUNTRY_INFO!A31) -> Gabon | B31: =IF(COUNTRY_INFO!B31=0," ",COUNTRY_INFO!B31) -> Centre-Sud | C31: =IF(COUNTRY_INFO!C31=0," ",COUNTRY_INFO!C31) -> Louetsi-Bibaka | D31: =IF(OR(COUNTRY_INFO!$U$9:$U$1000="T3 (ALB/MBD)",COUNTRY_INFO!$V$9:$V$1000="T3 (ALB/MBD)"), "T3 (ALB/MBD)", " ") -> T3 (ALB/MBD) | E31: MBD | F31: 072018 | H31: 792 | J31: 792 | L31: 538 | N31: 538 | P31: 67.92929293 | R31: 67.92929293
A32: =IF(COUNTRY_INFO!A32=0," ",COUNTRY_INFO!A32) -> Gabon | B32: =IF(COUNTRY_INFO!B32=0," ",COUNTRY_INFO!B32) -> Centre-Sud | C32: =IF(COUNTRY_INFO!C32=0," ",COUNTRY_INFO!C32) -> Ndolou | D32: =IF(OR(COUNTRY_INFO!$U$9:$U$1000="T3 (ALB/MBD)",COUNTRY_INFO!$V$9:$V$1000="T3 (ALB/MBD)"), "T3 (ALB/MBD)", " ") ->  | J32: 0 | N32: 0
A33: =IF(COUNTRY_INFO!A33=0," ",COUNTRY_INFO!A33) -> Gabon | B33: =IF(COUNTRY_INFO!B33=0," ",COUNTRY_INFO!B33) -> Centre-Sud | C33: =IF(COUNTRY_INFO!C33=0," ",COUNTRY_INFO!C33) -> Boumi-Louetsi | D33: =IF(OR(COUNTRY_INFO!$U$9:$U$1000="T3 (ALB/MBD)",COUNTRY_INFO!$V$9:$V$1000="T3 (ALB/MBD)"), "T3 (ALB/MBD)", " ") -> T3 (ALB/MBD) | E33: MBD | F33: 012019 | H33: 1938 | J33: 1938 | L33: 1762 | N33: 1762 | P33: 90.91847265 | R33: 90.91847265
A34: =IF(COUNTRY_INFO!A34=0," ",COUNTRY_INFO!A34) -> Gabon | B34: =IF(COUNTRY_INFO!B34=0," ",COUNTRY_INFO!B34) -> Centre-Sud | C34: =IF(COUNTRY_INFO!C34=0," ",COUNTRY_INFO!C34) -> Ogoulou | D34: =IF(OR(COUNTRY_INFO!$U$9:$U$1000="T3 (ALB/MBD)",COUNTRY_INFO!$V$9:$V$1000="T3 (ALB/MBD)"), "T3 (ALB/MBD)", " ") -> T3 (ALB/MBD) | E34: MBD | F34: 012019 | H34: 1818 | J34: 1818 | L34: 1125 | N34: 1125 | P34: 61.88118812 | R34: 61.88118812
A35: =IF(COUNTRY_INFO!A35=0," ",COUNTRY_INFO!A35) -> Gabon | B35: =IF(COUNTRY_INFO!B35=0," ",COUNTRY_INFO!B35) -> Centre-Sud | C35: =IF(COUNTRY_INFO!C35=0," ",COUNTRY_INFO!C35) -> Douya-Onoye | D35: =IF(OR(COUNTRY_INFO!$U$9:$U$1000="T3 (ALB/MBD)",COUNTRY_INFO!$V$9:$V$1000="T3 (ALB/MBD)"), "T3 (ALB/MBD)", " ") ->  | J35: 0 | N35: 0
A36: =IF(COUNTRY_INFO!A36=0," ",COUNTRY_INFO!A36) -> Gabon | B36: =IF(COUNTRY_INFO!B36=0," ",COUNTRY_INFO!B36) -> Centre-Sud | C36: =IF(COUNTRY_INFO!C36=0," ",COUNTRY_INFO!C36) -> Dola | D36: =IF(OR(COUNTRY_INFO!$U$9:$U$1000="T3 (ALB/MBD)",COUNTRY_INFO!$V$9:$V$1000="T3 (ALB/MBD)"), "T3 (ALB/MBD)", " ") ->  | J36: 0 | N36: 0
A37: =IF(COUNTRY_INFO!A37=0," ",COUNTRY_INFO!A37) -> Gabon | B37: =IF(COUNTRY_INFO!B37=0," ",COUNTRY_INFO!B37) -> Centre-Sud | C37: =IF(COUNTRY_INFO!C37=0," ",COUNTRY_INFO!C37) -> Mougalaba | D37: =IF(OR(COUNTRY_INFO!$U$9:$U$1000="T3 (ALB/MBD)",COUNTRY_INFO!$V$9:$V$1000="T3 (ALB/MBD)"), "T3 (ALB/MBD)", " ") -> T3 (ALB/MBD) | E37: MBD | F37: 012019 | H37: 237 | J37: 237 | L37: 237 | N37: 237 | P37: 100 | R37: 100
A38: =IF(COUNTRY_INFO!A38=0," ",COUNTRY_INFO!A38) -> Gabon | B38: =IF(COUNTRY_INFO!B38=0," ",COUNTRY_INFO!B38) -> Sud | C38: =IF(COUNTRY_INFO!C38=0," ",COUNTRY_INFO!C38) -> Doutsila | D38: =IF(OR(COUNTRY_INFO!$U$9:$U$1000="T3 (ALB/MBD)",COUNTRY_INFO!$V$9:$V$1000="T3 (ALB/MBD)"), "T3 (ALB/MBD)", " ") -> T3 (ALB/MBD) | E38: MBD | F38: 012019 | H38: 504 | J38: 504 | L38: 401 | N38: 401 | P38: 79.56349206 | R38: 79.56349206
A39: =IF(COUNTRY_INFO!A39=0," ",COUNTRY_INFO!A39) -> Gabon | B39: =IF(COUNTRY_INFO!B39=0," ",COUNTRY_INFO!B39) -> Sud | C39: =IF(COUNTRY_INFO!C39=0," ",COUNTRY_INFO!C39) -> Basse-Banio | D39: =IF(OR(COUNTRY_INFO!$U$9:$U$1000="T3 (ALB/MBD)",COUNTRY_INFO!$V$9:$V$1000="T3 (ALB/MBD)"), "T3 (ALB/MBD)", " ") ->  | J39: 0 | N39: 0
A40: =IF(COUNTRY_INFO!A40=0," ",COUNTRY_INFO!A40) -> Gabon | B40: =IF(COUNTRY_INFO!B40=0," ",COUNTRY_INFO!B40) -> Sud | C40: =IF(COUNTRY_INFO!C40=0," ",COUNTRY_INFO!C40) -> Douigny | D40: =IF(OR(COUNTRY_INFO!$U$9:$U$1000="T3 (ALB/MBD)",COUNTRY_INFO!$V$9:$V$1000="T3 (ALB/MBD)"), "T3 (ALB/MBD)", " ") -> T3 (ALB/MBD) | E40: MBD | F40: 072018 | H40: 1873 | J40: 1873 | L40: 922 | N40: 922 | P40: 49.2258409 | R40: 49.2258409
A41: =IF(COUNTRY_INFO!A41=0," ",COUNTRY_INFO!A41) -> Gabon | B41: =IF(COUNTRY_INFO!B41=0," ",COUNTRY_INFO!B41) -> Sud | C41: =IF(COUNTRY_INFO!C41=0," ",COUNTRY_INFO!C41) -> Mongo | D41: =IF(OR(COUNTRY_INFO!$U$9:$U$1000="T3 (ALB/MBD)",COUNTRY_INFO!$V$9:$V$1000="T3 (ALB/MBD)"), "T3 (ALB/MBD)", " ") ->  | J41: 0 | N41: 0
A42: =IF(COUNTRY_INFO!A42=0," ",COUNTRY_INFO!A42) -> Gabon | B42: =IF(COUNTRY_INFO!B42=0," ",COUNTRY_INFO!B42) -> Sud | C42: =IF(COUNTRY_INFO!C42=0," ",COUNTRY_INFO!C42) -> Haute-Banio | D42: =IF(OR(COUNTRY_INFO!$U$9:$U$1000="T3 (ALB/MBD)",COUNTRY_INFO!$V$9:$V$1000="T3 (ALB/MBD)"), "T3 (ALB/MBD)", " ") -> T3 (ALB/MBD) | E42: MBD | F42: 072018 | H42: 471 | J42: 471 | L42: 294 | N42: 294 | P42: 62.42038217 | R42: 62.42038217
A43: =IF(COUNTRY_INFO!A43=0," ",COUNTRY_INFO!A43) -> Gabon | B43: =IF(COUNTRY_INFO!B43=0," ",COUNTRY_INFO!B43) -> Sud | C43: =IF(COUNTRY_INFO!C43=0," ",COUNTRY_INFO!C43) -> Mougoutsi | D43: =IF(OR(COUNTRY_INFO!$U$9:$U$1000="T3 (ALB/MBD)",COUNTRY_INFO!$V$9:$V$1000="T3 (ALB/MBD)"), "T3 (ALB/MBD)", " ") ->  | J43: 0 | N43: 0
A44: =IF(COUNTRY_INFO!A44=0," ",COUNTRY_INFO!A44) -> Gabon | B44: =IF(COUNTRY_INFO!B44=0," ",COUNTRY_INFO!B44) -> Est | C44: =IF(COUNTRY_INFO!C44=0," ",COUNTRY_INFO!C44) -> Lopé | D44: =IF(OR(COUNTRY_INFO!$U$9:$U$1000="T3 (ALB/MBD)",COUNTRY_INFO!$V$9:$V$1000="T3 (ALB/MBD)"), "T3 (ALB/MBD)", " ") ->  | J44: 0 | N44: 0
A45: =IF(COUNTRY_INFO!A45=0," ",COUNTRY_INFO!A45) -> Gabon | B45: =IF(COUNTRY_INFO!B45=0," ",COUNTRY_INFO!B45) -> Est | C45: =IF(COUNTRY_INFO!C45=0," ",COUNTRY_INFO!C45) -> Ivindo | D45: =IF(OR(COUNTRY_INFO!$U$9:$U$1000="T3 (ALB/MBD)",COUNTRY_INFO!$V$9:$V$1000="T3 (ALB/MBD)"), "T3 (ALB/MBD)", " ") ->  | J45: 0 | N45: 0
A46: =IF(COUNTRY_INFO!A46=0," ",COUNTRY_INFO!A46) -> Gabon | B46: =IF(COUNTRY_INFO!B46=0," ",COUNTRY_INFO!B46) -> Est | C46: =IF(COUNTRY_INFO!C46=0," ",COUNTRY_INFO!C46) -> Zadié | D46: =IF(OR(COUNTRY_INFO!$U$9:$U$1000="T3 (ALB/MBD)",COUNTRY_INFO!$V$9:$V$1000="T3 (ALB/MBD)"), "T3 (ALB/MBD)", " ") -> T3 (ALB/MBD) | E46: MBD | F46: 072018 | H46: 4122 | J46: 4122 | L46: 1131 | N46: 1131 | P46: 27.43813683 | R46: 27.43813683
A47: =IF(COUNTRY_INFO!A47=0," ",COUNTRY_INFO!A47) -> Gabon | B47: =IF(COUNTRY_INFO!B47=0," ",COUNTRY_INFO!B47) -> Est | C47: =IF(COUNTRY_INFO!C47=0," ",COUNTRY_INFO!C47) -> Mvoung | D47: =IF(OR(COUNTRY_INFO!$U$9:$U$1000="T3 (ALB/MBD)",COUNTRY_INFO!$V$9:$V$1000="T3 (ALB/MBD)"), "T3 (ALB/MBD)", " ") -> T3 (ALB/MBD) | E47: MBD | F47: 012019 | H47: 846 | J47: 846 | L47: 799 | N47: 799 | P47: 94.44444444 | R47: 94.44444444
A48: =IF(COUNTRY_INFO!A48=0," ",COUNTRY_INFO!A48) -> Gabon | B48: =IF(COUNTRY_INFO!B48=0," ",COUNTRY_INFO!B48) -> Centre-Est | C48: =IF(COUNTRY_INFO!C48=0," ",COUNTRY_INFO!C48) -> Offoué-Onoye | D48: =IF(OR(COUNTRY_INFO!$U$9:$U$1000="T3 (ALB/MBD)",COUNTRY_INFO!$V$9:$V$1000="T3 (ALB/MBD)"), "T3 (ALB/MBD)", " ") -> T3 (ALB/MBD) | E48: MBD | F48: 012019 | H48: 582 | J48: 582 | L48: 577 | N48: 577 | P48: 99.14089347 | R48: 99.14089347
A49: =IF(COUNTRY_INFO!A49=0," ",COUNTRY_INFO!A49) -> Gabon | B49: =IF(COUNTRY_INFO!B49=0," ",COUNTRY_INFO!B49) -> Centre-Est | C49: =IF(COUNTRY_INFO!C49=0," ",COUNTRY_INFO!C49) -> Lolo-Bouenguidi | D49: =IF(OR(COUNTRY_INFO!$U$9:$U$1000="T3 (ALB/MBD)",COUNTRY_INFO!$V$9:$V$1000="T3 (ALB/MBD)"), "T3 (ALB/MBD)", " ") ->  | J49: 0 | N49: 0
A50: =IF(COUNTRY_INFO!A50=0," ",COUNTRY_INFO!A50) -> Gabon | B50: =IF(COUNTRY_INFO!B50=0," ",COUNTRY_INFO!B50) -> Centre-Est | C50: =IF(COUNTRY_INFO!C50=0," ",COUNTRY_INFO!C50) -> Mulundu | D50: =IF(OR(COUNTRY_INFO!$U$9:$U$1000="T3 (ALB/MBD)",COUNTRY_INFO!$V$9:$V$1000="T3 (ALB/MBD)"), "T3 (ALB/MBD)", " ") ->  | J50: 0 | N50: 0
A51: =IF(COUNTRY_INFO!A51=0," ",COUNTRY_INFO!A51) -> Gabon | B51: =IF(COUNTRY_INFO!B51=0," ",COUNTRY_INFO!B51) -> Centre-Est | C51: =IF(COUNTRY_INFO!C51=0," ",COUNTRY_INFO!C51) -> Lombo-Bouenguidi | D51: =IF(OR(COUNTRY_INFO!$U$9:$U$1000="T3 (ALB/MBD)",COUNTRY_INFO!$V$9:$V$1000="T3 (ALB/MBD)"), "T3 (ALB/MBD)", " ") -> T3 (ALB/MBD) | E51: MBD | F51: 012019 | H51: 775 | J51: 775 | L51: 775 | N51: 775 | P51: 100 | R51: 100
A52: =IF(COUNTRY_INFO!A52=0," ",COUNTRY_INFO!A52) -> Gabon | B52: =IF(COUNTRY_INFO!B52=0," ",COUNTRY_INFO!B52) -> Maritime | C52: =IF(COUNTRY_INFO!C52=0," ",COUNTRY_INFO!C52) -> Ndougou | D52: =IF(OR(COUNTRY_INFO!$U$9:$U$1000="T3 (ALB/MBD)",COUNTRY_INFO!$V$9:$V$1000="T3 (ALB/MBD)"), "T3 (ALB/MBD)", " ") ->  | J52: 0 | N52: 0
A53: =IF(COUNTRY_INFO!A53=0," ",COUNTRY_INFO!A53) -> Gabon | B53: =IF(COUNTRY_INFO!B53=0," ",COUNTRY_INFO!B53) -> Maritime | C53: =IF(COUNTRY_INFO!C53=0," ",COUNTRY_INFO!C53) -> Etimboué | D53: =IF(OR(COUNTRY_INFO!$U$9:$U$1000="T3 (ALB/MBD)",COUNTRY_INFO!$V$9:$V$1000="T3 (ALB/MBD)"), "T3 (ALB/MBD)", " ") ->  | J53: 0 | N53: 0
A54: =IF(COUNTRY_INFO!A54=0," ",COUNTRY_INFO!A54) -> Gabon | B54: =IF(COUNTRY_INFO!B54=0," ",COUNTRY_INFO!B54) -> Maritime | C54: =IF(COUNTRY_INFO!C54=0," ",COUNTRY_INFO!C54) -> Bendjé | D54: =IF(OR(COUNTRY_INFO!$U$9:$U$1000="T3 (ALB/MBD)",COUNTRY_INFO!$V$9:$V$1000="T3 (ALB/MBD)"), "T3 (ALB/MBD)", " ") ->  | J54: 0 | N54: 0
A55: =IF(COUNTRY_INFO!A55=0," ",COUNTRY_INFO!A55) -> Gabon | B55: =IF(COUNTRY_INFO!B55=0," ",COUNTRY_INFO!B55) -> Nord | C55: =IF(COUNTRY_INFO!C55=0," ",COUNTRY_INFO!C55) -> Ntem | D55: =IF(OR(COUNTRY_INFO!$U$9:$U$1000="T3 (ALB/MBD)",COUNTRY_INFO!$V$9:$V$1000="T3 (ALB/MBD)"), "T3 (ALB/MBD)", " ") -> T3 (ALB/MBD) | E55: MBD | F55: 012019 | H55: 8174 | J55: 8174 | L55: 5837 | N55: 5837 | P55: 71.40934671 | R55: 71.40934671
A56: =IF(COUNTRY_INFO!A56=0," ",COUNTRY_INFO!A56) -> Gabon | B56: =IF(COUNTRY_INFO!B56=0," ",COUNTRY_INFO!B56) -> Nord | C56: =IF(COUNTRY_INFO!C56=0," ",COUNTRY_INFO!C56) -> Haut - Komo | D56: =IF(OR(COUNTRY_INFO!$U$9:$U$1000="T3 (ALB/MBD)",COUNTRY_INFO!$V$9:$V$1000="T3 (ALB/MBD)"), "T3 (ALB/MBD)", " ") -> T3 (ALB/MBD) | E56: MBD | F56: 012019 | H56: 717 | J56: 717 | L56: 619 | N56: 619 | P56: 86.33193863 | R56: 86.33193863
A57: =IF(COUNTRY_INFO!A57=0," ",COUNTRY_INFO!A57) -> Gabon | B57: =IF(COUNTRY_INFO!B57=0," ",COUNTRY_INFO!B57) -> Nord | C57: =IF(COUNTRY_INFO!C57=0," ",COUNTRY_INFO!C57) -> Haut-Ntem | D57: =IF(OR(COUNTRY_INFO!$U$9:$U$1000="T3 (ALB/MBD)",COUNTRY_INFO!$V$9:$V$1000="T3 (ALB/MBD)"), "T3 (ALB/MBD)", " ") -> T3 (ALB/MBD) | E57: MBD | F57: 012019 | H57: 2303 | J57: 2303 | L57: 1684 | N57: 1684 | P57: 73.12201476 | R57: 73.12201476
A58: =IF(COUNTRY_INFO!A58=0," ",COUNTRY_INFO!A58) -> Gabon | B58: =IF(COUNTRY_INFO!B58=0," ",COUNTRY_INFO!B58) -> Nord | C58: =IF(COUNTRY_INFO!C58=0," ",COUNTRY_INFO!C58) -> Okano | D58: =IF(OR(COUNTRY_INFO!$U$9:$U$1000="T3 (ALB/MBD)",COUNTRY_INFO!$V$9:$V$1000="T3 (ALB/MBD)"), "T3 (ALB/MBD)", " ") -> T3 (ALB/MBD) | E58: MBD | F58: 012019 | H58: 3891 | J58: 3891 | L58: 3693 | N58: 3693 | P58: 94.91133385 | R58: 94.91133385
A59: =IF(COUNTRY_INFO!A59=0," ",COUNTRY_INFO!A59) -> Gabon | B59: =IF(COUNTRY_INFO!B59=0," ",COUNTRY_INFO!B59) -> Nord | C59: =IF(COUNTRY_INFO!C59=0," ",COUNTRY_INFO!C59) -> Woleu | D59: =IF(OR(COUNTRY_INFO!$U$9:$U$1000="T3 (ALB/MBD)",COUNTRY_INFO!$V$9:$V$1000="T3 (ALB/MBD)"), "T3 (ALB/MBD)", " ") ->  | J59: 0 | N59: 0

Sheet T3_R2
A1: T 3 - Albendazole (ALB) ou Mebendazole (MBD) - Tournée 2
A2: Structure administrative, population nécessitant une chimioprévention par groupe d'âge, population traitée par groupe d'âge et couverture
A4: TOTAL | G4: =SUM(G$9:G$1000) -> 0 | H4: 5873 | I4: 0 | J4: 5873 | K4: 0 | L4: 3853 | M4: 0 | N4: 3853 | O4: =IF(G4<>0, IF(K4/G4*100=0, "-", K4/G4*100), " ") ->  | P4: =IF(H4<>0, IF(L4/H4*100=0, "-", L4/H4*100), " ") -> 65.60531245 | Q4: =IF(I4<>0, IF(M4/I4*100=0, "-", M4/I4*100), " ") ->  | R4: =IF(J4<>0, IF(N4/J4*100=0, "-", N4/J4*100), " ") -> 65.60531245
A6: Structure administrative du pays | D6: Mise en oeuvre de la CP | E6: Médica-ment | F6: Date | G6: Population ciblée pour T3 | K6: Population traitée | O6: Couverture du Programme (%)
A7: Pays | B7: Région/Département | C7: District | G7: EAPréS | H7: EAS | I7: Adultes | J7: Total | K7: EAPréS | L7: EAS | M7: Adultes | N7: Total | O7: EAPréS | P7: EAS | Q7: Adultes | R7: Total
A9: =IF(COUNTRY_INFO!A9=0," ",COUNTRY_INFO!A9) -> Gabon | B9: =IF(COUNTRY_INFO!B9=0," ",COUNTRY_INFO!B9) -> Libreville-Owendo | C9: =IF(COUNTRY_INFO!C9=0," ",COUNTRY_INFO!C9) -> Libreville 1 | D9: =IF(AND(COUNTRY_INFO!$U$9:$U$1000="T3 (ALB/MBD)",COUNTRY_INFO!$V$9:$V$1000="T3 (ALB/MBD)"), "T3 (ALB/MBD)", " ") ->  | J9: =SUM(G9:I9) -> 0 | N9: =SUM(K9:M9) -> 0 | O9: =IF(G9<>0, IF(K9/G9*100=0, "-", K9/G9*100), " ") -> 
A10: =IF(COUNTRY_INFO!A10=0," ",COUNTRY_INFO!A10) -> Gabon | B10: =IF(COUNTRY_INFO!B10=0," ",COUNTRY_INFO!B10) -> Libreville-Owendo | C10: =IF(COUNTRY_INFO!C10=0," ",COUNTRY_INFO!C10) -> Libreville 2 | D10: =IF(AND(COUNTRY_INFO!$U$9:$U$1000="T3 (ALB/MBD)",COUNTRY_INFO!$V$9:$V$1000="T3 (ALB/MBD)"), "T3 (ALB/MBD)", " ") ->  | J10: =SUM(G10:I10) -> 0 | N10: =SUM(K10:M10) -> 0 | O10: =IF(G10<>0, IF(K10/G10*100=0, "-", K10/G10*100), " ") ->  | P10: =IF(H10<>0, IF(L10/H10*100=0, "-", L10/H10*100), " ") ->  | Q10: =IF(I10<>0, IF(M10/I10*100=0, "-", M10/I10*100), " ") ->  | R10: =IF(J10<>0, IF(N10/J10*100=0, "-", N10/J10*100), " ") -> 
A11: =IF(COUNTRY_INFO!A11=0," ",COUNTRY_INFO!A11) -> Gabon | B11: =IF(COUNTRY_INFO!B11=0," ",COUNTRY_INFO!B11) -> Libreville-Owendo | C11: =IF(COUNTRY_INFO!C11=0," ",COUNTRY_INFO!C11) -> Libreville 3 | D11: =IF(AND(COUNTRY_INFO!$U$9:$U$1000="T3 (ALB/MBD)",COUNTRY_INFO!$V$9:$V$1000="T3 (ALB/MBD)"), "T3 (ALB/MBD)", " ") ->  | J11: 0 | N11: 0
A12: =IF(COUNTRY_INFO!A12=0," ",COUNTRY_INFO!A12) -> Gabon | B12: =IF(COUNTRY_INFO!B12=0," ",COUNTRY_INFO!B12) -> Libreville-Owendo | C12: =IF(COUNTRY_INFO!C12=0," ",COUNTRY_INFO!C12) -> Owendo | D12: =IF(AND(COUNTRY_INFO!$U$9:$U$1000="T3 (ALB/MBD)",COUNTRY_INFO!$V$9:$V$1000="T3 (ALB/MBD)"), "T3 (ALB/MBD)", " ") ->  | J12: 0 | N12: 0
A13: =IF(COUNTRY_INFO!A13=0," ",COUNTRY_INFO!A13) -> Gabon | B13: =IF(COUNTRY_INFO!B13=0," ",COUNTRY_INFO!B13) -> Ouest | C13: =IF(COUNTRY_INFO!C13=0," ",COUNTRY_INFO!C13) -> Komo-Mondah | D13: =IF(AND(COUNTRY_INFO!$U$9:$U$1000="T3 (ALB/MBD)",COUNTRY_INFO!$V$9:$V$1000="T3 (ALB/MBD)"), "T3 (ALB/MBD)", " ") ->  | J13: 0 | N13: 0
A14: =IF(COUNTRY_INFO!A14=0," ",COUNTRY_INFO!A14) -> Gabon | B14: =IF(COUNTRY_INFO!B14=0," ",COUNTRY_INFO!B14) -> Ouest | C14: =IF(COUNTRY_INFO!C14=0," ",COUNTRY_INFO!C14) -> Komo-Kango | D14: =IF(AND(COUNTRY_INFO!$U$9:$U$1000="T3 (ALB/MBD)",COUNTRY_INFO!$V$9:$V$1000="T3 (ALB/MBD)"), "T3 (ALB/MBD)", " ") ->  | J14: 0 | N14: 0
A15: =IF(COUNTRY_INFO!A15=0," ",COUNTRY_INFO!A15) -> Gabon | B15: =IF(COUNTRY_INFO!B15=0," ",COUNTRY_INFO!B15) -> Ouest | C15: =IF(COUNTRY_INFO!C15=0," ",COUNTRY_INFO!C15) -> Noya | D15: =IF(AND(COUNTRY_INFO!$U$9:$U$1000="T3 (ALB/MBD)",COUNTRY_INFO!$V$9:$V$1000="T3 (ALB/MBD)"), "T3 (ALB/MBD)", " ") ->  | J15: 0 | N15: 0
A16: =IF(COUNTRY_INFO!A16=0," ",COUNTRY_INFO!A16) -> Gabon | B16: =IF(COUNTRY_INFO!B16=0," ",COUNTRY_INFO!B16) -> Sud-Est | C16: =IF(COUNTRY_INFO!C16=0," ",COUNTRY_INFO!C16) -> Bayi-brikolo | D16: =IF(AND(COUNTRY_INFO!$U$9:$U$1000="T3 (ALB/MBD)",COUNTRY_INFO!$V$9:$V$1000="T3 (ALB/MBD)"), "T3 (ALB/MBD)", " ") -> T3 (ALB/MBD) | E16: MBD | F16: 012019 | H16: 380 | J16: 380 | L16: 380 | N16: 380 | P16: 100 | R16: 100
A17: =IF(COUNTRY_INFO!A17=0," ",COUNTRY_INFO!A17) -> Gabon | B17: =IF(COUNTRY_INFO!B17=0," ",COUNTRY_INFO!B17) -> Sud-Est | C17: =IF(COUNTRY_INFO!C17=0," ",COUNTRY_INFO!C17) -> Lékoni-Lékori | D17: =IF(AND(COUNTRY_INFO!$U$9:$U$1000="T3 (ALB/MBD)",COUNTRY_INFO!$V$9:$V$1000="T3 (ALB/MBD)"), "T3 (ALB/MBD)", " ") ->  | J17: 0 | N17: 0
A18: =IF(COUNTRY_INFO!A18=0," ",COUNTRY_INFO!A18) -> Gabon | B18: =IF(COUNTRY_INFO!B18=0," ",COUNTRY_INFO!B18) -> Sud-Est | C18: =IF(COUNTRY_INFO!C18=0," ",COUNTRY_INFO!C18) -> Lékoko | D18: =IF(AND(COUNTRY_INFO!$U$9:$U$1000="T3 (ALB/MBD)",COUNTRY_INFO!$V$9:$V$1000="T3 (ALB/MBD)"), "T3 (ALB/MBD)", " ") ->  | J18: 0 | N18: 0
A19: =IF(COUNTRY_INFO!A19=0," ",COUNTRY_INFO!A19) -> Gabon | B19: =IF(COUNTRY_INFO!B19=0," ",COUNTRY_INFO!B19) -> Sud-Est | C19: =IF(COUNTRY_INFO!C19=0," ",COUNTRY_INFO!C19) -> Djouori-Agnili | D19: =IF(AND(COUNTRY_INFO!$U$9:$U$1000="T3 (ALB/MBD)",COUNTRY_INFO!$V$9:$V$1000="T3 (ALB/MBD)"), "T3 (ALB/MBD)", " ") ->  | J19: 0 | N19: 0
A20: =IF(COUNTRY_INFO!A20=0," ",COUNTRY_INFO!A20) -> Gabon | B20: =IF(COUNTRY_INFO!B20=0," ",COUNTRY_INFO!B20) -> Sud-Est | C20: =IF(COUNTRY_INFO!C20=0," ",COUNTRY_INFO!C20) -> Ogooué-Létili | D20: =IF(AND(COUNTRY_INFO!$U$9:$U$1000="T3 (ALB/MBD)",COUNTRY_INFO!$V$9:$V$1000="T3 (ALB/MBD)"), "T3 (ALB/MBD)", " ") -> T3 (ALB/MBD) | E20: MBD | F20: 012019 | H20: 373 | J20: 373 | L20: 373 | N20: 373 | P20: 100 | R20: 100
A21: =IF(COUNTRY_INFO!A21=0," ",COUNTRY_INFO!A21) -> Gabon | B21: =IF(COUNTRY_INFO!B21=0," ",COUNTRY_INFO!B21) -> Sud-Est | C21: =IF(COUNTRY_INFO!C21=0," ",COUNTRY_INFO!C21) -> Mpassa | D21: =IF(AND(COUNTRY_INFO!$U$9:$U$1000="T3 (ALB/MBD)",COUNTRY_INFO!$V$9:$V$1000="T3 (ALB/MBD)"), "T3 (ALB/MBD)", " ") ->  | J21: 0 | N21: 0
A22: =IF(COUNTRY_INFO!A22=0," ",COUNTRY_INFO!A22) -> Gabon | B22: =IF(COUNTRY_INFO!B22=0," ",COUNTRY_INFO!B22) -> Sud-Est | C22: =IF(COUNTRY_INFO!C22=0," ",COUNTRY_INFO!C22) -> Plateaux | D22: =IF(AND(COUNTRY_INFO!$U$9:$U$1000="T3 (ALB/MBD)",COUNTRY_INFO!$V$9:$V$1000="T3 (ALB/MBD)"), "T3 (ALB/MBD)", " ") ->  | J22: 0 | N22: 0
A23: =IF(COUNTRY_INFO!A23=0," ",COUNTRY_INFO!A23) -> Gabon | B23: =IF(COUNTRY_INFO!B23=0," ",COUNTRY_INFO!B23) -> Sud-Est | C23: =IF(COUNTRY_INFO!C23=0," ",COUNTRY_INFO!C23) -> Lébombi-Léyou | D23: =IF(AND(COUNTRY_INFO!$U$9:$U$1000="T3 (ALB/MBD)",COUNTRY_INFO!$V$9:$V$1000="T3 (ALB/MBD)"), "T3 (ALB/MBD)", " ") ->  | J23: 0 | N23: 0
A24: =IF(COUNTRY_INFO!A24=0," ",COUNTRY_INFO!A24) -> Gabon | B24: =IF(COUNTRY_INFO!B24=0," ",COUNTRY_INFO!B24) -> Sud-Est | C24: =IF(COUNTRY_INFO!C24=0," ",COUNTRY_INFO!C24) -> Lékabi-Léwolo | D24: =IF(AND(COUNTRY_INFO!$U$9:$U$1000="T3 (ALB/MBD)",COUNTRY_INFO!$V$9:$V$1000="T3 (ALB/MBD)"), "T3 (ALB/MBD)", " ") ->  | J24: 0 | N24: 0
A25: =IF(COUNTRY_INFO!A25=0," ",COUNTRY_INFO!A25) -> Gabon | B25: =IF(COUNTRY_INFO!B25=0," ",COUNTRY_INFO!B25) -> Sud-Est | C25: =IF(COUNTRY_INFO!C25=0," ",COUNTRY_INFO!C25) -> Sébé-Brikolo | D25: =IF(AND(COUNTRY_INFO!$U$9:$U$1000="T3 (ALB/MBD)",COUNTRY_INFO!$V$9:$V$1000="T3 (ALB/MBD)"), "T3 (ALB/MBD)", " ") ->  | J25: 0 | N25: 0
A26: =IF(COUNTRY_INFO!A26=0," ",COUNTRY_INFO!A26) -> Gabon | B26: =IF(COUNTRY_INFO!B26=0," ",COUNTRY_INFO!B26) -> Sud-Est | C26: =IF(COUNTRY_INFO!C26=0," ",COUNTRY_INFO!C26) -> Djoué | D26: =IF(AND(COUNTRY_INFO!$U$9:$U$1000="T3 (ALB/MBD)",COUNTRY_INFO!$V$9:$V$1000="T3 (ALB/MBD)"), "T3 (ALB/MBD)", " ") ->  | J26: 0 | N26: 0
A27: =IF(COUNTRY_INFO!A27=0," ",COUNTRY_INFO!A27) -> Gabon | B27: =IF(COUNTRY_INFO!B27=0," ",COUNTRY_INFO!B27) -> Centre | C27: =IF(COUNTRY_INFO!C27=0," ",COUNTRY_INFO!C27) -> Ogooué-et-Lacs | D27: =IF(AND(COUNTRY_INFO!$U$9:$U$1000="T3 (ALB/MBD)",COUNTRY_INFO!$V$9:$V$1000="T3 (ALB/MBD)"), "T3 (ALB/MBD)", " ") ->  | J27: 0 | N27: 0
A28: =IF(COUNTRY_INFO!A28=0," ",COUNTRY_INFO!A28) -> Gabon | B28: =IF(COUNTRY_INFO!B28=0," ",COUNTRY_INFO!B28) -> Centre | C28: =IF(COUNTRY_INFO!C28=0," ",COUNTRY_INFO!C28) -> Abanga-Bigné | D28: =IF(AND(COUNTRY_INFO!$U$9:$U$1000="T3 (ALB/MBD)",COUNTRY_INFO!$V$9:$V$1000="T3 (ALB/MBD)"), "T3 (ALB/MBD)", " ") ->  | J28: 0 | N28: 0
A29: =IF(COUNTRY_INFO!A29=0," ",COUNTRY_INFO!A29) -> Gabon | B29: =IF(COUNTRY_INFO!B29=0," ",COUNTRY_INFO!B29) -> Centre-Sud | C29: =IF(COUNTRY_INFO!C29=0," ",COUNTRY_INFO!C29) -> Tsamba-Magotsi | D29: =IF(AND(COUNTRY_INFO!$U$9:$U$1000="T3 (ALB/MBD)",COUNTRY_INFO!$V$9:$V$1000="T3 (ALB/MBD)"), "T3 (ALB/MBD)", " ") ->  | J29: 0 | N29: 0
A30: =IF(COUNTRY_INFO!A30=0," ",COUNTRY_INFO!A30) -> Gabon | B30: =IF(COUNTRY_INFO!B30=0," ",COUNTRY_INFO!B30) -> Centre-Sud | C30: =IF(COUNTRY_INFO!C30=0," ",COUNTRY_INFO!C30) -> Louetsi-Wano | D30: =IF(AND(COUNTRY_INFO!$U$9:$U$1000="T3 (ALB/MBD)",COUNTRY_INFO!$V$9:$V$1000="T3 (ALB/MBD)"), "T3 (ALB/MBD)", " ") ->  | J30: 0 | N30: 0
A31: =IF(COUNTRY_INFO!A31=0," ",COUNTRY_INFO!A31) -> Gabon | B31: =IF(COUNTRY_INFO!B31=0," ",COUNTRY_INFO!B31) -> Centre-Sud | C31: =IF(COUNTRY_INFO!C31=0," ",COUNTRY_INFO!C31) -> Louetsi-Bibaka | D31: =IF(AND(COUNTRY_INFO!$U$9:$U$1000="T3 (ALB/MBD)",COUNTRY_INFO!$V$9:$V$1000="T3 (ALB/MBD)"), "T3 (ALB/MBD)", " ") -> T3 (ALB/MBD) | E31: MBD | F31: 012019 | H31: 515 | J31: 515 | L31: 515 | N31: 515 | P31: 100 | R31: 100
A32: =IF(COUNTRY_INFO!A32=0," ",COUNTRY_INFO!A32) -> Gabon | B32: =IF(COUNTRY_INFO!B32=0," ",COUNTRY_INFO!B32) -> Centre-Sud | C32: =IF(COUNTRY_INFO!C32=0," ",COUNTRY_INFO!C32) -> Ndolou | D32: =IF(AND(COUNTRY_INFO!$U$9:$U$1000="T3 (ALB/MBD)",COUNTRY_INFO!$V$9:$V$1000="T3 (ALB/MBD)"), "T3 (ALB/MBD)", " ") ->  | J32: 0 | N32: 0
A33: =IF(COUNTRY_INFO!A33=0," ",COUNTRY_INFO!A33) -> Gabon | B33: =IF(COUNTRY_INFO!B33=0," ",COUNTRY_INFO!B33) -> Centre-Sud | C33: =IF(COUNTRY_INFO!C33=0," ",COUNTRY_INFO!C33) -> Boumi-Louetsi | D33: =IF(AND(COUNTRY_INFO!$U$9:$U$1000="T3 (ALB/MBD)",COUNTRY_INFO!$V$9:$V$1000="T3 (ALB/MBD)"), "T3 (ALB/MBD)", " ") ->  | J33: 0 | N33: 0
A34: =IF(COUNTRY_INFO!A34=0," ",COUNTRY_INFO!A34) -> Gabon | B34: =IF(COUNTRY_INFO!B34=0," ",COUNTRY_INFO!B34) -> Centre-Sud | C34: =IF(COUNTRY_INFO!C34=0," ",COUNTRY_INFO!C34) -> Ogoulou | D34: =IF(AND(COUNTRY_INFO!$U$9:$U$1000="T3 (ALB/MBD)",COUNTRY_INFO!$V$9:$V$1000="T3 (ALB/MBD)"), "T3 (ALB/MBD)", " ") ->  | J34: 0 | N34: 0
A35: =IF(COUNTRY_INFO!A35=0," ",COUNTRY_INFO!A35) -> Gabon | B35: =IF(COUNTRY_INFO!B35=0," ",COUNTRY_INFO!B35) -> Centre-Sud | C35: =IF(COUNTRY_INFO!C35=0," ",COUNTRY_INFO!C35) -> Douya-Onoye | D35: =IF(AND(COUNTRY_INFO!$U$9:$U$1000="T3 (ALB/MBD)",COUNTRY_INFO!$V$9:$V$1000="T3 (ALB/MBD)"), "T3 (ALB/MBD)", " ") ->  | J35: 0 | N35: 0
A36: =IF(COUNTRY_INFO!A36=0," ",COUNTRY_INFO!A36) -> Gabon | B36: =IF(COUNTRY_INFO!B36=0," ",COUNTRY_INFO!B36) -> Centre-Sud | C36: =IF(COUNTRY_INFO!C36=0," ",COUNTRY_INFO!C36) -> Dola | D36: =IF(AND(COUNTRY_INFO!$U$9:$U$1000="T3 (ALB/MBD)",COUNTRY_INFO!$V$9:$V$1000="T3 (ALB/MBD)"), "T3 (ALB/MBD)", " ") ->  | J36: 0 | N36: 0
A37: =IF(COUNTRY_INFO!A37=0," ",COUNTRY_INFO!A37) -> Gabon | B37: =IF(COUNTRY_INFO!B37=0," ",COUNTRY_INFO!B37) -> Centre-Sud | C37: =IF(COUNTRY_INFO!C37=0," ",COUNTRY_INFO!C37) -> Mougalaba | D37: =IF(AND(COUNTRY_INFO!$U$9:$U$1000="T3 (ALB/MBD)",COUNTRY_INFO!$V$9:$V$1000="T3 (ALB/MBD)"), "T3 (ALB/MBD)", " ") ->  | J37: 0 | N37: 0
A38: =IF(COUNTRY_INFO!A38=0," ",COUNTRY_INFO!A38) -> Gabon | B38: =IF(COUNTRY_INFO!B38=0," ",COUNTRY_INFO!B38) -> Sud | C38: =IF(COUNTRY_INFO!C38=0," ",COUNTRY_INFO!C38) -> Doutsila | D38: =IF(AND(COUNTRY_INFO!$U$9:$U$1000="T3 (ALB/MBD)",COUNTRY_INFO!$V$9:$V$1000="T3 (ALB/MBD)"), "T3 (ALB/MBD)", " ") ->  | J38: 0 | N38: 0
A39: =IF(COUNTRY_INFO!A39=0," ",COUNTRY_INFO!A39) -> Gabon | B39: =IF(COUNTRY_INFO!B39=0," ",COUNTRY_INFO!B39) -> Sud | C39: =IF(COUNTRY_INFO!C39=0," ",COUNTRY_INFO!C39) -> Basse-Banio | D39: =IF(AND(COUNTRY_INFO!$U$9:$U$1000="T3 (ALB/MBD)",COUNTRY_INFO!$V$9:$V$1000="T3 (ALB/MBD)"), "T3 (ALB/MBD)", " ") ->  | J39: 0 | N39: 0
A40: =IF(COUNTRY_INFO!A40=0," ",COUNTRY_INFO!A40) -> Gabon | B40: =IF(COUNTRY_INFO!B40=0," ",COUNTRY_INFO!B40) -> Sud | C40: =IF(COUNTRY_INFO!C40=0," ",COUNTRY_INFO!C40) -> Douigny | D40: =IF(AND(COUNTRY_INFO!$U$9:$U$1000="T3 (ALB/MBD)",COUNTRY_INFO!$V$9:$V$1000="T3 (ALB/MBD)"), "T3 (ALB/MBD)", " ") -> T3 (ALB/MBD) | E40: MBD | F40: 012019 | H40: 909 | J40: 909 | L40: 608 | N40: 608 | P40: 66.88668867 | R40: 66.88668867
A41: =IF(COUNTRY_INFO!A41=0," ",COUNTRY_INFO!A41) -> Gabon | B41: =IF(COUNTRY_INFO!B41=0," ",COUNTRY_INFO!B41) -> Sud | C41: =IF(COUNTRY_INFO!C41=0," ",COUNTRY_INFO!C41) -> Mongo | D41: =IF(AND(COUNTRY_INFO!$U$9:$U$1000="T3 (ALB/MBD)",COUNTRY_INFO!$V$9:$V$1000="T3 (ALB/MBD)"), "T3 (ALB/MBD)", " ") ->  | J41: 0 | N41: 0
A42: =IF(COUNTRY_INFO!A42=0," ",COUNTRY_INFO!A42) -> Gabon | B42: =IF(COUNTRY_INFO!B42=0," ",COUNTRY_INFO!B42) -> Sud | C42: =IF(COUNTRY_INFO!C42=0," ",COUNTRY_INFO!C42) -> Haute-Banio | D42: =IF(AND(COUNTRY_INFO!$U$9:$U$1000="T3 (ALB/MBD)",COUNTRY_INFO!$V$9:$V$1000="T3 (ALB/MBD)"), "T3 (ALB/MBD)", " ") -> T3 (ALB/MBD) | E42: MBD | F42: 012019 | H42: 471 | J42: 471 | L42: 150 | N42: 150 | P42: 31.84713376 | R42: 31.84713376
A43: =IF(COUNTRY_INFO!A43=0," ",COUNTRY_INFO!A43) -> Gabon | B43: =IF(COUNTRY_INFO!B43=0," ",COUNTRY_INFO!B43) -> Sud | C43: =IF(COUNTRY_INFO!C43=0," ",COUNTRY_INFO!C43) -> Mougoutsi | D43: =IF(AND(COUNTRY_INFO!$U$9:$U$1000="T3 (ALB/MBD)",COUNTRY_INFO!$V$9:$V$1000="T3 (ALB/MBD)"), "T3 (ALB/MBD)", " ") ->  | J43: 0 | N43: 0
A44: =IF(COUNTRY_INFO!A44=0," ",COUNTRY_INFO!A44) -> Gabon | B44: =IF(COUNTRY_INFO!B44=0," ",COUNTRY_INFO!B44) -> Est | C44: =IF(COUNTRY_INFO!C44=0," ",COUNTRY_INFO!C44) -> Lopé | D44: =IF(AND(COUNTRY_INFO!$U$9:$U$1000="T3 (ALB/MBD)",COUNTRY_INFO!$V$9:$V$1000="T3 (ALB/MBD)"), "T3 (ALB/MBD)", " ") ->  | J44: 0 | N44: 0
A45: =IF(COUNTRY_INFO!A45=0," ",COUNTRY_INFO!A45) -> Gabon | B45: =IF(COUNTRY_INFO!B45=0," ",COUNTRY_INFO!B45) -> Est | C45: =IF(COUNTRY_INFO!C45=0," ",COUNTRY_INFO!C45) -> Ivindo | D45: =IF(AND(COUNTRY_INFO!$U$9:$U$1000="T3 (ALB/MBD)",COUNTRY_INFO!$V$9:$V$1000="T3 (ALB/MBD)"), "T3 (ALB/MBD)", " ") ->  | J45: 0 | N45: 0
A46: =IF(COUNTRY_INFO!A46=0," ",COUNTRY_INFO!A46) -> Gabon | B46: =IF(COUNTRY_INFO!B46=0," ",COUNTRY_INFO!B46) -> Est | C46: =IF(COUNTRY_INFO!C46=0," ",COUNTRY_INFO!C46) -> Zadié | D46: =IF(AND(COUNTRY_INFO!$U$9:$U$1000="T3 (ALB/MBD)",COUNTRY_INFO!$V$9:$V$1000="T3 (ALB/MBD)"), "T3 (ALB/MBD)", " ") -> T3 (ALB/MBD) | E46: MBD | F46: 012019 | H46: 3225 | J46: 3225 | L46: 1827 | N46: 1827 | P46: 56.65116279 | R46: 56.65116279
A47: =IF(COUNTRY_INFO!A47=0," ",COUNTRY_INFO!A47) -> Gabon | B47: =IF(COUNTRY_INFO!B47=0," ",COUNTRY_INFO!B47) -> Est | C47: =IF(COUNTRY_INFO!C47=0," ",COUNTRY_INFO!C47) -> Mvoung | D47: =IF(AND(COUNTRY_INFO!$U$9:$U$1000="T3 (ALB/MBD)",COUNTRY_INFO!$V$9:$V$1000="T3 (ALB/MBD)"), "T3 (ALB/MBD)", " ") ->  | J47: 0 | N47: 0
A48: =IF(COUNTRY_INFO!A48=0," ",COUNTRY_INFO!A48) -> Gabon | B48: =IF(COUNTRY_INFO!B48=0," ",COUNTRY_INFO!B48) -> Centre-Est | C48: =IF(COUNTRY_INFO!C48=0," ",COUNTRY_INFO!C48) -> Offoué-Onoye | D48: =IF(AND(COUNTRY_INFO!$U$9:$U$1000="T3 (ALB/MBD)",COUNTRY_INFO!$V$9:$V$1000="T3 (ALB/MBD)"), "T3 (ALB/MBD)", " ") ->  | J48: 0 | N48: 0
A49: =IF(COUNTRY_INFO!A49=0," ",COUNTRY_INFO!A49) -> Gabon | B49: =IF(COUNTRY_INFO!B49=0," ",COUNTRY_INFO!B49) -> Centre-Est | C49: =IF(COUNTRY_INFO!C49=0," ",COUNTRY_INFO!C49) -> Lolo-Bouenguidi | D49: =IF(AND(COUNTRY_INFO!$U$9:$U$1000="T3 (ALB/MBD)",COUNTRY_INFO!$V$9:$V$1000="T3 (ALB/MBD)"), "T3 (ALB/MBD)", " ") ->  | J49: 0 | N49: 0
A50: =IF(COUNTRY_INFO!A50=0," ",COUNTRY_INFO!A50) -> Gabon | B50: =IF(COUNTRY_INFO!B50=0," ",COUNTRY_INFO!B50) -> Centre-Est | C50: =IF(COUNTRY_INFO!C50=0," ",COUNTRY_INFO!C50) -> Mulundu | D50: =IF(AND(COUNTRY_INFO!$U$9:$U$1000="T3 (ALB/MBD)",COUNTRY_INFO!$V$9:$V$1000="T3 (ALB/MBD)"), "T3 (ALB/MBD)", " ") ->  | J50: 0 | N50: 0
A51: =IF(COUNTRY_INFO!A51=0," ",COUNTRY_INFO!A51) -> Gabon | B51: =IF(COUNTRY_INFO!B51=0," ",COUNTRY_INFO!B51) -> Centre-Est | C51: =IF(COUNTRY_INFO!C51=0," ",COUNTRY_INFO!C51) -> Lombo-Bouenguidi | D51: =IF(AND(COUNTRY_INFO!$U$9:$U$1000="T3 (ALB/MBD)",COUNTRY_INFO!$V$9:$V$1000="T3 (ALB/MBD)"), "T3 (ALB/MBD)", " ") ->  | J51: 0 | N51: 0
A52: =IF(COUNTRY_INFO!A52=0," ",COUNTRY_INFO!A52) -> Gabon | B52: =IF(COUNTRY_INFO!B52=0," ",COUNTRY_INFO!B52) -> Maritime | C52: =IF(COUNTRY_INFO!C52=0," ",COUNTRY_INFO!C52) -> Ndougou | D52: =IF(AND(COUNTRY_INFO!$U$9:$U$1000="T3 (ALB/MBD)",COUNTRY_INFO!$V$9:$V$1000="T3 (ALB/MBD)"), "T3 (ALB/MBD)", " ") ->  | J52: 0 | N52: 0
A53: =IF(COUNTRY_INFO!A53=0," ",COUNTRY_INFO!A53) -> Gabon | B53: =IF(COUNTRY_INFO!B53=0," ",COUNTRY_INFO!B53) -> Maritime | C53: =IF(COUNTRY_INFO!C53=0," ",COUNTRY_INFO!C53) -> Etimboué | D53: =IF(AND(COUNTRY_INFO!$U$9:$U$1000="T3 (ALB/MBD)",COUNTRY_INFO!$V$9:$V$1000="T3 (ALB/MBD)"), "T3 (ALB/MBD)", " ") ->  | J53: 0 | N53: 0
A54: =IF(COUNTRY_INFO!A54=0," ",COUNTRY_INFO!A54) -> Gabon | B54: =IF(COUNTRY_INFO!B54=0," ",COUNTRY_INFO!B54) -> Maritime | C54: =IF(COUNTRY_INFO!C54=0," ",COUNTRY_INFO!C54) -> Bendjé | D54: =IF(AND(COUNTRY_INFO!$U$9:$U$1000="T3 (ALB/MBD)",COUNTRY_INFO!$V$9:$V$1000="T3 (ALB/MBD)"), "T3 (ALB/MBD)", " ") ->  | J54: 0 | N54: 0
A55: =IF(COUNTRY_INFO!A55=0," ",COUNTRY_INFO!A55) -> Gabon | B55: =IF(COUNTRY_INFO!B55=0," ",COUNTRY_INFO!B55) -> Nord | C55: =IF(COUNTRY_INFO!C55=0," ",COUNTRY_INFO!C55) -> Ntem | D55: =IF(AND(COUNTRY_INFO!$U$9:$U$1000="T3 (ALB/MBD)",COUNTRY_INFO!$V$9:$V$1000="T3 (ALB/MBD)"), "T3 (ALB/MBD)", " ") ->  | J55: 0 | N55: 0
A56: =IF(COUNTRY_INFO!A56=0," ",COUNTRY_INFO!A56) -> Gabon | B56: =IF(COUNTRY_INFO!B56=0," ",COUNTRY_INFO!B56) -> Nord | C56: =IF(COUNTRY_INFO!C56=0," ",COUNTRY_INFO!C56) -> Haut - Komo | D56: =IF(AND(COUNTRY_INFO!$U$9:$U$1000="T3 (ALB/MBD)",COUNTRY_INFO!$V$9:$V$1000="T3 (ALB/MBD)"), "T3 (ALB/MBD)", " ") ->  | J56: 0 | N56: 0
A57: =IF(COUNTRY_INFO!A57=0," ",COUNTRY_INFO!A57) -> Gabon | B57: =IF(COUNTRY_INFO!B57=0," ",COUNTRY_INFO!B57) -> Nord | C57: =IF(COUNTRY_INFO!C57=0," ",COUNTRY_INFO!C57) -> Haut-Ntem | D57: =IF(AND(COUNTRY_INFO!$U$9:$U$1000="T3 (ALB/MBD)",COUNTRY_INFO!$V$9:$V$1000="T3 (ALB/MBD)"), "T3 (ALB/MBD)", " ") ->  | J57: 0 | N57: 0
A58: =IF(COUNTRY_INFO!A58=0," ",COUNTRY_INFO!A58) -> Gabon | B58: =IF(COUNTRY_INFO!B58=0," ",COUNTRY_INFO!B58) -> Nord | C58: =IF(COUNTRY_INFO!C58=0," ",COUNTRY_INFO!C58) -> Okano | D58: =IF(AND(COUNTRY_INFO!$U$9:$U$1000="T3 (ALB/MBD)",COUNTRY_INFO!$V$9:$V$1000="T3 (ALB/MBD)"), "T3 (ALB/MBD)", " ") ->  | J58: 0 | N58: 0
A59: =IF(COUNTRY_INFO!A59=0," ",COUNTRY_INFO!A59) -> Gabon | B59: =IF(COUNTRY_INFO!B59=0," ",COUNTRY_INFO!B59) -> Nord | C59: =IF(COUNTRY_INFO!C59=0," ",COUNTRY_INFO!C59) -> Woleu | D59: =IF(AND(COUNTRY_INFO!$U$9:$U$1000="T3 (ALB/MBD)",COUNTRY_INFO!$V$9:$V$1000="T3 (ALB/MBD)"), "T3 (ALB/MBD)", " ") ->  | J59: 0 | N59: 0

Sheet DISTRICT
A1: Nombre d'individus traités
A2: Structure administrative, population traitée par groupe d'âge et sexe
A4: TOTAL | D4: =SUM(D$9:D$1000) -> 361121 | E4: =SUM(E$9:E$1000) -> 0 | F4: =SUM(F$9:F$1000) -> 0 | G4: =SUM(G$9:G$1000) -> 0 | H4: =SUM(H$9:H$1000) -> 0 | I4: =IF(D4>0, IF(H4/D4*100<>0, H4/D4*100, "-"),0) -> - | J4: =SUM(J$9:J$1000) -> 721771 | K4: =SUM(K$9:K$1000) -> 0 | L4: =SUM(L$9:L$1000) -> 0 | M4: =SUM(M$9:M$1000) -> 0 | N4: =SUM(N$9:N$1000) -> 0 | O4: =IF(J4>0, IF(N4/J4*100<>0, N4/J4*100, "-"),0) -> - | P4: =SUM(P$9:P$1000) -> 483207 | Q4: =SUM(Q$9:Q$1000) -> 60782 | R4: =SUM(R$9:R$1000) -> 62170 | S4: =SUM(S$9:S$1000) -> 128533 | T4: =SUM(T$9:T$1000) -> 0 | V4: 128533 | X4: =SUM(X$9:X$1000) -> 128533 | Y4: =IF(P4>0, IF(X4/P4*100<>0, X4/P4*100, "-"),0) -> 26.59998717 | Z4: =SUM(Z$9:Z$1000) -> 192878.62 | AA4: 80333 | AB4: 82666 | AC4: 189108 | AD4: 141006.87 | AF4: 0 | AH4: 141006.87 | AI4: =IF(Z4>0, IF(AH4/Z4*100<>0, AH4/Z4*100, "-"),0) -> 73.10653197
A6: Structure administrative du pays | D6: Population nécessitant la CP pour FL | E6: Population traitée pour la filariose lymphatique | J6: Population nécessitant la CP pour ONCHO | K6: Population traitée pour l'onchocercose | P6: Population nécessitant la CP pour STH | Q6: Population traitée pour les géohelminthiases | Z6: Population nécessitant la CP pour SCH | AA6: Population traitée pour la schistosomiase | AP6: =SUM(AP9:AP1000) -> 33387.53319 | AQ6: 156713.2353 | AR6: 389238.4017 | AS6: 501825.5187 | AT6: =SUM(AT9:AT1000) -> 1081164.689 | AU6: =COUNTIF(AU9:AU1000,"Y") -> 21 | AV6: =SUM(AV9:AV1000) -> 0 | AW6: 200086 | AX6: 0 | AY6: =SUM(AY9:AY1000) -> 200086 | AZ6: 0 | BA6: 175065.52 | BB6: 0 | BC6: 175065.52 | BD6: =IF(AT6<>0,BC6/AT6,0) -> 0.1619230833
A7: Pays | B7: Région/Département | C7: District | E7: Masculine | F7: Féminine | G7: Total traité | H7: Total traité ayant besoin de CP | I7: (%) | K7: Masculine | L7: Féminine | M7: Total traité | N7: Total traité ayant besoin de CP | O7: (%) | Q7: Masculine | R7: Féminine | S7: Total traité | T7: EAPréS traité ayant besoin de CP | U7: EAPréS (%) | V7: EAS traité ayant besoin de CP | W7: EAS (%) | X7: Total traité ayant besoin de CP | Y7: (%) | AA7: Masculine | AB7: Féminine | AC7: Total traité | AD7: EAS traité ayant besoin de CP | AE7: EAS (%) | AF7: Adultes traité ayant besoin de CP | AG7: Adultes (%) | AH7: Total traité ayant besoin de CP | AI7: (%) | AK7: LF | AL7: ONCHO | AM7: STH | AN7: SCH-SAC | AO7: SCH_Adults | AP7: <1 | AQ7: PreSAC | AR7: SAC | AS7: Adults | AT7: Total | AU7: Dis | AV7: PreSAC | AW7: SAC | AX7: Adults | AY7: Total | AZ7: PreSAC | BA7: SAC | BB7: Adults | BC7: Total | BD7: Coverage
A9: =IF(COUNTRY_INFO!A9=0," ",COUNTRY_INFO!A9) -> Gabon | B9: =IF(COUNTRY_INFO!B9=0," ",COUNTRY_INFO!B9) -> Libreville-Owendo | C9: =IF(COUNTRY_INFO!C9=0," ",COUNTRY_INFO!C9) -> Libreville 1 | D9: =COUNTRY_INFO!M9 -> 0 | G9: =MAX('MDA1'!M9,'MDA4'!U9) -> 0 | H9: =IF(AND(COUNTRY_INFO!H9>0,COUNTRY_INFO!H9<4),IF(D9>MAX('MDA1'!M9,'MDA4'!U9),MAX('MDA1'!M9,'MDA4'!U9),D9),0) -> 0 | I9: =IF(AND(COUNTRY_INFO!H9>0,COUNTRY_INFO!H9<4), IF(G9/D9*100<>0, IF(G9/D9*100>100,100,G9/D9*100), "-"),0) -> 0 | J9: =COUNTRY_INFO!N9 -> Inconnu | M9: =MAX('MDA1'!M9,MAX('MDA3'!I9,'MDA3'!L9)+MAX('MDA3'!J9,'MDA3'!M9)) -> 0 | N9: =IF(AND(COUNTRY_INFO!I9>0,COUNTRY_INFO!I9<4),IF(J9>MAX('MDA1'!M9,MAX('MDA3'!I9,'MDA3'!L9)+MAX('MDA3'!J9,'MDA3'!M9)),MAX('MDA1'!M9,MAX('MDA3'!I9,'MDA3'!L9)+MAX('MDA3'!J9,'MDA3'!M9)),J9),0) -> 0 | O9: =IF(AND(COUNTRY_INFO!I9>0,COUNTRY_INFO!I9<4), IF(M9/J9*100<>0, IF(M9/J9*100>100,100,M9/J9*100), "-"),0) -> 0 | P9: =COUNTRY_INFO!O9 -> 103051 | Q9: 6880 | R9: 7638 | S9: =SUM(MAX('MDA4'!N9, 'T1'!L9, MAX(T3_R1!K9, T3_R2!K9)), MAX('MDA1'!K9, 'MDA4'!O9, 'T1'!M9, MAX(T3_R1!L9, T3_R2!L9)), MAX('MDA1'!L9, 'MDA4'!P9, 'T1'!N9, MAX(T3_R1!M9, T3_R2!M9))) -> 14518 | T9: =IF(AND(COUNTRY_INFO!J9>1,COUNTRY_INFO!J9<4),IF(COUNTRY_INFO!E9>MAX('MDA4'!N9,'T1'!L9,MAX(T3_R1!K9,T3_R2!K9)),MAX('MDA4'!N9,'T1'!L9,MAX(T3_R1!K9,T3_R2!K9)),COUNTRY_INFO!E9),0) -> 0 | U9: =IF(AND(COUNTRY_INFO!J9>1,COUNTRY_INFO!J9<4), IF(T9/COUNTRY_INFO!E9*100<>0, IF(T9/COUNTRY_INFO!E9*100>100,100,T9/COUNTRY_INFO!E9*100), "-"),0) -> - | V9: =IF(AND(COUNTRY_INFO!J9>1,COUNTRY_INFO!J9<4),IF(COUNTRY_INFO!F9>MAX('MDA1'!K9,'MDA4'!O9,'T1'!M9,MAX(T3_R1!L9,T3_R2!L9)),MAX('MDA1'!K9,'MDA4'!O9,'T1'!M9,MAX(T3_R1!L9,T3_R2!L9)),COUNTRY_INFO!F9),0) -> 14518 | W9: =IF(AND(COUNTRY_INFO!J9>1,COUNTRY_INFO!J9<4), IF(V9/COUNTRY_INFO!F9*100<>0, IF(V9/COUNTRY_INFO!F9*100>100,100,V9/COUNTRY_INFO!F9*100), "-"),0) -> 20.85050769 | X9: =SUM(T9,V9) -> 14518 | Y9: =IF(AND(COUNTRY_INFO!J9>1,COUNTRY_INFO!J9<4), IF(S9/P9*100<>0, IF(X9/P9*100>100,100,X9/P9*100), "-"),0) -> 14.08816994 | Z9: =COUNTRY_INFO!P9 -> 22977.57 | AA9: 6880 | AB9: 7638 | AC9: =MAX('T1'!L9,'T2'!J9)+MAX('T1'!M9,'T2'!K9)+MAX('T1'!N9,'T2'!L9) -> 14518 | AD9: =IF(COUNTRY_INFO!K9=1,IF(COUNTRY_INFO!F9*0.33>MAX('T1'!M9,'T2'!K9),MAX('T1'!M9,'T2'!K9),COUNTRY_INFO!F9*0.33),IF(COUNTRY_INFO!K9=2,IF(COUNTRY_INFO!F9*0.5>MAX('T1'!M9,'T2'!K9),MAX('T1'!M9,'T2'!K9),COUNTRY_INFO!F9*0.5),IF(COUNTRY_INFO!K9=3,IF(COUNTRY_INFO!F9>MAX('T1'!M9,'T2'!K9),MAX('T1'!M9,'T2'!K9),COUNTRY_INFO!F9),0))) -> 14518 | AE9: =IF(AND(COUNTRY_INFO!K9>0,COUNTRY_INFO!K9<4),IF(Z9>0,IF(COUNTRY_INFO!K9=1, AD9/(COUNTRY_INFO!F9*0.33)*100, IF(COUNTRY_INFO!K9=2, AD9/(COUNTRY_INFO!F9*0.5)*100, IF(COUNTRY_INFO!K9=3, AD9/COUNTRY_INFO!F9*100))),"-"),0) -> 63.18335664 | AF9: =IF(COUNTRY_INFO!K9=2,IF(COUNTRY_INFO!G9*0.2>MAX('T1'!N9,'T2'!L9),MAX('T1'!N9,'T2'!L9),COUNTRY_INFO!G9*0.2),IF(COUNTRY_INFO!K9=3,IF(COUNTRY_INFO!G9>MAX('T1'!N9,'T2'!L9),MAX('T1'!N9,'T2'!L9),COUNTRY_INFO!G9),0)) -> 0 | AG9: =IF(AND(COUNTRY_INFO!K9>0,COUNTRY_INFO!K9<4),IF(Z9>0,IF(COUNTRY_INFO!K9=1, 0, IF(COUNTRY_INFO!K9=2, AF9/(COUNTRY_INFO!G9*0.2)*100, IF(COUNTRY_INFO!K9=3, AF9/COUNTRY_INFO!G9*100))),"-"),0) -> 0 | AH9: =SUM(AD9,AF9) -> 14518 | AI9: =IF(AND(COUNTRY_INFO!K9>0,COUNTRY_INFO!K9<4), IF(AC9/Z9*100<>0, IF(AH9/Z9*100>100,100,AH9/Z9*100), "-"),0) -> 63.18335664 | AK9: =IF(AND(D9<>0, D9<>"Inconnu",D9<>"Interrompu",D9<>"Non requis"),D9/COUNTRY_INFO!D9, 0) -> 0 | AL9: =IF(AND(J9<>0,J9<>"Inconnu",J9<>"Interrompu",J9<>"Non requis"),J9/COUNTRY_INFO!D9, 0) -> 0 | AM9: =IF(AND(P9<>0,P9<>"Inconnu",P9<>"Non requis"),P9/(COUNTRY_INFO!E9+COUNTRY_INFO!F9), 0) -> 1 | AN9: =IF(AND(Z9<>0,Z9<>"Inconnu",Z9<>"Non requis"),IF(COUNTRY_INFO!K9=1,1,IF(COUNTRY_INFO!K9=2,0.5*COUNTRY_INFO!F9/(0.5*COUNTRY_INFO!F9+0.2*COUNTRY_INFO!G9),IF(COUNTRY_INFO!K9=3,COUNTRY_INFO!F9/(COUNTRY_INFO!F9+COUNTRY_INFO!G9)))),0) -> 1 | AO9: =IF(AND(Z9<>0,Z9<>"Inconnu",Z9<>"Non requis"),IF(COUNTRY_INFO!K9=1,0,IF(COUNTRY_INFO!K9=2,0.2*COUNTRY_INFO!G9/(0.5*COUNTRY_INFO!F9+0.2*COUNTRY_INFO!G9),IF(COUNTRY_INFO!K9=3,COUNTRY_INFO!G9/(COUNTRY_INFO!F9+COUNTRY_INFO!G9)))),0) -> 0 | AP9: =MAX(COUNTRY_INFO!D9*AK9*PROFILE!$G$7,COUNTRY_INFO!D9*AL9*PROFILE!$G$7) -> 0 | AQ9: =MAX(COUNTRY_INFO!D9*AK9*PROFILE!$G$8,COUNTRY_INFO!D9*AL9*PROFILE!$G$8,COUNTRY_INFO!D9*AM9*PROFILE!$G$8) -> 33421.49132 | AR9: =MAX(COUNTRY_INFO!D9*AK9*PROFILE!$G$9,COUNTRY_INFO!D9*AL9*PROFILE!$G$9,COUNTRY_INFO!D9*AM9*PROFILE!$G$9,IF(AND(DISTRICT!Z9<>"Inconnu",Z9<>"Non requis"),COUNTRY_INFO!P9*DISTRICT!AN9,0)) -> 69629.30865 | AS9: =MAX(COUNTRY_INFO!D9*AK9*PROFILE!$G$10,COUNTRY_INFO!D9*AL9*PROFILE!$G$10,IF(AND(DISTRICT!Z9<>"Inconnu",Z9<>"Non requis"),COUNTRY_INFO!P9*DISTRICT!AO9,0)) -> 0 | AT9: =SUM(AP9:AS9) -> 103050.8 | AU9: =IF(COUNTIFS(AK9:AN9,">0")=0,0, IF(COUNTIFS(AK9:AN9,">0")<=IF(AND(OR(D9>=0,D9="Non requis",D9="Inconnu",D9="Interrompu"),D9>0,H9>0),1,0)+IF(AND(OR(J9>=0,J9="Non requis",J9="Inconnu",J9="Interrompu"),J9>0,N9>0),1,0)+IF(AND(OR(P9>=0,P9="Non requis",P9="Inconnu"),P9>0,X9>0),1,0)+IF(AND(OR(Z9>=0,Z9="Non requis",Z9="Inconnu"),Z9>0,AH9>0),1,0),"Y",0)) -> Y | AV9: =MAX('MDA4'!R9,'T1'!L9,'T2'!J9,T3_R1!K9,T3_R2!K9) -> 0 | AW9: =MAX('MDA1'!K9,'MDA4'!S9,'MDA3'!I9,'MDA3'!L9,'T1'!M9,'T2'!K9,T3_R1!L9,T3_R2!L9) -> 14518 | AX9: =MAX('MDA1'!L9,'MDA4'!T9,'MDA3'!J9,'MDA3'!M9,'T1'!N9,'T2'!L9,T3_R1!M9,T3_R2!M9) -> 0 | AY9: =SUM(AV9:AX9) -> 14518 | AZ9: =MAX('MDA4'!R9,T9) -> 0 | BA9: =MAX('MDA1'!K9,'MDA4'!S9,'MDA3'!I9,'MDA3'!L9,V9,AD9) -> 14518 | BB9: =MAX('MDA1'!L9,'MDA4'!T9,'MDA3'!J9,'MDA3'!M9,AF9) -> 0 | BC9: =IF(AT9<SUM(AZ9:BB9), AT9,SUM(AZ9:BB9)) -> 14518 | BD9: =IF(AT9<>0,BC9/AT9*100,0) -> 14.08819728
A10: =IF(COUNTRY_INFO!A10=0," ",COUNTRY_INFO!A10) -> Gabon | B10: =IF(COUNTRY_INFO!B10=0," ",COUNTRY_INFO!B10) -> Libreville-Owendo | C10: =IF(COUNTRY_INFO!C10=0," ",COUNTRY_INFO!C10) -> Libreville 2 | D10: =COUNTRY_INFO!M10 -> 0 | G10: =MAX('MDA1'!M10,'MDA4'!U10) -> 0 | H10: =IF(AND(COUNTRY_INFO!H10>0,COUNTRY_INFO!H10<4),IF(D10>MAX('MDA1'!M10,'MDA4'!U10),MAX('MDA1'!M10,'MDA4'!U10),D10),0) -> 0 | I10: =IF(AND(COUNTRY_INFO!H10>0,COUNTRY_INFO!H10<4), IF(G10/D10*100<>0, IF(G10/D10*100>100,100,G10/D10*100), "-"),0) -> 0 | J10: =COUNTRY_INFO!N10 -> Inconnu | M10: =MAX('MDA1'!M10,MAX('MDA3'!I10,'MDA3'!L10)+MAX('MDA3'!J10,'MDA3'!M10)) -> 0 | N10: =IF(AND(COUNTRY_INFO!I10>0,COUNTRY_INFO!I10<4),IF(J10>MAX('MDA1'!M10,MAX('MDA3'!I10,'MDA3'!L10)+MAX('MDA3'!J10,'MDA3'!M10)),MAX('MDA1'!M10,MAX('MDA3'!I10,'MDA3'!L10)+MAX('MDA3'!J10,'MDA3'!M10)),J10),0) -> 0 | O10: =IF(AND(COUNTRY_INFO!I10>0,COUNTRY_INFO!I10<4), IF(M10/J10*100<>0, IF(M10/J10*100>100,100,M10/J10*100), "-"),0) -> 0 | P10: =COUNTRY_INFO!O10 -> 0 | S10: =SUM(MAX('MDA4'!N10, 'T1'!L10, MAX(T3_R1!K10, T3_R2!K10)), MAX('MDA1'!K10, 'MDA4'!O10, 'T1'!M10, MAX(T3_R1!L10, T3_R2!L10)), MAX('MDA1'!L10, 'MDA4'!P10, 'T1'!N10, MAX(T3_R1!M10, T3_R2!M10))) -> 0 | T10: =IF(AND(COUNTRY_INFO!J10>1,COUNTRY_INFO!J10<4),IF(COUNTRY_INFO!E10>MAX('MDA4'!N10,'T1'!L10,MAX(T3_R1!K10,T3_R2!K10)),MAX('MDA4'!N10,'T1'!L10,MAX(T3_R1!K10,T3_R2!K10)),COUNTRY_INFO!E10),0) -> 0 | U10: =IF(AND(COUNTRY_INFO!J10>1,COUNTRY_INFO!J10<4), IF(T10/COUNTRY_INFO!E10*100<>0, IF(T10/COUNTRY_INFO!E10*100>100,100,T10/COUNTRY_INFO!E10*100), "-"),0) -> 0 | V10: =IF(AND(COUNTRY_INFO!J10>1,COUNTRY_INFO!J10<4),IF(COUNTRY_INFO!F10>MAX('MDA1'!K10,'MDA4'!O10,'T1'!M10,MAX(T3_R1!L10,T3_R2!L10)),MAX('MDA1'!K10,'MDA4'!O10,'T1'!M10,MAX(T3_R1!L10,T3_R2!L10)),COUNTRY_INFO!F10),0) -> 0 | W10: =IF(AND(COUNTRY_INFO!J10>1,COUNTRY_INFO!J10<4), IF(V10/COUNTRY_INFO!F10*100<>0, IF(V10/COUNTRY_INFO!F10*100>100,100,V10/COUNTRY_INFO!F10*100), "-"),0) -> 0 | X10: =SUM(T10,V10) -> 0 | Y10: =IF(AND(COUNTRY_INFO!J10>1,COUNTRY_INFO!J10<4), IF(S10/P10*100<>0, IF(X10/P10*100>100,100,X10/P10*100), "-"),0) -> 0 | Z10: =COUNTRY_INFO!P10 -> 24304.17 | AA10: 8114 | AB10: 8664 | AC10: =MAX('T1'!L10,'T2'!J10)+MAX('T1'!M10,'T2'!K10)+MAX('T1'!N10,'T2'!L10) -> 16778 | AD10: =IF(COUNTRY_INFO!K10=1,IF(COUNTRY_INFO!F10*0.33>MAX('T1'!M10,'T2'!K10),MAX('T1'!M10,'T2'!K10),COUNTRY_INFO!F10*0.33),IF(COUNTRY_INFO!K10=2,IF(COUNTRY_INFO!F10*0.5>MAX('T1'!M10,'T2'!K10),MAX('T1'!M10,'T2'!K10),COUNTRY_INFO!F10*0.5),IF(COUNTRY_INFO!K10=3,IF(COUNTRY_INFO!F10>MAX('T1'!M10,'T2'!K10),MAX('T1'!M10,'T2'!K10),COUNTRY_INFO!F10),0))) -> 16778 | AE10: =IF(AND(COUNTRY_INFO!K10>0,COUNTRY_INFO!K10<4),IF(Z10>0,IF(COUNTRY_INFO!K10=1, AD10/(COUNTRY_INFO!F10*0.33)*100, IF(COUNTRY_INFO!K10=2, AD10/(COUNTRY_INFO!F10*0.5)*100, IF(COUNTRY_INFO!K10=3, AD10/COUNTRY_INFO!F10*100))),"-"),0) -> 69.03342101 | AF10: =IF(COUNTRY_INFO!K10=2,IF(COUNTRY_INFO!G10*0.2>MAX('T1'!N10,'T2'!L10),MAX('T1'!N10,'T2'!L10),COUNTRY_INFO!G10*0.2),IF(COUNTRY_INFO!K10=3,IF(COUNTRY_INFO!G10>MAX('T1'!N10,'T2'!L10),MAX('T1'!N10,'T2'!L10),COUNTRY_INFO!G10),0)) -> 0 | AG10: =IF(AND(COUNTRY_INFO!K10>0,COUNTRY_INFO!K10<4),IF(Z10>0,IF(COUNTRY_INFO!K10=1, 0, IF(COUNTRY_INFO!K10=2, AF10/(COUNTRY_INFO!G10*0.2)*100, IF(COUNTRY_INFO!K10=3, AF10/COUNTRY_INFO!G10*100))),"-"),0) -> 0 | AH10: =SUM(AD10,AF10) -> 16778 | AI10: =IF(AND(COUNTRY_INFO!K10>0,COUNTRY_INFO!K10<4), IF(AC10/Z10*100<>0, IF(AH10/Z10*100>100,100,AH10/Z10*100), "-"),0) -> 69.03342101 | AK10: =IF(AND(D10<>0, D10<>"Inconnu",D10<>"Interrompu",D10<>"Non requis"),D10/COUNTRY_INFO!D10, 0) -> 0 | AL10: =IF(AND(J10<>0,J10<>"Inconnu",J10<>"Interrompu",J10<>"Non requis"),J10/COUNTRY_INFO!D10, 0) -> 0 | AM10: =IF(AND(P10<>0,P10<>"Inconnu",P10<>"Non requis"),P10/(COUNTRY_INFO!E10+COUNTRY_INFO!F10), 0) -> 0 | AN10: =IF(AND(Z10<>0,Z10<>"Inconnu",Z10<>"Non requis"),IF(COUNTRY_INFO!K10=1,1,IF(COUNTRY_INFO!K10=2,0.5*COUNTRY_INFO!F10/(0.5*COUNTRY_INFO!F10+0.2*COUNTRY_INFO!G10),IF(COUNTRY_INFO!K10=3,COUNTRY_INFO!F10/(COUNTRY_INFO!F10+COUNTRY_INFO!G10)))),0) -> 1 | AO10: =IF(AND(Z10<>0,Z10<>"Inconnu",Z10<>"Non requis"),IF(COUNTRY_INFO!K10=1,0,IF(COUNTRY_INFO!K10=2,0.2*COUNTRY_INFO!G10/(0.5*COUNTRY_INFO!F10+0.2*COUNTRY_INFO!G10),IF(COUNTRY_INFO!K10=3,COUNTRY_INFO!G10/(COUNTRY_INFO!F10+COUNTRY_INFO!G10)))),0) -> 0 | AP10: =MAX(COUNTRY_INFO!D10*AK10*PROFILE!$G$7,COUNTRY_INFO!D10*AL10*PROFILE!$G$7) -> 0 | AQ10: =MAX(COUNTRY_INFO!D10*AK10*PROFILE!$G$8,COUNTRY_INFO!D10*AL10*PROFILE!$G$8,COUNTRY_INFO!D10*AM10*PROFILE!$G$8) -> 0 | AR10: =MAX(COUNTRY_INFO!D10*AK10*PROFILE!$G$9,COUNTRY_INFO!D10*AL10*PROFILE!$G$9,COUNTRY_INFO!D10*AM10*PROFILE!$G$9,IF(AND(DISTRICT!Z10<>"Inconnu",Z10<>"Non requis"),COUNTRY_INFO!P10*DISTRICT!AN10,0)) -> 24304.17 | AS10: =MAX(COUNTRY_INFO!D10*AK10*PROFILE!$G$10,COUNTRY_INFO!D10*AL10*PROFILE!$G$10,IF(AND(DISTRICT!Z10<>"Inconnu",Z10<>"Non requis"),COUNTRY_INFO!P10*DISTRICT!AO10,0)) -> 0 | AT10: =SUM(AP10:AS10) -> 24304.17 | AU10: Y | AV10: =MAX('MDA4'!R10,'T1'!L10,'T2'!J10,T3_R1!K10,T3_R2!K10) -> 0 | AW10: =MAX('MDA1'!K10,'MDA4'!S10,'MDA3'!I10,'MDA3'!L10,'T1'!M10,'T2'!K10,T3_R1!L10,T3_R2!L10) -> 16778 | AX10: =MAX('MDA1'!L10,'MDA4'!T10,'MDA3'!J10,'MDA3'!M10,'T1'!N10,'T2'!L10,T3_R1!M10,T3_R2!M10) -> 0 | AY10: =SUM(AV10:AX10) -> 16778 | AZ10: =MAX('MDA4'!R10,T10) -> 0 | BA10: =MAX('MDA1'!K10,'MDA4'!S10,'MDA3'!I10,'MDA3'!L10,V10,AD10) -> 16778 | BB10: =MAX('MDA1'!L10,'MDA4'!T10,'MDA3'!J10,'MDA3'!M10,AF10) -> 0 | BC10: 16778 | BD10: 69.03342101
A11: =IF(COUNTRY_INFO!A11=0," ",COUNTRY_INFO!A11) -> Gabon | B11: =IF(COUNTRY_INFO!B11=0," ",COUNTRY_INFO!B11) -> Libreville-Owendo | C11: =IF(COUNTRY_INFO!C11=0," ",COUNTRY_INFO!C11) -> Libreville 3 | D11: =COUNTRY_INFO!M11 -> 0 | G11: =MAX('MDA1'!M11,'MDA4'!U11) -> 0 | H11: =IF(AND(COUNTRY_INFO!H11>0,COUNTRY_INFO!H11<4),IF(D11>MAX('MDA1'!M11,'MDA4'!U11),MAX('MDA1'!M11,'MDA4'!U11),D11),0) -> 0 | I11: =IF(AND(COUNTRY_INFO!H11>0,COUNTRY_INFO!H11<4), IF(G11/D11*100<>0, IF(G11/D11*100>100,100,G11/D11*100), "-"),0) -> 0 | J11: =COUNTRY_INFO!N11 -> Inconnu | M11: =MAX('MDA1'!M11,MAX('MDA3'!I11,'MDA3'!L11)+MAX('MDA3'!J11,'MDA3'!M11)) -> 0 | N11: =IF(AND(COUNTRY_INFO!I11>0,COUNTRY_INFO!I11<4),IF(J11>MAX('MDA1'!M11,MAX('MDA3'!I11,'MDA3'!L11)+MAX('MDA3'!J11,'MDA3'!M11)),MAX('MDA1'!M11,MAX('MDA3'!I11,'MDA3'!L11)+MAX('MDA3'!J11,'MDA3'!M11)),J11),0) -> 0 | O11: =IF(AND(COUNTRY_INFO!I11>0,COUNTRY_INFO!I11<4), IF(M11/J11*100<>0, IF(M11/J11*100>100,100,M11/J11*100), "-"),0) -> 0 | P11: =COUNTRY_INFO!O11 -> 0 | S11: =SUM(MAX('MDA4'!N11, 'T1'!L11, MAX(T3_R1!K11, T3_R2!K11)), MAX('MDA1'!K11, 'MDA4'!O11, 'T1'!M11, MAX(T3_R1!L11, T3_R2!L11)), MAX('MDA1'!L11, 'MDA4'!P11, 'T1'!N11, MAX(T3_R1!M11, T3_R2!M11))) -> 0 | T11: =IF(AND(COUNTRY_INFO!J11>1,COUNTRY_INFO!J11<4),IF(COUNTRY_INFO!E11>MAX('MDA4'!N11,'T1'!L11,MAX(T3_R1!K11,T3_R2!K11)),MAX('MDA4'!N11,'T1'!L11,MAX(T3_R1!K11,T3_R2!K11)),COUNTRY_INFO!E11),0) -> 0 | U11: =IF(AND(COUNTRY_INFO!J11>1,COUNTRY_INFO!J11<4), IF(T11/COUNTRY_INFO!E11*100<>0, IF(T11/COUNTRY_INFO!E11*100>100,100,T11/COUNTRY_INFO!E11*100), "-"),0) -> 0 | V11: =IF(AND(COUNTRY_INFO!J11>1,COUNTRY_INFO!J11<4),IF(COUNTRY_INFO!F11>MAX('MDA1'!K11,'MDA4'!O11,'T1'!M11,MAX(T3_R1!L11,T3_R2!L11)),MAX('MDA1'!K11,'MDA4'!O11,'T1'!M11,MAX(T3_R1!L11,T3_R2!L11)),COUNTRY_INFO!F11),0) -> 0 | W11: =IF(AND(COUNTRY_INFO!J11>1,COUNTRY_INFO!J11<4), IF(V11/COUNTRY_INFO!F11*100<>0, IF(V11/COUNTRY_INFO!F11*100>100,100,V11/COUNTRY_INFO!F11*100), "-"),0) -> 0 | X11: 0 | Y11: =IF(AND(COUNTRY_INFO!J11>1,COUNTRY_INFO!J11<4), IF(S11/P11*100<>0, IF(X11/P11*100>100,100,X11/P11*100), "-"),0) -> 0 | Z11: =COUNTRY_INFO!P11 -> 18920.55 | AA11: 5103 | AB11: 5206 | AC11: =MAX('T1'!L11,'T2'!J11)+MAX('T1'!M11,'T2'!K11)+MAX('T1'!N11,'T2'!L11) -> 10309 | AD11: =IF(COUNTRY_INFO!K11=1,IF(COUNTRY_INFO!F11*0.33>MAX('T1'!M11,'T2'!K11),MAX('T1'!M11,'T2'!K11),COUNTRY_INFO!F11*0.33),IF(COUNTRY_INFO!K11=2,IF(COUNTRY_INFO!F11*0.5>MAX('T1'!M11,'T2'!K11),MAX('T1'!M11,'T2'!K11),COUNTRY_INFO!F11*0.5),IF(COUNTRY_INFO!K11=3,IF(COUNTRY_INFO!F11>MAX('T1'!M11,'T2'!K11),MAX('T1'!M11,'T2'!K11),COUNTRY_INFO!F11),0))) -> 10309 | AE11: =IF(AND(COUNTRY_INFO!K11>0,COUNTRY_INFO!K11<4),IF(Z11>0,IF(COUNTRY_INFO!K11=1, AD11/(COUNTRY_INFO!F11*0.33)*100, IF(COUNTRY_INFO!K11=2, AD11/(COUNTRY_INFO!F11*0.5)*100, IF(COUNTRY_INFO!K11=3, AD11/COUNTRY_INFO!F11*100))),"-"),0) -> 54.48573112 | AF11: =IF(COUNTRY_INFO!K11=2,IF(COUNTRY_INFO!G11*0.2>MAX('T1'!N11,'T2'!L11),MAX('T1'!N11,'T2'!L11),COUNTRY_INFO!G11*0.2),IF(COUNTRY_INFO!K11=3,IF(COUNTRY_INFO!G11>MAX('T1'!N11,'T2'!L11),MAX('T1'!N11,'T2'!L11),COUNTRY_INFO!G11),0)) -> 0 | AG11: =IF(AND(COUNTRY_INFO!K11>0,COUNTRY_INFO!K11<4),IF(Z11>0,IF(COUNTRY_INFO!K11=1, 0, IF(COUNTRY_INFO!K11=2, AF11/(COUNTRY_INFO!G11*0.2)*100, IF(COUNTRY_INFO!K11=3, AF11/COUNTRY_INFO!G11*100))),"-"),0) -> 0 | AH11: 10309 | AI11: =IF(AND(COUNTRY_INFO!K11>0,COUNTRY_INFO!K11<4), IF(AC11/Z11*100<>0, IF(AH11/Z11*100>100,100,AH11/Z11*100), "-"),0) -> 54.48573112 | AK11: =IF(AND(D11<>0, D11<>"Inconnu",D11<>"Interrompu",D11<>"Non requis"),D11/COUNTRY_INFO!D11, 0) -> 0 | AL11: =IF(AND(J11<>0,J11<>"Inconnu",J11<>"Interrompu",J11<>"Non requis"),J11/COUNTRY_INFO!D11, 0) -> 0 | AM11: =IF(AND(P11<>0,P11<>"Inconnu",P11<>"Non requis"),P11/(COUNTRY_INFO!E11+COUNTRY_INFO!F11), 0) -> 0 | AN11: =IF(AND(Z11<>0,Z11<>"Inconnu",Z11<>"Non requis"),IF(COUNTRY_INFO!K11=1,1,IF(COUNTRY_INFO!K11=2,0.5*COUNTRY_INFO!F11/(0.5*COUNTRY_INFO!F11+0.2*COUNTRY_INFO!G11),IF(COUNTRY_INFO!K11=3,COUNTRY_INFO!F11/(COUNTRY_INFO!F11+COUNTRY_INFO!G11)))),0) -> 1 | AO11: =IF(AND(Z11<>0,Z11<>"Inconnu",Z11<>"Non requis"),IF(COUNTRY_INFO!K11=1,0,IF(COUNTRY_INFO!K11=2,0.2*COUNTRY_INFO!G11/(0.5*COUNTRY_INFO!F11+0.2*COUNTRY_INFO!G11),IF(COUNTRY_INFO!K11=3,COUNTRY_INFO!G11/(COUNTRY_INFO!F11+COUNTRY_INFO!G11)))),0) -> 0 | AP11: =MAX(COUNTRY_INFO!D11*AK11*PROFILE!$G$7,COUNTRY_INFO!D11*AL11*PROFILE!$G$7) -> 0 | AQ11: =MAX(COUNTRY_INFO!D11*AK11*PROFILE!$G$8,COUNTRY_INFO!D11*AL11*PROFILE!$G$8,COUNTRY_INFO!D11*AM11*PROFILE!$G$8) -> 0 | AR11: =MAX(COUNTRY_INFO!D11*AK11*PROFILE!$G$9,COUNTRY_INFO!D11*AL11*PROFILE!$G$9,COUNTRY_INFO!D11*AM11*PROFILE!$G$9,IF(AND(DISTRICT!Z11<>"Inconnu",Z11<>"Non requis"),COUNTRY_INFO!P11*DISTRICT!AN11,0)) -> 18920.55 | AS11: =MAX(COUNTRY_INFO!D11*AK11*PROFILE!$G$10,COUNTRY_INFO!D11*AL11*PROFILE!$G$10,IF(AND(DISTRICT!Z11<>"Inconnu",Z11<>"Non requis"),COUNTRY_INFO!P11*DISTRICT!AO11,0)) -> 0 | AT11: 18920.55 | AU11: Y | AV11: =MAX('MDA4'!R11,'T1'!L11,'T2'!J11,T3_R1!K11,T3_R2!K11) -> 0 | AW11: =MAX('MDA1'!K11,'MDA4'!S11,'MDA3'!I11,'MDA3'!L11,'T1'!M11,'T2'!K11,T3_R1!L11,T3_R2!L11) -> 10309 | AX11: =MAX('MDA1'!L11,'MDA4'!T11,'MDA3'!J11,'MDA3'!M11,'T1'!N11,'T2'!L11,T3_R1!M11,T3_R2!M11) -> 0 | AY11: 10309 | AZ11: =MAX('MDA4'!R11,T11) -> 0 | BA11: =MAX('MDA1'!K11,'MDA4'!S11,'MDA3'!I11,'MDA3'!L11,V11,AD11) -> 10309 | BB11: =MAX('MDA1'!L11,'MDA4'!T11,'MDA3'!J11,'MDA3'!M11,AF11) -> 0 | BC11: 10309 | BD11: 54.48573112
A12: =IF(COUNTRY_INFO!A12=0," ",COUNTRY_INFO!A12) -> Gabon | B12: =IF(COUNTRY_INFO!B12=0," ",COUNTRY_INFO!B12) -> Libreville-Owendo | C12: =IF(COUNTRY_INFO!C12=0," ",COUNTRY_INFO!C12) -> Owendo | D12: =COUNTRY_INFO!M12 -> 0 | G12: =MAX('MDA1'!M12,'MDA4'!U12) -> 0 | H12: =IF(AND(COUNTRY_INFO!H12>0,COUNTRY_INFO!H12<4),IF(D12>MAX('MDA1'!M12,'MDA4'!U12),MAX('MDA1'!M12,'MDA4'!U12),D12),0) -> 0 | I12: =IF(AND(COUNTRY_INFO!H12>0,COUNTRY_INFO!H12<4), IF(G12/D12*100<>0, IF(G12/D12*100>100,100,G12/D12*100), "-"),0) -> 0 | J12: =COUNTRY_INFO!N12 -> Inconnu | M12: =MAX('MDA1'!M12,MAX('MDA3'!I12,'MDA3'!L12)+MAX('MDA3'!J12,'MDA3'!M12)) -> 0 | N12: =IF(AND(COUNTRY_INFO!I12>0,COUNTRY_INFO!I12<4),IF(J12>MAX('MDA1'!M12,MAX('MDA3'!I12,'MDA3'!L12)+MAX('MDA3'!J12,'MDA3'!M12)),MAX('MDA1'!M12,MAX('MDA3'!I12,'MDA3'!L12)+MAX('MDA3'!J12,'MDA3'!M12)),J12),0) -> 0 | O12: =IF(AND(COUNTRY_INFO!I12>0,COUNTRY_INFO!I12<4), IF(M12/J12*100<>0, IF(M12/J12*100>100,100,M12/J12*100), "-"),0) -> 0 | P12: =COUNTRY_INFO!O12 -> 0 | S12: =SUM(MAX('MDA4'!N12, 'T1'!L12, MAX(T3_R1!K12, T3_R2!K12)), MAX('MDA1'!K12, 'MDA4'!O12, 'T1'!M12, MAX(T3_R1!L12, T3_R2!L12)), MAX('MDA1'!L12, 'MDA4'!P12, 'T1'!N12, MAX(T3_R1!M12, T3_R2!M12))) -> 0 | T12: =IF(AND(COUNTRY_INFO!J12>1,COUNTRY_INFO!J12<4),IF(COUNTRY_INFO!E12>MAX('MDA4'!N12,'T1'!L12,MAX(T3_R1!K12,T3_R2!K12)),MAX('MDA4'!N12,'T1'!L12,MAX(T3_R1!K12,T3_R2!K12)),COUNTRY_INFO!E12),0) -> 0 | U12: =IF(AND(COUNTRY_INFO!J12>1,COUNTRY_INFO!J12<4), IF(T12/COUNTRY_INFO!E12*100<>0, IF(T12/COUNTRY_INFO!E12*100>100,100,T12/COUNTRY_INFO!E12*100), "-"),0) -> 0 | V12: =IF(AND(COUNTRY_INFO!J12>1,COUNTRY_INFO!J12<4),IF(COUNTRY_INFO!F12>MAX('MDA1'!K12,'MDA4'!O12,'T1'!M12,MAX(T3_R1!L12,T3_R2!L12)),MAX('MDA1'!K12,'MDA4'!O12,'T1'!M12,MAX(T3_R1!L12,T3_R2!L12)),COUNTRY_INFO!F12),0) -> 0 | W12: =IF(AND(COUNTRY_INFO!J12>1,COUNTRY_INFO!J12<4), IF(V12/COUNTRY_INFO!F12*100<>0, IF(V12/COUNTRY_INFO!F12*100>100,100,V12/COUNTRY_INFO!F12*100), "-"),0) -> 0 | X12: 0 | Y12: =IF(AND(COUNTRY_INFO!J12>1,COUNTRY_INFO!J12<4), IF(S12/P12*100<>0, IF(X12/P12*100>100,100,X12/P12*100), "-"),0) -> 0 | Z12: =COUNTRY_INFO!P12 -> 7198.62 | AA12: 3444 | AB12: 3678 | AC12: =MAX('T1'!L12,'T2'!J12)+MAX('T1'!M12,'T2'!K12)+MAX('T1'!N12,'T2'!L12) -> 7122 | AD12: =IF(COUNTRY_INFO!K12=1,IF(COUNTRY_INFO!F12*0.33>MAX('T1'!M12,'T2'!K12),MAX('T1'!M12,'T2'!K12),COUNTRY_INFO!F12*0.33),IF(COUNTRY_INFO!K12=2,IF(COUNTRY_INFO!F12*0.5>MAX('T1'!M12,'T2'!K12),MAX('T1'!M12,'T2'!K12),COUNTRY_INFO!F12*0.5),IF(COUNTRY_INFO!K12=3,IF(COUNTRY_INFO!F12>MAX('T1'!M12,'T2'!K12),MAX('T1'!M12,'T2'!K12),COUNTRY_INFO!F12),0))) -> 7122 | AE12: =IF(AND(COUNTRY_INFO!K12>0,COUNTRY_INFO!K12<4),IF(Z12>0,IF(COUNTRY_INFO!K12=1, AD12/(COUNTRY_INFO!F12*0.33)*100, IF(COUNTRY_INFO!K12=2, AD12/(COUNTRY_INFO!F12*0.5)*100, IF(COUNTRY_INFO!K12=3, AD12/COUNTRY_INFO!F12*100))),"-"),0) -> 98.93562933 | AF12: =IF(COUNTRY_INFO!K12=2,IF(COUNTRY_INFO!G12*0.2>MAX('T1'!N12,'T2'!L12),MAX('T1'!N12,'T2'!L12),COUNTRY_INFO!G12*0.2),IF(COUNTRY_INFO!K12=3,IF(COUNTRY_INFO!G12>MAX('T1'!N12,'T2'!L12),MAX('T1'!N12,'T2'!L12),COUNTRY_INFO!G12),0)) -> 0 | AG12: =IF(AND(COUNTRY_INFO!K12>0,COUNTRY_INFO!K12<4),IF(Z12>0,IF(COUNTRY_INFO!K12=1, 0, IF(COUNTRY_INFO!K12=2, AF12/(COUNTRY_INFO!G12*0.2)*100, IF(COUNTRY_INFO!K12=3, AF12/COUNTRY_INFO!G12*100))),"-"),0) -> 0 | AH12: 7122 | AI12: =IF(AND(COUNTRY_INFO!K12>0,COUNTRY_INFO!K12<4), IF(AC12/Z12*100<>0, IF(AH12/Z12*100>100,100,AH12/Z12*100), "-"),0) -> 98.93562933 | AK12: =IF(AND(D12<>0, D12<>"Inconnu",D12<>"Interrompu",D12<>"Non requis"),D12/COUNTRY_INFO!D12, 0) -> 0 | AL12: =IF(AND(J12<>0,J12<>"Inconnu",J12<>"Interrompu",J12<>"Non requis"),J12/COUNTRY_INFO!D12, 0) -> 0 | AM12: =IF(AND(P12<>0,P12<>"Inconnu",P12<>"Non requis"),P12/(COUNTRY_INFO!E12+COUNTRY_INFO!F12), 0) -> 0 | AN12: =IF(AND(Z12<>0,Z12<>"Inconnu",Z12<>"Non requis"),IF(COUNTRY_INFO!K12=1,1,IF(COUNTRY_INFO!K12=2,0.5*COUNTRY_INFO!F12/(0.5*COUNTRY_INFO!F12+0.2*COUNTRY_INFO!G12),IF(COUNTRY_INFO!K12=3,COUNTRY_INFO!F12/(COUNTRY_INFO!F12+COUNTRY_INFO!G12)))),0) -> 1 | AO12: =IF(AND(Z12<>0,Z12<>"Inconnu",Z12<>"Non requis"),IF(COUNTRY_INFO!K12=1,0,IF(COUNTRY_INFO!K12=2,0.2*COUNTRY_INFO!G12/(0.5*COUNTRY_INFO!F12+0.2*COUNTRY_INFO!G12),IF(COUNTRY_INFO!K12=3,COUNTRY_INFO!G12/(COUNTRY_INFO!F12+COUNTRY_INFO!G12)))),0) -> 0 | AP12: =MAX(COUNTRY_INFO!D12*AK12*PROFILE!$G$7,COUNTRY_INFO!D12*AL12*PROFILE!$G$7) -> 0 | AQ12: =MAX(COUNTRY_INFO!D12*AK12*PROFILE!$G$8,COUNTRY_INFO!D12*AL12*PROFILE!$G$8,COUNTRY_INFO!D12*AM12*PROFILE!$G$8) -> 0 | AR12: =MAX(COUNTRY_INFO!D12*AK12*PROFILE!$G$9,COUNTRY_INFO!D12*AL12*PROFILE!$G$9,COUNTRY_INFO!D12*AM12*PROFILE!$G$9,IF(AND(DISTRICT!Z12<>"Inconnu",Z12<>"Non requis"),COUNTRY_INFO!P12*DISTRICT!AN12,0)) -> 7198.62 | AS12: =MAX(COUNTRY_INFO!D12*AK12*PROFILE!$G$10,COUNTRY_INFO!D12*AL12*PROFILE!$G$10,IF(AND(DISTRICT!Z12<>"Inconnu",Z12<>"Non requis"),COUNTRY_INFO!P12*DISTRICT!AO12,0)) -> 0 | AT12: 7198.62 | AU12: Y | AV12: =MAX('MDA4'!R12,'T1'!L12,'T2'!J12,T3_R1!K12,T3_R2!K12) -> 0 | AW12: =MAX('MDA1'!K12,'MDA4'!S12,'MDA3'!I12,'MDA3'!L12,'T1'!M12,'T2'!K12,T3_R1!L12,T3_R2!L12) -> 7122 | AX12: =MAX('MDA1'!L12,'MDA4'!T12,'MDA3'!J12,'MDA3'!M12,'T1'!N12,'T2'!L12,T3_R1!M12,T3_R2!M12) -> 0 | AY12: 7122 | AZ12: =MAX('MDA4'!R12,T12) -> 0 | BA12: =MAX('MDA1'!K12,'MDA4'!S12,'MDA3'!I12,'MDA3'!L12,V12,AD12) -> 7122 | BB12: =MAX('MDA1'!L12,'MDA4'!T12,'MDA3'!J12,'MDA3'!M12,AF12) -> 0 | BC12: 7122 | BD12: 98.93562933
A13: =IF(COUNTRY_INFO!A13=0," ",COUNTRY_INFO!A13) -> Gabon | B13: =IF(COUNTRY_INFO!B13=0," ",COUNTRY_INFO!B13) -> Ouest | C13: =IF(COUNTRY_INFO!C13=0," ",COUNTRY_INFO!C13) -> Komo-Mondah | D13: =COUNTRY_INFO!M13 -> 96045 | G13: =MAX('MDA1'!M13,'MDA4'!U13) -> 0 | H13: =IF(AND(COUNTRY_INFO!H13>0,COUNTRY_INFO!H13<4),IF(D13>MAX('MDA1'!M13,'MDA4'!U13),MAX('MDA1'!M13,'MDA4'!U13),D13),0) -> 0 | I13: =IF(AND(COUNTRY_INFO!H13>0,COUNTRY_INFO!H13<4), IF(G13/D13*100<>0, IF(G13/D13*100>100,100,G13/D13*100), "-"),0) -> - | J13: =COUNTRY_INFO!N13 -> 0 | M13: =MAX('MDA1'!M13,MAX('MDA3'!I13,'MDA3'!L13)+MAX('MDA3'!J13,'MDA3'!M13)) -> 0 | N13: =IF(AND(COUNTRY_INFO!I13>0,COUNTRY_INFO!I13<4),IF(J13>MAX('MDA1'!M13,MAX('MDA3'!I13,'MDA3'!L13)+MAX('MDA3'!J13,'MDA3'!M13)),MAX('MDA1'!M13,MAX('MDA3'!I13,'MDA3'!L13)+MAX('MDA3'!J13,'MDA3'!M13)),J13),0) -> 0 | O13: =IF(AND(COUNTRY_INFO!I13>0,COUNTRY_INFO!I13<4), IF(M13/J13*100<>0, IF(M13/J13*100>100,100,M13/J13*100), "-"),0) -> 0 | P13: =COUNTRY_INFO!O13 -> 35536 | Q13: 8778 | R13: 9403 | S13: =SUM(MAX('MDA4'!N13, 'T1'!L13, MAX(T3_R1!K13, T3_R2!K13)), MAX('MDA1'!K13, 'MDA4'!O13, 'T1'!M13, MAX(T3_R1!L13, T3_R2!L13)), MAX('MDA1'!L13, 'MDA4'!P13, 'T1'!N13, MAX(T3_R1!M13, T3_R2!M13))) -> 18181 | T13: =IF(AND(COUNTRY_INFO!J13>1,COUNTRY_INFO!J13<4),IF(COUNTRY_INFO!E13>MAX('MDA4'!N13,'T1'!L13,MAX(T3_R1!K13,T3_R2!K13)),MAX('MDA4'!N13,'T1'!L13,MAX(T3_R1!K13,T3_R2!K13)),COUNTRY_INFO!E13),0) -> 0 | U13: =IF(AND(COUNTRY_INFO!J13>1,COUNTRY_INFO!J13<4), IF(T13/COUNTRY_INFO!E13*100<>0, IF(T13/COUNTRY_INFO!E13*100>100,100,T13/COUNTRY_INFO!E13*100), "-"),0) -> - | V13: =IF(AND(COUNTRY_INFO!J13>1,COUNTRY_INFO!J13<4),IF(COUNTRY_INFO!F13>MAX('MDA1'!K13,'MDA4'!O13,'T1'!M13,MAX(T3_R1!L13,T3_R2!L13)),MAX('MDA1'!K13,'MDA4'!O13,'T1'!M13,MAX(T3_R1!L13,T3_R2!L13)),COUNTRY_INFO!F13),0) -> 18181 | W13: =IF(AND(COUNTRY_INFO!J13>1,COUNTRY_INFO!J13<4), IF(V13/COUNTRY_INFO!F13*100<>0, IF(V13/COUNTRY_INFO!F13*100>100,100,V13/COUNTRY_INFO!F13*100), "-"),0) -> 75.71946191 | X13: 18181 | Y13: =IF(AND(COUNTRY_INFO!J13>1,COUNTRY_INFO!J13<4), IF(S13/P13*100<>0, IF(X13/P13*100>100,100,X13/P13*100), "-"),0) -> 51.16220171 | Z13: =COUNTRY_INFO!P13 -> 7923.63 | AA13: 8778 | AB13: 9403 | AC13: =MAX('T1'!L13,'T2'!J13)+MAX('T1'!M13,'T2'!K13)+MAX('T1'!N13,'T2'!L13) -> 18181 | AD13: =IF(COUNTRY_INFO!K13=1,IF(COUNTRY_INFO!F13*0.33>MAX('T1'!M13,'T2'!K13),MAX('T1'!M13,'T2'!K13),COUNTRY_INFO!F13*0.33),IF(COUNTRY_INFO!K13=2,IF(COUNTRY_INFO!F13*0.5>MAX('T1'!M13,'T2'!K13),MAX('T1'!M13,'T2'!K13),COUNTRY_INFO!F13*0.5),IF(COUNTRY_INFO!K13=3,IF(COUNTRY_INFO!F13>MAX('T1'!M13,'T2'!K13),MAX('T1'!M13,'T2'!K13),COUNTRY_INFO!F13),0))) -> 7923.63 | AE13: =IF(AND(COUNTRY_INFO!K13>0,COUNTRY_INFO!K13<4),IF(Z13>0,IF(COUNTRY_INFO!K13=1, AD13/(COUNTRY_INFO!F13*0.33)*100, IF(COUNTRY_INFO!K13=2, AD13/(COUNTRY_INFO!F13*0.5)*100, IF(COUNTRY_INFO!K13=3, AD13/COUNTRY_INFO!F13*100))),"-"),0) -> 100 | AF13: =IF(COUNTRY_INFO!K13=2,IF(COUNTRY_INFO!G13*0.2>MAX('T1'!N13,'T2'!L13),MAX('T1'!N13,'T2'!L13),COUNTRY_INFO!G13*0.2),IF(COUNTRY_INFO!K13=3,IF(COUNTRY_INFO!G13>MAX('T1'!N13,'T2'!L13),MAX('T1'!N13,'T2'!L13),COUNTRY_INFO!G13),0)) -> 0 | AG13: =IF(AND(COUNTRY_INFO!K13>0,COUNTRY_INFO!K13<4),IF(Z13>0,IF(COUNTRY_INFO!K13=1, 0, IF(COUNTRY_INFO!K13=2, AF13/(COUNTRY_INFO!G13*0.2)*100, IF(COUNTRY_INFO!K13=3, AF13/COUNTRY_INFO!G13*100))),"-"),0) -> 0 | AH13: 7923.63 | AI13: =IF(AND(COUNTRY_INFO!K13>0,COUNTRY_INFO!K13<4), IF(AC13/Z13*100<>0, IF(AH13/Z13*100>100,100,AH13/Z13*100), "-"),0) -> 100 | AK13: =IF(AND(D13<>0, D13<>"Inconnu",D13<>"Interrompu",D13<>"Non requis"),D13/COUNTRY_INFO!D13, 0) -> 1 | AL13: =IF(AND(J13<>0,J13<>"Inconnu",J13<>"Interrompu",J13<>"Non requis"),J13/COUNTRY_INFO!D13, 0) -> 0 | AM13: =IF(AND(P13<>0,P13<>"Inconnu",P13<>"Non requis"),P13/(COUNTRY_INFO!E13+COUNTRY_INFO!F13), 0) -> 1 | AN13: =IF(AND(Z13<>0,Z13<>"Inconnu",Z13<>"Non requis"),IF(COUNTRY_INFO!K13=1,1,IF(COUNTRY_INFO!K13=2,0.5*COUNTRY_INFO!F13/(0.5*COUNTRY_INFO!F13+0.2*COUNTRY_INFO!G13),IF(COUNTRY_INFO!K13=3,COUNTRY_INFO!F13/(COUNTRY_INFO!F13+COUNTRY_INFO!G13)))),0) -> 1 | AO13: =IF(AND(Z13<>0,Z13<>"Inconnu",Z13<>"Non requis"),IF(COUNTRY_INFO!K13=1,0,IF(COUNTRY_INFO!K13=2,0.2*COUNTRY_INFO!G13/(0.5*COUNTRY_INFO!F13+0.2*COUNTRY_INFO!G13),IF(COUNTRY_INFO!K13=3,COUNTRY_INFO!G13/(COUNTRY_INFO!F13+COUNTRY_INFO!G13)))),0) -> 0 | AP13: =MAX(COUNTRY_INFO!D13*AK13*PROFILE!$G$7,COUNTRY_INFO!D13*AL13*PROFILE!$G$7) -> 3841.483959 | AQ13: =MAX(COUNTRY_INFO!D13*AK13*PROFILE!$G$8,COUNTRY_INFO!D13*AL13*PROFILE!$G$8,COUNTRY_INFO!D13*AM13*PROFILE!$G$8) -> 11525.33493 | AR13: =MAX(COUNTRY_INFO!D13*AK13*PROFILE!$G$9,COUNTRY_INFO!D13*AL13*PROFILE!$G$9,COUNTRY_INFO!D13*AM13*PROFILE!$G$9,IF(AND(DISTRICT!Z13<>"Inconnu",Z13<>"Non requis"),COUNTRY_INFO!P13*DISTRICT!AN13,0)) -> 24011.52886 | AS13: =MAX(COUNTRY_INFO!D13*AK13*PROFILE!$G$10,COUNTRY_INFO!D13*AL13*PROFILE!$G$10,IF(AND(DISTRICT!Z13<>"Inconnu",Z13<>"Non requis"),COUNTRY_INFO!P13*DISTRICT!AO13,0)) -> 56666.65225 | AT13: 96045 | AU13: 0 | AV13: =MAX('MDA4'!R13,'T1'!L13,'T2'!J13,T3_R1!K13,T3_R2!K13) -> 0 | AW13: =MAX('MDA1'!K13,'MDA4'!S13,'MDA3'!I13,'MDA3'!L13,'T1'!M13,'T2'!K13,T3_R1!L13,T3_R2!L13) -> 18181 | AX13: =MAX('MDA1'!L13,'MDA4'!T13,'MDA3'!J13,'MDA3'!M13,'T1'!N13,'T2'!L13,T3_R1!M13,T3_R2!M13) -> 0 | AY13: 18181 | AZ13: =MAX('MDA4'!R13,T13) -> 0 | BA13: =MAX('MDA1'!K13,'MDA4'!S13,'MDA3'!I13,'MDA3'!L13,V13,AD13) -> 18181 | BB13: =MAX('MDA1'!L13,'MDA4'!T13,'MDA3'!J13,'MDA3'!M13,AF13) -> 0 | BC13: 18181 | BD13: 18.92966838
A14: =IF(COUNTRY_INFO!A14=0," ",COUNTRY_INFO!A14) -> Gabon | B14: =IF(COUNTRY_INFO!B14=0," ",COUNTRY_INFO!B14) -> Ouest | C14: =IF(COUNTRY_INFO!C14=0," ",COUNTRY_INFO!C14) -> Komo-Kango | D14: =COUNTRY_INFO!M14 -> 0 | G14: =MAX('MDA1'!M14,'MDA4'!U14) -> 0 | H14: =IF(AND(COUNTRY_INFO!H14>0,COUNTRY_INFO!H14<4),IF(D14>MAX('MDA1'!M14,'MDA4'!U14),MAX('MDA1'!M14,'MDA4'!U14),D14),0) -> 0 | I14: =IF(AND(COUNTRY_INFO!H14>0,COUNTRY_INFO!H14<4), IF(G14/D14*100<>0, IF(G14/D14*100>100,100,G14/D14*100), "-"),0) -> 0 | J14: =COUNTRY_INFO!N14 -> Inconnu | M14: =MAX('MDA1'!M14,MAX('MDA3'!I14,'MDA3'!L14)+MAX('MDA3'!J14,'MDA3'!M14)) -> 0 | N14: =IF(AND(COUNTRY_INFO!I14>0,COUNTRY_INFO!I14<4),IF(J14>MAX('MDA1'!M14,MAX('MDA3'!I14,'MDA3'!L14)+MAX('MDA3'!J14,'MDA3'!M14)),MAX('MDA1'!M14,MAX('MDA3'!I14,'MDA3'!L14)+MAX('MDA3'!J14,'MDA3'!M14)),J14),0) -> 0 | O14: =IF(AND(COUNTRY_INFO!I14>0,COUNTRY_INFO!I14<4), IF(M14/J14*100<>0, IF(M14/J14*100>100,100,M14/J14*100), "-"),0) -> 0 | P14: =COUNTRY_INFO!O14 -> 6913 | Q14: 807 | R14: 870 | S14: =SUM(MAX('MDA4'!N14, 'T1'!L14, MAX(T3_R1!K14, T3_R2!K14)), MAX('MDA1'!K14, 'MDA4'!O14, 'T1'!M14, MAX(T3_R1!L14, T3_R2!L14)), MAX('MDA1'!L14, 'MDA4'!P14, 'T1'!N14, MAX(T3_R1!M14, T3_R2!M14))) -> 1677 | T14: =IF(AND(COUNTRY_INFO!J14>1,COUNTRY_INFO!J14<4),IF(COUNTRY_INFO!E14>MAX('MDA4'!N14,'T1'!L14,MAX(T3_R1!K14,T3_R2!K14)),MAX('MDA4'!N14,'T1'!L14,MAX(T3_R1!K14,T3_R2!K14)),COUNTRY_INFO!E14),0) -> 0 | U14: =IF(AND(COUNTRY_INFO!J14>1,COUNTRY_INFO!J14<4), IF(T14/COUNTRY_INFO!E14*100<>0, IF(T14/COUNTRY_INFO!E14*100>100,100,T14/COUNTRY_INFO!E14*100), "-"),0) -> - | V14: =IF(AND(COUNTRY_INFO!J14>1,COUNTRY_INFO!J14<4),IF(COUNTRY_INFO!F14>MAX('MDA1'!K14,'MDA4'!O14,'T1'!M14,MAX(T3_R1!L14,T3_R2!L14)),MAX('MDA1'!K14,'MDA4'!O14,'T1'!M14,MAX(T3_R1!L14,T3_R2!L14)),COUNTRY_INFO!F14),0) -> 1677 | W14: =IF(AND(COUNTRY_INFO!J14>1,COUNTRY_INFO!J14<4), IF(V14/COUNTRY_INFO!F14*100<>0, IF(V14/COUNTRY_INFO!F14*100>100,100,V14/COUNTRY_INFO!F14*100), "-"),0) -> 35.90237636 | X14: 1677 | Y14: =IF(AND(COUNTRY_INFO!J14>1,COUNTRY_INFO!J14<4), IF(S14/P14*100<>0, IF(X14/P14*100>100,100,X14/P14*100), "-"),0) -> 24.25864314 | Z14: =COUNTRY_INFO!P14 -> 4540.3 | AA14: 807 | AB14: 870 | AC14: =MAX('T1'!L14,'T2'!J14)+MAX('T1'!M14,'T2'!K14)+MAX('T1'!N14,'T2'!L14) -> 1677 | AD14: =IF(COUNTRY_INFO!K14=1,IF(COUNTRY_INFO!F14*0.33>MAX('T1'!M14,'T2'!K14),MAX('T1'!M14,'T2'!K14),COUNTRY_INFO!F14*0.33),IF(COUNTRY_INFO!K14=2,IF(COUNTRY_INFO!F14*0.5>MAX('T1'!M14,'T2'!K14),MAX('T1'!M14,'T2'!K14),COUNTRY_INFO!F14*0.5),IF(COUNTRY_INFO!K14=3,IF(COUNTRY_INFO!F14>MAX('T1'!M14,'T2'!K14),MAX('T1'!M14,'T2'!K14),COUNTRY_INFO!F14),0))) -> 1677 | AE14: =IF(AND(COUNTRY_INFO!K14>0,COUNTRY_INFO!K14<4),IF(Z14>0,IF(COUNTRY_INFO!K14=1, AD14/(COUNTRY_INFO!F14*0.33)*100, IF(COUNTRY_INFO!K14=2, AD14/(COUNTRY_INFO!F14*0.5)*100, IF(COUNTRY_INFO!K14=3, AD14/COUNTRY_INFO!F14*100))),"-"),0) -> 71.80475273 | AF14: =IF(COUNTRY_INFO!K14=2,IF(COUNTRY_INFO!G14*0.2>MAX('T1'!N14,'T2'!L14),MAX('T1'!N14,'T2'!L14),COUNTRY_INFO!G14*0.2),IF(COUNTRY_INFO!K14=3,IF(COUNTRY_INFO!G14>MAX('T1'!N14,'T2'!L14),MAX('T1'!N14,'T2'!L14),COUNTRY_INFO!G14),0)) -> 0 | AG14: =IF(AND(COUNTRY_INFO!K14>0,COUNTRY_INFO!K14<4),IF(Z14>0,IF(COUNTRY_INFO!K14=1, 0, IF(COUNTRY_INFO!K14=2, AF14/(COUNTRY_INFO!G14*0.2)*100, IF(COUNTRY_INFO!K14=3, AF14/COUNTRY_INFO!G14*100))),"-"),0) -> 0 | AH14: 1677 | AI14: =IF(AND(COUNTRY_INFO!K14>0,COUNTRY_INFO!K14<4), IF(AC14/Z14*100<>0, IF(AH14/Z14*100>100,100,AH14/Z14*100), "-"),0) -> 36.93588529 | AK14: =IF(AND(D14<>0, D14<>"Inconnu",D14<>"Interrompu",D14<>"Non requis"),D14/COUNTRY_INFO!D14, 0) -> 0 | AL14: =IF(AND(J14<>0,J14<>"Inconnu",J14<>"Interrompu",J14<>"Non requis"),J14/COUNTRY_INFO!D14, 0) -> 0 | AM14: =IF(AND(P14<>0,P14<>"Inconnu",P14<>"Non requis"),P14/(COUNTRY_INFO!E14+COUNTRY_INFO!F14), 0) -> 1 | AN14: =IF(AND(Z14<>0,Z14<>"Inconnu",Z14<>"Non requis"),IF(COUNTRY_INFO!K14=1,1,IF(COUNTRY_INFO!K14=2,0.5*COUNTRY_INFO!F14/(0.5*COUNTRY_INFO!F14+0.2*COUNTRY_INFO!G14),IF(COUNTRY_INFO!K14=3,COUNTRY_INFO!F14/(COUNTRY_INFO!F14+COUNTRY_INFO!G14)))),0) -> 0.514393322 | AO14: =IF(AND(Z14<>0,Z14<>"Inconnu",Z14<>"Non requis"),IF(COUNTRY_INFO!K14=1,0,IF(COUNTRY_INFO!K14=2,0.2*COUNTRY_INFO!G14/(0.5*COUNTRY_INFO!F14+0.2*COUNTRY_INFO!G14),IF(COUNTRY_INFO!K14=3,COUNTRY_INFO!G14/(COUNTRY_INFO!F14+COUNTRY_INFO!G14)))),0) -> 0.485606678 | AP14: =MAX(COUNTRY_INFO!D14*AK14*PROFILE!$G$7,COUNTRY_INFO!D14*AL14*PROFILE!$G$7) -> 0 | AQ14: =MAX(COUNTRY_INFO!D14*AK14*PROFILE!$G$8,COUNTRY_INFO!D14*AL14*PROFILE!$G$8,COUNTRY_INFO!D14*AM14*PROFILE!$G$8) -> 2242.067342 | AR14: =MAX(COUNTRY_INFO!D14*AK14*PROFILE!$G$9,COUNTRY_INFO!D14*AL14*PROFILE!$G$9,COUNTRY_INFO!D14*AM14*PROFILE!$G$9,IF(AND(DISTRICT!Z14<>"Inconnu",Z14<>"Non requis"),COUNTRY_INFO!P14*DISTRICT!AN14,0)) -> 4671.054248 | AS14: =MAX(COUNTRY_INFO!D14*AK14*PROFILE!$G$10,COUNTRY_INFO!D14*AL14*PROFILE!$G$10,IF(AND(DISTRICT!Z14<>"Inconnu",Z14<>"Non requis"),COUNTRY_INFO!P14*DISTRICT!AO14,0)) -> 2204.8 | AT14: 9117.92159 | AU14: Y | AV14: =MAX('MDA4'!R14,'T1'!L14,'T2'!J14,T3_R1!K14,T3_R2!K14) -> 0 | AW14: =MAX('MDA1'!K14,'MDA4'!S14,'MDA3'!I14,'MDA3'!L14,'T1'!M14,'T2'!K14,T3_R1!L14,T3_R2!L14) -> 1677 | AX14: =MAX('MDA1'!L14,'MDA4'!T14,'MDA3'!J14,'MDA3'!M14,'T1'!N14,'T2'!L14,T3_R1!M14,T3_R2!M14) -> 0 | AY14: 1677 | AZ14: =MAX('MDA4'!R14,T14) -> 0 | BA14: =MAX('MDA1'!K14,'MDA4'!S14,'MDA3'!I14,'MDA3'!L14,V14,AD14) -> 1677 | BB14: =MAX('MDA1'!L14,'MDA4'!T14,'MDA3'!J14,'MDA3'!M14,AF14) -> 0 | BC14: 1677 | BD14: 18.39234943
A15: =IF(COUNTRY_INFO!A15=0," ",COUNTRY_INFO!A15) -> Gabon | B15: =IF(COUNTRY_INFO!B15=0," ",COUNTRY_INFO!B15) -> Ouest | C15: =IF(COUNTRY_INFO!C15=0," ",COUNTRY_INFO!C15) -> Noya | D15: =COUNTRY_INFO!M15 -> 0 | G15: =MAX('MDA1'!M15,'MDA4'!U15) -> 0 | H15: =IF(AND(COUNTRY_INFO!H15>0,COUNTRY_INFO!H15<4),IF(D15>MAX('MDA1'!M15,'MDA4'!U15),MAX('MDA1'!M15,'MDA4'!U15),D15),0) -> 0 | I15: =IF(AND(COUNTRY_INFO!H15>0,COUNTRY_INFO!H15<4), IF(G15/D15*100<>0, IF(G15/D15*100>100,100,G15/D15*100), "-"),0) -> 0 | J15: =COUNTRY_INFO!N15 -> 0 | M15: =MAX('MDA1'!M15,MAX('MDA3'!I15,'MDA3'!L15)+MAX('MDA3'!J15,'MDA3'!M15)) -> 0 | N15: =IF(AND(COUNTRY_INFO!I15>0,COUNTRY_INFO!I15<4),IF(J15>MAX('MDA1'!M15,MAX('MDA3'!I15,'MDA3'!L15)+MAX('MDA3'!J15,'MDA3'!M15)),MAX('MDA1'!M15,MAX('MDA3'!I15,'MDA3'!L15)+MAX('MDA3'!J15,'MDA3'!M15)),J15),0) -> 0 | O15: =IF(AND(COUNTRY_INFO!I15>0,COUNTRY_INFO!I15<4), IF(M15/J15*100<>0, IF(M15/J15*100>100,100,M15/J15*100), "-"),0) -> 0 | P15: =COUNTRY_INFO!O15 -> 1813 | Q15: 418 | R15: 359 | S15: =SUM(MAX('MDA4'!N15, 'T1'!L15, MAX(T3_R1!K15, T3_R2!K15)), MAX('MDA1'!K15, 'MDA4'!O15, 'T1'!M15, MAX(T3_R1!L15, T3_R2!L15)), MAX('MDA1'!L15, 'MDA4'!P15, 'T1'!N15, MAX(T3_R1!M15, T3_R2!M15))) -> 947 | T15: =IF(AND(COUNTRY_INFO!J15>1,COUNTRY_INFO!J15<4),IF(COUNTRY_INFO!E15>MAX('MDA4'!N15,'T1'!L15,MAX(T3_R1!K15,T3_R2!K15)),MAX('MDA4'!N15,'T1'!L15,MAX(T3_R1!K15,T3_R2!K15)),COUNTRY_INFO!E15),0) -> 0 | U15: =IF(AND(COUNTRY_INFO!J15>1,COUNTRY_INFO!J15<4), IF(T15/COUNTRY_INFO!E15*100<>0, IF(T15/COUNTRY_INFO!E15*100>100,100,T15/COUNTRY_INFO!E15*100), "-"),0) -> - | V15: =IF(AND(COUNTRY_INFO!J15>1,COUNTRY_INFO!J15<4),IF(COUNTRY_INFO!F15>MAX('MDA1'!K15,'MDA4'!O15,'T1'!M15,MAX(T3_R1!L15,T3_R2!L15)),MAX('MDA1'!K15,'MDA4'!O15,'T1'!M15,MAX(T3_R1!L15,T3_R2!L15)),COUNTRY_INFO!F15),0) -> 947 | W15: =IF(AND(COUNTRY_INFO!J15>1,COUNTRY_INFO!J15<4), IF(V15/COUNTRY_INFO!F15*100<>0, IF(V15/COUNTRY_INFO!F15*100>100,100,V15/COUNTRY_INFO!F15*100), "-"),0) -> 77.30612245 | X15: 947 | Y15: =IF(AND(COUNTRY_INFO!J15>1,COUNTRY_INFO!J15<4), IF(S15/P15*100<>0, IF(X15/P15*100>100,100,X15/P15*100), "-"),0) -> 52.23386652 | Z15: =COUNTRY_INFO!P15 -> 404.25 | AA15: 418 | AB15: 359 | AC15: =MAX('T1'!L15,'T2'!J15)+MAX('T1'!M15,'T2'!K15)+MAX('T1'!N15,'T2'!L15) -> 777 | AD15: =IF(COUNTRY_INFO!K15=1,IF(COUNTRY_INFO!F15*0.33>MAX('T1'!M15,'T2'!K15),MAX('T1'!M15,'T2'!K15),COUNTRY_INFO!F15*0.33),IF(COUNTRY_INFO!K15=2,IF(COUNTRY_INFO!F15*0.5>MAX('T1'!M15,'T2'!K15),MAX('T1'!M15,'T2'!K15),COUNTRY_INFO!F15*0.5),IF(COUNTRY_INFO!K15=3,IF(COUNTRY_INFO!F15>MAX('T1'!M15,'T2'!K15),MAX('T1'!M15,'T2'!K15),COUNTRY_INFO!F15),0))) -> 404.25 | AE15: =IF(AND(COUNTRY_INFO!K15>0,COUNTRY_INFO!K15<4),IF(Z15>0,IF(COUNTRY_INFO!K15=1, AD15/(COUNTRY_INFO!F15*0.33)*100, IF(COUNTRY_INFO!K15=2, AD15/(COUNTRY_INFO!F15*0.5)*100, IF(COUNTRY_INFO!K15=3, AD15/COUNTRY_INFO!F15*100))),"-"),0) -> 100 | AF15: =IF(COUNTRY_INFO!K15=2,IF(COUNTRY_INFO!G15*0.2>MAX('T1'!N15,'T2'!L15),MAX('T1'!N15,'T2'!L15),COUNTRY_INFO!G15*0.2),IF(COUNTRY_INFO!K15=3,IF(COUNTRY_INFO!G15>MAX('T1'!N15,'T2'!L15),MAX('T1'!N15,'T2'!L15),COUNTRY_INFO!G15),0)) -> 0 | AG15: =IF(AND(COUNTRY_INFO!K15>0,COUNTRY_INFO!K15<4),IF(Z15>0,IF(COUNTRY_INFO!K15=1, 0, IF(COUNTRY_INFO!K15=2, AF15/(COUNTRY_INFO!G15*0.2)*100, IF(COUNTRY_INFO!K15=3, AF15/COUNTRY_INFO!G15*100))),"-"),0) -> 0 | AH15: 404.25 | AI15: =IF(AND(COUNTRY_INFO!K15>0,COUNTRY_INFO!K15<4), IF(AC15/Z15*100<>0, IF(AH15/Z15*100>100,100,AH15/Z15*100), "-"),0) -> 100 | AK15: =IF(AND(D15<>0, D15<>"Inconnu",D15<>"Interrompu",D15<>"Non requis"),D15/COUNTRY_INFO!D15, 0) -> 0 | AL15: =IF(AND(J15<>0,J15<>"Inconnu",J15<>"Interrompu",J15<>"Non requis"),J15/COUNTRY_INFO!D15, 0) -> 0 | AM15: =IF(AND(P15<>0,P15<>"Inconnu",P15<>"Non requis"),P15/(COUNTRY_INFO!E15+COUNTRY_INFO!F15), 0) -> 1 | AN15: =IF(AND(Z15<>0,Z15<>"Inconnu",Z15<>"Non requis"),IF(COUNTRY_INFO!K15=1,1,IF(COUNTRY_INFO!K15=2,0.5*COUNTRY_INFO!F15/(0.5*COUNTRY_INFO!F15+0.2*COUNTRY_INFO!G15),IF(COUNTRY_INFO!K15=3,COUNTRY_INFO!F15/(COUNTRY_INFO!F15+COUNTRY_INFO!G15)))),0) -> 1 | AO15: =IF(AND(Z15<>0,Z15<>"Inconnu",Z15<>"Non requis"),IF(COUNTRY_INFO!K15=1,0,IF(COUNTRY_INFO!K15=2,0.2*COUNTRY_INFO!G15/(0.5*COUNTRY_INFO!F15+0.2*COUNTRY_INFO!G15),IF(COUNTRY_INFO!K15=3,COUNTRY_INFO!G15/(COUNTRY_INFO!F15+COUNTRY_INFO!G15)))),0) -> 0 | AP15: =MAX(COUNTRY_INFO!D15*AK15*PROFILE!$G$7,COUNTRY_INFO!D15*AL15*PROFILE!$G$7) -> 0 | AQ15: =MAX(COUNTRY_INFO!D15*AK15*PROFILE!$G$8,COUNTRY_INFO!D15*AL15*PROFILE!$G$8,COUNTRY_INFO!D15*AM15*PROFILE!$G$8) -> 587.9966804 | AR15: =MAX(COUNTRY_INFO!D15*AK15*PROFILE!$G$9,COUNTRY_INFO!D15*AL15*PROFILE!$G$9,COUNTRY_INFO!D15*AM15*PROFILE!$G$9,IF(AND(DISTRICT!Z15<>"Inconnu",Z15<>"Non requis"),COUNTRY_INFO!P15*DISTRICT!AN15,0)) -> 1225.014227 | AS15: =MAX(COUNTRY_INFO!D15*AK15*PROFILE!$G$10,COUNTRY_INFO!D15*AL15*PROFILE!$G$10,IF(AND(DISTRICT!Z15<>"Inconnu",Z15<>"Non requis"),COUNTRY_INFO!P15*DISTRICT!AO15,0)) -> 0 | AT15: 1813.010907 | AU15: Y | AV15: =MAX('MDA4'!R15,'T1'!L15,'T2'!J15,T3_R1!K15,T3_R2!K15) -> 0 | AW15: =MAX('MDA1'!K15,'MDA4'!S15,'MDA3'!I15,'MDA3'!L15,'T1'!M15,'T2'!K15,T3_R1!L15,T3_R2!L15) -> 947 | AX15: =MAX('MDA1'!L15,'MDA4'!T15,'MDA3'!J15,'MDA3'!M15,'T1'!N15,'T2'!L15,T3_R1!M15,T3_R2!M15) -> 0 | AY15: 947 | AZ15: =MAX('MDA4'!R15,T15) -> 0 | BA15: =MAX('MDA1'!K15,'MDA4'!S15,'MDA3'!I15,'MDA3'!L15,V15,AD15) -> 947 | BB15: =MAX('MDA1'!L15,'MDA4'!T15,'MDA3'!J15,'MDA3'!M15,AF15) -> 0 | BC15: 947 | BD15: 52.23355228
A16: =IF(COUNTRY_INFO!A16=0," ",COUNTRY_INFO!A16) -> Gabon | B16: =IF(COUNTRY_INFO!B16=0," ",COUNTRY_INFO!B16) -> Sud-Est | C16: =IF(COUNTRY_INFO!C16=0," ",COUNTRY_INFO!C16) -> Bayi-brikolo | D16: =COUNTRY_INFO!M16 -> 0 | G16: =MAX('MDA1'!M16,'MDA4'!U16) -> 0 | H16: =IF(AND(COUNTRY_INFO!H16>0,COUNTRY_INFO!H16<4),IF(D16>MAX('MDA1'!M16,'MDA4'!U16),MAX('MDA1'!M16,'MDA4'!U16),D16),0) -> 0 | I16: =IF(AND(COUNTRY_INFO!H16>0,COUNTRY_INFO!H16<4), IF(G16/D16*100<>0, IF(G16/D16*100>100,100,G16/D16*100), "-"),0) -> 0 | J16: =COUNTRY_INFO!N16 -> Inconnu | M16: =MAX('MDA1'!M16,MAX('MDA3'!I16,'MDA3'!L16)+MAX('MDA3'!J16,'MDA3'!M16)) -> 0 | N16: =IF(AND(COUNTRY_INFO!I16>0,COUNTRY_INFO!I16<4),IF(J16>MAX('MDA1'!M16,MAX('MDA3'!I16,'MDA3'!L16)+MAX('MDA3'!J16,'MDA3'!M16)),MAX('MDA1'!M16,MAX('MDA3'!I16,'MDA3'!L16)+MAX('MDA3'!J16,'MDA3'!M16)),J16),0) -> 0 | O16: =IF(AND(COUNTRY_INFO!I16>0,COUNTRY_INFO!I16<4), IF(M16/J16*100<>0, IF(M16/J16*100>100,100,M16/J16*100), "-"),0) -> 0 | P16: =COUNTRY_INFO!O16 -> 2335 | Q16: 552 | R16: 587 | S16: =SUM(MAX('MDA4'!N16, 'T1'!L16, MAX(T3_R1!K16, T3_R2!K16)), MAX('MDA1'!K16, 'MDA4'!O16, 'T1'!M16, MAX(T3_R1!L16, T3_R2!L16)), MAX('MDA1'!L16, 'MDA4'!P16, 'T1'!N16, MAX(T3_R1!M16, T3_R2!M16))) -> 1139 | T16: =IF(AND(COUNTRY_INFO!J16>1,COUNTRY_INFO!J16<4),IF(COUNTRY_INFO!E16>MAX('MDA4'!N16,'T1'!L16,MAX(T3_R1!K16,T3_R2!K16)),MAX('MDA4'!N16,'T1'!L16,MAX(T3_R1!K16,T3_R2!K16)),COUNTRY_INFO!E16),0) -> 0 | U16: =IF(AND(COUNTRY_INFO!J16>1,COUNTRY_INFO!J16<4), IF(T16/COUNTRY_INFO!E16*100<>0, IF(T16/COUNTRY_INFO!E16*100>100,100,T16/COUNTRY_INFO!E16*100), "-"),0) -> - | V16: =IF(AND(COUNTRY_INFO!J16>1,COUNTRY_INFO!J16<4),IF(COUNTRY_INFO!F16>MAX('MDA1'!K16,'MDA4'!O16,'T1'!M16,MAX(T3_R1!L16,T3_R2!L16)),MAX('MDA1'!K16,'MDA4'!O16,'T1'!M16,MAX(T3_R1!L16,T3_R2!L16)),COUNTRY_INFO!F16),0) -> 1139 | W16: =IF(AND(COUNTRY_INFO!J16>1,COUNTRY_INFO!J16<4), IF(V16/COUNTRY_INFO!F16*100<>0, IF(V16/COUNTRY_INFO!F16*100>100,100,V16/COUNTRY_INFO!F16*100), "-"),0) -> 72.17997465 | X16: 1139 | Y16: =IF(AND(COUNTRY_INFO!J16>1,COUNTRY_INFO!J16<4), IF(S16/P16*100<>0, IF(X16/P16*100>100,100,X16/P16*100), "-"),0) -> 48.77944325 | Z16: =COUNTRY_INFO!P16 -> 0 | AC16: =MAX('T1'!L16,'T2'!J16)+MAX('T1'!M16,'T2'!K16)+MAX('T1'!N16,'T2'!L16) -> 0 | AD16: =IF(COUNTRY_INFO!K16=1,IF(COUNTRY_INFO!F16*0.33>MAX('T1'!M16,'T2'!K16),MAX('T1'!M16,'T2'!K16),COUNTRY_INFO!F16*0.33),IF(COUNTRY_INFO!K16=2,IF(COUNTRY_INFO!F16*0.5>MAX('T1'!M16,'T2'!K16),MAX('T1'!M16,'T2'!K16),COUNTRY_INFO!F16*0.5),IF(COUNTRY_INFO!K16=3,IF(COUNTRY_INFO!F16>MAX('T1'!M16,'T2'!K16),MAX('T1'!M16,'T2'!K16),COUNTRY_INFO!F16),0))) -> 0 | AE16: =IF(AND(COUNTRY_INFO!K16>0,COUNTRY_INFO!K16<4),IF(Z16>0,IF(COUNTRY_INFO!K16=1, AD16/(COUNTRY_INFO!F16*0.33)*100, IF(COUNTRY_INFO!K16=2, AD16/(COUNTRY_INFO!F16*0.5)*100, IF(COUNTRY_INFO!K16=3, AD16/COUNTRY_INFO!F16*100))),"-"),0) -> 0 | AF16: =IF(COUNTRY_INFO!K16=2,IF(COUNTRY_INFO!G16*0.2>MAX('T1'!N16,'T2'!L16),MAX('T1'!N16,'T2'!L16),COUNTRY_INFO!G16*0.2),IF(COUNTRY_INFO!K16=3,IF(COUNTRY_INFO!G16>MAX('T1'!N16,'T2'!L16),MAX('T1'!N16,'T2'!L16),COUNTRY_INFO!G16),0)) -> 0 | AG16: =IF(AND(COUNTRY_INFO!K16>0,COUNTRY_INFO!K16<4),IF(Z16>0,IF(COUNTRY_INFO!K16=1, 0, IF(COUNTRY_INFO!K16=2, AF16/(COUNTRY_INFO!G16*0.2)*100, IF(COUNTRY_INFO!K16=3, AF16/COUNTRY_INFO!G16*100))),"-"),0) -> 0 | AH16: 0 | AI16: =IF(AND(COUNTRY_INFO!K16>0,COUNTRY_INFO!K16<4), IF(AC16/Z16*100<>0, IF(AH16/Z16*100>100,100,AH16/Z16*100), "-"),0) -> 0 | AK16: =IF(AND(D16<>0, D16<>"Inconnu",D16<>"Interrompu",D16<>"Non requis"),D16/COUNTRY_INFO!D16, 0) -> 0 | AL16: =IF(AND(J16<>0,J16<>"Inconnu",J16<>"Interrompu",J16<>"Non requis"),J16/COUNTRY_INFO!D16, 0) -> 0 | AM16: =IF(AND(P16<>0,P16<>"Inconnu",P16<>"Non requis"),P16/(COUNTRY_INFO!E16+COUNTRY_INFO!F16), 0) -> 1 | AN16: =IF(AND(Z16<>0,Z16<>"Inconnu",Z16<>"Non requis"),IF(COUNTRY_INFO!K16=1,1,IF(COUNTRY_INFO!K16=2,0.5*COUNTRY_INFO!F16/(0.5*COUNTRY_INFO!F16+0.2*COUNTRY_INFO!G16),IF(COUNTRY_INFO!K16=3,COUNTRY_INFO!F16/(COUNTRY_INFO!F16+COUNTRY_INFO!G16)))),0) -> 0 | AO16: =IF(AND(Z16<>0,Z16<>"Inconnu",Z16<>"Non requis"),IF(COUNTRY_INFO!K16=1,0,IF(COUNTRY_INFO!K16=2,0.2*COUNTRY_INFO!G16/(0.5*COUNTRY_INFO!F16+0.2*COUNTRY_INFO!G16),IF(COUNTRY_INFO!K16=3,COUNTRY_INFO!G16/(COUNTRY_INFO!F16+COUNTRY_INFO!G16)))),0) -> 0 | AP16: =MAX(COUNTRY_INFO!D16*AK16*PROFILE!$G$7,COUNTRY_INFO!D16*AL16*PROFILE!$G$7) -> 0 | AQ16: =MAX(COUNTRY_INFO!D16*AK16*PROFILE!$G$8,COUNTRY_INFO!D16*AL16*PROFILE!$G$8,COUNTRY_INFO!D16*AM16*PROFILE!$G$8) -> 757.1957252 | AR16: =MAX(COUNTRY_INFO!D16*AK16*PROFILE!$G$9,COUNTRY_INFO!D16*AL16*PROFILE!$G$9,COUNTRY_INFO!D16*AM16*PROFILE!$G$9,IF(AND(DISTRICT!Z16<>"Inconnu",Z16<>"Non requis"),COUNTRY_INFO!P16*DISTRICT!AN16,0)) -> 1577.518321 | AS16: =MAX(COUNTRY_INFO!D16*AK16*PROFILE!$G$10,COUNTRY_INFO!D16*AL16*PROFILE!$G$10,IF(AND(DISTRICT!Z16<>"Inconnu",Z16<>"Non requis"),COUNTRY_INFO!P16*DISTRICT!AO16,0)) -> 0 | AT16: 2334.714046 | AU16: Y | AV16: =MAX('MDA4'!R16,'T1'!L16,'T2'!J16,T3_R1!K16,T3_R2!K16) -> 0 | AW16: =MAX('MDA1'!K16,'MDA4'!S16,'MDA3'!I16,'MDA3'!L16,'T1'!M16,'T2'!K16,T3_R1!L16,T3_R2!L16) -> 1139 | AX16: =MAX('MDA1'!L16,'MDA4'!T16,'MDA3'!J16,'MDA3'!M16,'T1'!N16,'T2'!L16,T3_R1!M16,T3_R2!M16) -> 0 | AY16: 1139 | AZ16: =MAX('MDA4'!R16,T16) -> 0 | BA16: =MAX('MDA1'!K16,'MDA4'!S16,'MDA3'!I16,'MDA3'!L16,V16,AD16) -> 1139 | BB16: =MAX('MDA1'!L16,'MDA4'!T16,'MDA3'!J16,'MDA3'!M16,AF16) -> 0 | BC16: 1139 | BD16: 48.78541773
A17: =IF(COUNTRY_INFO!A17=0," ",COUNTRY_INFO!A17) -> Gabon | B17: =IF(COUNTRY_INFO!B17=0," ",COUNTRY_INFO!B17) -> Sud-Est | C17: =IF(COUNTRY_INFO!C17=0," ",COUNTRY_INFO!C17) -> Lékoni-Lékori | D17: =COUNTRY_INFO!M17 -> 0 | G17: =MAX('MDA1'!M17,'MDA4'!U17) -> 0 | H17: =IF(AND(COUNTRY_INFO!H17>0,COUNTRY_INFO!H17<4),IF(D17>MAX('MDA1'!M17,'MDA4'!U17),MAX('MDA1'!M17,'MDA4'!U17),D17),0) -> 0 | I17: =IF(AND(COUNTRY_INFO!H17>0,COUNTRY_INFO!H17<4), IF(G17/D17*100<>0, IF(G17/D17*100>100,100,G17/D17*100), "-"),0) -> 0 | J17: =COUNTRY_INFO!N17 -> 0 | M17: =MAX('MDA1'!M17,MAX('MDA3'!I17,'MDA3'!L17)+MAX('MDA3'!J17,'MDA3'!M17)) -> 0 | N17: =IF(AND(COUNTRY_INFO!I17>0,COUNTRY_INFO!I17<4),IF(J17>MAX('MDA1'!M17,MAX('MDA3'!I17,'MDA3'!L17)+MAX('MDA3'!J17,'MDA3'!M17)),MAX('MDA1'!M17,MAX('MDA3'!I17,'MDA3'!L17)+MAX('MDA3'!J17,'MDA3'!M17)),J17),0) -> 0 | O17: =IF(AND(COUNTRY_INFO!I17>0,COUNTRY_INFO!I17<4), IF(M17/J17*100<>0, IF(M17/J17*100>100,100,M17/J17*100), "-"),0) -> 0 | P17: =COUNTRY_INFO!O17 -> 4693 | Q17: 564 | R17: 557 | S17: =SUM(MAX('MDA4'!N17, 'T1'!L17, MAX(T3_R1!K17, T3_R2!K17)), MAX('MDA1'!K17, 'MDA4'!O17, 'T1'!M17, MAX(T3_R1!L17, T3_R2!L17)), MAX('MDA1'!L17, 'MDA4'!P17, 'T1'!N17, MAX(T3_R1!M17, T3_R2!M17))) -> 1253 | T17: =IF(AND(COUNTRY_INFO!J17>1,COUNTRY_INFO!J17<4),IF(COUNTRY_INFO!E17>MAX('MDA4'!N17,'T1'!L17,MAX(T3_R1!K17,T3_R2!K17)),MAX('MDA4'!N17,'T1'!L17,MAX(T3_R1!K17,T3_R2!K17)),COUNTRY_INFO!E17),0) -> 0 | U17: =IF(AND(COUNTRY_INFO!J17>1,COUNTRY_INFO!J17<4), IF(T17/COUNTRY_INFO!E17*100<>0, IF(T17/COUNTRY_INFO!E17*100>100,100,T17/COUNTRY_INFO!E17*100), "-"),0) -> - | V17: =IF(AND(COUNTRY_INFO!J17>1,COUNTRY_INFO!J17<4),IF(COUNTRY_INFO!F17>MAX('MDA1'!K17,'MDA4'!O17,'T1'!M17,MAX(T3_R1!L17,T3_R2!L17)),MAX('MDA1'!K17,'MDA4'!O17,'T1'!M17,MAX(T3_R1!L17,T3_R2!L17)),COUNTRY_INFO!F17),0) -> 1253 | W17: =IF(AND(COUNTRY_INFO!J17>1,COUNTRY_INFO!J17<4), IF(V17/COUNTRY_INFO!F17*100<>0, IF(V17/COUNTRY_INFO!F17*100>100,100,V17/COUNTRY_INFO!F17*100), "-"),0) -> 39.51434879 | X17: 1253 | Y17: =IF(AND(COUNTRY_INFO!J17>1,COUNTRY_INFO!J17<4), IF(S17/P17*100<>0, IF(X17/P17*100>100,100,X17/P17*100), "-"),0) -> 26.69933944 | Z17: =COUNTRY_INFO!P17 -> 1046.43 | AA17: 564 | AB17: 557 | AC17: =MAX('T1'!L17,'T2'!J17)+MAX('T1'!M17,'T2'!K17)+MAX('T1'!N17,'T2'!L17) -> 1121 | AD17: =IF(COUNTRY_INFO!K17=1,IF(COUNTRY_INFO!F17*0.33>MAX('T1'!M17,'T2'!K17),MAX('T1'!M17,'T2'!K17),COUNTRY_INFO!F17*0.33),IF(COUNTRY_INFO!K17=2,IF(COUNTRY_INFO!F17*0.5>MAX('T1'!M17,'T2'!K17),MAX('T1'!M17,'T2'!K17),COUNTRY_INFO!F17*0.5),IF(COUNTRY_INFO!K17=3,IF(COUNTRY_INFO!F17>MAX('T1'!M17,'T2'!K17),MAX('T1'!M17,'T2'!K17),COUNTRY_INFO!F17),0))) -> 1046.43 | AE17: =IF(AND(COUNTRY_INFO!K17>0,COUNTRY_INFO!K17<4),IF(Z17>0,IF(COUNTRY_INFO!K17=1, AD17/(COUNTRY_INFO!F17*0.33)*100, IF(COUNTRY_INFO!K17=2, AD17/(COUNTRY_INFO!F17*0.5)*100, IF(COUNTRY_INFO!K17=3, AD17/COUNTRY_INFO!F17*100))),"-"),0) -> 100 | AF17: =IF(COUNTRY_INFO!K17=2,IF(COUNTRY_INFO!G17*0.2>MAX('T1'!N17,'T2'!L17),MAX('T1'!N17,'T2'!L17),COUNTRY_INFO!G17*0.2),IF(COUNTRY_INFO!K17=3,IF(COUNTRY_INFO!G17>MAX('T1'!N17,'T2'!L17),MAX('T1'!N17,'T2'!L17),COUNTRY_INFO!G17),0)) -> 0 | AG17: =IF(AND(COUNTRY_INFO!K17>0,COUNTRY_INFO!K17<4),IF(Z17>0,IF(COUNTRY_INFO!K17=1, 0, IF(COUNTRY_INFO!K17=2, AF17/(COUNTRY_INFO!G17*0.2)*100, IF(COUNTRY_INFO!K17=3, AF17/COUNTRY_INFO!G17*100))),"-"),0) -> 0 | AH17: 1046.43 | AI17: =IF(AND(COUNTRY_INFO!K17>0,COUNTRY_INFO!K17<4), IF(AC17/Z17*100<>0, IF(AH17/Z17*100>100,100,AH17/Z17*100), "-"),0) -> 100 | AK17: =IF(AND(D17<>0, D17<>"Inconnu",D17<>"Interrompu",D17<>"Non requis"),D17/COUNTRY_INFO!D17, 0) -> 0 | AL17: =IF(AND(J17<>0,J17<>"Inconnu",J17<>"Interrompu",J17<>"Non requis"),J17/COUNTRY_INFO!D17, 0) -> 0 | AM17: =IF(AND(P17<>0,P17<>"Inconnu",P17<>"Non requis"),P17/(COUNTRY_INFO!E17+COUNTRY_INFO!F17), 0) -> 1 | AN17: =IF(AND(Z17<>0,Z17<>"Inconnu",Z17<>"Non requis"),IF(COUNTRY_INFO!K17=1,1,IF(COUNTRY_INFO!K17=2,0.5*COUNTRY_INFO!F17/(0.5*COUNTRY_INFO!F17+0.2*COUNTRY_INFO!G17),IF(COUNTRY_INFO!K17=3,COUNTRY_INFO!F17/(COUNTRY_INFO!F17+COUNTRY_INFO!G17)))),0) -> 1 | AO17: =IF(AND(Z17<>0,Z17<>"Inconnu",Z17<>"Non requis"),IF(COUNTRY_INFO!K17=1,0,IF(COUNTRY_INFO!K17=2,0.2*COUNTRY_INFO!G17/(0.5*COUNTRY_INFO!F17+0.2*COUNTRY_INFO!G17),IF(COUNTRY_INFO!K17=3,COUNTRY_INFO!G17/(COUNTRY_INFO!F17+COUNTRY_INFO!G17)))),0) -> 0 | AP17: =MAX(COUNTRY_INFO!D17*AK17*PROFILE!$G$7,COUNTRY_INFO!D17*AL17*PROFILE!$G$7) -> 0 | AQ17: =MAX(COUNTRY_INFO!D17*AK17*PROFILE!$G$8,COUNTRY_INFO!D17*AL17*PROFILE!$G$8,COUNTRY_INFO!D17*AM17*PROFILE!$G$8) -> 1522.191406 | AR17: =MAX(COUNTRY_INFO!D17*AK17*PROFILE!$G$9,COUNTRY_INFO!D17*AL17*PROFILE!$G$9,COUNTRY_INFO!D17*AM17*PROFILE!$G$9,IF(AND(DISTRICT!Z17<>"Inconnu",Z17<>"Non requis"),COUNTRY_INFO!P17*DISTRICT!AN17,0)) -> 3171.28683 | AS17: =MAX(COUNTRY_INFO!D17*AK17*PROFILE!$G$10,COUNTRY_INFO!D17*AL17*PROFILE!$G$10,IF(AND(DISTRICT!Z17<>"Inconnu",Z17<>"Non requis"),COUNTRY_INFO!P17*DISTRICT!AO17,0)) -> 0 | AT17: 4693.478236 | AU17: Y | AV17: =MAX('MDA4'!R17,'T1'!L17,'T2'!J17,T3_R1!K17,T3_R2!K17) -> 0 | AW17: =MAX('MDA1'!K17,'MDA4'!S17,'MDA3'!I17,'MDA3'!L17,'T1'!M17,'T2'!K17,T3_R1!L17,T3_R2!L17) -> 1253 | AX17: =MAX('MDA1'!L17,'MDA4'!T17,'MDA3'!J17,'MDA3'!M17,'T1'!N17,'T2'!L17,T3_R1!M17,T3_R2!M17) -> 0 | AY17: 1253 | AZ17: =MAX('MDA4'!R17,T17) -> 0 | BA17: =MAX('MDA1'!K17,'MDA4'!S17,'MDA3'!I17,'MDA3'!L17,V17,AD17) -> 1253 | BB17: =MAX('MDA1'!L17,'MDA4'!T17,'MDA3'!J17,'MDA3'!M17,AF17) -> 0 | BC17: 1253 | BD17: 26.69661894
A18: =IF(COUNTRY_INFO!A18=0," ",COUNTRY_INFO!A18) -> Gabon | B18: =IF(COUNTRY_INFO!B18=0," ",COUNTRY_INFO!B18) -> Sud-Est | C18: =IF(COUNTRY_INFO!C18=0," ",COUNTRY_INFO!C18) -> Lékoko | D18: =COUNTRY_INFO!M18 -> 0 | G18: =MAX('MDA1'!M18,'MDA4'!U18) -> 0 | H18: =IF(AND(COUNTRY_INFO!H18>0,COUNTRY_INFO!H18<4),IF(D18>MAX('MDA1'!M18,'MDA4'!U18),MAX('MDA1'!M18,'MDA4'!U18),D18),0) -> 0 | I18: =IF(AND(COUNTRY_INFO!H18>0,COUNTRY_INFO!H18<4), IF(G18/D18*100<>0, IF(G18/D18*100>100,100,G18/D18*100), "-"),0) -> 0 | J18: =COUNTRY_INFO!N18 -> 0 | M18: =MAX('MDA1'!M18,MAX('MDA3'!I18,'MDA3'!L18)+MAX('MDA3'!J18,'MDA3'!M18)) -> 0 | N18: =IF(AND(COUNTRY_INFO!I18>0,COUNTRY_INFO!I18<4),IF(J18>MAX('MDA1'!M18,MAX('MDA3'!I18,'MDA3'!L18)+MAX('MDA3'!J18,'MDA3'!M18)),MAX('MDA1'!M18,MAX('MDA3'!I18,'MDA3'!L18)+MAX('MDA3'!J18,'MDA3'!M18)),J18),0) -> 0 | O18: =IF(AND(COUNTRY_INFO!I18>0,COUNTRY_INFO!I18<4), IF(M18/J18*100<>0, IF(M18/J18*100>100,100,M18/J18*100), "-"),0) -> 0 | P18: =COUNTRY_INFO!O18 -> 2099 | Q18: 331 | R18: 271 | S18: =SUM(MAX('MDA4'!N18, 'T1'!L18, MAX(T3_R1!K18, T3_R2!K18)), MAX('MDA1'!K18, 'MDA4'!O18, 'T1'!M18, MAX(T3_R1!L18, T3_R2!L18)), MAX('MDA1'!L18, 'MDA4'!P18, 'T1'!N18, MAX(T3_R1!M18, T3_R2!M18))) -> 602 | T18: =IF(AND(COUNTRY_INFO!J18>1,COUNTRY_INFO!J18<4),IF(COUNTRY_INFO!E18>MAX('MDA4'!N18,'T1'!L18,MAX(T3_R1!K18,T3_R2!K18)),MAX('MDA4'!N18,'T1'!L18,MAX(T3_R1!K18,T3_R2!K18)),COUNTRY_INFO!E18),0) -> 0 | U18: =IF(AND(COUNTRY_INFO!J18>1,COUNTRY_INFO!J18<4), IF(T18/COUNTRY_INFO!E18*100<>0, IF(T18/COUNTRY_INFO!E18*100>100,100,T18/COUNTRY_INFO!E18*100), "-"),0) -> - | V18: =IF(AND(COUNTRY_INFO!J18>1,COUNTRY_INFO!J18<4),IF(COUNTRY_INFO!F18>MAX('MDA1'!K18,'MDA4'!O18,'T1'!M18,MAX(T3_R1!L18,T3_R2!L18)),MAX('MDA1'!K18,'MDA4'!O18,'T1'!M18,MAX(T3_R1!L18,T3_R2!L18)),COUNTRY_INFO!F18),0) -> 602 | W18: =IF(AND(COUNTRY_INFO!J18>1,COUNTRY_INFO!J18<4), IF(V18/COUNTRY_INFO!F18*100<>0, IF(V18/COUNTRY_INFO!F18*100>100,100,V18/COUNTRY_INFO!F18*100), "-"),0) -> 42.45416079 | X18: 602 | Y18: =IF(AND(COUNTRY_INFO!J18>1,COUNTRY_INFO!J18<4), IF(S18/P18*100<>0, IF(X18/P18*100>100,100,X18/P18*100), "-"),0) -> 28.68032396 | Z18: =COUNTRY_INFO!P18 -> 467.94 | AA18: 331 | AB18: 271 | AC18: =MAX('T1'!L18,'T2'!J18)+MAX('T1'!M18,'T2'!K18)+MAX('T1'!N18,'T2'!L18) -> 602 | AD18: =IF(COUNTRY_INFO!K18=1,IF(COUNTRY_INFO!F18*0.33>MAX('T1'!M18,'T2'!K18),MAX('T1'!M18,'T2'!K18),COUNTRY_INFO!F18*0.33),IF(COUNTRY_INFO!K18=2,IF(COUNTRY_INFO!F18*0.5>MAX('T1'!M18,'T2'!K18),MAX('T1'!M18,'T2'!K18),COUNTRY_INFO!F18*0.5),IF(COUNTRY_INFO!K18=3,IF(COUNTRY_INFO!F18>MAX('T1'!M18,'T2'!K18),MAX('T1'!M18,'T2'!K18),COUNTRY_INFO!F18),0))) -> 467.94 | AE18: =IF(AND(COUNTRY_INFO!K18>0,COUNTRY_INFO!K18<4),IF(Z18>0,IF(COUNTRY_INFO!K18=1, AD18/(COUNTRY_INFO!F18*0.33)*100, IF(COUNTRY_INFO!K18=2, AD18/(COUNTRY_INFO!F18*0.5)*100, IF(COUNTRY_INFO!K18=3, AD18/COUNTRY_INFO!F18*100))),"-"),0) -> 100 | AF18: =IF(COUNTRY_INFO!K18=2,IF(COUNTRY_INFO!G18*0.2>MAX('T1'!N18,'T2'!L18),MAX('T1'!N18,'T2'!L18),COUNTRY_INFO!G18*0.2),IF(COUNTRY_INFO!K18=3,IF(COUNTRY_INFO!G18>MAX('T1'!N18,'T2'!L18),MAX('T1'!N18,'T2'!L18),COUNTRY_INFO!G18),0)) -> 0 | AG18: =IF(AND(COUNTRY_INFO!K18>0,COUNTRY_INFO!K18<4),IF(Z18>0,IF(COUNTRY_INFO!K18=1, 0, IF(COUNTRY_INFO!K18=2, AF18/(COUNTRY_INFO!G18*0.2)*100, IF(COUNTRY_INFO!K18=3, AF18/COUNTRY_INFO!G18*100))),"-"),0) -> 0 | AH18: 467.94 | AI18: =IF(AND(COUNTRY_INFO!K18>0,COUNTRY_INFO!K18<4), IF(AC18/Z18*100<>0, IF(AH18/Z18*100>100,100,AH18/Z18*100), "-"),0) -> 100 | AK18: =IF(AND(D18<>0, D18<>"Inconnu",D18<>"Interrompu",D18<>"Non requis"),D18/COUNTRY_INFO!D18, 0) -> 0 | AL18: =IF(AND(J18<>0,J18<>"Inconnu",J18<>"Interrompu",J18<>"Non requis"),J18/COUNTRY_INFO!D18, 0) -> 0 | AM18: =IF(AND(P18<>0,P18<>"Inconnu",P18<>"Non requis"),P18/(COUNTRY_INFO!E18+COUNTRY_INFO!F18), 0) -> 1 | AN18: =IF(AND(Z18<>0,Z18<>"Inconnu",Z18<>"Non requis"),IF(COUNTRY_INFO!K18=1,1,IF(COUNTRY_INFO!K18=2,0.5*COUNTRY_INFO!F18/(0.5*COUNTRY_INFO!F18+0.2*COUNTRY_INFO!G18),IF(COUNTRY_INFO!K18=3,COUNTRY_INFO!F18/(COUNTRY_INFO!F18+COUNTRY_INFO!G18)))),0) -> 1 | AO18: =IF(AND(Z18<>0,Z18<>"Inconnu",Z18<>"Non requis"),IF(COUNTRY_INFO!K18=1,0,IF(COUNTRY_INFO!K18=2,0.2*COUNTRY_INFO!G18/(0.5*COUNTRY_INFO!F18+0.2*COUNTRY_INFO!G18),IF(COUNTRY_INFO!K18=3,COUNTRY_INFO!G18/(COUNTRY_INFO!F18+COUNTRY_INFO!G18)))),0) -> 0 | AP18: =MAX(COUNTRY_INFO!D18*AK18*PROFILE!$G$7,COUNTRY_INFO!D18*AL18*PROFILE!$G$7) -> 0 | AQ18: =MAX(COUNTRY_INFO!D18*AK18*PROFILE!$G$8,COUNTRY_INFO!D18*AL18*PROFILE!$G$8,COUNTRY_INFO!D18*AM18*PROFILE!$G$8) -> 680.7561567 | AR18: =MAX(COUNTRY_INFO!D18*AK18*PROFILE!$G$9,COUNTRY_INFO!D18*AL18*PROFILE!$G$9,COUNTRY_INFO!D18*AM18*PROFILE!$G$9,IF(AND(DISTRICT!Z18<>"Inconnu",Z18<>"Non requis"),COUNTRY_INFO!P18*DISTRICT!AN18,0)) -> 1418.266471 | AS18: =MAX(COUNTRY_INFO!D18*AK18*PROFILE!$G$10,COUNTRY_INFO!D18*AL18*PROFILE!$G$10,IF(AND(DISTRICT!Z18<>"Inconnu",Z18<>"Non requis"),COUNTRY_INFO!P18*DISTRICT!AO18,0)) -> 0 | AT18: 2099.022628 | AU18: Y | AV18: =MAX('MDA4'!R18,'T1'!L18,'T2'!J18,T3_R1!K18,T3_R2!K18) -> 0 | AW18: =MAX('MDA1'!K18,'MDA4'!S18,'MDA3'!I18,'MDA3'!L18,'T1'!M18,'T2'!K18,T3_R1!L18,T3_R2!L18) -> 602 | AX18: =MAX('MDA1'!L18,'MDA4'!T18,'MDA3'!J18,'MDA3'!M18,'T1'!N18,'T2'!L18,T3_R1!M18,T3_R2!M18) -> 0 | AY18: 602 | AZ18: =MAX('MDA4'!R18,T18) -> 0 | BA18: =MAX('MDA1'!K18,'MDA4'!S18,'MDA3'!I18,'MDA3'!L18,V18,AD18) -> 602 | BB18: =MAX('MDA1'!L18,'MDA4'!T18,'MDA3'!J18,'MDA3'!M18,AF18) -> 0 | BC18: 602 | BD18: 28.68001478
A19: =IF(COUNTRY_INFO!A19=0," ",COUNTRY_INFO!A19) -> Gabon | B19: =IF(COUNTRY_INFO!B19=0," ",COUNTRY_INFO!B19) -> Sud-Est | C19: =IF(COUNTRY_INFO!C19=0," ",COUNTRY_INFO!C19) -> Djouori-Agnili | D19: =COUNTRY_INFO!M19 -> 6215 | G19: =MAX('MDA1'!M19,'MDA4'!U19) -> 0 | H19: =IF(AND(COUNTRY_INFO!H19>0,COUNTRY_INFO!H19<4),IF(D19>MAX('MDA1'!M19,'MDA4'!U19),MAX('MDA1'!M19,'MDA4'!U19),D19),0) -> 0 | I19: =IF(AND(COUNTRY_INFO!H19>0,COUNTRY_INFO!H19<4), IF(G19/D19*100<>0, IF(G19/D19*100>100,100,G19/D19*100), "-"),0) -> - | J19: =COUNTRY_INFO!N19 -> Inconnu | M19: =MAX('MDA1'!M19,MAX('MDA3'!I19,'MDA3'!L19)+MAX('MDA3'!J19,'MDA3'!M19)) -> 0 | N19: =IF(AND(COUNTRY_INFO!I19>0,COUNTRY_INFO!I19<4),IF(J19>MAX('MDA1'!M19,MAX('MDA3'!I19,'MDA3'!L19)+MAX('MDA3'!J19,'MDA3'!M19)),MAX('MDA1'!M19,MAX('MDA3'!I19,'MDA3'!L19)+MAX('MDA3'!J19,'MDA3'!M19)),J19),0) -> 0 | O19: =IF(AND(COUNTRY_INFO!I19>0,COUNTRY_INFO!I19<4), IF(M19/J19*100<>0, IF(M19/J19*100>100,100,M19/J19*100), "-"),0) -> 0 | P19: =COUNTRY_INFO!O19 -> 2300 | Q19: 353 | R19: 353 | S19: =SUM(MAX('MDA4'!N19, 'T1'!L19, MAX(T3_R1!K19, T3_R2!K19)), MAX('MDA1'!K19, 'MDA4'!O19, 'T1'!M19, MAX(T3_R1!L19, T3_R2!L19)), MAX('MDA1'!L19, 'MDA4'!P19, 'T1'!N19, MAX(T3_R1!M19, T3_R2!M19))) -> 706 | T19: =IF(AND(COUNTRY_INFO!J19>1,COUNTRY_INFO!J19<4),IF(COUNTRY_INFO!E19>MAX('MDA4'!N19,'T1'!L19,MAX(T3_R1!K19,T3_R2!K19)),MAX('MDA4'!N19,'T1'!L19,MAX(T3_R1!K19,T3_R2!K19)),COUNTRY_INFO!E19),0) -> 0 | U19: =IF(AND(COUNTRY_INFO!J19>1,COUNTRY_INFO!J19<4), IF(T19/COUNTRY_INFO!E19*100<>0, IF(T19/COUNTRY_INFO!E19*100>100,100,T19/COUNTRY_INFO!E19*100), "-"),0) -> - | V19: =IF(AND(COUNTRY_INFO!J19>1,COUNTRY_INFO!J19<4),IF(COUNTRY_INFO!F19>MAX('MDA1'!K19,'MDA4'!O19,'T1'!M19,MAX(T3_R1!L19,T3_R2!L19)),MAX('MDA1'!K19,'MDA4'!O19,'T1'!M19,MAX(T3_R1!L19,T3_R2!L19)),COUNTRY_INFO!F19),0) -> 706 | W19: =IF(AND(COUNTRY_INFO!J19>1,COUNTRY_INFO!J19<4), IF(V19/COUNTRY_INFO!F19*100<>0, IF(V19/COUNTRY_INFO!F19*100>100,100,V19/COUNTRY_INFO!F19*100), "-"),0) -> 45.43114543 | X19: 706 | Y19: =IF(AND(COUNTRY_INFO!J19>1,COUNTRY_INFO!J19<4), IF(S19/P19*100<>0, IF(X19/P19*100>100,100,X19/P19*100), "-"),0) -> 30.69565217 | Z19: =COUNTRY_INFO!P19 -> 0 | AC19: =MAX('T1'!L19,'T2'!J19)+MAX('T1'!M19,'T2'!K19)+MAX('T1'!N19,'T2'!L19) -> 0 | AD19: =IF(COUNTRY_INFO!K19=1,IF(COUNTRY_INFO!F19*0.33>MAX('T1'!M19,'T2'!K19),MAX('T1'!M19,'T2'!K19),COUNTRY_INFO!F19*0.33),IF(COUNTRY_INFO!K19=2,IF(COUNTRY_INFO!F19*0.5>MAX('T1'!M19,'T2'!K19),MAX('T1'!M19,'T2'!K19),COUNTRY_INFO!F19*0.5),IF(COUNTRY_INFO!K19=3,IF(COUNTRY_INFO!F19>MAX('T1'!M19,'T2'!K19),MAX('T1'!M19,'T2'!K19),COUNTRY_INFO!F19),0))) -> 0 | AE19: =IF(AND(COUNTRY_INFO!K19>0,COUNTRY_INFO!K19<4),IF(Z19>0,IF(COUNTRY_INFO!K19=1, AD19/(COUNTRY_INFO!F19*0.33)*100, IF(COUNTRY_INFO!K19=2, AD19/(COUNTRY_INFO!F19*0.5)*100, IF(COUNTRY_INFO!K19=3, AD19/COUNTRY_INFO!F19*100))),"-"),0) -> 0 | AF19: =IF(COUNTRY_INFO!K19=2,IF(COUNTRY_INFO!G19*0.2>MAX('T1'!N19,'T2'!L19),MAX('T1'!N19,'T2'!L19),COUNTRY_INFO!G19*0.2),IF(COUNTRY_INFO!K19=3,IF(COUNTRY_INFO!G19>MAX('T1'!N19,'T2'!L19),MAX('T1'!N19,'T2'!L19),COUNTRY_INFO!G19),0)) -> 0 | AG19: =IF(AND(COUNTRY_INFO!K19>0,COUNTRY_INFO!K19<4),IF(Z19>0,IF(COUNTRY_INFO!K19=1, 0, IF(COUNTRY_INFO!K19=2, AF19/(COUNTRY_INFO!G19*0.2)*100, IF(COUNTRY_INFO!K19=3, AF19/COUNTRY_INFO!G19*100))),"-"),0) -> 0 | AH19: 0 | AI19: =IF(AND(COUNTRY_INFO!K19>0,COUNTRY_INFO!K19<4), IF(AC19/Z19*100<>0, IF(AH19/Z19*100>100,100,AH19/Z19*100), "-"),0) -> 0 | AK19: =IF(AND(D19<>0, D19<>"Inconnu",D19<>"Interrompu",D19<>"Non requis"),D19/COUNTRY_INFO!D19, 0) -> 1 | AL19: =IF(AND(J19<>0,J19<>"Inconnu",J19<>"Interrompu",J19<>"Non requis"),J19/COUNTRY_INFO!D19, 0) -> 0 | AM19: =IF(AND(P19<>0,P19<>"Inconnu",P19<>"Non requis"),P19/(COUNTRY_INFO!E19+COUNTRY_INFO!F19), 0) -> 1 | AN19: =IF(AND(Z19<>0,Z19<>"Inconnu",Z19<>"Non requis"),IF(COUNTRY_INFO!K19=1,1,IF(COUNTRY_INFO!K19=2,0.5*COUNTRY_INFO!F19/(0.5*COUNTRY_INFO!F19+0.2*COUNTRY_INFO!G19),IF(COUNTRY_INFO!K19=3,COUNTRY_INFO!F19/(COUNTRY_INFO!F19+COUNTRY_INFO!G19)))),0) -> 0 | AO19: =IF(AND(Z19<>0,Z19<>"Inconnu",Z19<>"Non requis"),IF(COUNTRY_INFO!K19=1,0,IF(COUNTRY_INFO!K19=2,0.2*COUNTRY_INFO!G19/(0.5*COUNTRY_INFO!F19+0.2*COUNTRY_INFO!G19),IF(COUNTRY_INFO!K19=3,COUNTRY_INFO!G19/(COUNTRY_INFO!F19+COUNTRY_INFO!G19)))),0) -> 0 | AP19: =MAX(COUNTRY_INFO!D19*AK19*PROFILE!$G$7,COUNTRY_INFO!D19*AL19*PROFILE!$G$7) -> 248.5795492 | AQ19: =MAX(COUNTRY_INFO!D19*AK19*PROFILE!$G$8,COUNTRY_INFO!D19*AL19*PROFILE!$G$8,COUNTRY_INFO!D19*AM19*PROFILE!$G$8) -> 745.7957895 | AR19: =MAX(COUNTRY_INFO!D19*AK19*PROFILE!$G$9,COUNTRY_INFO!D19*AL19*PROFILE!$G$9,COUNTRY_INFO!D19*AM19*PROFILE!$G$9,IF(AND(DISTRICT!Z19<>"Inconnu",Z19<>"Non requis"),COUNTRY_INFO!P19*DISTRICT!AN19,0)) -> 1553.768045 | AS19: =MAX(COUNTRY_INFO!D19*AK19*PROFILE!$G$10,COUNTRY_INFO!D19*AL19*PROFILE!$G$10,IF(AND(DISTRICT!Z19<>"Inconnu",Z19<>"Non requis"),COUNTRY_INFO!P19*DISTRICT!AO19,0)) -> 3666.856616 | AT19: 6215 | AU19: 0 | AV19: =MAX('MDA4'!R19,'T1'!L19,'T2'!J19,T3_R1!K19,T3_R2!K19) -> 0 | AW19: =MAX('MDA1'!K19,'MDA4'!S19,'MDA3'!I19,'MDA3'!L19,'T1'!M19,'T2'!K19,T3_R1!L19,T3_R2!L19) -> 706 | AX19: =MAX('MDA1'!L19,'MDA4'!T19,'MDA3'!J19,'MDA3'!M19,'T1'!N19,'T2'!L19,T3_R1!M19,T3_R2!M19) -> 0 | AY19: 706 | AZ19: =MAX('MDA4'!R19,T19) -> 0 | BA19: =MAX('MDA1'!K19,'MDA4'!S19,'MDA3'!I19,'MDA3'!L19,V19,AD19) -> 706 | BB19: =MAX('MDA1'!L19,'MDA4'!T19,'MDA3'!J19,'MDA3'!M19,AF19) -> 0 | BC19: 706 | BD19: 11.35961384
A20: =IF(COUNTRY_INFO!A20=0," ",COUNTRY_INFO!A20) -> Gabon | B20: =IF(COUNTRY_INFO!B20=0," ",COUNTRY_INFO!B20) -> Sud-Est | C20: =IF(COUNTRY_INFO!C20=0," ",COUNTRY_INFO!C20) -> Ogooué-Létili | D20: =COUNTRY_INFO!M20 -> 0 | G20: =MAX('MDA1'!M20,'MDA4'!U20) -> 0 | H20: =IF(AND(COUNTRY_INFO!H20>0,COUNTRY_INFO!H20<4),IF(D20>MAX('MDA1'!M20,'MDA4'!U20),MAX('MDA1'!M20,'MDA4'!U20),D20),0) -> 0 | I20: =IF(AND(COUNTRY_INFO!H20>0,COUNTRY_INFO!H20<4), IF(G20/D20*100<>0, IF(G20/D20*100>100,100,G20/D20*100), "-"),0) -> 0 | J20: =COUNTRY_INFO!N20 -> Inconnu | M20: =MAX('MDA1'!M20,MAX('MDA3'!I20,'MDA3'!L20)+MAX('MDA3'!J20,'MDA3'!M20)) -> 0 | N20: =IF(AND(COUNTRY_INFO!I20>0,COUNTRY_INFO!I20<4),IF(J20>MAX('MDA1'!M20,MAX('MDA3'!I20,'MDA3'!L20)+MAX('MDA3'!J20,'MDA3'!M20)),MAX('MDA1'!M20,MAX('MDA3'!I20,'MDA3'!L20)+MAX('MDA3'!J20,'MDA3'!M20)),J20),0) -> 0 | O20: =IF(AND(COUNTRY_INFO!I20>0,COUNTRY_INFO!I20<4), IF(M20/J20*100<>0, IF(M20/J20*100>100,100,M20/J20*100), "-"),0) -> 0 | P20: =COUNTRY_INFO!O20 -> 1933 | Q20: 336 | R20: 331 | S20: =SUM(MAX('MDA4'!N20, 'T1'!L20, MAX(T3_R1!K20, T3_R2!K20)), MAX('MDA1'!K20, 'MDA4'!O20, 'T1'!M20, MAX(T3_R1!L20, T3_R2!L20)), MAX('MDA1'!L20, 'MDA4'!P20, 'T1'!N20, MAX(T3_R1!M20, T3_R2!M20))) -> 667 | T20: =IF(AND(COUNTRY_INFO!J20>1,COUNTRY_INFO!J20<4),IF(COUNTRY_INFO!E20>MAX('MDA4'!N20,'T1'!L20,MAX(T3_R1!K20,T3_R2!K20)),MAX('MDA4'!N20,'T1'!L20,MAX(T3_R1!K20,T3_R2!K20)),COUNTRY_INFO!E20),0) -> 0 | U20: =IF(AND(COUNTRY_INFO!J20>1,COUNTRY_INFO!J20<4), IF(T20/COUNTRY_INFO!E20*100<>0, IF(T20/COUNTRY_INFO!E20*100>100,100,T20/COUNTRY_INFO!E20*100), "-"),0) -> - | V20: =IF(AND(COUNTRY_INFO!J20>1,COUNTRY_INFO!J20<4),IF(COUNTRY_INFO!F20>MAX('MDA1'!K20,'MDA4'!O20,'T1'!M20,MAX(T3_R1!L20,T3_R2!L20)),MAX('MDA1'!K20,'MDA4'!O20,'T1'!M20,MAX(T3_R1!L20,T3_R2!L20)),COUNTRY_INFO!F20),0) -> 667 | W20: =IF(AND(COUNTRY_INFO!J20>1,COUNTRY_INFO!J20<4), IF(V20/COUNTRY_INFO!F20*100<>0, IF(V20/COUNTRY_INFO!F20*100>100,100,V20/COUNTRY_INFO!F20*100), "-"),0) -> 51.0719755 | X20: 667 | Y20: =IF(AND(COUNTRY_INFO!J20>1,COUNTRY_INFO!J20<4), IF(S20/P20*100<>0, IF(X20/P20*100>100,100,X20/P20*100), "-"),0) -> 34.5059493 | Z20: =COUNTRY_INFO!P20 -> 0 | AC20: =MAX('T1'!L20,'T2'!J20)+MAX('T1'!M20,'T2'!K20)+MAX('T1'!N20,'T2'!L20) -> 0 | AD20: =IF(COUNTRY_INFO!K20=1,IF(COUNTRY_INFO!F20*0.33>MAX('T1'!M20,'T2'!K20),MAX('T1'!M20,'T2'!K20),COUNTRY_INFO!F20*0.33),IF(COUNTRY_INFO!K20=2,IF(COUNTRY_INFO!F20*0.5>MAX('T1'!M20,'T2'!K20),MAX('T1'!M20,'T2'!K20),COUNTRY_INFO!F20*0.5),IF(COUNTRY_INFO!K20=3,IF(COUNTRY_INFO!F20>MAX('T1'!M20,'T2'!K20),MAX('T1'!M20,'T2'!K20),COUNTRY_INFO!F20),0))) -> 0 | AE20: =IF(AND(COUNTRY_INFO!K20>0,COUNTRY_INFO!K20<4),IF(Z20>0,IF(COUNTRY_INFO!K20=1, AD20/(COUNTRY_INFO!F20*0.33)*100, IF(COUNTRY_INFO!K20=2, AD20/(COUNTRY_INFO!F20*0.5)*100, IF(COUNTRY_INFO!K20=3, AD20/COUNTRY_INFO!F20*100))),"-"),0) -> 0 | AF20: =IF(COUNTRY_INFO!K20=2,IF(COUNTRY_INFO!G20*0.2>MAX('T1'!N20,'T2'!L20),MAX('T1'!N20,'T2'!L20),COUNTRY_INFO!G20*0.2),IF(COUNTRY_INFO!K20=3,IF(COUNTRY_INFO!G20>MAX('T1'!N20,'T2'!L20),MAX('T1'!N20,'T2'!L20),COUNTRY_INFO!G20),0)) -> 0 | AG20: =IF(AND(COUNTRY_INFO!K20>0,COUNTRY_INFO!K20<4),IF(Z20>0,IF(COUNTRY_INFO!K20=1, 0, IF(COUNTRY_INFO!K20=2, AF20/(COUNTRY_INFO!G20*0.2)*100, IF(COUNTRY_INFO!K20=3, AF20/COUNTRY_INFO!G20*100))),"-"),0) -> 0 | AH20: 0 | AI20: =IF(AND(COUNTRY_INFO!K20>0,COUNTRY_INFO!K20<4), IF(AC20/Z20*100<>0, IF(AH20/Z20*100>100,100,AH20/Z20*100), "-"),0) -> 0 | AK20: =IF(AND(D20<>0, D20<>"Inconnu",D20<>"Interrompu",D20<>"Non requis"),D20/COUNTRY_INFO!D20, 0) -> 0 | AL20: =IF(AND(J20<>0,J20<>"Inconnu",J20<>"Interrompu",J20<>"Non requis"),J20/COUNTRY_INFO!D20, 0) -> 0 | AM20: =IF(AND(P20<>0,P20<>"Inconnu",P20<>"Non requis"),P20/(COUNTRY_INFO!E20+COUNTRY_INFO!F20), 0) -> 1 | AN20: =IF(AND(Z20<>0,Z20<>"Inconnu",Z20<>"Non requis"),IF(COUNTRY_INFO!K20=1,1,IF(COUNTRY_INFO!K20=2,0.5*COUNTRY_INFO!F20/(0.5*COUNTRY_INFO!F20+0.2*COUNTRY_INFO!G20),IF(COUNTRY_INFO!K20=3,COUNTRY_INFO!F20/(COUNTRY_INFO!F20+COUNTRY_INFO!G20)))),0) -> 0 | AO20: =IF(AND(Z20<>0,Z20<>"Inconnu",Z20<>"Non requis"),IF(COUNTRY_INFO!K20=1,0,IF(COUNTRY_INFO!K20=2,0.2*COUNTRY_INFO!G20/(0.5*COUNTRY_INFO!F20+0.2*COUNTRY_INFO!G20),IF(COUNTRY_INFO!K20=3,COUNTRY_INFO!G20/(COUNTRY_INFO!F20+COUNTRY_INFO!G20)))),0) -> 0 | AP20: =MAX(COUNTRY_INFO!D20*AK20*PROFILE!$G$7,COUNTRY_INFO!D20*AL20*PROFILE!$G$7) -> 0 | AQ20: =MAX(COUNTRY_INFO!D20*AK20*PROFILE!$G$8,COUNTRY_INFO!D20*AL20*PROFILE!$G$8,COUNTRY_INFO!D20*AM20*PROFILE!$G$8) -> 626.7564616 | AR20: =MAX(COUNTRY_INFO!D20*AK20*PROFILE!$G$9,COUNTRY_INFO!D20*AL20*PROFILE!$G$9,COUNTRY_INFO!D20*AM20*PROFILE!$G$9,IF(AND(DISTRICT!Z20<>"Inconnu",Z20<>"Non requis"),COUNTRY_INFO!P20*DISTRICT!AN20,0)) -> 1305.765165 | AS20: =MAX(COUNTRY_INFO!D20*AK20*PROFILE!$G$10,COUNTRY_INFO!D20*AL20*PROFILE!$G$10,IF(AND(DISTRICT!Z20<>"Inconnu",Z20<>"Non requis"),COUNTRY_INFO!P20*DISTRICT!AO20,0)) -> 0 | AT20: 1932.521626 | AU20: Y | AV20: =MAX('MDA4'!R20,'T1'!L20,'T2'!J20,T3_R1!K20,T3_R2!K20) -> 0 | AW20: =MAX('MDA1'!K20,'MDA4'!S20,'MDA3'!I20,'MDA3'!L20,'T1'!M20,'T2'!K20,T3_R1!L20,T3_R2!L20) -> 667 | AX20: =MAX('MDA1'!L20,'MDA4'!T20,'MDA3'!J20,'MDA3'!M20,'T1'!N20,'T2'!L20,T3_R1!M20,T3_R2!M20) -> 0 | AY20: 667 | AZ20: =MAX('MDA4'!R20,T20) -> 0 | BA20: =MAX('MDA1'!K20,'MDA4'!S20,'MDA3'!I20,'MDA3'!L20,V20,AD20) -> 667 | BB20: =MAX('MDA1'!L20,'MDA4'!T20,'MDA3'!J20,'MDA3'!M20,AF20) -> 0 | BC20: 667 | BD20: 34.51449086
A21: =IF(COUNTRY_INFO!A21=0," ",COUNTRY_INFO!A21) -> Gabon | B21: =IF(COUNTRY_INFO!B21=0," ",COUNTRY_INFO!B21) -> Sud-Est | C21: =IF(COUNTRY_INFO!C21=0," ",COUNTRY_INFO!C21) -> Mpassa | D21: =COUNTRY_INFO!M21 -> 0 | G21: =MAX('MDA1'!M21,'MDA4'!U21) -> 0 | H21: =IF(AND(COUNTRY_INFO!H21>0,COUNTRY_INFO!H21<4),IF(D21>MAX('MDA1'!M21,'MDA4'!U21),MAX('MDA1'!M21,'MDA4'!U21),D21),0) -> 0 | I21: =IF(AND(COUNTRY_INFO!H21>0,COUNTRY_INFO!H21<4), IF(G21/D21*100<>0, IF(G21/D21*100>100,100,G21/D21*100), "-"),0) -> 0 | J21: =COUNTRY_INFO!N21 -> 157036 | M21: =MAX('MDA1'!M21,MAX('MDA3'!I21,'MDA3'!L21)+MAX('MDA3'!J21,'MDA3'!M21)) -> 0 | N21: =IF(AND(COUNTRY_INFO!I21>0,COUNTRY_INFO!I21<4),IF(J21>MAX('MDA1'!M21,MAX('MDA3'!I21,'MDA3'!L21)+MAX('MDA3'!J21,'MDA3'!M21)),MAX('MDA1'!M21,MAX('MDA3'!I21,'MDA3'!L21)+MAX('MDA3'!J21,'MDA3'!M21)),J21),0) -> 0 | O21: =IF(AND(COUNTRY_INFO!I21>0,COUNTRY_INFO!I21<4), IF(M21/J21*100<>0, IF(M21/J21*100>100,100,M21/J21*100), "-"),0) -> - | P21: =COUNTRY_INFO!O21 -> 58103 | Q21: 4269 | R21: 4355 | S21: =SUM(MAX('MDA4'!N21, 'T1'!L21, MAX(T3_R1!K21, T3_R2!K21)), MAX('MDA1'!K21, 'MDA4'!O21, 'T1'!M21, MAX(T3_R1!L21, T3_R2!L21)), MAX('MDA1'!L21, 'MDA4'!P21, 'T1'!N21, MAX(T3_R1!M21, T3_R2!M21))) -> 8624 | T21: =IF(AND(COUNTRY_INFO!J21>1,COUNTRY_INFO!J21<4),IF(COUNTRY_INFO!E21>MAX('MDA4'!N21,'T1'!L21,MAX(T3_R1!K21,T3_R2!K21)),MAX('MDA4'!N21,'T1'!L21,MAX(T3_R1!K21,T3_R2!K21)),COUNTRY_INFO!E21),0) -> 0 | U21: =IF(AND(COUNTRY_INFO!J21>1,COUNTRY_INFO!J21<4), IF(T21/COUNTRY_INFO!E21*100<>0, IF(T21/COUNTRY_INFO!E21*100>100,100,T21/COUNTRY_INFO!E21*100), "-"),0) -> - | V21: =IF(AND(COUNTRY_INFO!J21>1,COUNTRY_INFO!J21<4),IF(COUNTRY_INFO!F21>MAX('MDA1'!K21,'MDA4'!O21,'T1'!M21,MAX(T3_R1!L21,T3_R2!L21)),MAX('MDA1'!K21,'MDA4'!O21,'T1'!M21,MAX(T3_R1!L21,T3_R2!L21)),COUNTRY_INFO!F21),0) -> 8624 | W21: =IF(AND(COUNTRY_INFO!J21>1,COUNTRY_INFO!J21<4), IF(V21/COUNTRY_INFO!F21*100<>0, IF(V21/COUNTRY_INFO!F21*100>100,100,V21/COUNTRY_INFO!F21*100), "-"),0) -> 21.96693752 | X21: 8624 | Y21: =IF(AND(COUNTRY_INFO!J21>1,COUNTRY_INFO!J21<4), IF(S21/P21*100<>0, IF(X21/P21*100>100,100,X21/P21*100), "-"),0) -> 14.84260709 | Z21: =COUNTRY_INFO!P21 -> 12955.47 | AA21: 4269 | AB21: 4355 | AC21: =MAX('T1'!L21,'T2'!J21)+MAX('T1'!M21,'T2'!K21)+MAX('T1'!N21,'T2'!L21) -> 8624 | AD21: =IF(COUNTRY_INFO!K21=1,IF(COUNTRY_INFO!F21*0.33>MAX('T1'!M21,'T2'!K21),MAX('T1'!M21,'T2'!K21),COUNTRY_INFO!F21*0.33),IF(COUNTRY_INFO!K21=2,IF(COUNTRY_INFO!F21*0.5>MAX('T1'!M21,'T2'!K21),MAX('T1'!M21,'T2'!K21),COUNTRY_INFO!F21*0.5),IF(COUNTRY_INFO!K21=3,IF(COUNTRY_INFO!F21>MAX('T1'!M21,'T2'!K21),MAX('T1'!M21,'T2'!K21),COUNTRY_INFO!F21),0))) -> 8624 | AE21: =IF(AND(COUNTRY_INFO!K21>0,COUNTRY_INFO!K21<4),IF(Z21>0,IF(COUNTRY_INFO!K21=1, AD21/(COUNTRY_INFO!F21*0.33)*100, IF(COUNTRY_INFO!K21=2, AD21/(COUNTRY_INFO!F21*0.5)*100, IF(COUNTRY_INFO!K21=3, AD21/COUNTRY_INFO!F21*100))),"-"),0) -> 66.56647733 | AF21: =IF(COUNTRY_INFO!K21=2,IF(COUNTRY_INFO!G21*0.2>MAX('T1'!N21,'T2'!L21),MAX('T1'!N21,'T2'!L21),COUNTRY_INFO!G21*0.2),IF(COUNTRY_INFO!K21=3,IF(COUNTRY_INFO!G21>MAX('T1'!N21,'T2'!L21),MAX('T1'!N21,'T2'!L21),COUNTRY_INFO!G21),0)) -> 0 | AG21: =IF(AND(COUNTRY_INFO!K21>0,COUNTRY_INFO!K21<4),IF(Z21>0,IF(COUNTRY_INFO!K21=1, 0, IF(COUNTRY_INFO!K21=2, AF21/(COUNTRY_INFO!G21*0.2)*100, IF(COUNTRY_INFO!K21=3, AF21/COUNTRY_INFO!G21*100))),"-"),0) -> 0 | AH21: 8624 | AI21: =IF(AND(COUNTRY_INFO!K21>0,COUNTRY_INFO!K21<4), IF(AC21/Z21*100<>0, IF(AH21/Z21*100>100,100,AH21/Z21*100), "-"),0) -> 66.56647733 | AK21: =IF(AND(D21<>0, D21<>"Inconnu",D21<>"Interrompu",D21<>"Non requis"),D21/COUNTRY_INFO!D21, 0) -> 0 | AL21: =IF(AND(J21<>0,J21<>"Inconnu",J21<>"Interrompu",J21<>"Non requis"),J21/COUNTRY_INFO!D21, 0) -> 1 | AM21: =IF(AND(P21<>0,P21<>"Inconnu",P21<>"Non requis"),P21/(COUNTRY_INFO!E21+COUNTRY_INFO!F21), 0) -> 1 | AN21: =IF(AND(Z21<>0,Z21<>"Inconnu",Z21<>"Non requis"),IF(COUNTRY_INFO!K21=1,1,IF(COUNTRY_INFO!K21=2,0.5*COUNTRY_INFO!F21/(0.5*COUNTRY_INFO!F21+0.2*COUNTRY_INFO!G21),IF(COUNTRY_INFO!K21=3,COUNTRY_INFO!F21/(COUNTRY_INFO!F21+COUNTRY_INFO!G21)))),0) -> 1 | AO21: =IF(AND(Z21<>0,Z21<>"Inconnu",Z21<>"Non requis"),IF(COUNTRY_INFO!K21=1,0,IF(COUNTRY_INFO!K21=2,0.2*COUNTRY_INFO!G21/(0.5*COUNTRY_INFO!F21+0.2*COUNTRY_INFO!G21),IF(COUNTRY_INFO!K21=3,COUNTRY_INFO!G21/(COUNTRY_INFO!F21+COUNTRY_INFO!G21)))),0) -> 0 | AP21: =MAX(COUNTRY_INFO!D21*AK21*PROFILE!$G$7,COUNTRY_INFO!D21*AL21*PROFILE!$G$7) -> 6280.923264 | AQ21: =MAX(COUNTRY_INFO!D21*AK21*PROFILE!$G$8,COUNTRY_INFO!D21*AL21*PROFILE!$G$8,COUNTRY_INFO!D21*AM21*PROFILE!$G$8) -> 18844.21361 | AR21: =MAX(COUNTRY_INFO!D21*AK21*PROFILE!$G$9,COUNTRY_INFO!D21*AL21*PROFILE!$G$9,COUNTRY_INFO!D21*AM21*PROFILE!$G$9,IF(AND(DISTRICT!Z21<>"Inconnu",Z21<>"Non requis"),COUNTRY_INFO!P21*DISTRICT!AN21,0)) -> 39259.45594 | AS21: =MAX(COUNTRY_INFO!D21*AK21*PROFILE!$G$10,COUNTRY_INFO!D21*AL21*PROFILE!$G$10,IF(AND(DISTRICT!Z21<>"Inconnu",Z21<>"Non requis"),COUNTRY_INFO!P21*DISTRICT!AO21,0)) -> 92651.40718 | AT21: 157036 | AU21: 0 | AV21: =MAX('MDA4'!R21,'T1'!L21,'T2'!J21,T3_R1!K21,T3_R2!K21) -> 0 | AW21: =MAX('MDA1'!K21,'MDA4'!S21,'MDA3'!I21,'MDA3'!L21,'T1'!M21,'T2'!K21,T3_R1!L21,T3_R2!L21) -> 8624 | AX21: =MAX('MDA1'!L21,'MDA4'!T21,'MDA3'!J21,'MDA3'!M21,'T1'!N21,'T2'!L21,T3_R1!M21,T3_R2!M21) -> 0 | AY21: 8624 | AZ21: =MAX('MDA4'!R21,T21) -> 0 | BA21: =MAX('MDA1'!K21,'MDA4'!S21,'MDA3'!I21,'MDA3'!L21,V21,AD21) -> 8624 | BB21: =MAX('MDA1'!L21,'MDA4'!T21,'MDA3'!J21,'MDA3'!M21,AF21) -> 0 | BC21: 8624 | BD21: 5.491734379
A22: =IF(COUNTRY_INFO!A22=0," ",COUNTRY_INFO!A22) -> Gabon | B22: =IF(COUNTRY_INFO!B22=0," ",COUNTRY_INFO!B22) -> Sud-Est | C22: =IF(COUNTRY_INFO!C22=0," ",COUNTRY_INFO!C22) -> Plateaux | D22: =COUNTRY_INFO!M22 -> 0 | G22: =MAX('MDA1'!M22,'MDA4'!U22) -> 0 | H22: =IF(AND(COUNTRY_INFO!H22>0,COUNTRY_INFO!H22<4),IF(D22>MAX('MDA1'!M22,'MDA4'!U22),MAX('MDA1'!M22,'MDA4'!U22),D22),0) -> 0 | I22: =IF(AND(COUNTRY_INFO!H22>0,COUNTRY_INFO!H22<4), IF(G22/D22*100<>0, IF(G22/D22*100>100,100,G22/D22*100), "-"),0) -> 0 | J22: =COUNTRY_INFO!N22 -> Inconnu | M22: =MAX('MDA1'!M22,MAX('MDA3'!I22,'MDA3'!L22)+MAX('MDA3'!J22,'MDA3'!M22)) -> 0 | N22: =IF(AND(COUNTRY_INFO!I22>0,COUNTRY_INFO!I22<4),IF(J22>MAX('MDA1'!M22,MAX('MDA3'!I22,'MDA3'!L22)+MAX('MDA3'!J22,'MDA3'!M22)),MAX('MDA1'!M22,MAX('MDA3'!I22,'MDA3'!L22)+MAX('MDA3'!J22,'MDA3'!M22)),J22),0) -> 0 | O22: =IF(AND(COUNTRY_INFO!I22>0,COUNTRY_INFO!I22<4), IF(M22/J22*100<>0, IF(M22/J22*100>100,100,M22/J22*100), "-"),0) -> 0 | P22: =COUNTRY_INFO!O22 -> 4657 | Q22: 920 | R22: 996 | S22: =SUM(MAX('MDA4'!N22, 'T1'!L22, MAX(T3_R1!K22, T3_R2!K22)), MAX('MDA1'!K22, 'MDA4'!O22, 'T1'!M22, MAX(T3_R1!L22, T3_R2!L22)), MAX('MDA1'!L22, 'MDA4'!P22, 'T1'!N22, MAX(T3_R1!M22, T3_R2!M22))) -> 1916 | T22: =IF(AND(COUNTRY_INFO!J22>1,COUNTRY_INFO!J22<4),IF(COUNTRY_INFO!E22>MAX('MDA4'!N22,'T1'!L22,MAX(T3_R1!K22,T3_R2!K22)),MAX('MDA4'!N22,'T1'!L22,MAX(T3_R1!K22,T3_R2!K22)),COUNTRY_INFO!E22),0) -> 0 | U22: =IF(AND(COUNTRY_INFO!J22>1,COUNTRY_INFO!J22<4), IF(T22/COUNTRY_INFO!E22*100<>0, IF(T22/COUNTRY_INFO!E22*100>100,100,T22/COUNTRY_INFO!E22*100), "-"),0) -> - | V22: =IF(AND(COUNTRY_INFO!J22>1,COUNTRY_INFO!J22<4),IF(COUNTRY_INFO!F22>MAX('MDA1'!K22,'MDA4'!O22,'T1'!M22,MAX(T3_R1!L22,T3_R2!L22)),MAX('MDA1'!K22,'MDA4'!O22,'T1'!M22,MAX(T3_R1!L22,T3_R2!L22)),COUNTRY_INFO!F22),0) -> 1916 | W22: =IF(AND(COUNTRY_INFO!J22>1,COUNTRY_INFO!J22<4), IF(V22/COUNTRY_INFO!F22*100<>0, IF(V22/COUNTRY_INFO!F22*100>100,100,V22/COUNTRY_INFO!F22*100), "-"),0) -> 60.883381 | X22: 1916 | Y22: =IF(AND(COUNTRY_INFO!J22>1,COUNTRY_INFO!J22<4), IF(S22/P22*100<>0, IF(X22/P22*100>100,100,X22/P22*100), "-"),0) -> 41.14236633 | Z22: =COUNTRY_INFO!P22 -> 1038.51 | AA22: 920 | AB22: 996 | AC22: =MAX('T1'!L22,'T2'!J22)+MAX('T1'!M22,'T2'!K22)+MAX('T1'!N22,'T2'!L22) -> 1916 | AD22: =IF(COUNTRY_INFO!K22=1,IF(COUNTRY_INFO!F22*0.33>MAX('T1'!M22,'T2'!K22),MAX('T1'!M22,'T2'!K22),COUNTRY_INFO!F22*0.33),IF(COUNTRY_INFO!K22=2,IF(COUNTRY_INFO!F22*0.5>MAX('T1'!M22,'T2'!K22),MAX('T1'!M22,'T2'!K22),COUNTRY_INFO!F22*0.5),IF(COUNTRY_INFO!K22=3,IF(COUNTRY_INFO!F22>MAX('T1'!M22,'T2'!K22),MAX('T1'!M22,'T2'!K22),COUNTRY_INFO!F22),0))) -> 1038.51 | AE22: =IF(AND(COUNTRY_INFO!K22>0,COUNTRY_INFO!K22<4),IF(Z22>0,IF(COUNTRY_INFO!K22=1, AD22/(COUNTRY_INFO!F22*0.33)*100, IF(COUNTRY_INFO!K22=2, AD22/(COUNTRY_INFO!F22*0.5)*100, IF(COUNTRY_INFO!K22=3, AD22/COUNTRY_INFO!F22*100))),"-"),0) -> 100 | AF22: =IF(COUNTRY_INFO!K22=2,IF(COUNTRY_INFO!G22*0.2>MAX('T1'!N22,'T2'!L22),MAX('T1'!N22,'T2'!L22),COUNTRY_INFO!G22*0.2),IF(COUNTRY_INFO!K22=3,IF(COUNTRY_INFO!G22>MAX('T1'!N22,'T2'!L22),MAX('T1'!N22,'T2'!L22),COUNTRY_INFO!G22),0)) -> 0 | AG22: =IF(AND(COUNTRY_INFO!K22>0,COUNTRY_INFO!K22<4),IF(Z22>0,IF(COUNTRY_INFO!K22=1, 0, IF(COUNTRY_INFO!K22=2, AF22/(COUNTRY_INFO!G22*0.2)*100, IF(COUNTRY_INFO!K22=3, AF22/COUNTRY_INFO!G22*100))),"-"),0) -> 0 | AH22: 1038.51 | AI22: =IF(AND(COUNTRY_INFO!K22>0,COUNTRY_INFO!K22<4), IF(AC22/Z22*100<>0, IF(AH22/Z22*100>100,100,AH22/Z22*100), "-"),0) -> 100 | AK22: =IF(AND(D22<>0, D22<>"Inconnu",D22<>"Interrompu",D22<>"Non requis"),D22/COUNTRY_INFO!D22, 0) -> 0 | AL22: =IF(AND(J22<>0,J22<>"Inconnu",J22<>"Interrompu",J22<>"Non requis"),J22/COUNTRY_INFO!D22, 0) -> 0 | AM22: =IF(AND(P22<>0,P22<>"Inconnu",P22<>"Non requis"),P22/(COUNTRY_INFO!E22+COUNTRY_INFO!F22), 0) -> 1 | AN22: =IF(AND(Z22<>0,Z22<>"Inconnu",Z22<>"Non requis"),IF(COUNTRY_INFO!K22=1,1,IF(COUNTRY_INFO!K22=2,0.5*COUNTRY_INFO!F22/(0.5*COUNTRY_INFO!F22+0.2*COUNTRY_INFO!G22),IF(COUNTRY_INFO!K22=3,COUNTRY_INFO!F22/(COUNTRY_INFO!F22+COUNTRY_INFO!G22)))),0) -> 1 | AO22: =IF(AND(Z22<>0,Z22<>"Inconnu",Z22<>"Non requis"),IF(COUNTRY_INFO!K22=1,0,IF(COUNTRY_INFO!K22=2,0.2*COUNTRY_INFO!G22/(0.5*COUNTRY_INFO!F22+0.2*COUNTRY_INFO!G22),IF(COUNTRY_INFO!K22=3,COUNTRY_INFO!G22/(COUNTRY_INFO!F22+COUNTRY_INFO!G22)))),0) -> 0 | AP22: =MAX(COUNTRY_INFO!D22*AK22*PROFILE!$G$7,COUNTRY_INFO!D22*AL22*PROFILE!$G$7) -> 0 | AQ22: =MAX(COUNTRY_INFO!D22*AK22*PROFILE!$G$8,COUNTRY_INFO!D22*AL22*PROFILE!$G$8,COUNTRY_INFO!D22*AM22*PROFILE!$G$8) -> 1510.431473 | AR22: =MAX(COUNTRY_INFO!D22*AK22*PROFILE!$G$9,COUNTRY_INFO!D22*AL22*PROFILE!$G$9,COUNTRY_INFO!D22*AM22*PROFILE!$G$9,IF(AND(DISTRICT!Z22<>"Inconnu",Z22<>"Non requis"),COUNTRY_INFO!P22*DISTRICT!AN22,0)) -> 3146.786545 | AS22: =MAX(COUNTRY_INFO!D22*AK22*PROFILE!$G$10,COUNTRY_INFO!D22*AL22*PROFILE!$G$10,IF(AND(DISTRICT!Z22<>"Inconnu",Z22<>"Non requis"),COUNTRY_INFO!P22*DISTRICT!AO22,0)) -> 0 | AT22: 4657.218018 | AU22: Y | AV22: =MAX('MDA4'!R22,'T1'!L22,'T2'!J22,T3_R1!K22,T3_R2!K22) -> 0 | AW22: =MAX('MDA1'!K22,'MDA4'!S22,'MDA3'!I22,'MDA3'!L22,'T1'!M22,'T2'!K22,T3_R1!L22,T3_R2!L22) -> 1916 | AX22: =MAX('MDA1'!L22,'MDA4'!T22,'MDA3'!J22,'MDA3'!M22,'T1'!N22,'T2'!L22,T3_R1!M22,T3_R2!M22) -> 0 | AY22: 1916 | AZ22: =MAX('MDA4'!R22,T22) -> 0 | BA22: =MAX('MDA1'!K22,'MDA4'!S22,'MDA3'!I22,'MDA3'!L22,V22,AD22) -> 1916 | BB22: =MAX('MDA1'!L22,'MDA4'!T22,'MDA3'!J22,'MDA3'!M22,AF22) -> 0 | BC22: 1916 | BD22: 41.14044033
A23: =IF(COUNTRY_INFO!A23=0," ",COUNTRY_INFO!A23) -> Gabon | B23: =IF(COUNTRY_INFO!B23=0," ",COUNTRY_INFO!B23) -> Sud-Est | C23: =IF(COUNTRY_INFO!C23=0," ",COUNTRY_INFO!C23) -> Lébombi-Léyou | D23: =COUNTRY_INFO!M23 -> 0 | G23: =MAX('MDA1'!M23,'MDA4'!U23) -> 0 | H23: =IF(AND(COUNTRY_INFO!H23>0,COUNTRY_INFO!H23<4),IF(D23>MAX('MDA1'!M23,'MDA4'!U23),MAX('MDA1'!M23,'MDA4'!U23),D23),0) -> 0 | I23: =IF(AND(COUNTRY_INFO!H23>0,COUNTRY_INFO!H23<4), IF(G23/D23*100<>0, IF(G23/D23*100>100,100,G23/D23*100), "-"),0) -> 0 | J23: =COUNTRY_INFO!N23 -> 69577 | M23: =MAX('MDA1'!M23,MAX('MDA3'!I23,'MDA3'!L23)+MAX('MDA3'!J23,'MDA3'!M23)) -> 0 | N23: =IF(AND(COUNTRY_INFO!I23>0,COUNTRY_INFO!I23<4),IF(J23>MAX('MDA1'!M23,MAX('MDA3'!I23,'MDA3'!L23)+MAX('MDA3'!J23,'MDA3'!M23)),MAX('MDA1'!M23,MAX('MDA3'!I23,'MDA3'!L23)+MAX('MDA3'!J23,'MDA3'!M23)),J23),0) -> 0 | O23: =IF(AND(COUNTRY_INFO!I23>0,COUNTRY_INFO!I23<4), IF(M23/J23*100<>0, IF(M23/J23*100>100,100,M23/J23*100), "-"),0) -> - | P23: =COUNTRY_INFO!O23 -> 25743 | Q23: 3190 | R23: 3355 | S23: =SUM(MAX('MDA4'!N23, 'T1'!L23, MAX(T3_R1!K23, T3_R2!K23)), MAX('MDA1'!K23, 'MDA4'!O23, 'T1'!M23, MAX(T3_R1!L23, T3_R2!L23)), MAX('MDA1'!L23, 'MDA4'!P23, 'T1'!N23, MAX(T3_R1!M23, T3_R2!M23))) -> 6545 | T23: =IF(AND(COUNTRY_INFO!J23>1,COUNTRY_INFO!J23<4),IF(COUNTRY_INFO!E23>MAX('MDA4'!N23,'T1'!L23,MAX(T3_R1!K23,T3_R2!K23)),MAX('MDA4'!N23,'T1'!L23,MAX(T3_R1!K23,T3_R2!K23)),COUNTRY_INFO!E23),0) -> 0 | U23: =IF(AND(COUNTRY_INFO!J23>1,COUNTRY_INFO!J23<4), IF(T23/COUNTRY_INFO!E23*100<>0, IF(T23/COUNTRY_INFO!E23*100>100,100,T23/COUNTRY_INFO!E23*100), "-"),0) -> - | V23: =IF(AND(COUNTRY_INFO!J23>1,COUNTRY_INFO!J23<4),IF(COUNTRY_INFO!F23>MAX('MDA1'!K23,'MDA4'!O23,'T1'!M23,MAX(T3_R1!L23,T3_R2!L23)),MAX('MDA1'!K23,'MDA4'!O23,'T1'!M23,MAX(T3_R1!L23,T3_R2!L23)),COUNTRY_INFO!F23),0) -> 6545 | W23: =IF(AND(COUNTRY_INFO!J23>1,COUNTRY_INFO!J23<4), IF(V23/COUNTRY_INFO!F23*100<>0, IF(V23/COUNTRY_INFO!F23*100>100,100,V23/COUNTRY_INFO!F23*100), "-"),0) -> 37.62791767 | X23: 6545 | Y23: =IF(AND(COUNTRY_INFO!J23>1,COUNTRY_INFO!J23<4), IF(S23/P23*100<>0, IF(X23/P23*100>100,100,X23/P23*100), "-"),0) -> 25.42438721 | Z23: =COUNTRY_INFO!P23 -> 5740.02 | AA23: 3190 | AB23: 3355 | AC23: =MAX('T1'!L23,'T2'!J23)+MAX('T1'!M23,'T2'!K23)+MAX('T1'!N23,'T2'!L23) -> 6545 | AD23: =IF(COUNTRY_INFO!K23=1,IF(COUNTRY_INFO!F23*0.33>MAX('T1'!M23,'T2'!K23),MAX('T1'!M23,'T2'!K23),COUNTRY_INFO!F23*0.33),IF(COUNTRY_INFO!K23=2,IF(COUNTRY_INFO!F23*0.5>MAX('T1'!M23,'T2'!K23),MAX('T1'!M23,'T2'!K23),COUNTRY_INFO!F23*0.5),IF(COUNTRY_INFO!K23=3,IF(COUNTRY_INFO!F23>MAX('T1'!M23,'T2'!K23),MAX('T1'!M23,'T2'!K23),COUNTRY_INFO!F23),0))) -> 5740.02 | AE23: =IF(AND(COUNTRY_INFO!K23>0,COUNTRY_INFO!K23<4),IF(Z23>0,IF(COUNTRY_INFO!K23=1, AD23/(COUNTRY_INFO!F23*0.33)*100, IF(COUNTRY_INFO!K23=2, AD23/(COUNTRY_INFO!F23*0.5)*100, IF(COUNTRY_INFO!K23=3, AD23/COUNTRY_INFO!F23*100))),"-"),0) -> 100 | AF23: =IF(COUNTRY_INFO!K23=2,IF(COUNTRY_INFO!G23*0.2>MAX('T1'!N23,'T2'!L23),MAX('T1'!N23,'T2'!L23),COUNTRY_INFO!G23*0.2),IF(COUNTRY_INFO!K23=3,IF(COUNTRY_INFO!G23>MAX('T1'!N23,'T2'!L23),MAX('T1'!N23,'T2'!L23),COUNTRY_INFO!G23),0)) -> 0 | AG23: =IF(AND(COUNTRY_INFO!K23>0,COUNTRY_INFO!K23<4),IF(Z23>0,IF(COUNTRY_INFO!K23=1, 0, IF(COUNTRY_INFO!K23=2, AF23/(COUNTRY_INFO!G23*0.2)*100, IF(COUNTRY_INFO!K23=3, AF23/COUNTRY_INFO!G23*100))),"-"),0) -> 0 | AH23: 5740.02 | AI23: =IF(AND(COUNTRY_INFO!K23>0,COUNTRY_INFO!K23<4), IF(AC23/Z23*100<>0, IF(AH23/Z23*100>100,100,AH23/Z23*100), "-"),0) -> 100 | AK23: =IF(AND(D23<>0, D23<>"Inconnu",D23<>"Interrompu",D23<>"Non requis"),D23/COUNTRY_INFO!D23, 0) -> 0 | AL23: =IF(AND(J23<>0,J23<>"Inconnu",J23<>"Interrompu",J23<>"Non requis"),J23/COUNTRY_INFO!D23, 0) -> 1 | AM23: =IF(AND(P23<>0,P23<>"Inconnu",P23<>"Non requis"),P23/(COUNTRY_INFO!E23+COUNTRY_INFO!F23), 0) -> 1 | AN23: =IF(AND(Z23<>0,Z23<>"Inconnu",Z23<>"Non requis"),IF(COUNTRY_INFO!K23=1,1,IF(COUNTRY_INFO!K23=2,0.5*COUNTRY_INFO!F23/(0.5*COUNTRY_INFO!F23+0.2*COUNTRY_INFO!G23),IF(COUNTRY_INFO!K23=3,COUNTRY_INFO!F23/(COUNTRY_INFO!F23+COUNTRY_INFO!G23)))),0) -> 1 | AO23: =IF(AND(Z23<>0,Z23<>"Inconnu",Z23<>"Non requis"),IF(COUNTRY_INFO!K23=1,0,IF(COUNTRY_INFO!K23=2,0.2*COUNTRY_INFO!G23/(0.5*COUNTRY_INFO!F23+0.2*COUNTRY_INFO!G23),IF(COUNTRY_INFO!K23=3,COUNTRY_INFO!G23/(COUNTRY_INFO!F23+COUNTRY_INFO!G23)))),0) -> 0 | AP23: =MAX(COUNTRY_INFO!D23*AK23*PROFILE!$G$7,COUNTRY_INFO!D23*AL23*PROFILE!$G$7) -> 2782.851053 | AQ23: =MAX(COUNTRY_INFO!D23*AK23*PROFILE!$G$8,COUNTRY_INFO!D23*AL23*PROFILE!$G$8,COUNTRY_INFO!D23*AM23*PROFILE!$G$8) -> 8349.192864 | AR23: =MAX(COUNTRY_INFO!D23*AK23*PROFILE!$G$9,COUNTRY_INFO!D23*AL23*PROFILE!$G$9,COUNTRY_INFO!D23*AM23*PROFILE!$G$9,IF(AND(DISTRICT!Z23<>"Inconnu",Z23<>"Non requis"),COUNTRY_INFO!P23*DISTRICT!AN23,0)) -> 17394.45201 | AS23: =MAX(COUNTRY_INFO!D23*AK23*PROFILE!$G$10,COUNTRY_INFO!D23*AL23*PROFILE!$G$10,IF(AND(DISTRICT!Z23<>"Inconnu",Z23<>"Non requis"),COUNTRY_INFO!P23*DISTRICT!AO23,0)) -> 41050.50407 | AT23: 69577 | AU23: 0 | AV23: =MAX('MDA4'!R23,'T1'!L23,'T2'!J23,T3_R1!K23,T3_R2!K23) -> 0 | AW23: =MAX('MDA1'!K23,'MDA4'!S23,'MDA3'!I23,'MDA3'!L23,'T1'!M23,'T2'!K23,T3_R1!L23,T3_R2!L23) -> 6545 | AX23: =MAX('MDA1'!L23,'MDA4'!T23,'MDA3'!J23,'MDA3'!M23,'T1'!N23,'T2'!L23,T3_R1!M23,T3_R2!M23) -> 0 | AY23: 6545 | AZ23: =MAX('MDA4'!R23,T23) -> 0 | BA23: =MAX('MDA1'!K23,'MDA4'!S23,'MDA3'!I23,'MDA3'!L23,V23,AD23) -> 6545 | BB23: =MAX('MDA1'!L23,'MDA4'!T23,'MDA3'!J23,'MDA3'!M23,AF23) -> 0 | BC23: 6545 | BD23: 9.406844216
A24: =IF(COUNTRY_INFO!A24=0," ",COUNTRY_INFO!A24) -> Gabon | B24: =IF(COUNTRY_INFO!B24=0," ",COUNTRY_INFO!B24) -> Sud-Est | C24: =IF(COUNTRY_INFO!C24=0," ",COUNTRY_INFO!C24) -> Lékabi-Léwolo | D24: =COUNTRY_INFO!M24 -> 0 | G24: =MAX('MDA1'!M24,'MDA4'!U24) -> 0 | H24: =IF(AND(COUNTRY_INFO!H24>0,COUNTRY_INFO!H24<4),IF(D24>MAX('MDA1'!M24,'MDA4'!U24),MAX('MDA1'!M24,'MDA4'!U24),D24),0) -> 0 | I24: =IF(AND(COUNTRY_INFO!H24>0,COUNTRY_INFO!H24<4), IF(G24/D24*100<>0, IF(G24/D24*100>100,100,G24/D24*100), "-"),0) -> 0 | J24: =COUNTRY_INFO!N24 -> Inconnu | M24: =MAX('MDA1'!M24,MAX('MDA3'!I24,'MDA3'!L24)+MAX('MDA3'!J24,'MDA3'!M24)) -> 0 | N24: =IF(AND(COUNTRY_INFO!I24>0,COUNTRY_INFO!I24<4),IF(J24>MAX('MDA1'!M24,MAX('MDA3'!I24,'MDA3'!L24)+MAX('MDA3'!J24,'MDA3'!M24)),MAX('MDA1'!M24,MAX('MDA3'!I24,'MDA3'!L24)+MAX('MDA3'!J24,'MDA3'!M24)),J24),0) -> 0 | O24: =IF(AND(COUNTRY_INFO!I24>0,COUNTRY_INFO!I24<4), IF(M24/J24*100<>0, IF(M24/J24*100>100,100,M24/J24*100), "-"),0) -> 0 | P24: =COUNTRY_INFO!O24 -> 3749 | Q24: 323 | R24: 312 | S24: =SUM(MAX('MDA4'!N24, 'T1'!L24, MAX(T3_R1!K24, T3_R2!K24)), MAX('MDA1'!K24, 'MDA4'!O24, 'T1'!M24, MAX(T3_R1!L24, T3_R2!L24)), MAX('MDA1'!L24, 'MDA4'!P24, 'T1'!N24, MAX(T3_R1!M24, T3_R2!M24))) -> 635 | T24: =IF(AND(COUNTRY_INFO!J24>1,COUNTRY_INFO!J24<4),IF(COUNTRY_INFO!E24>MAX('MDA4'!N24,'T1'!L24,MAX(T3_R1!K24,T3_R2!K24)),MAX('MDA4'!N24,'T1'!L24,MAX(T3_R1!K24,T3_R2!K24)),COUNTRY_INFO!E24),0) -> 0 | U24: =IF(AND(COUNTRY_INFO!J24>1,COUNTRY_INFO!J24<4), IF(T24/COUNTRY_INFO!E24*100<>0, IF(T24/COUNTRY_INFO!E24*100>100,100,T24/COUNTRY_INFO!E24*100), "-"),0) -> - | V24: =IF(AND(COUNTRY_INFO!J24>1,COUNTRY_INFO!J24<4),IF(COUNTRY_INFO!F24>MAX('MDA1'!K24,'MDA4'!O24,'T1'!M24,MAX(T3_R1!L24,T3_R2!L24)),MAX('MDA1'!K24,'MDA4'!O24,'T1'!M24,MAX(T3_R1!L24,T3_R2!L24)),COUNTRY_INFO!F24),0) -> 635 | W24: =IF(AND(COUNTRY_INFO!J24>1,COUNTRY_INFO!J24<4), IF(V24/COUNTRY_INFO!F24*100<>0, IF(V24/COUNTRY_INFO!F24*100>100,100,V24/COUNTRY_INFO!F24*100), "-"),0) -> 25.06908804 | X24: 635 | Y24: =IF(AND(COUNTRY_INFO!J24>1,COUNTRY_INFO!J24<4), IF(S24/P24*100<>0, IF(X24/P24*100>100,100,X24/P24*100), "-"),0) -> 16.93785009 | Z24: =COUNTRY_INFO!P24 -> 835.89 | AA24: 323 | AB24: 312 | AC24: =MAX('T1'!L24,'T2'!J24)+MAX('T1'!M24,'T2'!K24)+MAX('T1'!N24,'T2'!L24) -> 635 | AD24: =IF(COUNTRY_INFO!K24=1,IF(COUNTRY_INFO!F24*0.33>MAX('T1'!M24,'T2'!K24),MAX('T1'!M24,'T2'!K24),COUNTRY_INFO!F24*0.33),IF(COUNTRY_INFO!K24=2,IF(COUNTRY_INFO!F24*0.5>MAX('T1'!M24,'T2'!K24),MAX('T1'!M24,'T2'!K24),COUNTRY_INFO!F24*0.5),IF(COUNTRY_INFO!K24=3,IF(COUNTRY_INFO!F24>MAX('T1'!M24,'T2'!K24),MAX('T1'!M24,'T2'!K24),COUNTRY_INFO!F24),0))) -> 635 | AE24: =IF(AND(COUNTRY_INFO!K24>0,COUNTRY_INFO!K24<4),IF(Z24>0,IF(COUNTRY_INFO!K24=1, AD24/(COUNTRY_INFO!F24*0.33)*100, IF(COUNTRY_INFO!K24=2, AD24/(COUNTRY_INFO!F24*0.5)*100, IF(COUNTRY_INFO!K24=3, AD24/COUNTRY_INFO!F24*100))),"-"),0) -> 75.96693345 | AF24: =IF(COUNTRY_INFO!K24=2,IF(COUNTRY_INFO!G24*0.2>MAX('T1'!N24,'T2'!L24),MAX('T1'!N24,'T2'!L24),COUNTRY_INFO!G24*0.2),IF(COUNTRY_INFO!K24=3,IF(COUNTRY_INFO!G24>MAX('T1'!N24,'T2'!L24),MAX('T1'!N24,'T2'!L24),COUNTRY_INFO!G24),0)) -> 0 | AG24: =IF(AND(COUNTRY_INFO!K24>0,COUNTRY_INFO!K24<4),IF(Z24>0,IF(COUNTRY_INFO!K24=1, 0, IF(COUNTRY_INFO!K24=2, AF24/(COUNTRY_INFO!G24*0.2)*100, IF(COUNTRY_INFO!K24=3, AF24/COUNTRY_INFO!G24*100))),"-"),0) -> 0 | AH24: 635 | AI24: =IF(AND(COUNTRY_INFO!K24>0,COUNTRY_INFO!K24<4), IF(AC24/Z24*100<>0, IF(AH24/Z24*100>100,100,AH24/Z24*100), "-"),0) -> 75.96693345 | AK24: =IF(AND(D24<>0, D24<>"Inconnu",D24<>"Interrompu",D24<>"Non requis"),D24/COUNTRY_INFO!D24, 0) -> 0 | AL24: =IF(AND(J24<>0,J24<>"Inconnu",J24<>"Interrompu",J24<>"Non requis"),J24/COUNTRY_INFO!D24, 0) -> 0 | AM24: =IF(AND(P24<>0,P24<>"Inconnu",P24<>"Non requis"),P24/(COUNTRY_INFO!E24+COUNTRY_INFO!F24), 0) -> 1 | AN24: =IF(AND(Z24<>0,Z24<>"Inconnu",Z24<>"Non requis"),IF(COUNTRY_INFO!K24=1,1,IF(COUNTRY_INFO!K24=2,0.5*COUNTRY_INFO!F24/(0.5*COUNTRY_INFO!F24+0.2*COUNTRY_INFO!G24),IF(COUNTRY_INFO!K24=3,COUNTRY_INFO!F24/(COUNTRY_INFO!F24+COUNTRY_INFO!G24)))),0) -> 1 | AO24: =IF(AND(Z24<>0,Z24<>"Inconnu",Z24<>"Non requis"),IF(COUNTRY_INFO!K24=1,0,IF(COUNTRY_INFO!K24=2,0.2*COUNTRY_INFO!G24/(0.5*COUNTRY_INFO!F24+0.2*COUNTRY_INFO!G24),IF(COUNTRY_INFO!K24=3,COUNTRY_INFO!G24/(COUNTRY_INFO!F24+COUNTRY_INFO!G24)))),0) -> 0 | AP24: =MAX(COUNTRY_INFO!D24*AK24*PROFILE!$G$7,COUNTRY_INFO!D24*AL24*PROFILE!$G$7) -> 0 | AQ24: =MAX(COUNTRY_INFO!D24*AK24*PROFILE!$G$8,COUNTRY_INFO!D24*AL24*PROFILE!$G$8,COUNTRY_INFO!D24*AM24*PROFILE!$G$8) -> 1215.713137 | AR24: =MAX(COUNTRY_INFO!D24*AK24*PROFILE!$G$9,COUNTRY_INFO!D24*AL24*PROFILE!$G$9,COUNTRY_INFO!D24*AM24*PROFILE!$G$9,IF(AND(DISTRICT!Z24<>"Inconnu",Z24<>"Non requis"),COUNTRY_INFO!P24*DISTRICT!AN24,0)) -> 2532.779415 | AS24: =MAX(COUNTRY_INFO!D24*AK24*PROFILE!$G$10,COUNTRY_INFO!D24*AL24*PROFILE!$G$10,IF(AND(DISTRICT!Z24<>"Inconnu",Z24<>"Non requis"),COUNTRY_INFO!P24*DISTRICT!AO24,0)) -> 0 | AT24: 3748.492551 | AU24: Y | AV24: =MAX('MDA4'!R24,'T1'!L24,'T2'!J24,T3_R1!K24,T3_R2!K24) -> 0 | AW24: =MAX('MDA1'!K24,'MDA4'!S24,'MDA3'!I24,'MDA3'!L24,'T1'!M24,'T2'!K24,T3_R1!L24,T3_R2!L24) -> 635 | AX24: =MAX('MDA1'!L24,'MDA4'!T24,'MDA3'!J24,'MDA3'!M24,'T1'!N24,'T2'!L24,T3_R1!M24,T3_R2!M24) -> 0 | AY24: 635 | AZ24: =MAX('MDA4'!R24,T24) -> 0 | BA24: =MAX('MDA1'!K24,'MDA4'!S24,'MDA3'!I24,'MDA3'!L24,V24,AD24) -> 635 | BB24: =MAX('MDA1'!L24,'MDA4'!T24,'MDA3'!J24,'MDA3'!M24,AF24) -> 0 | BC24: 635 | BD24: 16.94014304
A25: =IF(COUNTRY_INFO!A25=0," ",COUNTRY_INFO!A25) -> Gabon | B25: =IF(COUNTRY_INFO!B25=0," ",COUNTRY_INFO!B25) -> Sud-Est | C25: =IF(COUNTRY_INFO!C25=0," ",COUNTRY_INFO!C25) -> Sébé-Brikolo | D25: =COUNTRY_INFO!M25 -> 0 | G25: =MAX('MDA1'!M25,'MDA4'!U25) -> 0 | H25: =IF(AND(COUNTRY_INFO!H25>0,COUNTRY_INFO!H25<4),IF(D25>MAX('MDA1'!M25,'MDA4'!U25),MAX('MDA1'!M25,'MDA4'!U25),D25),0) -> 0 | I25: =IF(AND(COUNTRY_INFO!H25>0,COUNTRY_INFO!H25<4), IF(G25/D25*100<>0, IF(G25/D25*100>100,100,G25/D25*100), "-"),0) -> 0 | J25: =COUNTRY_INFO!N25 -> 19036 | M25: =MAX('MDA1'!M25,MAX('MDA3'!I25,'MDA3'!L25)+MAX('MDA3'!J25,'MDA3'!M25)) -> 0 | N25: =IF(AND(COUNTRY_INFO!I25>0,COUNTRY_INFO!I25<4),IF(J25>MAX('MDA1'!M25,MAX('MDA3'!I25,'MDA3'!L25)+MAX('MDA3'!J25,'MDA3'!M25)),MAX('MDA1'!M25,MAX('MDA3'!I25,'MDA3'!L25)+MAX('MDA3'!J25,'MDA3'!M25)),J25),0) -> 0 | O25: =IF(AND(COUNTRY_INFO!I25>0,COUNTRY_INFO!I25<4), IF(M25/J25*100<>0, IF(M25/J25*100>100,100,M25/J25*100), "-"),0) -> - | P25: =COUNTRY_INFO!O25 -> 7043 | Q25: 930 | R25: 886 | S25: =SUM(MAX('MDA4'!N25, 'T1'!L25, MAX(T3_R1!K25, T3_R2!K25)), MAX('MDA1'!K25, 'MDA4'!O25, 'T1'!M25, MAX(T3_R1!L25, T3_R2!L25)), MAX('MDA1'!L25, 'MDA4'!P25, 'T1'!N25, MAX(T3_R1!M25, T3_R2!M25))) -> 1816 | T25: =IF(AND(COUNTRY_INFO!J25>1,COUNTRY_INFO!J25<4),IF(COUNTRY_INFO!E25>MAX('MDA4'!N25,'T1'!L25,MAX(T3_R1!K25,T3_R2!K25)),MAX('MDA4'!N25,'T1'!L25,MAX(T3_R1!K25,T3_R2!K25)),COUNTRY_INFO!E25),0) -> 0 | U25: =IF(AND(COUNTRY_INFO!J25>1,COUNTRY_INFO!J25<4), IF(T25/COUNTRY_INFO!E25*100<>0, IF(T25/COUNTRY_INFO!E25*100>100,100,T25/COUNTRY_INFO!E25*100), "-"),0) -> - | V25: =IF(AND(COUNTRY_INFO!J25>1,COUNTRY_INFO!J25<4),IF(COUNTRY_INFO!F25>MAX('MDA1'!K25,'MDA4'!O25,'T1'!M25,MAX(T3_R1!L25,T3_R2!L25)),MAX('MDA1'!K25,'MDA4'!O25,'T1'!M25,MAX(T3_R1!L25,T3_R2!L25)),COUNTRY_INFO!F25),0) -> 1816 | W25: =IF(AND(COUNTRY_INFO!J25>1,COUNTRY_INFO!J25<4), IF(V25/COUNTRY_INFO!F25*100<>0, IF(V25/COUNTRY_INFO!F25*100>100,100,V25/COUNTRY_INFO!F25*100), "-"),0) -> 38.15927716 | X25: 1816 | Y25: =IF(AND(COUNTRY_INFO!J25>1,COUNTRY_INFO!J25<4), IF(S25/P25*100<>0, IF(X25/P25*100>100,100,X25/P25*100), "-"),0) -> 25.78446685 | Z25: =COUNTRY_INFO!P25 -> 1570.47 | AA25: 930 | AB25: 886 | AC25: =MAX('T1'!L25,'T2'!J25)+MAX('T1'!M25,'T2'!K25)+MAX('T1'!N25,'T2'!L25) -> 1816 | AD25: =IF(COUNTRY_INFO!K25=1,IF(COUNTRY_INFO!F25*0.33>MAX('T1'!M25,'T2'!K25),MAX('T1'!M25,'T2'!K25),COUNTRY_INFO!F25*0.33),IF(COUNTRY_INFO!K25=2,IF(COUNTRY_INFO!F25*0.5>MAX('T1'!M25,'T2'!K25),MAX('T1'!M25,'T2'!K25),COUNTRY_INFO!F25*0.5),IF(COUNTRY_INFO!K25=3,IF(COUNTRY_INFO!F25>MAX('T1'!M25,'T2'!K25),MAX('T1'!M25,'T2'!K25),COUNTRY_INFO!F25),0))) -> 1570.47 | AE25: =IF(AND(COUNTRY_INFO!K25>0,COUNTRY_INFO!K25<4),IF(Z25>0,IF(COUNTRY_INFO!K25=1, AD25/(COUNTRY_INFO!F25*0.33)*100, IF(COUNTRY_INFO!K25=2, AD25/(COUNTRY_INFO!F25*0.5)*100, IF(COUNTRY_INFO!K25=3, AD25/COUNTRY_INFO!F25*100))),"-"),0) -> 100 | AF25: =IF(COUNTRY_INFO!K25=2,IF(COUNTRY_INFO!G25*0.2>MAX('T1'!N25,'T2'!L25),MAX('T1'!N25,'T2'!L25),COUNTRY_INFO!G25*0.2),IF(COUNTRY_INFO!K25=3,IF(COUNTRY_INFO!G25>MAX('T1'!N25,'T2'!L25),MAX('T1'!N25,'T2'!L25),COUNTRY_INFO!G25),0)) -> 0 | AG25: =IF(AND(COUNTRY_INFO!K25>0,COUNTRY_INFO!K25<4),IF(Z25>0,IF(COUNTRY_INFO!K25=1, 0, IF(COUNTRY_INFO!K25=2, AF25/(COUNTRY_INFO!G25*0.2)*100, IF(COUNTRY_INFO!K25=3, AF25/COUNTRY_INFO!G25*100))),"-"),0) -> 0 | AH25: 1570.47 | AI25: =IF(AND(COUNTRY_INFO!K25>0,COUNTRY_INFO!K25<4), IF(AC25/Z25*100<>0, IF(AH25/Z25*100>100,100,AH25/Z25*100), "-"),0) -> 100 | AK25: =IF(AND(D25<>0, D25<>"Inconnu",D25<>"Interrompu",D25<>"Non requis"),D25/COUNTRY_INFO!D25, 0) -> 0 | AL25: =IF(AND(J25<>0,J25<>"Inconnu",J25<>"Interrompu",J25<>"Non requis"),J25/COUNTRY_INFO!D25, 0) -> 1 | AM25: =IF(AND(P25<>0,P25<>"Inconnu",P25<>"Non requis"),P25/(COUNTRY_INFO!E25+COUNTRY_INFO!F25), 0) -> 1 | AN25: =IF(AND(Z25<>0,Z25<>"Inconnu",Z25<>"Non requis"),IF(COUNTRY_INFO!K25=1,1,IF(COUNTRY_INFO!K25=2,0.5*COUNTRY_INFO!F25/(0.5*COUNTRY_INFO!F25+0.2*COUNTRY_INFO!G25),IF(COUNTRY_INFO!K25=3,COUNTRY_INFO!F25/(COUNTRY_INFO!F25+COUNTRY_INFO!G25)))),0) -> 1 | AO25: =IF(AND(Z25<>0,Z25<>"Inconnu",Z25<>"Non requis"),IF(COUNTRY_INFO!K25=1,0,IF(COUNTRY_INFO!K25=2,0.2*COUNTRY_INFO!G25/(0.5*COUNTRY_INFO!F25+0.2*COUNTRY_INFO!G25),IF(COUNTRY_INFO!K25=3,COUNTRY_INFO!G25/(COUNTRY_INFO!F25+COUNTRY_INFO!G25)))),0) -> 0 | AP25: =MAX(COUNTRY_INFO!D25*AK25*PROFILE!$G$7,COUNTRY_INFO!D25*AL25*PROFILE!$G$7) -> 761.377361 | AQ25: =MAX(COUNTRY_INFO!D25*AK25*PROFILE!$G$8,COUNTRY_INFO!D25*AL25*PROFILE!$G$8,COUNTRY_INFO!D25*AM25*PROFILE!$G$8) -> 2284.307104 | AR25: =MAX(COUNTRY_INFO!D25*AK25*PROFILE!$G$9,COUNTRY_INFO!D25*AL25*PROFILE!$G$9,COUNTRY_INFO!D25*AM25*PROFILE!$G$9,IF(AND(DISTRICT!Z25<>"Inconnu",Z25<>"Non requis"),COUNTRY_INFO!P25*DISTRICT!AN25,0)) -> 4759.05527 | AS25: =MAX(COUNTRY_INFO!D25*AK25*PROFILE!$G$10,COUNTRY_INFO!D25*AL25*PROFILE!$G$10,IF(AND(DISTRICT!Z25<>"Inconnu",Z25<>"Non requis"),COUNTRY_INFO!P25*DISTRICT!AO25,0)) -> 11231.26027 | AT25: 19036 | AU25: 0 | AV25: =MAX('MDA4'!R25,'T1'!L25,'T2'!J25,T3_R1!K25,T3_R2!K25) -> 0 | AW25: =MAX('MDA1'!K25,'MDA4'!S25,'MDA3'!I25,'MDA3'!L25,'T1'!M25,'T2'!K25,T3_R1!L25,T3_R2!L25) -> 1816 | AX25: =MAX('MDA1'!L25,'MDA4'!T25,'MDA3'!J25,'MDA3'!M25,'T1'!N25,'T2'!L25,T3_R1!M25,T3_R2!M25) -> 0 | AY25: 1816 | AZ25: =MAX('MDA4'!R25,T25) -> 0 | BA25: =MAX('MDA1'!K25,'MDA4'!S25,'MDA3'!I25,'MDA3'!L25,V25,AD25) -> 1816 | BB25: =MAX('MDA1'!L25,'MDA4'!T25,'MDA3'!J25,'MDA3'!M25,AF25) -> 0 | BC25: 1816 | BD25: 9.53981929
A26: =IF(COUNTRY_INFO!A26=0," ",COUNTRY_INFO!A26) -> Gabon | B26: =IF(COUNTRY_INFO!B26=0," ",COUNTRY_INFO!B26) -> Sud-Est | C26: =IF(COUNTRY_INFO!C26=0," ",COUNTRY_INFO!C26) -> Djoué | D26: =COUNTRY_INFO!M26 -> 0 | G26: =MAX('MDA1'!M26,'MDA4'!U26) -> 0 | H26: =IF(AND(COUNTRY_INFO!H26>0,COUNTRY_INFO!H26<4),IF(D26>MAX('MDA1'!M26,'MDA4'!U26),MAX('MDA1'!M26,'MDA4'!U26),D26),0) -> 0 | I26: =IF(AND(COUNTRY_INFO!H26>0,COUNTRY_INFO!H26<4), IF(G26/D26*100<>0, IF(G26/D26*100>100,100,G26/D26*100), "-"),0) -> 0 | J26: =COUNTRY_INFO!N26 -> Inconnu | M26: =MAX('MDA1'!M26,MAX('MDA3'!I26,'MDA3'!L26)+MAX('MDA3'!J26,'MDA3'!M26)) -> 0 | N26: =IF(AND(COUNTRY_INFO!I26>0,COUNTRY_INFO!I26<4),IF(J26>MAX('MDA1'!M26,MAX('MDA3'!I26,'MDA3'!L26)+MAX('MDA3'!J26,'MDA3'!M26)),MAX('MDA1'!M26,MAX('MDA3'!I26,'MDA3'!L26)+MAX('MDA3'!J26,'MDA3'!M26)),J26),0) -> 0 | O26: =IF(AND(COUNTRY_INFO!I26>0,COUNTRY_INFO!I26<4), IF(M26/J26*100<>0, IF(M26/J26*100>100,100,M26/J26*100), "-"),0) -> 0 | P26: =COUNTRY_INFO!O26 -> 2321 | Q26: 693 | R26: 753 | S26: =SUM(MAX('MDA4'!N26, 'T1'!L26, MAX(T3_R1!K26, T3_R2!K26)), MAX('MDA1'!K26, 'MDA4'!O26, 'T1'!M26, MAX(T3_R1!L26, T3_R2!L26)), MAX('MDA1'!L26, 'MDA4'!P26, 'T1'!N26, MAX(T3_R1!M26, T3_R2!M26))) -> 1446 | T26: =IF(AND(COUNTRY_INFO!J26>1,COUNTRY_INFO!J26<4),IF(COUNTRY_INFO!E26>MAX('MDA4'!N26,'T1'!L26,MAX(T3_R1!K26,T3_R2!K26)),MAX('MDA4'!N26,'T1'!L26,MAX(T3_R1!K26,T3_R2!K26)),COUNTRY_INFO!E26),0) -> 0 | U26: =IF(AND(COUNTRY_INFO!J26>1,COUNTRY_INFO!J26<4), IF(T26/COUNTRY_INFO!E26*100<>0, IF(T26/COUNTRY_INFO!E26*100>100,100,T26/COUNTRY_INFO!E26*100), "-"),0) -> - | V26: =IF(AND(COUNTRY_INFO!J26>1,COUNTRY_INFO!J26<4),IF(COUNTRY_INFO!F26>MAX('MDA1'!K26,'MDA4'!O26,'T1'!M26,MAX(T3_R1!L26,T3_R2!L26)),MAX('MDA1'!K26,'MDA4'!O26,'T1'!M26,MAX(T3_R1!L26,T3_R2!L26)),COUNTRY_INFO!F26),0) -> 1446 | W26: =IF(AND(COUNTRY_INFO!J26>1,COUNTRY_INFO!J26<4), IF(V26/COUNTRY_INFO!F26*100<>0, IF(V26/COUNTRY_INFO!F26*100>100,100,V26/COUNTRY_INFO!F26*100), "-"),0) -> 92.21938776 | X26: 1446 | Y26: =IF(AND(COUNTRY_INFO!J26>1,COUNTRY_INFO!J26<4), IF(S26/P26*100<>0, IF(X26/P26*100>100,100,X26/P26*100), "-"),0) -> 62.30073244 | Z26: =COUNTRY_INFO!P26 -> 517.44 | AA26: 693 | AB26: 753 | AC26: =MAX('T1'!L26,'T2'!J26)+MAX('T1'!M26,'T2'!K26)+MAX('T1'!N26,'T2'!L26) -> 1446 | AD26: =IF(COUNTRY_INFO!K26=1,IF(COUNTRY_INFO!F26*0.33>MAX('T1'!M26,'T2'!K26),MAX('T1'!M26,'T2'!K26),COUNTRY_INFO!F26*0.33),IF(COUNTRY_INFO!K26=2,IF(COUNTRY_INFO!F26*0.5>MAX('T1'!M26,'T2'!K26),MAX('T1'!M26,'T2'!K26),COUNTRY_INFO!F26*0.5),IF(COUNTRY_INFO!K26=3,IF(COUNTRY_INFO!F26>MAX('T1'!M26,'T2'!K26),MAX('T1'!M26,'T2'!K26),COUNTRY_INFO!F26),0))) -> 517.44 | AE26: =IF(AND(COUNTRY_INFO!K26>0,COUNTRY_INFO!K26<4),IF(Z26>0,IF(COUNTRY_INFO!K26=1, AD26/(COUNTRY_INFO!F26*0.33)*100, IF(COUNTRY_INFO!K26=2, AD26/(COUNTRY_INFO!F26*0.5)*100, IF(COUNTRY_INFO!K26=3, AD26/COUNTRY_INFO!F26*100))),"-"),0) -> 100 | AF26: =IF(COUNTRY_INFO!K26=2,IF(COUNTRY_INFO!G26*0.2>MAX('T1'!N26,'T2'!L26),MAX('T1'!N26,'T2'!L26),COUNTRY_INFO!G26*0.2),IF(COUNTRY_INFO!K26=3,IF(COUNTRY_INFO!G26>MAX('T1'!N26,'T2'!L26),MAX('T1'!N26,'T2'!L26),COUNTRY_INFO!G26),0)) -> 0 | AG26: =IF(AND(COUNTRY_INFO!K26>0,COUNTRY_INFO!K26<4),IF(Z26>0,IF(COUNTRY_INFO!K26=1, 0, IF(COUNTRY_INFO!K26=2, AF26/(COUNTRY_INFO!G26*0.2)*100, IF(COUNTRY_INFO!K26=3, AF26/COUNTRY_INFO!G26*100))),"-"),0) -> 0 | AH26: 517.44 | AI26: =IF(AND(COUNTRY_INFO!K26>0,COUNTRY_INFO!K26<4), IF(AC26/Z26*100<>0, IF(AH26/Z26*100>100,100,AH26/Z26*100), "-"),0) -> 100 | AK26: =IF(AND(D26<>0, D26<>"Inconnu",D26<>"Interrompu",D26<>"Non requis"),D26/COUNTRY_INFO!D26, 0) -> 0 | AL26: =IF(AND(J26<>0,J26<>"Inconnu",J26<>"Interrompu",J26<>"Non requis"),J26/COUNTRY_INFO!D26, 0) -> 0 | AM26: =IF(AND(P26<>0,P26<>"Inconnu",P26<>"Non requis"),P26/(COUNTRY_INFO!E26+COUNTRY_INFO!F26), 0) -> 1 | AN26: =IF(AND(Z26<>0,Z26<>"Inconnu",Z26<>"Non requis"),IF(COUNTRY_INFO!K26=1,1,IF(COUNTRY_INFO!K26=2,0.5*COUNTRY_INFO!F26/(0.5*COUNTRY_INFO!F26+0.2*COUNTRY_INFO!G26),IF(COUNTRY_INFO!K26=3,COUNTRY_INFO!F26/(COUNTRY_INFO!F26+COUNTRY_INFO!G26)))),0) -> 1 | AO26: =IF(AND(Z26<>0,Z26<>"Inconnu",Z26<>"Non requis"),IF(COUNTRY_INFO!K26=1,0,IF(COUNTRY_INFO!K26=2,0.2*COUNTRY_INFO!G26/(0.5*COUNTRY_INFO!F26+0.2*COUNTRY_INFO!G26),IF(COUNTRY_INFO!K26=3,COUNTRY_INFO!G26/(COUNTRY_INFO!F26+COUNTRY_INFO!G26)))),0) -> 0 | AP26: =MAX(COUNTRY_INFO!D26*AK26*PROFILE!$G$7,COUNTRY_INFO!D26*AL26*PROFILE!$G$7) -> 0 | AQ26: =MAX(COUNTRY_INFO!D26*AK26*PROFILE!$G$8,COUNTRY_INFO!D26*AL26*PROFILE!$G$8,COUNTRY_INFO!D26*AM26*PROFILE!$G$8) -> 752.5157516 | AR26: =MAX(COUNTRY_INFO!D26*AK26*PROFILE!$G$9,COUNTRY_INFO!D26*AL26*PROFILE!$G$9,COUNTRY_INFO!D26*AM26*PROFILE!$G$9,IF(AND(DISTRICT!Z26<>"Inconnu",Z26<>"Non requis"),COUNTRY_INFO!P26*DISTRICT!AN26,0)) -> 1567.768207 | AS26: =MAX(COUNTRY_INFO!D26*AK26*PROFILE!$G$10,COUNTRY_INFO!D26*AL26*PROFILE!$G$10,IF(AND(DISTRICT!Z26<>"Inconnu",Z26<>"Non requis"),COUNTRY_INFO!P26*DISTRICT!AO26,0)) -> 0 | AT26: 2320.283959 | AU26: Y | AV26: =MAX('MDA4'!R26,'T1'!L26,'T2'!J26,T3_R1!K26,T3_R2!K26) -> 0 | AW26: =MAX('MDA1'!K26,'MDA4'!S26,'MDA3'!I26,'MDA3'!L26,'T1'!M26,'T2'!K26,T3_R1!L26,T3_R2!L26) -> 1446 | AX26: =MAX('MDA1'!L26,'MDA4'!T26,'MDA3'!J26,'MDA3'!M26,'T1'!N26,'T2'!L26,T3_R1!M26,T3_R2!M26) -> 0 | AY26: 1446 | AZ26: =MAX('MDA4'!R26,T26) -> 0 | BA26: =MAX('MDA1'!K26,'MDA4'!S26,'MDA3'!I26,'MDA3'!L26,V26,AD26) -> 1446 | BB26: =MAX('MDA1'!L26,'MDA4'!T26,'MDA3'!J26,'MDA3'!M26,AF26) -> 0 | BC26: 1446 | BD26: 62.31995849
A27: =IF(COUNTRY_INFO!A27=0," ",COUNTRY_INFO!A27) -> Gabon | B27: =IF(COUNTRY_INFO!B27=0," ",COUNTRY_INFO!B27) -> Centre | C27: =IF(COUNTRY_INFO!C27=0," ",COUNTRY_INFO!C27) -> Ogooué-et-Lacs | D27: =COUNTRY_INFO!M27 -> 0 | G27: =MAX('MDA1'!M27,'MDA4'!U27) -> 0 | H27: =IF(AND(COUNTRY_INFO!H27>0,COUNTRY_INFO!H27<4),IF(D27>MAX('MDA1'!M27,'MDA4'!U27),MAX('MDA1'!M27,'MDA4'!U27),D27),0) -> 0 | I27: =IF(AND(COUNTRY_INFO!H27>0,COUNTRY_INFO!H27<4), IF(G27/D27*100<>0, IF(G27/D27*100>100,100,G27/D27*100), "-"),0) -> 0 | J27: =COUNTRY_INFO!N27 -> 0 | M27: =MAX('MDA1'!M27,MAX('MDA3'!I27,'MDA3'!L27)+MAX('MDA3'!J27,'MDA3'!M27)) -> 0 | N27: =IF(AND(COUNTRY_INFO!I27>0,COUNTRY_INFO!I27<4),IF(J27>MAX('MDA1'!M27,MAX('MDA3'!I27,'MDA3'!L27)+MAX('MDA3'!J27,'MDA3'!M27)),MAX('MDA1'!M27,MAX('MDA3'!I27,'MDA3'!L27)+MAX('MDA3'!J27,'MDA3'!M27)),J27),0) -> 0 | O27: =IF(AND(COUNTRY_INFO!I27>0,COUNTRY_INFO!I27<4), IF(M27/J27*100<>0, IF(M27/J27*100>100,100,M27/J27*100), "-"),0) -> 0 | P27: =COUNTRY_INFO!O27 -> 22305 | Q27: 3844 | R27: 3633 | S27: =SUM(MAX('MDA4'!N27, 'T1'!L27, MAX(T3_R1!K27, T3_R2!K27)), MAX('MDA1'!K27, 'MDA4'!O27, 'T1'!M27, MAX(T3_R1!L27, T3_R2!L27)), MAX('MDA1'!L27, 'MDA4'!P27, 'T1'!N27, MAX(T3_R1!M27, T3_R2!M27))) -> 7477 | T27: =IF(AND(COUNTRY_INFO!J27>1,COUNTRY_INFO!J27<4),IF(COUNTRY_INFO!E27>MAX('MDA4'!N27,'T1'!L27,MAX(T3_R1!K27,T3_R2!K27)),MAX('MDA4'!N27,'T1'!L27,MAX(T3_R1!K27,T3_R2!K27)),COUNTRY_INFO!E27),0) -> 0 | U27: =IF(AND(COUNTRY_INFO!J27>1,COUNTRY_INFO!J27<4), IF(T27/COUNTRY_INFO!E27*100<>0, IF(T27/COUNTRY_INFO!E27*100>100,100,T27/COUNTRY_INFO!E27*100), "-"),0) -> - | V27: =IF(AND(COUNTRY_INFO!J27>1,COUNTRY_INFO!J27<4),IF(COUNTRY_INFO!F27>MAX('MDA1'!K27,'MDA4'!O27,'T1'!M27,MAX(T3_R1!L27,T3_R2!L27)),MAX('MDA1'!K27,'MDA4'!O27,'T1'!M27,MAX(T3_R1!L27,T3_R2!L27)),COUNTRY_INFO!F27),0) -> 7477 | W27: =IF(AND(COUNTRY_INFO!J27>1,COUNTRY_INFO!J27<4), IF(V27/COUNTRY_INFO!F27*100<>0, IF(V27/COUNTRY_INFO!F27*100>100,100,V27/COUNTRY_INFO!F27*100), "-"),0) -> 49.6118373 | X27: 7477 | Y27: =IF(AND(COUNTRY_INFO!J27>1,COUNTRY_INFO!J27<4), IF(S27/P27*100<>0, IF(X27/P27*100>100,100,X27/P27*100), "-"),0) -> 33.52163192 | Z27: =COUNTRY_INFO!P27 -> 14648.7 | AA27: 3844 | AB27: 3633 | AC27: =MAX('T1'!L27,'T2'!J27)+MAX('T1'!M27,'T2'!K27)+MAX('T1'!N27,'T2'!L27) -> 7477 | AD27: =IF(COUNTRY_INFO!K27=1,IF(COUNTRY_INFO!F27*0.33>MAX('T1'!M27,'T2'!K27),MAX('T1'!M27,'T2'!K27),COUNTRY_INFO!F27*0.33),IF(COUNTRY_INFO!K27=2,IF(COUNTRY_INFO!F27*0.5>MAX('T1'!M27,'T2'!K27),MAX('T1'!M27,'T2'!K27),COUNTRY_INFO!F27*0.5),IF(COUNTRY_INFO!K27=3,IF(COUNTRY_INFO!F27>MAX('T1'!M27,'T2'!K27),MAX('T1'!M27,'T2'!K27),COUNTRY_INFO!F27),0))) -> 7477 | AE27: =IF(AND(COUNTRY_INFO!K27>0,COUNTRY_INFO!K27<4),IF(Z27>0,IF(COUNTRY_INFO!K27=1, AD27/(COUNTRY_INFO!F27*0.33)*100, IF(COUNTRY_INFO!K27=2, AD27/(COUNTRY_INFO!F27*0.5)*100, IF(COUNTRY_INFO!K27=3, AD27/COUNTRY_INFO!F27*100))),"-"),0) -> 99.22367461 | AF27: =IF(COUNTRY_INFO!K27=2,IF(COUNTRY_INFO!G27*0.2>MAX('T1'!N27,'T2'!L27),MAX('T1'!N27,'T2'!L27),COUNTRY_INFO!G27*0.2),IF(COUNTRY_INFO!K27=3,IF(COUNTRY_INFO!G27>MAX('T1'!N27,'T2'!L27),MAX('T1'!N27,'T2'!L27),COUNTRY_INFO!G27),0)) -> 0 | AG27: =IF(AND(COUNTRY_INFO!K27>0,COUNTRY_INFO!K27<4),IF(Z27>0,IF(COUNTRY_INFO!K27=1, 0, IF(COUNTRY_INFO!K27=2, AF27/(COUNTRY_INFO!G27*0.2)*100, IF(COUNTRY_INFO!K27=3, AF27/COUNTRY_INFO!G27*100))),"-"),0) -> 0 | AH27: 7477 | AI27: =IF(AND(COUNTRY_INFO!K27>0,COUNTRY_INFO!K27<4), IF(AC27/Z27*100<>0, IF(AH27/Z27*100>100,100,AH27/Z27*100), "-"),0) -> 51.04207199 | AK27: =IF(AND(D27<>0, D27<>"Inconnu",D27<>"Interrompu",D27<>"Non requis"),D27/COUNTRY_INFO!D27, 0) -> 0 | AL27: =IF(AND(J27<>0,J27<>"Inconnu",J27<>"Interrompu",J27<>"Non requis"),J27/COUNTRY_INFO!D27, 0) -> 0 | AM27: =IF(AND(P27<>0,P27<>"Inconnu",P27<>"Non requis"),P27/(COUNTRY_INFO!E27+COUNTRY_INFO!F27), 0) -> 1 | AN27: =IF(AND(Z27<>0,Z27<>"Inconnu",Z27<>"Non requis"),IF(COUNTRY_INFO!K27=1,1,IF(COUNTRY_INFO!K27=2,0.5*COUNTRY_INFO!F27/(0.5*COUNTRY_INFO!F27+0.2*COUNTRY_INFO!G27),IF(COUNTRY_INFO!K27=3,COUNTRY_INFO!F27/(COUNTRY_INFO!F27+COUNTRY_INFO!G27)))),0) -> 0.5144142484 | AO27: =IF(AND(Z27<>0,Z27<>"Inconnu",Z27<>"Non requis"),IF(COUNTRY_INFO!K27=1,0,IF(COUNTRY_INFO!K27=2,0.2*COUNTRY_INFO!G27/(0.5*COUNTRY_INFO!F27+0.2*COUNTRY_INFO!G27),IF(COUNTRY_INFO!K27=3,COUNTRY_INFO!G27/(COUNTRY_INFO!F27+COUNTRY_INFO!G27)))),0) -> 0.4855857516 | AP27: =MAX(COUNTRY_INFO!D27*AK27*PROFILE!$G$7,COUNTRY_INFO!D27*AL27*PROFILE!$G$7) -> 0 | AQ27: =MAX(COUNTRY_INFO!D27*AK27*PROFILE!$G$8,COUNTRY_INFO!D27*AL27*PROFILE!$G$8,COUNTRY_INFO!D27*AM27*PROFILE!$G$8) -> 7233.799161 | AR27: =MAX(COUNTRY_INFO!D27*AK27*PROFILE!$G$9,COUNTRY_INFO!D27*AL27*PROFILE!$G$9,COUNTRY_INFO!D27*AM27*PROFILE!$G$9,IF(AND(DISTRICT!Z27<>"Inconnu",Z27<>"Non requis"),COUNTRY_INFO!P27*DISTRICT!AN27,0)) -> 15070.67502 | AS27: =MAX(COUNTRY_INFO!D27*AK27*PROFILE!$G$10,COUNTRY_INFO!D27*AL27*PROFILE!$G$10,IF(AND(DISTRICT!Z27<>"Inconnu",Z27<>"Non requis"),COUNTRY_INFO!P27*DISTRICT!AO27,0)) -> 7113.2 | AT27: 29417.67419 | AU27: Y | AV27: =MAX('MDA4'!R27,'T1'!L27,'T2'!J27,T3_R1!K27,T3_R2!K27) -> 0 | AW27: =MAX('MDA1'!K27,'MDA4'!S27,'MDA3'!I27,'MDA3'!L27,'T1'!M27,'T2'!K27,T3_R1!L27,T3_R2!L27) -> 7477 | AX27: =MAX('MDA1'!L27,'MDA4'!T27,'MDA3'!J27,'MDA3'!M27,'T1'!N27,'T2'!L27,T3_R1!M27,T3_R2!M27) -> 0 | AY27: 7477 | AZ27: =MAX('MDA4'!R27,T27) -> 0 | BA27: =MAX('MDA1'!K27,'MDA4'!S27,'MDA3'!I27,'MDA3'!L27,V27,AD27) -> 7477 | BB27: =MAX('MDA1'!L27,'MDA4'!T27,'MDA3'!J27,'MDA3'!M27,AF27) -> 0 | BC27: 7477 | BD27: 25.41669322
A28: =IF(COUNTRY_INFO!A28=0," ",COUNTRY_INFO!A28) -> Gabon | B28: =IF(COUNTRY_INFO!B28=0," ",COUNTRY_INFO!B28) -> Centre | C28: =IF(COUNTRY_INFO!C28=0," ",COUNTRY_INFO!C28) -> Abanga-Bigné | D28: =COUNTRY_INFO!M28 -> 16969 | G28: =MAX('MDA1'!M28,'MDA4'!U28) -> 0 | H28: =IF(AND(COUNTRY_INFO!H28>0,COUNTRY_INFO!H28<4),IF(D28>MAX('MDA1'!M28,'MDA4'!U28),MAX('MDA1'!M28,'MDA4'!U28),D28),0) -> 0 | I28: =IF(AND(COUNTRY_INFO!H28>0,COUNTRY_INFO!H28<4), IF(G28/D28*100<>0, IF(G28/D28*100>100,100,G28/D28*100), "-"),0) -> - | J28: =COUNTRY_INFO!N28 -> 16969 | M28: =MAX('MDA1'!M28,MAX('MDA3'!I28,'MDA3'!L28)+MAX('MDA3'!J28,'MDA3'!M28)) -> 0 | N28: =IF(AND(COUNTRY_INFO!I28>0,COUNTRY_INFO!I28<4),IF(J28>MAX('MDA1'!M28,MAX('MDA3'!I28,'MDA3'!L28)+MAX('MDA3'!J28,'MDA3'!M28)),MAX('MDA1'!M28,MAX('MDA3'!I28,'MDA3'!L28)+MAX('MDA3'!J28,'MDA3'!M28)),J28),0) -> 0 | O28: =IF(AND(COUNTRY_INFO!I28>0,COUNTRY_INFO!I28<4), IF(M28/J28*100<>0, IF(M28/J28*100>100,100,M28/J28*100), "-"),0) -> - | P28: =COUNTRY_INFO!O28 -> 6278 | Q28: 906 | R28: 957 | S28: =SUM(MAX('MDA4'!N28, 'T1'!L28, MAX(T3_R1!K28, T3_R2!K28)), MAX('MDA1'!K28, 'MDA4'!O28, 'T1'!M28, MAX(T3_R1!L28, T3_R2!L28)), MAX('MDA1'!L28, 'MDA4'!P28, 'T1'!N28, MAX(T3_R1!M28, T3_R2!M28))) -> 1863 | T28: =IF(AND(COUNTRY_INFO!J28>1,COUNTRY_INFO!J28<4),IF(COUNTRY_INFO!E28>MAX('MDA4'!N28,'T1'!L28,MAX(T3_R1!K28,T3_R2!K28)),MAX('MDA4'!N28,'T1'!L28,MAX(T3_R1!K28,T3_R2!K28)),COUNTRY_INFO!E28),0) -> 0 | U28: =IF(AND(COUNTRY_INFO!J28>1,COUNTRY_INFO!J28<4), IF(T28/COUNTRY_INFO!E28*100<>0, IF(T28/COUNTRY_INFO!E28*100>100,100,T28/COUNTRY_INFO!E28*100), "-"),0) -> - | V28: =IF(AND(COUNTRY_INFO!J28>1,COUNTRY_INFO!J28<4),IF(COUNTRY_INFO!F28>MAX('MDA1'!K28,'MDA4'!O28,'T1'!M28,MAX(T3_R1!L28,T3_R2!L28)),MAX('MDA1'!K28,'MDA4'!O28,'T1'!M28,MAX(T3_R1!L28,T3_R2!L28)),COUNTRY_INFO!F28),0) -> 1863 | W28: =IF(AND(COUNTRY_INFO!J28>1,COUNTRY_INFO!J28<4), IF(V28/COUNTRY_INFO!F28*100<>0, IF(V28/COUNTRY_INFO!F28*100>100,100,V28/COUNTRY_INFO!F28*100), "-"),0) -> 43.91796322 | X28: 1863 | Y28: =IF(AND(COUNTRY_INFO!J28>1,COUNTRY_INFO!J28<4), IF(S28/P28*100<>0, IF(X28/P28*100>100,100,X28/P28*100), "-"),0) -> 29.67505575 | Z28: =COUNTRY_INFO!P28 -> 1399.86 | AA28: 906 | AB28: 957 | AC28: =MAX('T1'!L28,'T2'!J28)+MAX('T1'!M28,'T2'!K28)+MAX('T1'!N28,'T2'!L28) -> 1863 | AD28: =IF(COUNTRY_INFO!K28=1,IF(COUNTRY_INFO!F28*0.33>MAX('T1'!M28,'T2'!K28),MAX('T1'!M28,'T2'!K28),COUNTRY_INFO!F28*0.33),IF(COUNTRY_INFO!K28=2,IF(COUNTRY_INFO!F28*0.5>MAX('T1'!M28,'T2'!K28),MAX('T1'!M28,'T2'!K28),COUNTRY_INFO!F28*0.5),IF(COUNTRY_INFO!K28=3,IF(COUNTRY_INFO!F28>MAX('T1'!M28,'T2'!K28),MAX('T1'!M28,'T2'!K28),COUNTRY_INFO!F28),0))) -> 1399.86 | AE28: =IF(AND(COUNTRY_INFO!K28>0,COUNTRY_INFO!K28<4),IF(Z28>0,IF(COUNTRY_INFO!K28=1, AD28/(COUNTRY_INFO!F28*0.33)*100, IF(COUNTRY_INFO!K28=2, AD28/(COUNTRY_INFO!F28*0.5)*100, IF(COUNTRY_INFO!K28=3, AD28/COUNTRY_INFO!F28*100))),"-"),0) -> 100 | AF28: =IF(COUNTRY_INFO!K28=2,IF(COUNTRY_INFO!G28*0.2>MAX('T1'!N28,'T2'!L28),MAX('T1'!N28,'T2'!L28),COUNTRY_INFO!G28*0.2),IF(COUNTRY_INFO!K28=3,IF(COUNTRY_INFO!G28>MAX('T1'!N28,'T2'!L28),MAX('T1'!N28,'T2'!L28),COUNTRY_INFO!G28),0)) -> 0 | AG28: =IF(AND(COUNTRY_INFO!K28>0,COUNTRY_INFO!K28<4),IF(Z28>0,IF(COUNTRY_INFO!K28=1, 0, IF(COUNTRY_INFO!K28=2, AF28/(COUNTRY_INFO!G28*0.2)*100, IF(COUNTRY_INFO!K28=3, AF28/COUNTRY_INFO!G28*100))),"-"),0) -> 0 | AH28: 1399.86 | AI28: =IF(AND(COUNTRY_INFO!K28>0,COUNTRY_INFO!K28<4), IF(AC28/Z28*100<>0, IF(AH28/Z28*100>100,100,AH28/Z28*100), "-"),0) -> 100 | AK28: =IF(AND(D28<>0, D28<>"Inconnu",D28<>"Interrompu",D28<>"Non requis"),D28/COUNTRY_INFO!D28, 0) -> 1 | AL28: =IF(AND(J28<>0,J28<>"Inconnu",J28<>"Interrompu",J28<>"Non requis"),J28/COUNTRY_INFO!D28, 0) -> 1 | AM28: =IF(AND(P28<>0,P28<>"Inconnu",P28<>"Non requis"),P28/(COUNTRY_INFO!E28+COUNTRY_INFO!F28), 0) -> 1 | AN28: =IF(AND(Z28<>0,Z28<>"Inconnu",Z28<>"Non requis"),IF(COUNTRY_INFO!K28=1,1,IF(COUNTRY_INFO!K28=2,0.5*COUNTRY_INFO!F28/(0.5*COUNTRY_INFO!F28+0.2*COUNTRY_INFO!G28),IF(COUNTRY_INFO!K28=3,COUNTRY_INFO!F28/(COUNTRY_INFO!F28+COUNTRY_INFO!G28)))),0) -> 1 | AO28: =IF(AND(Z28<>0,Z28<>"Inconnu",Z28<>"Non requis"),IF(COUNTRY_INFO!K28=1,0,IF(COUNTRY_INFO!K28=2,0.2*COUNTRY_INFO!G28/(0.5*COUNTRY_INFO!F28+0.2*COUNTRY_INFO!G28),IF(COUNTRY_INFO!K28=3,COUNTRY_INFO!G28/(COUNTRY_INFO!F28+COUNTRY_INFO!G28)))),0) -> 0 | AP28: =MAX(COUNTRY_INFO!D28*AK28*PROFILE!$G$7,COUNTRY_INFO!D28*AL28*PROFILE!$G$7) -> 678.7041626 | AQ28: =MAX(COUNTRY_INFO!D28*AK28*PROFILE!$G$8,COUNTRY_INFO!D28*AL28*PROFILE!$G$8,COUNTRY_INFO!D28*AM28*PROFILE!$G$8) -> 2036.268504 | AR28: =MAX(COUNTRY_INFO!D28*AK28*PROFILE!$G$9,COUNTRY_INFO!D28*AL28*PROFILE!$G$9,COUNTRY_INFO!D28*AM28*PROFILE!$G$9,IF(AND(DISTRICT!Z28<>"Inconnu",Z28<>"Non requis"),COUNTRY_INFO!P28*DISTRICT!AN28,0)) -> 4242.299268 | AS28: =MAX(COUNTRY_INFO!D28*AK28*PROFILE!$G$10,COUNTRY_INFO!D28*AL28*PROFILE!$G$10,IF(AND(DISTRICT!Z28<>"Inconnu",Z28<>"Non requis"),COUNTRY_INFO!P28*DISTRICT!AO28,0)) -> 10011.72807 | AT28: 16969 | AU28: 0 | AV28: =MAX('MDA4'!R28,'T1'!L28,'T2'!J28,T3_R1!K28,T3_R2!K28) -> 0 | AW28: =MAX('MDA1'!K28,'MDA4'!S28,'MDA3'!I28,'MDA3'!L28,'T1'!M28,'T2'!K28,T3_R1!L28,T3_R2!L28) -> 1863 | AX28: =MAX('MDA1'!L28,'MDA4'!T28,'MDA3'!J28,'MDA3'!M28,'T1'!N28,'T2'!L28,T3_R1!M28,T3_R2!M28) -> 0 | AY28: 1863 | AZ28: =MAX('MDA4'!R28,T28) -> 0 | BA28: =MAX('MDA1'!K28,'MDA4'!S28,'MDA3'!I28,'MDA3'!L28,V28,AD28) -> 1863 | BB28: =MAX('MDA1'!L28,'MDA4'!T28,'MDA3'!J28,'MDA3'!M28,AF28) -> 0 | BC28: 1863 | BD28: 10.97884377
A29: =IF(COUNTRY_INFO!A29=0," ",COUNTRY_INFO!A29) -> Gabon | B29: =IF(COUNTRY_INFO!B29=0," ",COUNTRY_INFO!B29) -> Centre-Sud | C29: =IF(COUNTRY_INFO!C29=0," ",COUNTRY_INFO!C29) -> Tsamba-Magotsi | D29: =COUNTRY_INFO!M29 -> 0 | G29: =MAX('MDA1'!M29,'MDA4'!U29) -> 0 | H29: =IF(AND(COUNTRY_INFO!H29>0,COUNTRY_INFO!H29<4),IF(D29>MAX('MDA1'!M29,'MDA4'!U29),MAX('MDA1'!M29,'MDA4'!U29),D29),0) -> 0 | I29: =IF(AND(COUNTRY_INFO!H29>0,COUNTRY_INFO!H29<4), IF(G29/D29*100<>0, IF(G29/D29*100>100,100,G29/D29*100), "-"),0) -> 0 | J29: =COUNTRY_INFO!N29 -> 15465 | M29: =MAX('MDA1'!M29,MAX('MDA3'!I29,'MDA3'!L29)+MAX('MDA3'!J29,'MDA3'!M29)) -> 0 | N29: =IF(AND(COUNTRY_INFO!I29>0,COUNTRY_INFO!I29<4),IF(J29>MAX('MDA1'!M29,MAX('MDA3'!I29,'MDA3'!L29)+MAX('MDA3'!J29,'MDA3'!M29)),MAX('MDA1'!M29,MAX('MDA3'!I29,'MDA3'!L29)+MAX('MDA3'!J29,'MDA3'!M29)),J29),0) -> 0 | O29: =IF(AND(COUNTRY_INFO!I29>0,COUNTRY_INFO!I29<4), IF(M29/J29*100<>0, IF(M29/J29*100>100,100,M29/J29*100), "-"),0) -> - | P29: =COUNTRY_INFO!O29 -> 5722 | Q29: 1164 | R29: 1100 | S29: =SUM(MAX('MDA4'!N29, 'T1'!L29, MAX(T3_R1!K29, T3_R2!K29)), MAX('MDA1'!K29, 'MDA4'!O29, 'T1'!M29, MAX(T3_R1!L29, T3_R2!L29)), MAX('MDA1'!L29, 'MDA4'!P29, 'T1'!N29, MAX(T3_R1!M29, T3_R2!M29))) -> 2264 | T29: =IF(AND(COUNTRY_INFO!J29>1,COUNTRY_INFO!J29<4),IF(COUNTRY_INFO!E29>MAX('MDA4'!N29,'T1'!L29,MAX(T3_R1!K29,T3_R2!K29)),MAX('MDA4'!N29,'T1'!L29,MAX(T3_R1!K29,T3_R2!K29)),COUNTRY_INFO!E29),0) -> 0 | U29: =IF(AND(COUNTRY_INFO!J29>1,COUNTRY_INFO!J29<4), IF(T29/COUNTRY_INFO!E29*100<>0, IF(T29/COUNTRY_INFO!E29*100>100,100,T29/COUNTRY_INFO!E29*100), "-"),0) -> - | V29: =IF(AND(COUNTRY_INFO!J29>1,COUNTRY_INFO!J29<4),IF(COUNTRY_INFO!F29>MAX('MDA1'!K29,'MDA4'!O29,'T1'!M29,MAX(T3_R1!L29,T3_R2!L29)),MAX('MDA1'!K29,'MDA4'!O29,'T1'!M29,MAX(T3_R1!L29,T3_R2!L29)),COUNTRY_INFO!F29),0) -> 2264 | W29: =IF(AND(COUNTRY_INFO!J29>1,COUNTRY_INFO!J29<4), IF(V29/COUNTRY_INFO!F29*100<>0, IF(V29/COUNTRY_INFO!F29*100>100,100,V29/COUNTRY_INFO!F29*100), "-"),0) -> 58.561821 | X29: 2264 | Y29: =IF(AND(COUNTRY_INFO!J29>1,COUNTRY_INFO!J29<4), IF(S29/P29*100<>0, IF(X29/P29*100>100,100,X29/P29*100), "-"),0) -> 39.56658511 | Z29: =COUNTRY_INFO!P29 -> 3757.8 | AA29: 1164 | AB29: 1100 | AC29: =MAX('T1'!L29,'T2'!J29)+MAX('T1'!M29,'T2'!K29)+MAX('T1'!N29,'T2'!L29) -> 2264 | AD29: =IF(COUNTRY_INFO!K29=1,IF(COUNTRY_INFO!F29*0.33>MAX('T1'!M29,'T2'!K29),MAX('T1'!M29,'T2'!K29),COUNTRY_INFO!F29*0.33),IF(COUNTRY_INFO!K29=2,IF(COUNTRY_INFO!F29*0.5>MAX('T1'!M29,'T2'!K29),MAX('T1'!M29,'T2'!K29),COUNTRY_INFO!F29*0.5),IF(COUNTRY_INFO!K29=3,IF(COUNTRY_INFO!F29>MAX('T1'!M29,'T2'!K29),MAX('T1'!M29,'T2'!K29),COUNTRY_INFO!F29),0))) -> 1933 | AE29: =IF(AND(COUNTRY_INFO!K29>0,COUNTRY_INFO!K29<4),IF(Z29>0,IF(COUNTRY_INFO!K29=1, AD29/(COUNTRY_INFO!F29*0.33)*100, IF(COUNTRY_INFO!K29=2, AD29/(COUNTRY_INFO!F29*0.5)*100, IF(COUNTRY_INFO!K29=3, AD29/COUNTRY_INFO!F29*100))),"-"),0) -> 100 | AF29: =IF(COUNTRY_INFO!K29=2,IF(COUNTRY_INFO!G29*0.2>MAX('T1'!N29,'T2'!L29),MAX('T1'!N29,'T2'!L29),COUNTRY_INFO!G29*0.2),IF(COUNTRY_INFO!K29=3,IF(COUNTRY_INFO!G29>MAX('T1'!N29,'T2'!L29),MAX('T1'!N29,'T2'!L29),COUNTRY_INFO!G29),0)) -> 0 | AG29: =IF(AND(COUNTRY_INFO!K29>0,COUNTRY_INFO!K29<4),IF(Z29>0,IF(COUNTRY_INFO!K29=1, 0, IF(COUNTRY_INFO!K29=2, AF29/(COUNTRY_INFO!G29*0.2)*100, IF(COUNTRY_INFO!K29=3, AF29/COUNTRY_INFO!G29*100))),"-"),0) -> 0 | AH29: 1933 | AI29: =IF(AND(COUNTRY_INFO!K29>0,COUNTRY_INFO!K29<4), IF(AC29/Z29*100<>0, IF(AH29/Z29*100>100,100,AH29/Z29*100), "-"),0) -> 51.43967215 | AK29: =IF(AND(D29<>0, D29<>"Inconnu",D29<>"Interrompu",D29<>"Non requis"),D29/COUNTRY_INFO!D29, 0) -> 0 | AL29: =IF(AND(J29<>0,J29<>"Inconnu",J29<>"Interrompu",J29<>"Non requis"),J29/COUNTRY_INFO!D29, 0) -> 1 | AM29: =IF(AND(P29<>0,P29<>"Inconnu",P29<>"Non requis"),P29/(COUNTRY_INFO!E29+COUNTRY_INFO!F29), 0) -> 1 | AN29: =IF(AND(Z29<>0,Z29<>"Inconnu",Z29<>"Non requis"),IF(COUNTRY_INFO!K29=1,1,IF(COUNTRY_INFO!K29=2,0.5*COUNTRY_INFO!F29/(0.5*COUNTRY_INFO!F29+0.2*COUNTRY_INFO!G29),IF(COUNTRY_INFO!K29=3,COUNTRY_INFO!F29/(COUNTRY_INFO!F29+COUNTRY_INFO!G29)))),0) -> 0.5143967215 | AO29: =IF(AND(Z29<>0,Z29<>"Inconnu",Z29<>"Non requis"),IF(COUNTRY_INFO!K29=1,0,IF(COUNTRY_INFO!K29=2,0.2*COUNTRY_INFO!G29/(0.5*COUNTRY_INFO!F29+0.2*COUNTRY_INFO!G29),IF(COUNTRY_INFO!K29=3,COUNTRY_INFO!G29/(COUNTRY_INFO!F29+COUNTRY_INFO!G29)))),0) -> 0.4856032785 | AP29: =MAX(COUNTRY_INFO!D29*AK29*PROFILE!$G$7,COUNTRY_INFO!D29*AL29*PROFILE!$G$7) -> 618.5491115 | AQ29: =MAX(COUNTRY_INFO!D29*AK29*PROFILE!$G$8,COUNTRY_INFO!D29*AL29*PROFILE!$G$8,COUNTRY_INFO!D29*AM29*PROFILE!$G$8) -> 1855.789523 | AR29: =MAX(COUNTRY_INFO!D29*AK29*PROFILE!$G$9,COUNTRY_INFO!D29*AL29*PROFILE!$G$9,COUNTRY_INFO!D29*AM29*PROFILE!$G$9,IF(AND(DISTRICT!Z29<>"Inconnu",Z29<>"Non requis"),COUNTRY_INFO!P29*DISTRICT!AN29,0)) -> 3866.294902 | AS29: =MAX(COUNTRY_INFO!D29*AK29*PROFILE!$G$10,COUNTRY_INFO!D29*AL29*PROFILE!$G$10,IF(AND(DISTRICT!Z29<>"Inconnu",Z29<>"Non requis"),COUNTRY_INFO!P29*DISTRICT!AO29,0)) -> 9124.366464 | AT29: 15465 | AU29: 0 | AV29: =MAX('MDA4'!R29,'T1'!L29,'T2'!J29,T3_R1!K29,T3_R2!K29) -> 0 | AW29: =MAX('MDA1'!K29,'MDA4'!S29,'MDA3'!I29,'MDA3'!L29,'T1'!M29,'T2'!K29,T3_R1!L29,T3_R2!L29) -> 2264 | AX29: =MAX('MDA1'!L29,'MDA4'!T29,'MDA3'!J29,'MDA3'!M29,'T1'!N29,'T2'!L29,T3_R1!M29,T3_R2!M29) -> 0 | AY29: 2264 | AZ29: =MAX('MDA4'!R29,T29) -> 0 | BA29: =MAX('MDA1'!K29,'MDA4'!S29,'MDA3'!I29,'MDA3'!L29,V29,AD29) -> 2264 | BB29: =MAX('MDA1'!L29,'MDA4'!T29,'MDA3'!J29,'MDA3'!M29,AF29) -> 0 | BC29: 2264 | BD29: 14.63950857
